Workbook

Sheet Information
F2: Supplementary Network Services Report
F3: ="July 2021 - "&TEXT('Dropdown control panel'!C4,"dd mmmm yyyy") -> July 2021 - 31 March 2022
G4: Activity
A5: Please send any feedback to | G5: Atrial Fibrillation: Case Finding
A6: CEG Newham Facilitator | Jayne Callaghan: | G6: Atrial Fibrillation: New diagnosis risk stratification
A7: j.callaghan@qmul.ac.uk | G7: Atrial Fibrillation: New diagnosis commencing anticoagulation
G8: ADHD: 6 Monthly Reviews
G9: CKD Patients with Falling eGFR
G10: COPD - Post Exacerbation Review
A11: CEG Data Analyst |Thomas Bradshaw | G11: COPD Case Finding (where spirometry is undertaken in practice)
A12: t.bradshaw@qmul.ac.uk | G12: Primary Prevention
G13: Insulin Initiation
A14: Version 3.2 | G14: Post Cardiac Event
A15: Updates | G15: LTC CVD Annual Review
G16: LTC Diabetes Annual Review
G17: LTC Quality Markers
G18: LTBI: New patients
G19: LTBI: Existing patients
G20: LTBI: Positive TB screening and counselling
G21: SMI: Physical Health Checks
G22: SMI: Enrolled in EPC not on depot
G23: SMI: On Depot, not enrolled in EPC
G24: SMI: Enrolled in EPCS and on depot
G25: Cancer
G27: Quality
G28: Atrial Fibrillation Case Finding: No CVD >=65 years old
G29: Atrial Fibrillation: New diagnoses risk stratification
G30: Atrial Fibrillation: New diagoses commencing anticoagulation
G31: COPD Case Finding (where spirometry is undertaken in practice)
G32: COPD 6 month Review
G33: Primary Prevention
G34: Diabetes annual review
G35: Insulin Initiation
G36: Post Cardiac Event
G37: CVD annual Review (excluding Diabetes)
G38: Serious Mental Illness
G39: Wound Care
G40: Wound Care Given
G41: Change of Dressing
G42: Removal of suture from skin NEC, etc...
G43: Wound dressing
G44: Injection given
G45: LTBI quality
G46: LTBI: Positive TB screening and counselling
G47: Incorporated SNSs
G48: Childhood Immunisations
G49: Infant Feeding
G50: Epilepsy
G51: Psychology Referrals
G52: CKD
G53: Frailty Care Review
G54: Asthma
G55: Type 2 Diabetes
G56: Ethinicity
G61: n.b. It is possible that practice and cluster activity, including patients who have subsequently left or died, will exceed 100%.
G62: This is due to the use of a currently registered target population as a denominator for this calculation

Sheet Activity Summary
C1: Supplementary Network Services Report
C2: ="July 2021 - "&TEXT('Dropdown control panel'!$C$4,"dd mmmm yyyy") -> July 2021 - 31 March 2022
C3: Activity
F4: =SUM(G12:G74) -> 552415.3
A8: Back to information | D8: Full report | F8: Price per service | G8: Value | H8: Targets
C9: Currently Registered Patients | D9: =VLOOKUP('Dropdown control panel'!$B$3,Compiled!$D$7:$CC$65,MATCH('Activity Summary'!$C9,Compiled!$D$1:$CC$1,0),FALSE) -> 445168
A10: =INDEX(Mapping!$D$5:$D$7,ROW(A1)) -> AF01 | B10: Atrial Fibrillation: Case Finding | C10: =VLOOKUP(A10,Mapping!$D$4:$E$90,2,FALSE) -> No CVD >=65 years old | D10: =IF(ISNUMBER(FIND("/",A10)),HLOOKUP($A10,Compiled!$F$1:$CC$65,MATCH('Dropdown control panel'!$B$3,Compiled!$D$1:$D$65,0),FALSE),HLOOKUP($A10,Compiled!$F$1:$CC$65,MATCH('Dropdown control panel'!$B$3,Compiled!$D$1:$D$65,0),FALSE)) -> 7323
A11: =INDEX(Mapping!$D$5:$D$7,ROW(A2)) -> AFa01 | C11: =VLOOKUP(A11,Mapping!$D$4:$E$90,2,FALSE) -> Patients with pulse rate and rhythm recorded | D11: =IF(ISNUMBER(FIND("/",A11)),HLOOKUP($A11,Compiled!$F$1:$CC$65,MATCH('Dropdown control panel'!$B$3,Compiled!$D$1:$D$65,0),FALSE),HLOOKUP($A11,Compiled!$F$1:$CC$65,MATCH('Dropdown control panel'!$B$3,Compiled!$D$1:$D$65,0),FALSE)) -> 3036
A12: =INDEX(Mapping!$D$5:$D$7,ROW(A3)) -> AFa01/AF01 | C12: =VLOOKUP(A12,Mapping!$D$4:$E$90,2,FALSE) -> % Patients with pulse rate and rhythm recorded | D12: =IF(ISNUMBER(FIND("/",A12)),HLOOKUP($A12,Compiled!$F$1:$CC$65,MATCH('Dropdown control panel'!$B$3,Compiled!$D$1:$D$65,0),FALSE),HLOOKUP($A12,Compiled!$F$1:$CC$65,MATCH('Dropdown control panel'!$B$3,Compiled!$D$1:$D$65,0),FALSE)) -> 0.415 | E12: =IF($D12="0.00%","N/A",IF($D12<VLOOKUP($C11,'Dropdown control panel'!$B$76:$D$137,2,FALSE),$D10*VLOOKUP($C11,'Dropdown control panel'!$B$76:$D$137,2,FALSE)-$D11,"On Target")) -> 991.65 | F12: 1.5 | G12: =IFERROR(F12*D11,"N/A") -> 4554 | H12: 55% Target
A13: AFa04 | C13: =VLOOKUP(A13,Mapping!$D$4:$E$90,2,FALSE) -> AF Diagnosis through Case Finding | D13: =IF(ISNUMBER(FIND("/",A13)),HLOOKUP($A13,Compiled!$F$1:$CC$65,MATCH('Dropdown control panel'!$B$3,Compiled!$D$1:$D$65,0),FALSE),HLOOKUP($A13,Compiled!$F$1:$CC$65,MATCH('Dropdown control panel'!$B$3,Compiled!$D$1:$D$65,0),FALSE)) -> 0
A14: AFa04/AF01 | C14: =VLOOKUP(A14,Mapping!$D$4:$E$90,2,FALSE) -> % of AF Diagnosis through Case Finding | D14: =IF(ISNUMBER(FIND("/",A14)),HLOOKUP($A14,Compiled!$F$1:$CC$65,MATCH('Dropdown control panel'!$B$3,Compiled!$D$1:$D$65,0),FALSE),HLOOKUP($A14,Compiled!$F$1:$CC$65,MATCH('Dropdown control panel'!$B$3,Compiled!$D$1:$D$65,0),FALSE)) -> 0 | E14: No Target | F14: 50 | G14: =IFERROR(F14*D13,"N/A") -> 0
A15: =INDEX(Mapping!$D$10:$D$12,ROW(A1)) -> AF02 | B15: Atrial Fibrillation: New diagnosis risk stratification | C15: =VLOOKUP(A15,Mapping!$D$4:$E$90,2,FALSE) -> New Diagnosis of AF | D15: =IF(ISNUMBER(FIND("/",A15)),HLOOKUP($A15,Compiled!$F$1:$CC$65,MATCH('Dropdown control panel'!$B$3,Compiled!$D$1:$D$65,0),FALSE),HLOOKUP($A15,Compiled!$F$1:$CC$65,MATCH('Dropdown control panel'!$B$3,Compiled!$D$1:$D$65,0),FALSE)) -> 310
A16: =INDEX(Mapping!$D$10:$D$12,ROW(A2)) -> AFa02 | C16: =VLOOKUP(A16,Mapping!$D$4:$E$90,2,FALSE) -> Patients on AF care pathway | D16: =IF(ISNUMBER(FIND("/",A16)),HLOOKUP($A16,Compiled!$F$1:$CC$65,MATCH('Dropdown control panel'!$B$3,Compiled!$D$1:$D$65,0),FALSE),HLOOKUP($A16,Compiled!$F$1:$CC$65,MATCH('Dropdown control panel'!$B$3,Compiled!$D$1:$D$65,0),FALSE)) -> 48
A17: =INDEX(Mapping!$D$10:$D$12,ROW(A3)) -> AFa02/AF02 | C17: =VLOOKUP(A17,Mapping!$D$4:$E$90,2,FALSE) -> % Patients on AF care pathway | D17: =IF(ISNUMBER(FIND("/",A17)),HLOOKUP($A17,Compiled!$F$1:$CC$65,MATCH('Dropdown control panel'!$B$3,Compiled!$D$1:$D$65,0),FALSE),HLOOKUP($A17,Compiled!$F$1:$CC$65,MATCH('Dropdown control panel'!$B$3,Compiled!$D$1:$D$65,0),FALSE)) -> 0.155 | E17: =IF($D17="0.00%","N/A",IF($D17<VLOOKUP($C16,'Dropdown control panel'!$B$76:$D$137,2,FALSE),$D15*VLOOKUP($C16,'Dropdown control panel'!$B$76:$D$137,2,FALSE)-$D16,"On Target")) -> 107 | F17: 36.67 | G17: =IFERROR(F17*D16,"N/A") -> 1760.16 | H17: 50% Target
A18: =INDEX(Mapping!$D$13:$D$15,ROW(A1)) -> AF03 | B18: Atrial Fibrillation: New diagnosis commencing anticoagulation | C18: =VLOOKUP(A18,Mapping!$D$4:$E$90,2,FALSE) -> New Diagnosis of AF with HASBLED <=2 | D18: =IF(ISNUMBER(FIND("/",A18)),HLOOKUP($A18,Compiled!$F$1:$CC$65,MATCH('Dropdown control panel'!$B$3,Compiled!$D$1:$D$65,0),FALSE),HLOOKUP($A18,Compiled!$F$1:$CC$65,MATCH('Dropdown control panel'!$B$3,Compiled!$D$1:$D$65,0),FALSE)) -> 33
A19: =INDEX(Mapping!$D$13:$D$15,ROW(A2)) -> AFa03 | C19: =VLOOKUP(A19,Mapping!$D$4:$E$90,2,FALSE) -> Patients with anticoagulation therapy discussed | D19: =IF(ISNUMBER(FIND("/",A19)),HLOOKUP($A19,Compiled!$F$1:$CC$65,MATCH('Dropdown control panel'!$B$3,Compiled!$D$1:$D$65,0),FALSE),HLOOKUP($A19,Compiled!$F$1:$CC$65,MATCH('Dropdown control panel'!$B$3,Compiled!$D$1:$D$65,0),FALSE)) -> 18
A20: =INDEX(Mapping!$D$13:$D$15,ROW(A3)) -> AFa03/AF03 | C20: =VLOOKUP(A20,Mapping!$D$4:$E$90,2,FALSE) -> % Patients with anticoagulation therapy discussed | D20: =IF(ISNUMBER(FIND("/",A20)),HLOOKUP($A20,Compiled!$F$1:$CC$65,MATCH('Dropdown control panel'!$B$3,Compiled!$D$1:$D$65,0),FALSE),HLOOKUP($A20,Compiled!$F$1:$CC$65,MATCH('Dropdown control panel'!$B$3,Compiled!$D$1:$D$65,0),FALSE)) -> 0.545 | E20: =IF($D20="0.00%","N/A",IF($D20<VLOOKUP($C19,'Dropdown control panel'!$B$76:$D$137,2,FALSE),$D18*VLOOKUP($C19,'Dropdown control panel'!$B$76:$D$137,2,FALSE)-$D19,"On Target")) -> 3.45 | F20: 36.67 | G20: =IFERROR(F20*D19,"N/A") -> 660.06 | H20: 65% Target
A21: =INDEX(Mapping!$D$80:$D$86,ROW(A1)) -> ADHD01 | B21: ADHD: 6 Monthly Reviews | C21: =VLOOKUP(A21,Mapping!$D$4:$E$90,2,FALSE) -> Patients aged 11-18yrs discharged from CAMHS | D21: =IF(ISNUMBER(FIND("/",A21)),HLOOKUP($A21,Compiled!$F$1:$CF$65,MATCH('Dropdown control panel'!$B$3,Compiled!$D$1:$D$65,0),FALSE),HLOOKUP($A21,Compiled!$F$1:$CF$65,MATCH('Dropdown control panel'!$B$3,Compiled!$D$1:$D$65,0),FALSE)) -> 19
A22: =INDEX(Mapping!$D$80:$D$86,ROW(A2)) -> ADHD02 | C22: =VLOOKUP(A22,Mapping!$D$4:$E$90,2,FALSE) -> Patients with 6 Monthly Reviews | D22: =IF(ISNUMBER(FIND("/",A22)),HLOOKUP($A22,Compiled!$F$1:$CF$65,MATCH('Dropdown control panel'!$B$3,Compiled!$D$1:$D$65,0),FALSE),HLOOKUP($A22,Compiled!$F$1:$CF$65,MATCH('Dropdown control panel'!$B$3,Compiled!$D$1:$D$65,0),FALSE)) -> 0
A23: =INDEX(Mapping!$D$80:$D$86,ROW(A3)) -> ADHD02/ADHD01 | C23: =VLOOKUP(A23,Mapping!$D$4:$E$90,2,FALSE) -> % of Patients with 6 Monthly Reviews | D23: =IF(ISNUMBER(FIND("/",A23)),HLOOKUP($A23,Compiled!$F$1:$CF$65,MATCH('Dropdown control panel'!$B$3,Compiled!$D$1:$D$65,0),FALSE),HLOOKUP($A23,Compiled!$F$1:$CF$65,MATCH('Dropdown control panel'!$B$3,Compiled!$D$1:$D$65,0),FALSE)) -> 0 | E23: =IF($D23="0.00%","N/A",IF($D23<VLOOKUP($C22,'Dropdown control panel'!$B$76:$D$143,2,FALSE),$D21*VLOOKUP($C22,'Dropdown control panel'!$B$76:$D$143,2,FALSE)-$D22,"On Target")) -> 15.2 | F23: 50 | G23: =IFERROR(F23*D22,"N/A") -> 0 | H23: 80% Target
A24: =INDEX(Mapping!$D$16:$D$18,ROW(A2)) -> CKDa01 | B24: CKD Patients with Falling eGFR | C24: =VLOOKUP(A24,Mapping!$D$4:$E$90,2,FALSE) -> Falling eGFR (Patient Reviewed) | D24: =IF(ISNUMBER(FIND("/",A24)),HLOOKUP($A24,Compiled!$F$1:$CC$65,MATCH('Dropdown control panel'!$B$3,Compiled!$D$1:$D$65,0),FALSE),HLOOKUP($A24,Compiled!$F$1:$CC$65,MATCH('Dropdown control panel'!$B$3,Compiled!$D$1:$D$65,0),FALSE)) -> 988 | E24: No Target | F24: 18.33 | G24: =IFERROR(F24*D24,"N/A") -> 18110.04
A25: CKDa0101 | C25: =VLOOKUP(A25,Mapping!$D$4:$E$90,2,FALSE) -> Referral to Renal E-Clinic | D25: =IF(ISNUMBER(FIND("/",A25)),HLOOKUP($A25,Compiled!$F$1:$CC$65,MATCH('Dropdown control panel'!$B$3,Compiled!$D$1:$D$65,0),FALSE),HLOOKUP($A25,Compiled!$F$1:$CC$65,MATCH('Dropdown control panel'!$B$3,Compiled!$D$1:$D$65,0),FALSE)) -> 117
A26: =INDEX(Mapping!$D$19:$D$133,ROW(A3)) -> CKDa010101 | C26: =VLOOKUP(A26,Mapping!$D$4:$E$90,2,FALSE) -> Renal consultant advised optimisation of patient care | D26: =IF(ISNUMBER(FIND("/",A26)),HLOOKUP($A26,Compiled!$F$1:$CC$65,MATCH('Dropdown control panel'!$B$3,Compiled!$D$1:$D$65,0),FALSE),HLOOKUP($A26,Compiled!$F$1:$CC$65,MATCH('Dropdown control panel'!$B$3,Compiled!$D$1:$D$65,0),FALSE)) -> 100
A27: =INDEX(Mapping!$D$19:$D$133,ROW(A4)) -> CKDa010101/CKDa0101 | C27: =VLOOKUP(A27,Mapping!$D$4:$E$90,2,FALSE) -> % Renal consultant advised optimisation of patient care | D27: =IF(ISNUMBER(FIND("/",A27)),HLOOKUP($A27,Compiled!$F$1:$CC$65,MATCH('Dropdown control panel'!$B$3,Compiled!$D$1:$D$65,0),FALSE),HLOOKUP($A27,Compiled!$F$1:$CC$65,MATCH('Dropdown control panel'!$B$3,Compiled!$D$1:$D$65,0),FALSE)) -> 0.855 | E27: =IF($D27="0.00%","N/A",IF($D27<VLOOKUP($C26,'Dropdown control panel'!$B$76:$D$137,2,FALSE),$D25*VLOOKUP($C26,'Dropdown control panel'!$B$76:$D$137,2,FALSE)-$D26,"On Target")) -> On Target | F27: 18.33 | G27: =IFERROR(F27*D26,"N/A") -> 1833 | H27: 75% Target
A28: COPD001 | B28: COPD - Post Exacerbation Review | C28: =VLOOKUP(A28,Mapping!$D$4:$E$90,2,FALSE) -> Patients on the COPD register | D28: =IF(ISNUMBER(FIND("/",A28)),HLOOKUP($A28,Compiled!$F$1:$CC$65,MATCH('Dropdown control panel'!$B$3,Compiled!$D$1:$D$65,0),FALSE),HLOOKUP($A28,Compiled!$F$1:$CC$65,MATCH('Dropdown control panel'!$B$3,Compiled!$D$1:$D$65,0),FALSE)) -> 3743
A29: 05a | C29: =VLOOKUP(A29,Mapping!$D$4:$E$90,2,FALSE) -> Patients with post exacerbation | D29: =IF(ISNUMBER(FIND("/",A29)),HLOOKUP($A29,Compiled!$F$1:$CC$65,MATCH('Dropdown control panel'!$B$3,Compiled!$D$1:$D$65,0),FALSE),HLOOKUP($A29,Compiled!$F$1:$CC$65,MATCH('Dropdown control panel'!$B$3,Compiled!$D$1:$D$65,0),FALSE)) -> 353
A30: COPD002 | C30: =VLOOKUP(A30,Mapping!$D$4:$E$90,2,FALSE) -> Patients with exacerbation review | D30: =IF(ISNUMBER(FIND("/",A30)),HLOOKUP($A30,Compiled!$F$1:$CC$65,MATCH('Dropdown control panel'!$B$3,Compiled!$D$1:$D$65,0),FALSE),HLOOKUP($A30,Compiled!$F$1:$CC$65,MATCH('Dropdown control panel'!$B$3,Compiled!$D$1:$D$65,0),FALSE)) -> 32
A31: COPD002/05a | C31: =VLOOKUP(A31,Mapping!$D$4:$E$90,2,FALSE) -> % patients with exacerbation review | D31: =IF(ISNUMBER(FIND("/",A31)),HLOOKUP($A31,Compiled!$F$1:$CC$65,MATCH('Dropdown control panel'!$B$3,Compiled!$D$1:$D$65,0),FALSE),HLOOKUP($A31,Compiled!$F$1:$CC$65,MATCH('Dropdown control panel'!$B$3,Compiled!$D$1:$D$65,0),FALSE)) -> 0.091 | E31: =IF($D31="0.00%","N/A",IF($D31<VLOOKUP($C30,'Dropdown control panel'!$B$76:$D$137,2,FALSE),$D29*VLOOKUP($C30,'Dropdown control panel'!$B$76:$D$137,2,FALSE)-$D30,"On Target")) -> 91.55 | F31: 36.63 | G31: =IFERROR(F31*D30,"N/A") -> 1172.16 | H31: 35% Target
A32: COPD01 | B32: COPD Case Finding (where spirometry is undertaken in practice) | C32: =VLOOKUP(A32,Mapping!$D$4:$E$90,2,FALSE) -> Patients with suspected COPD | D32: =IF(ISNUMBER(FIND("/",A32)),HLOOKUP($A32,Compiled!$F$1:$CC$65,MATCH('Dropdown control panel'!$B$3,Compiled!$D$1:$D$65,0),FALSE),HLOOKUP($A32,Compiled!$F$1:$CC$65,MATCH('Dropdown control panel'!$B$3,Compiled!$D$1:$D$65,0),FALSE)) -> 216
A33: COPDa01 | C33: =VLOOKUP(A33,Mapping!$D$4:$E$90,2,FALSE) -> Patients with suspected COPD review (where spirometry is undertaken in practice) | D33: =IF(ISNUMBER(FIND("/",A33)),HLOOKUP($A33,Compiled!$F$1:$CC$65,MATCH('Dropdown control panel'!$B$3,Compiled!$D$1:$D$65,0),FALSE),HLOOKUP($A33,Compiled!$F$1:$CC$65,MATCH('Dropdown control panel'!$B$3,Compiled!$D$1:$D$65,0),FALSE)) -> 124
A34: COPDa01/COPD01 | C34: =VLOOKUP(A34,Mapping!$D$4:$E$90,2,FALSE) -> % Patients with suspected COPD review (where spirometry is undertaken in practice) | D34: =IF(ISNUMBER(FIND("/",A34)),HLOOKUP($A34,Compiled!$F$1:$CC$65,MATCH('Dropdown control panel'!$B$3,Compiled!$D$1:$D$65,0),FALSE),HLOOKUP($A34,Compiled!$F$1:$CC$65,MATCH('Dropdown control panel'!$B$3,Compiled!$D$1:$D$65,0),FALSE)) -> 0.574 | E34: =IF($D34="0.00%","N/A",IF($D34<VLOOKUP($C33,'Dropdown control panel'!$B$76:$D$137,2,FALSE),$D32*VLOOKUP($C33,'Dropdown control panel'!$B$76:$D$137,2,FALSE)-$D33,"On Target")) -> On Target | F34: 37.83 | G34: =IFERROR(F34*D33,"N/A") -> 4690.92 | H34: 50% Target
A35: COPDa04 | C35: =VLOOKUP(A35,Mapping!$D$4:$E$90,2,FALSE) -> COPD Diagnosis through Case Finding | D35: =IF(ISNUMBER(FIND("/",A35)),HLOOKUP($A35,Compiled!$F$1:$CC$65,MATCH('Dropdown control panel'!$B$3,Compiled!$D$1:$D$65,0),FALSE),HLOOKUP($A35,Compiled!$F$1:$CC$65,MATCH('Dropdown control panel'!$B$3,Compiled!$D$1:$D$65,0),FALSE)) -> 15
A36: COPDa04/COPD01 | C36: =VLOOKUP(A36,Mapping!$D$4:$E$90,2,FALSE) -> % of COPD Diagnosis through Case Finding | D36: =IF(ISNUMBER(FIND("/",A36)),HLOOKUP($A36,Compiled!$F$1:$CC$65,MATCH('Dropdown control panel'!$B$3,Compiled!$D$1:$D$65,0),FALSE),HLOOKUP($A36,Compiled!$F$1:$CC$65,MATCH('Dropdown control panel'!$B$3,Compiled!$D$1:$D$65,0),FALSE)) -> 0.069 | E36: No Target | F36: 50 | G36: =IFERROR(F36*D35,"N/A") -> 750
A37: PP01 | B37: Primary Prevention | C37: =VLOOKUP(A37,Mapping!$D$4:$E$90,2,FALSE) -> Patients with Pre-diabetes & or CVD risk >10% (excluding patients with CVD, CKD and Diabetes) | D37: =IF(ISNUMBER(FIND("/",A37)),HLOOKUP($A37,Compiled!$F$1:$CC$65,MATCH('Dropdown control panel'!$B$3,Compiled!$D$1:$D$65,0),FALSE),HLOOKUP($A37,Compiled!$F$1:$CC$65,MATCH('Dropdown control panel'!$B$3,Compiled!$D$1:$D$65,0),FALSE)) -> 44770
A38: PPa01 | C38: =VLOOKUP(A38,Mapping!$D$4:$E$90,2,FALSE) -> Patients with primary prevention full review | D38: =IF(ISNUMBER(FIND("/",A38)),HLOOKUP($A38,Compiled!$F$1:$CC$65,MATCH('Dropdown control panel'!$B$3,Compiled!$D$1:$D$65,0),FALSE),HLOOKUP($A38,Compiled!$F$1:$CC$65,MATCH('Dropdown control panel'!$B$3,Compiled!$D$1:$D$65,0),FALSE)) -> 5517
A39: PPa01/PP01 | C39: =VLOOKUP(A39,Mapping!$D$4:$E$90,2,FALSE) -> % Patients with primary prevention full review | D39: =IF(ISNUMBER(FIND("/",A39)),HLOOKUP($A39,Compiled!$F$1:$CC$65,MATCH('Dropdown control panel'!$B$3,Compiled!$D$1:$D$65,0),FALSE),HLOOKUP($A39,Compiled!$F$1:$CC$65,MATCH('Dropdown control panel'!$B$3,Compiled!$D$1:$D$65,0),FALSE)) -> 0.123 | E39: =IF($D39="0.00%","N/A",IF($D39<VLOOKUP($C38,'Dropdown control panel'!$B$76:$D$137,2,FALSE),$D37*VLOOKUP($C38,'Dropdown control panel'!$B$76:$D$137,2,FALSE)-$D38,"On Target")) -> 13286.4 | F39: 15 | G39: =IFERROR(F39*D38,"N/A") -> 82755 | H39: 42% Target
A40: Da03 | B40: Insulin Initiation | C40: =VLOOKUP(A40,Mapping!$D$4:$E$90,2,FALSE) -> Patients initiated onto Insulin in year | D40: =IF(ISNUMBER(FIND("/",A40)),HLOOKUP($A40,Compiled!$F$1:$CC$65,MATCH('Dropdown control panel'!$B$3,Compiled!$D$1:$D$65,0),FALSE),HLOOKUP($A40,Compiled!$F$1:$CC$65,MATCH('Dropdown control panel'!$B$3,Compiled!$D$1:$D$65,0),FALSE)) -> 260
A41: Da0301 | C41: =VLOOKUP(A41,Mapping!$D$4:$E$90,2,FALSE) -> Patients with Insulin initiation follow up | D41: =IF(ISNUMBER(FIND("/",A41)),HLOOKUP($A41,Compiled!$F$1:$CC$65,MATCH('Dropdown control panel'!$B$3,Compiled!$D$1:$D$65,0),FALSE),HLOOKUP($A41,Compiled!$F$1:$CC$65,MATCH('Dropdown control panel'!$B$3,Compiled!$D$1:$D$65,0),FALSE)) -> 145
A42: Da0301/Da03 | C42: =VLOOKUP(A42,Mapping!$D$4:$E$90,2,FALSE) -> % Patients with Insulin initiation follow up | D42: =IF(ISNUMBER(FIND("/",A42)),HLOOKUP($A42,Compiled!$F$1:$CC$65,MATCH('Dropdown control panel'!$B$3,Compiled!$D$1:$D$65,0),FALSE),HLOOKUP($A42,Compiled!$F$1:$CC$65,MATCH('Dropdown control panel'!$B$3,Compiled!$D$1:$D$65,0),FALSE)) -> 0.558 | E42: No Target | F42: 175 | G42: =IFERROR(F42*D41,"N/A") -> 25375
A43: PC01 | B43: Post Cardiac Event | C43: =VLOOKUP(A43,Mapping!$D$4:$E$90,2,FALSE) -> Patients with a post cardiac event (01/05/2020 - 30/06/2021) | D43: =IF(ISNUMBER(FIND("/",A43)),HLOOKUP($A43,Compiled!$F$1:$CC$65,MATCH('Dropdown control panel'!$B$3,Compiled!$D$1:$D$65,0),FALSE),HLOOKUP($A43,Compiled!$F$1:$CC$65,MATCH('Dropdown control panel'!$B$3,Compiled!$D$1:$D$65,0),FALSE)) -> 272
A44: PCa01 | C44: =VLOOKUP(A44,Mapping!$D$4:$E$90,2,FALSE) -> Patients with a post cardiac event review | D44: =IF(ISNUMBER(FIND("/",A44)),HLOOKUP($A44,Compiled!$F$1:$CC$65,MATCH('Dropdown control panel'!$B$3,Compiled!$D$1:$D$65,0),FALSE),HLOOKUP($A44,Compiled!$F$1:$CC$65,MATCH('Dropdown control panel'!$B$3,Compiled!$D$1:$D$65,0),FALSE)) -> 0
A45: PCa01/PC01 | C45: =VLOOKUP(A45,Mapping!$D$4:$E$90,2,FALSE) -> % Patients with a post cardiac event review | D45: =IF(ISNUMBER(FIND("/",A45)),HLOOKUP($A45,Compiled!$F$1:$CC$65,MATCH('Dropdown control panel'!$B$3,Compiled!$D$1:$D$65,0),FALSE),HLOOKUP($A45,Compiled!$F$1:$CC$65,MATCH('Dropdown control panel'!$B$3,Compiled!$D$1:$D$65,0),FALSE)) -> 0 | E45: =IF($D45="0.00%","N/A",IF($D45<VLOOKUP($C44,'Dropdown control panel'!$B$76:$D$137,2,FALSE),$D43*VLOOKUP($C44,'Dropdown control panel'!$B$76:$D$137,2,FALSE)-$D44,"On Target")) -> 81.6 | F45: 38.67 | G45: =IFERROR(F45*D44,"N/A") -> 0 | H45: 30% Target
A46: PCa0101 | C46: =VLOOKUP(A46,Mapping!$D$4:$E$90,2,FALSE) -> Patients with a follow up post cardiac event review | D46: =IF(ISNUMBER(FIND("/",A46)),HLOOKUP($A46,Compiled!$F$1:$CC$65,MATCH('Dropdown control panel'!$B$3,Compiled!$D$1:$D$65,0),FALSE),HLOOKUP($A46,Compiled!$F$1:$CC$65,MATCH('Dropdown control panel'!$B$3,Compiled!$D$1:$D$65,0),FALSE)) -> 0
A47: PCa0101/PCa01 | C47: =VLOOKUP(A47,Mapping!$D$4:$E$90,2,FALSE) -> % Patients with a follow up post cardiac event review | D47: =IF(ISNUMBER(FIND("/",A47)),HLOOKUP($A47,Compiled!$F$1:$CC$65,MATCH('Dropdown control panel'!$B$3,Compiled!$D$1:$D$65,0),FALSE),HLOOKUP($A47,Compiled!$F$1:$CC$65,MATCH('Dropdown control panel'!$B$3,Compiled!$D$1:$D$65,0),FALSE)) -> 0.00% | E47: =IF($D47="0.00%","N/A",IF($D47<VLOOKUP($C46,'Dropdown control panel'!$B$76:$D$137,2,FALSE),$D44*VLOOKUP($C46,'Dropdown control panel'!$B$76:$D$137,2,FALSE)-$D46,"On Target")) -> N/A | F47: 18.33 | G47: =IFERROR(F47*D46,"N/A") -> 0 | H47: 60% Target
A48: LTC01 | B48: LTC CVD Annual Review | C48: =VLOOKUP(A48,Mapping!$D$4:$E$90,2,FALSE) -> Patients eligible for LTC Review (Hypertension + 1 other CVD Exc Diabetes) | D48: =IF(ISNUMBER(FIND("/",A48)),HLOOKUP($A48,Compiled!$F$1:$CC$65,MATCH('Dropdown control panel'!$B$3,Compiled!$D$1:$D$65,0),FALSE),HLOOKUP($A48,Compiled!$F$1:$CC$65,MATCH('Dropdown control panel'!$B$3,Compiled!$D$1:$D$65,0),FALSE)) -> 6657
A49: LTC012 | C49: =VLOOKUP(A49,Mapping!$D$4:$E$90,2,FALSE) -> Patients with CVD Full Review done | D49: =IF(ISNUMBER(FIND("/",A49)),HLOOKUP($A49,Compiled!$F$1:$CC$65,MATCH('Dropdown control panel'!$B$3,Compiled!$D$1:$D$65,0),FALSE),HLOOKUP($A49,Compiled!$F$1:$CC$65,MATCH('Dropdown control panel'!$B$3,Compiled!$D$1:$D$65,0),FALSE)) -> 2662
A50: LTC012/LTC01 | C50: =VLOOKUP(A50,Mapping!$D$4:$E$90,2,FALSE) -> % Patients with CVD Full Review done | D50: =IF(ISNUMBER(FIND("/",A50)),HLOOKUP($A50,Compiled!$F$1:$CC$65,MATCH('Dropdown control panel'!$B$3,Compiled!$D$1:$D$65,0),FALSE),HLOOKUP($A50,Compiled!$F$1:$CC$65,MATCH('Dropdown control panel'!$B$3,Compiled!$D$1:$D$65,0),FALSE)) -> 0.4 | E50: =IF($D50="0.00%","N/A",IF($D50<VLOOKUP($C49,'Dropdown control panel'!$B$76:$D$137,2,FALSE),$D48*VLOOKUP($C49,'Dropdown control panel'!$B$76:$D$137,2,FALSE)-$D49,"On Target")) -> 1332.2 | F50: 22.83 | G50: =IFERROR(F50*D49,"N/A") -> 60773.46 | H50: 60% Target
A51: LTC02 | B51: LTC Diabetes Annual Review | C51: =VLOOKUP(A51,Mapping!$D$4:$E$90,2,FALSE) -> Patients eligible for LTC Review (T2 Diabetes) | D51: =IF(ISNUMBER(FIND("/",A51)),HLOOKUP($A51,Compiled!$F$1:$CC$65,MATCH('Dropdown control panel'!$B$3,Compiled!$D$1:$D$65,0),FALSE),HLOOKUP($A51,Compiled!$F$1:$CC$65,MATCH('Dropdown control panel'!$B$3,Compiled!$D$1:$D$65,0),FALSE)) -> 28982
A52: LTC021 | C52: =VLOOKUP(A52,Mapping!$D$4:$E$90,2,FALSE) -> Patients with Diabetes Full Review done | D52: =IF(ISNUMBER(FIND("/",A52)),HLOOKUP($A52,Compiled!$F$1:$CC$65,MATCH('Dropdown control panel'!$B$3,Compiled!$D$1:$D$65,0),FALSE),HLOOKUP($A52,Compiled!$F$1:$CC$65,MATCH('Dropdown control panel'!$B$3,Compiled!$D$1:$D$65,0),FALSE)) -> 12697
A53: LTC021/LTC02 | C53: =VLOOKUP(A53,Mapping!$D$4:$E$90,2,FALSE) -> % Patients with Diabetes Full Review done | D53: =IF(ISNUMBER(FIND("/",A53)),HLOOKUP($A53,Compiled!$F$1:$CC$65,MATCH('Dropdown control panel'!$B$3,Compiled!$D$1:$D$65,0),FALSE),HLOOKUP($A53,Compiled!$F$1:$CC$65,MATCH('Dropdown control panel'!$B$3,Compiled!$D$1:$D$65,0),FALSE)) -> 0.438 | E53: =IF($D53="0.00%","N/A",IF($D53<VLOOKUP($C52,'Dropdown control panel'!$B$76:$D$137,2,FALSE),$D51*VLOOKUP($C52,'Dropdown control panel'!$B$76:$D$137,2,FALSE)-$D52,"On Target")) -> 7590.4 | F53: 22.83 | G53: =IFERROR(F53*D52,"N/A") -> 289872.51 | H53: 65% Target
A54: TB01 | B54: LTBI: New patients | C54: =VLOOKUP(A54,Mapping!$D$4:$E$90,2,FALSE) -> New patients eligible for TB screening | D54: =IF(ISNUMBER(FIND("/",A54)),HLOOKUP($A54,Compiled!$F$1:$CC$65,MATCH('Dropdown control panel'!$B$3,Compiled!$D$1:$D$65,0),FALSE),HLOOKUP($A54,Compiled!$F$1:$CC$65,MATCH('Dropdown control panel'!$B$3,Compiled!$D$1:$D$65,0),FALSE)) -> 10617
A55: TBa01 | C55: =VLOOKUP(A55,Mapping!$D$4:$E$90,2,FALSE) -> New patients offered for TB screening | D55: =IF(ISNUMBER(FIND("/",A55)),HLOOKUP($A55,Compiled!$F$1:$CC$65,MATCH('Dropdown control panel'!$B$3,Compiled!$D$1:$D$65,0),FALSE),HLOOKUP($A55,Compiled!$F$1:$CC$65,MATCH('Dropdown control panel'!$B$3,Compiled!$D$1:$D$65,0),FALSE)) -> 4383
A56: TBa01/TB01 | C56: =VLOOKUP(A56,Mapping!$D$4:$E$90,2,FALSE) -> % New patients offered for TB screening | D56: =IF(ISNUMBER(FIND("/",A56)),HLOOKUP($A56,Compiled!$F$1:$CC$65,MATCH('Dropdown control panel'!$B$3,Compiled!$D$1:$D$65,0),FALSE),HLOOKUP($A56,Compiled!$F$1:$CC$65,MATCH('Dropdown control panel'!$B$3,Compiled!$D$1:$D$65,0),FALSE)) -> 0.413 | E56: =IF($D56="0.00%","N/A",IF($D56<VLOOKUP($C55,'Dropdown control panel'!$B$76:$D$137,2,FALSE),$D54*VLOOKUP($C55,'Dropdown control panel'!$B$76:$D$137,2,FALSE)-$D55,"On Target")) -> 925.5 | F56: 6.5 | G56: =IFERROR(F56*D55,"N/A") -> 28489.5 | H56: 50% Target
A57: TB02 | B57: LTBI: Existing patients | C57: =VLOOKUP(A57,Mapping!$D$4:$E$90,2,FALSE) -> Existing patients eligible for TB screening (Registered before 01/04/2020) | D57: =IF(ISNUMBER(FIND("/",A57)),HLOOKUP($A57,Compiled!$F$1:$CC$65,MATCH('Dropdown control panel'!$B$3,Compiled!$D$1:$D$65,0),FALSE),HLOOKUP($A57,Compiled!$F$1:$CC$65,MATCH('Dropdown control panel'!$B$3,Compiled!$D$1:$D$65,0),FALSE)) -> 14949
A58: TBa02 | C58: =VLOOKUP(A58,Mapping!$D$4:$E$90,2,FALSE) -> Existing patients offered for TB screening | D58: =IF(ISNUMBER(FIND("/",A58)),HLOOKUP($A58,Compiled!$F$1:$CC$65,MATCH('Dropdown control panel'!$B$3,Compiled!$D$1:$D$65,0),FALSE),HLOOKUP($A58,Compiled!$F$1:$CC$65,MATCH('Dropdown control panel'!$B$3,Compiled!$D$1:$D$65,0),FALSE)) -> 2789
A59: TBa02/TB02 | C59: =VLOOKUP(A59,Mapping!$D$4:$E$90,2,FALSE) -> % Existing patients offered for TB screening | D59: =IF(ISNUMBER(FIND("/",A59)),HLOOKUP($A59,Compiled!$F$1:$CC$65,MATCH('Dropdown control panel'!$B$3,Compiled!$D$1:$D$65,0),FALSE),HLOOKUP($A59,Compiled!$F$1:$CC$65,MATCH('Dropdown control panel'!$B$3,Compiled!$D$1:$D$65,0),FALSE)) -> 0.187 | E59: =IF($D59="0.00%","N/A",IF($D59<VLOOKUP($C58,'Dropdown control panel'!$B$76:$D$137,2,FALSE),$D57*VLOOKUP($C58,'Dropdown control panel'!$B$76:$D$137,2,FALSE)-$D58,"On Target")) -> 3938.05 | F59: 8 | G59: =IFERROR(F59*D58,"N/A") -> 22312 | H59: 45% Target
A60: TB03 | B60: LTBI: Positive TB screening and counselling | C60: =VLOOKUP(A60,Mapping!$D$4:$E$293,2,FALSE) -> Patients with positive TB screening result in year | D60: =IF(ISNUMBER(FIND("/",A60)),HLOOKUP($A60,Compiled!$F$1:$CC$65,MATCH('Dropdown control panel'!$B$3,Compiled!$D$1:$D$65,0),FALSE),HLOOKUP($A60,Compiled!$F$1:$KI$65,MATCH('Dropdown control panel'!$B$3,Compiled!$D$1:$D$65,0),FALSE)) -> 106
A61: TBa03 | C61: =VLOOKUP(A61,Mapping!$D$4:$E$299,2,FALSE) -> Patients with +ve TB screening result with chest x-ray and bloods (within 3 months) with counselling appointment | D61: =IF(ISNUMBER(FIND("/",A61)),HLOOKUP($A61,Compiled!$F$1:$CC$65,MATCH('Dropdown control panel'!$B$3,Compiled!$D$1:$D$65,0),FALSE),HLOOKUP($A61,Compiled!$F$1:$CC$65,MATCH('Dropdown control panel'!$B$3,Compiled!$D$1:$D$65,0),FALSE)) -> 66
A62: TBa03/TB03 | C62: =VLOOKUP(A62,Mapping!$D$4:$E$299,2,FALSE) -> % Patients with positive TB screening result with counselling appointment | D62: =IF(ISNUMBER(FIND("/",A62)),HLOOKUP($A62,Compiled!$F$1:$KI$65,MATCH('Dropdown control panel'!$B$3,Compiled!$D$1:$D$65,0),FALSE),HLOOKUP($A62,Compiled!$F$1:$KI$65,MATCH('Dropdown control panel'!$B$3,Compiled!$D$1:$D$65,0),FALSE)) -> 0.623 | E62: =IF($D62="0.00%","N/A",IF($D62<VLOOKUP($C61,'Dropdown control panel'!$B$76:$D$137,2,FALSE),$D60*VLOOKUP($C61,'Dropdown control panel'!$B$76:$D$137,2,FALSE)-$D61,"On Target")) -> On Target | F62: 40.67 | G62: =IFERROR(F62*D61,"N/A") -> 2684.22 | H62: 60% Target
A63: TBa0301 | C63: =VLOOKUP(A63,Mapping!$D$4:$E$90,2,FALSE) -> Patients with positive TB screening started treatment | D63: =IF(ISNUMBER(FIND("/",A63)),HLOOKUP($A63,Compiled!$F$1:$CC$65,MATCH('Dropdown control panel'!$B$3,Compiled!$D$1:$D$65,0),FALSE),HLOOKUP($A63,Compiled!$F$1:$CC$65,MATCH('Dropdown control panel'!$B$3,Compiled!$D$1:$D$65,0),FALSE)) -> 19
A64: TBa0301/TB03 | C64: =VLOOKUP(A64,Mapping!$D$4:$E$90,2,FALSE) -> % Patients with positive TB screening started treatment | D64: =IF(ISNUMBER(FIND("/",A64)),HLOOKUP($A64,Compiled!$F$1:$CC$65,MATCH('Dropdown control panel'!$B$3,Compiled!$D$1:$D$65,0),FALSE),HLOOKUP($A64,Compiled!$F$1:$CC$65,MATCH('Dropdown control panel'!$B$3,Compiled!$D$1:$D$65,0),FALSE)) -> 0.179 | E64: =IF($D64="0.00%","N/A",IF($D64<VLOOKUP($C63,'Dropdown control panel'!$B$76:$D$137,2,FALSE),$D60*VLOOKUP($C63,'Dropdown control panel'!$B$76:$D$137,2,FALSE)-$D63,"On Target")) -> 12.8 | F64: 18.33 | G64: =IFERROR(F64*D63,"N/A") -> 348.27 | H64: 30% Target
A65: TBa04 | C65: =VLOOKUP(A65,Mapping!$D$4:$E$500,2,FALSE) -> Patients without Management of IGRA Positive | D65: =IF(ISNUMBER(FIND("/",A65)),HLOOKUP($A65,Compiled!$F$1:$KX$65,MATCH('Dropdown control panel'!$B$3,Compiled!$D$1:$D$65,0),FALSE),HLOOKUP($A65,Compiled!$F$1:$KX$65,MATCH('Dropdown control panel'!$B$3,Compiled!$D$1:$D$65,0),FALSE)) -> 40
A66: TBa04/TB03 | C66: =VLOOKUP(A66,Mapping!$D$4:$E$500,2,FALSE) -> % of Patients without Management of IGRA Positive | D66: =IF(ISNUMBER(FIND("/",A66)),HLOOKUP($A66,Compiled!$F$1:$KX$65,MATCH('Dropdown control panel'!$B$3,Compiled!$D$1:$D$65,0),FALSE),HLOOKUP($A66,Compiled!$F$1:$KX$65,MATCH('Dropdown control panel'!$B$3,Compiled!$D$1:$D$65,0),FALSE)) -> 0.377
A67: TBa0401 | C67: =VLOOKUP(A67,Mapping!$D$4:$E$500,2,FALSE) -> Chasing patients not starting treatment | D67: =IF(ISNUMBER(FIND("/",A67)),HLOOKUP($A67,Compiled!$F$1:$KX$65,MATCH('Dropdown control panel'!$B$3,Compiled!$D$1:$D$65,0),FALSE),HLOOKUP($A67,Compiled!$F$1:$KX$65,MATCH('Dropdown control panel'!$B$3,Compiled!$D$1:$D$65,0),FALSE)) -> 17
A68: TBa0401/TBa04 | C68: =VLOOKUP(A68,Mapping!$D$4:$E$500,2,FALSE) -> % of Chasing patients not starting treatment | D68: =IF(ISNUMBER(FIND("/",A68)),HLOOKUP($A68,Compiled!$F$1:$KX$65,MATCH('Dropdown control panel'!$B$3,Compiled!$D$1:$D$65,0),FALSE),HLOOKUP($A68,Compiled!$F$1:$KX$65,MATCH('Dropdown control panel'!$B$3,Compiled!$D$1:$D$65,0),FALSE)) -> 0.425 | E68: =IF($D68="0.00%","N/A",IF($D68<VLOOKUP($C67,'Dropdown control panel'!$B$76:$D$137,2,FALSE),$D65*VLOOKUP($C67,'Dropdown control panel'!$B$76:$D$137,2,FALSE)-$D67,"On Target")) -> 1 | F68: 15 | G68: =IFERROR(F68*D67,"N/A") -> 255 | H68: 45% Target
A69: SMI05 | B69: SMI: Physical Health Checks | C69: =VLOOKUP(A69,Mapping!$D$268:$E$305,2,FALSE) -> Patients on anti-psychotic medication not on SMI QOF register | D69: =IF(ISNUMBER(FIND("/",A69)),HLOOKUP($A69,Compiled!$F$1:$KT$65,MATCH('Dropdown control panel'!$B$3,Compiled!$D$1:$D$65,0),FALSE),HLOOKUP($A69,Compiled!$F$1:$KT$65,MATCH('Dropdown control panel'!$B$3,Compiled!$D$1:$D$65,0),FALSE)) -> 0
A70: SMIa05 | C70: =VLOOKUP(A70,Mapping!$D$268:$E$305,2,FALSE) -> Patients with Core & Additional elements of health assessment completed | D70: =IF(ISNUMBER(FIND("/",A70)),HLOOKUP($A70,Compiled!$F$1:$KT$65,MATCH('Dropdown control panel'!$B$3,Compiled!$D$1:$D$65,0),FALSE),HLOOKUP($A70,Compiled!$F$1:$KT$65,MATCH('Dropdown control panel'!$B$3,Compiled!$D$1:$D$65,0),FALSE)) -> 0
A71: SMIa05/SMI05 | C71: =VLOOKUP(A71,Mapping!$D$268:$E$305,2,FALSE) -> % of Patients with Core & Additional elements of health assessment completed | D71: =IF(ISNUMBER(FIND("/",A71)),HLOOKUP($A71,Compiled!$F$1:$KT$65,MATCH('Dropdown control panel'!$B$3,Compiled!$D$1:$D$65,0),FALSE),HLOOKUP($A71,Compiled!$F$1:$KT$65,MATCH('Dropdown control panel'!$B$3,Compiled!$D$1:$D$65,0),FALSE)) -> 0.00% | E71: =IF($D71="0.00%","N/A",IF($D71<VLOOKUP($C70,'Dropdown control panel'!$B$76:$D$140,2,FALSE),$D69*VLOOKUP($C70,'Dropdown control panel'!$B$76:$D$140,2,FALSE)-$D70,"On Target")) -> N/A | F71: 40 | G71: =IFERROR(F71*D70,"N/A") -> 0 | H71: 55% Target
A72: SMI04 | B72: SMI: Patients on Depot | C72: =VLOOKUP(A72,Mapping!$D$268:$E$305,2,FALSE) -> Patients on Depot | D72: =IF(ISNUMBER(FIND("/",A72)),HLOOKUP($A72,Compiled!$F$1:$KT$65,MATCH('Dropdown control panel'!$B$3,Compiled!$D$1:$D$65,0),FALSE),HLOOKUP($A72,Compiled!$F$1:$KT$65,MATCH('Dropdown control panel'!$B$3,Compiled!$D$1:$D$65,0),FALSE)) -> 149
A73: SMIa04 | C73: =VLOOKUP(A73,Mapping!$D$268:$E$305,2,FALSE) -> Patients with Neuroleptic injection given | D73: =IF(ISNUMBER(FIND("/",A73)),HLOOKUP($A73,Compiled!$F$1:$KT$65,MATCH('Dropdown control panel'!$B$3,Compiled!$D$1:$D$65,0),FALSE),HLOOKUP($A73,Compiled!$F$1:$KT$65,MATCH('Dropdown control panel'!$B$3,Compiled!$D$1:$D$65,0),FALSE)) -> 86
A74: SMIa04/SMI04 | C74: =VLOOKUP(A74,Mapping!$D$268:$E$305,2,FALSE) -> % of Patients with Neuroleptic injection given | D74: =IF(ISNUMBER(FIND("/",A74)),HLOOKUP($A74,Compiled!$F$1:$KT$65,MATCH('Dropdown control panel'!$B$3,Compiled!$D$1:$D$65,0),FALSE),HLOOKUP($A74,Compiled!$F$1:$KT$65,MATCH('Dropdown control panel'!$B$3,Compiled!$D$1:$D$65,0),FALSE)) -> 0.577 | E74: No Target | F74: 70 | G74: =IFERROR(F74*D73,"N/A") -> 6020 | H74: (Quarterly Payment)

Sheet Summary
C1: Activity - Summary
C2: ="July 2021 - "&TEXT('Dropdown control panel'!$C$4,"dd mmmm yyyy") -> July 2021 - 31 March 2022
C4: AF - Pulse
D5: =VLOOKUP($C$4,'Dropdown control panel'!$H$76:$J$99,2,FALSE) -> Atrial Fibrillation: Case Finding
D6: =VLOOKUP($C$4,'Dropdown control panel'!$H$76:$J$99,3,FALSE) -> Patients with pulse rate and rhythm recorded
D14: Atrial Fibrillation | Q14: ADHD: 6 Monthly Reviews | V14: CKD | AA14: COPD | AJ14: Primary Prevention | AO14: Post Cardiac Event | AW14: LTC Annual Review CVD | BB14: LTC Quality Markers (CVD) | BF14: LTC Annual Review Diabetes | BK14: LTC Quality Markers (Diabetes) | BV14: LTBI: New patients | CA14: LTBI: Existing patients | CF14: LTBI: Positive TB screening and counselling | CT14: Serious Mental Illness
D15: AF01 | E15: AFa01 | F15: AFa01/AF01 | H15: AF02 | I15: AFa02 | J15: AFa02/AF02 | L15: AF03 | M15: AFa03 | N15: AFa03/AF03 | Q15: ADHD01 | R15: ADHD02 | S15: ADHD02/ADHD01 | V15: CKDa0101 | W15: CKDa010101 | X15: CKDa010101/CKDa0101 | AA15: 05a | AB15: COPD002 | AC15: COPD002/05a | AE15: COPD01 | AF15: COPDa01 | AG15: COPDa01/COPD01 | AJ15: PP01 | AK15: PPa01 | AL15: PPa01/PP01 | AO15: PC01 | AP15: PCa01 | AQ15: PCa01/PC01 | AS15: PCa0101 | AT15: PCa0101/PCa01 | AW15: LTC01 | AX15: LTC012 | AY15: LTC012/LTC01 | BB15: LTCQ1 | BC15: LTCQ1/LTC01 | BF15: LTC02 | BG15: LTC021 | BH15: LTC021/LTC02 | BK15: LTCQ01 | BL15: LTCQ0101 | BM15: LTCQ0101/LTCQ01 | BO15: LTCQ02 | BP15: LTCQ02/LTC02 | BR15: LTCQ03 | BS15: LTCQ03/LTC02 | BV15: TB01 | BW15: TBa01 | BX15: TBa01/TB01 | CA15: TB02 | CB15: TBa02 | CC15: TBa02/TB02 | CF15: TB03 | CG15: TBa03 | CH15: TBa03/TB03 | CJ15: TBa0301 | CK15: TBa0301/TB03 | CM15: TBa04 | CN15: TBa04/TB03 | CO15: TBa0401 | CP15: TBa0401/TBa04 | CT15: SMI05 | CU15: SMIa05 | CV15: SMIa05/SMI05
E16: Patients with pulse rate and rhythm recorded | F16: % Patients with pulse rate and rhythm recorded | G16: Activity needed to reach target | I16: Patients on AF care pathway | M16: Patients with anticoagulation therapy discussed | R16: Patients with 6 Monthly Reviews | W16: Renal consultant advised optimisation of patient care | AB16: Patients with exacerbation review (within 2 weeks) | AF16: Patients with suspected COPD review (where spirometry is undertaken in practice) | AK16: Patients with primary prevention full review | AP16: Patients with a post cardiac event review | AS16: Patients with a follow up post cardiac event review | AX16: Patients with CVD Full Review done | BB16: ='Dropdown control panel'!B108 -> Patients with pulse rate and rhythm recorded (3m) | BG16: Patients with Diabetes Full Review done | BL16: Preconception advice given to women of conception age (16-52) | BO16: Patients with a pulse rate & rhythm recorded (3m) | BR16: Patients with Digital Retinal Screening (Advised to attend) | BW16: New patients offered for TB screening | CB16: Existing patients offered for TB screening | CG16: Patients with +ve TB screening result with chest x-ray and bloods (within 3 months) with counselling appointment | CJ16: Patients with positive TB screening started treatment | CO16: Chasing patients not starting treatment | CU16: Patients with all 6 Physical health checks
B17: Back to information | D17: =VLOOKUP(D15,Mapping!$D$4:$E$90,2,FALSE) -> No CVD >=65 years old | E17: =VLOOKUP(E15,Mapping!$D$4:$E$90,2,FALSE) -> Patients with pulse rate and rhythm recorded | F17: =VLOOKUP(F15,Mapping!$D$4:$E$90,2,FALSE) -> % Patients with pulse rate and rhythm recorded | G17: Activity Required | H17: =VLOOKUP(H15,Mapping!$D$4:$E$90,2,FALSE) -> New Diagnosis of AF | I17: =VLOOKUP(I15,Mapping!$D$4:$E$90,2,FALSE) -> Patients on AF care pathway | J17: =VLOOKUP(J15,Mapping!$D$4:$E$90,2,FALSE) -> % Patients on AF care pathway | K17: Activity Required | L17: =VLOOKUP(L15,Mapping!$D$4:$E$90,2,FALSE) -> New Diagnosis of AF with HASBLED <=2 | M17: =VLOOKUP(M15,Mapping!$D$4:$E$90,2,FALSE) -> Patients with anticoagulation therapy discussed | N17: =VLOOKUP(N15,Mapping!$D$4:$E$90,2,FALSE) -> % Patients with anticoagulation therapy discussed | O17: Activity Required | Q17: =VLOOKUP(Q15,Mapping!$D$4:$E$90,2,FALSE) -> Patients aged 11-18yrs discharged from CAMHS | R17: =VLOOKUP(R15,Mapping!$D$4:$E$90,2,FALSE) -> Patients with 6 Monthly Reviews | S17: =VLOOKUP(S15,Mapping!$D$4:$E$90,2,FALSE) -> % of Patients with 6 Monthly Reviews | T17: Activity Required | V17: =VLOOKUP(V15,Mapping!$D$4:$E$90,2,FALSE) -> Referral to Renal E-Clinic | W17: =VLOOKUP(W15,Mapping!$D$4:$E$90,2,FALSE) -> Renal consultant advised optimisation of patient care | X17: =VLOOKUP(X15,Mapping!$D$4:$E$90,2,FALSE) -> % Renal consultant advised optimisation of patient care | Y17: Activity Required | AA17: =VLOOKUP(AA15,Mapping!$D$4:$E$90,2,FALSE) -> Patients with post exacerbation | AB17: =VLOOKUP(AB15,Mapping!$D$4:$E$90,2,FALSE) -> Patients with exacerbation review | AC17: =VLOOKUP(AC15,Mapping!$D$4:$E$90,2,FALSE) -> % patients with exacerbation review | AD17: Activity Required | AE17: =VLOOKUP(AE15,Mapping!$D$4:$E$90,2,FALSE) -> Patients with suspected COPD | AF17: =VLOOKUP(AF15,Mapping!$D$4:$E$90,2,FALSE) -> Patients with suspected COPD review (where spirometry is undertaken in practice) | AG17: =VLOOKUP(AG15,Mapping!$D$4:$E$90,2,FALSE) -> % Patients with suspected COPD review (where spirometry is undertaken in practice) | AH17: Activity Required | AJ17: =VLOOKUP(AJ15,Mapping!$D$4:$E$90,2,FALSE) -> Patients with Pre-diabetes & or CVD risk >10% (excluding patients with CVD, CKD and Diabetes) | AK17: =VLOOKUP(AK15,Mapping!$D$4:$E$90,2,FALSE) -> Patients with primary prevention full review | AL17: =VLOOKUP(AL15,Mapping!$D$4:$E$90,2,FALSE) -> % Patients with primary prevention full review | AM17: Activity Required | AO17: =VLOOKUP(AO15,Mapping!$D$4:$E$90,2,FALSE) -> Patients with a post cardiac event (01/05/2020 - 30/06/2021) | AP17: =VLOOKUP(AP15,Mapping!$D$4:$E$90,2,FALSE) -> Patients with a post cardiac event review | AQ17: =VLOOKUP(AQ15,Mapping!$D$4:$E$90,2,FALSE) -> % Patients with a post cardiac event review | AR17: Activity Required | AS17: =VLOOKUP(AS15,Mapping!$D$4:$E$90,2,FALSE) -> Patients with a follow up post cardiac event review | AT17: =VLOOKUP(AT15,Mapping!$D$4:$E$90,2,FALSE) -> % Patients with a follow up post cardiac event review | AU17: Activity Required | AW17: =VLOOKUP(AW15,Mapping!$D$4:$E$90,2,FALSE) -> Patients eligible for LTC Review (Hypertension + 1 other CVD Exc Diabetes) | AX17: =VLOOKUP(AX15,Mapping!$D$4:$E$90,2,FALSE) -> Patients with CVD Full Review done | AY17: =VLOOKUP(AY15,Mapping!$D$4:$E$90,2,FALSE) -> % Patients with CVD Full Review done | AZ17: Activity Required | BB17: =VLOOKUP(BB15,Mapping!$D$284:$E$285,2,FALSE) -> Patients with pulse rate and rhythm recorded (3m) | BC17: =VLOOKUP(BC15,Mapping!$D$284:$E$285,2,FALSE) -> % of Patients with a pulse rate & rhythm recorded (3m) | BD17: Activity Required | BF17: =VLOOKUP(BF15,Mapping!$D$4:$E$90,2,FALSE) -> Patients eligible for LTC Review (T2 Diabetes) | BG17: =VLOOKUP(BG15,Mapping!$D$4:$E$90,2,FALSE) -> Patients with Diabetes Full Review done | BH17: =VLOOKUP(BH15,Mapping!$D$4:$E$90,2,FALSE) -> % Patients with Diabetes Full Review done | BI17: Activity Required | BK17: =VLOOKUP(BK15,Mapping!$D$286:$E$292,2,FALSE) -> Diabetic women aged 16-52 | BL17: =VLOOKUP(BL15,Mapping!$D$286:$E$292,2,FALSE) -> Preconception advice given to women of conception age (16-52) | BM17: =VLOOKUP(BM15,Mapping!$D$286:$E$292,2,FALSE) -> % of Preconception advice given to women of conception age (16-52) | BN17: Activity Required | BO17: =VLOOKUP(BO15,Mapping!$D$286:$E$292,2,FALSE) -> Patients with a pulse rate & rhythm recorded (3m) | BP17: =VLOOKUP(BP15,Mapping!$D$286:$E$292,2,FALSE) -> % of Patients with a pulse rate & rhythm recorded (3m) | BQ17: Activity Required | BR17: =VLOOKUP(BR15,Mapping!$D$286:$E$292,2,FALSE) -> Patients with Digital Retinal Screening (Advised to attend) | BS17: =VLOOKUP(BS15,Mapping!$D$286:$E$292,2,FALSE) -> % of Patients with Digital Retinal Screening (Advised to attend) | BT17: Activity Required | BV17: =VLOOKUP(BV15,Mapping!$D$4:$E$90,2,FALSE) -> New patients eligible for TB screening | BW17: =VLOOKUP(BW15,Mapping!$D$4:$E$90,2,FALSE) -> New patients offered for TB screening | BX17: =VLOOKUP(BX15,Mapping!$D$4:$E$90,2,FALSE) -> % New patients offered for TB screening | BY17: Activity Required | CA17: =VLOOKUP(CA15,Mapping!$D$4:$E$90,2,FALSE) -> Existing patients eligible for TB screening (Registered before 01/04/2020) | CB17: =VLOOKUP(CB15,Mapping!$D$4:$E$90,2,FALSE) -> Existing patients offered for TB screening | CC17: =VLOOKUP(CC15,Mapping!$D$4:$E$90,2,FALSE) -> % Existing patients offered for TB screening | CD17: Activity Required | CF17: =VLOOKUP(CF15,Mapping!$D$4:$E$90,2,FALSE) -> Patients with positive TB screening result in year | CG17: =VLOOKUP(CG15,Mapping!$D$4:$E$90,2,FALSE) -> Patients with +ve TB screening result with chest x-ray and bloods (within 3 months) with counselling appointment | CH17: =VLOOKUP(CH15,Mapping!$D$4:$E$90,2,FALSE) -> % Patients with positive TB screening result with counselling appointment | CI17: Activity Required | CJ17: =VLOOKUP(CJ15,Mapping!$D$4:$E$90,2,FALSE) -> Patients with positive TB screening started treatment | CK17: =VLOOKUP(CK15,Mapping!$D$4:$E$90,2,FALSE) -> % Patients with positive TB screening started treatment | CL17: Activity Required | CM17: =VLOOKUP(CM15,Mapping!$D$4:$E$500,2,FALSE) -> Patients without Management of IGRA Positive | CN17: =VLOOKUP(CN15,Mapping!$D$4:$E$500,2,FALSE) -> % of Patients without Management of IGRA Positive | CO17: =VLOOKUP(CO15,Mapping!$D$4:$E$500,2,FALSE) -> Chasing patients not starting treatment | CP17: =VLOOKUP(CP15,Mapping!$D$4:$E$500,2,FALSE) -> % of Chasing patients not starting treatment | CQ17: Activity Required | CT17: =VLOOKUP(CT15,Mapping!$D$268:$E$305,2,FALSE) -> Patients on anti-psychotic medication not on SMI QOF register | CU17: =VLOOKUP(CU15,Mapping!$D$268:$E$305,2,FALSE) -> Patients with Core & Additional elements of health assessment completed | CV17: =VLOOKUP(CV15,Mapping!$D$268:$E$305,2,FALSE) -> % of Patients with Core & Additional elements of health assessment completed | CW17: Activity Required
E18: Target 55% | I18: Target 50% | M18: Target 65% | R18: Target 80% | W18: Target 75% | AB18: Target 35% | AF18: Target 50% | AK18: Target 42% | AP18: Target 30% | AS18: Target 60% | AX18: Target 60% | BG18: Target 65% | BW18: Target 50% | CB18: Target 45% | CG18: Target 60% | CJ18: Target 30% | CM18: Target 45% | CW18: Target 55%
B19: =Compiled!D7 -> South One Newham | C19: =Compiled!E7 -> PCN1 | D19: =IF(ISNUMBER(FIND("/",D$15)),TEXT(VLOOKUP($C19,Compiled!$E$7:$CE$66,MATCH($D$15,Compiled!$E$1:$CE$1,0),FALSE),"0.00%"),_xlfn.NUMBERVALUE(VLOOKUP($C19,Compiled!$E$7:$CE$66,MATCH($D$15,Compiled!$E$1:$CE$1,0),FALSE),"#,##0")) -> 927 | E19: =IF(ISNUMBER(FIND("/",E$15)),TEXT(VLOOKUP($C19,Compiled!$E$7:$CE$66,MATCH($E$15,Compiled!$E$1:$CE$1,0),FALSE),"0.00%"),_xlfn.NUMBERVALUE(VLOOKUP($C19,Compiled!$E$7:$CE$66,MATCH($E$15,Compiled!$E$1:$CE$1,0),FALSE),"#,##0")) -> 283 | F19: =IF(ISNUMBER(FIND("/",$F$15)),HLOOKUP($F$15,Compiled!$F$1:$CC$65,MATCH($C19,Compiled!$E$1:$E$65,0),FALSE),HLOOKUP($C19,Compiled!$F$1:$CC$65,MATCH($C19,Compiled!$E$1:$E$65,0),FALSE)) -> 0.305 | G19: =IF($F19="0.00%","",IF($F19<VLOOKUP($E$16,'Dropdown control panel'!$B$76:$D$137,2,FALSE),$D19*VLOOKUP($E$16,'Dropdown control panel'!$B$76:$D$137,2,FALSE)-$E19,"On Target")) -> 226.85 | H19: =IF(ISNUMBER(FIND("/",H$15)),TEXT(VLOOKUP($C19,Compiled!$E$7:$CE$66,MATCH(H$15,Compiled!$E$1:$CE$1,0),FALSE),"0.00%"),_xlfn.NUMBERVALUE(VLOOKUP($C19,Compiled!$E$7:$CE$66,MATCH(H$15,Compiled!$E$1:$CE$1,0),FALSE),"#,##0")) -> 37 | I19: =IF(ISNUMBER(FIND("/",I$15)),TEXT(VLOOKUP($C19,Compiled!$E$7:$CE$66,MATCH(I$15,Compiled!$E$1:$CE$1,0),FALSE),"0.00%"),_xlfn.NUMBERVALUE(VLOOKUP($C19,Compiled!$E$7:$CE$66,MATCH(I$15,Compiled!$E$1:$CE$1,0),FALSE),"#,##0")) -> 0 | J19: =IF(ISNUMBER(FIND("/",J$15)),HLOOKUP(J$15,Compiled!$F$1:$CC$65,MATCH($C19,Compiled!$E$1:$E$65,0),FALSE),HLOOKUP($C19,Compiled!$F$1:$CC$65,MATCH($C19,Compiled!$E$1:$E$65,0),FALSE)) -> 0 | K19: =IF($J19="0.00%","",IF($J19<VLOOKUP($I$16,'Dropdown control panel'!$B$76:$D$137,2,FALSE),$H19*VLOOKUP($I$16,'Dropdown control panel'!$B$76:$D$137,2,FALSE)-$I19,"On Target")) -> 18.5 | L19: =IF(ISNUMBER(FIND("/",L$15)),TEXT(VLOOKUP($C19,Compiled!$E$7:$CE$66,MATCH(L$15,Compiled!$E$1:$CE$1,0),FALSE),"0.00%"),_xlfn.NUMBERVALUE(VLOOKUP($C19,Compiled!$E$7:$CE$66,MATCH(L$15,Compiled!$E$1:$CE$1,0),FALSE),"#,##0")) -> 0 | M19: =IF(ISNUMBER(FIND("/",M$15)),TEXT(VLOOKUP($C19,Compiled!$E$7:$CE$66,MATCH(M$15,Compiled!$E$1:$CE$1,0),FALSE),"0.00%"),_xlfn.NUMBERVALUE(VLOOKUP($C19,Compiled!$E$7:$CE$66,MATCH(M$15,Compiled!$E$1:$CE$1,0),FALSE),"#,##0")) -> 0 | N19: =IF(ISNUMBER(FIND("/",N$15)),HLOOKUP(N$15,Compiled!$F$1:$CC$65,MATCH($C19,Compiled!$E$1:$E$65,0),FALSE),HLOOKUP($C19,Compiled!$F$1:$CC$65,MATCH($C19,Compiled!$E$1:$E$65,0),FALSE)) -> 0.00% | O19: =IF(N19="0.00%","",IF(N19<VLOOKUP(M$16,'Dropdown control panel'!$B$76:$D$137,2,FALSE),L19*VLOOKUP(M$16,'Dropdown control panel'!$B$76:$D$137,2,FALSE)-M19,"On Target")) ->  | Q19: =IF(ISNUMBER(FIND("/",Q$15)),TEXT(VLOOKUP($C19,Compiled!$E$7:$KA$66,MATCH(Q$15,Compiled!$E$1:$KA$1,0),FALSE),"0.00%"),_xlfn.NUMBERVALUE(VLOOKUP($C19,Compiled!$E$7:$KA$66,MATCH(Q$15,Compiled!$E$1:$KA$1,0),FALSE),"#,##0")) -> 2 | R19: =IF(ISNUMBER(FIND("/",R$15)),TEXT(VLOOKUP($C19,Compiled!$E$7:$KA$66,MATCH(R$15,Compiled!$E$1:$KA$1,0),FALSE),"0.00%"),_xlfn.NUMBERVALUE(VLOOKUP($C19,Compiled!$E$7:$KA$66,MATCH(R$15,Compiled!$E$1:$KA$1,0),FALSE),"#,##0")) -> 0 | S19: =IF(ISNUMBER(FIND("/",S$15)),HLOOKUP(S$15,Compiled!$F$1:$CF$65,MATCH($C19,Compiled!$E$1:$E$65,0),FALSE),HLOOKUP($C19,Compiled!$F$1:$CF$65,MATCH($C19,Compiled!$E$1:$E$65,0),FALSE)) -> 0 | T19: =IFERROR(ROUNDUP(IF(S19="0.00%","",IF(S19<VLOOKUP(R$16,'Dropdown control panel'!$B$76:$D$143,2,FALSE),Q19*VLOOKUP(R$16,'Dropdown control panel'!$B$76:$E$143,2,FALSE)-R19,"On Target")),0),"") -> 2 | V19: =IF(ISNUMBER(FIND("/",V$15)),TEXT(VLOOKUP($C19,Compiled!$E$7:$CE$66,MATCH(V$15,Compiled!$E$1:$CE$1,0),FALSE),"0.00%"),_xlfn.NUMBERVALUE(VLOOKUP($C19,Compiled!$E$7:$CE$66,MATCH(V$15,Compiled!$E$1:$CE$1,0),FALSE),"#,##0")) -> 7 | W19: =IF(ISNUMBER(FIND("/",W$15)),TEXT(VLOOKUP($C19,Compiled!$E$7:$CE$66,MATCH(W$15,Compiled!$E$1:$CE$1,0),FALSE),"0.00%"),_xlfn.NUMBERVALUE(VLOOKUP($C19,Compiled!$E$7:$CE$66,MATCH(W$15,Compiled!$E$1:$CE$1,0),FALSE),"#,##0")) -> 6 | X19: =IF(ISNUMBER(FIND("/",X$15)),HLOOKUP(X$15,Compiled!$F$1:$CC$65,MATCH($C19,Compiled!$E$1:$E$65,0),FALSE),HLOOKUP($C19,Compiled!$F$1:$CC$65,MATCH($C19,Compiled!$E$1:$E$65,0),FALSE)) -> 0.857 | Y19: =IF(X19="0.00%","",IF(X19<VLOOKUP(W$16,'Dropdown control panel'!$B$76:$D$137,2,FALSE),V19*VLOOKUP(W$16,'Dropdown control panel'!$B$76:$D$137,2,FALSE)-W19,"On Target")) -> On Target | AA19: =IF(ISNUMBER(FIND("/",AA$15)),TEXT(VLOOKUP($C19,Compiled!$E$7:$CE$66,MATCH(AA$15,Compiled!$E$1:$CE$1,0),FALSE),"0.00%"),_xlfn.NUMBERVALUE(VLOOKUP($C19,Compiled!$E$7:$CE$66,MATCH(AA$15,Compiled!$E$1:$CE$1,0),FALSE),"#,##0")) -> 51 | AB19: =IF(ISNUMBER(FIND("/",AB$15)),TEXT(VLOOKUP($C19,Compiled!$E$7:$CE$66,MATCH(AB$15,Compiled!$E$1:$CE$1,0),FALSE),"0.00%"),_xlfn.NUMBERVALUE(VLOOKUP($C19,Compiled!$E$7:$CE$66,MATCH(AB$15,Compiled!$E$1:$CE$1,0),FALSE),"#,##0")) -> 1 | AC19: =IF(ISNUMBER(FIND("/",AC$15)),HLOOKUP(AC$15,Compiled!$F$1:$CC$65,MATCH($C19,Compiled!$E$1:$E$65,0),FALSE),HLOOKUP($C19,Compiled!$F$1:$CC$65,MATCH($C19,Compiled!$E$1:$E$65,0),FALSE)) -> 0.02 | AD19: =IF(AC19="0.00%","",IF(AC19<VLOOKUP(AB$16,'Dropdown control panel'!$B$76:$D$137,2,FALSE),AA19*VLOOKUP(AB$16,'Dropdown control panel'!$B$76:$D$137,2,FALSE)-AB19,"On Target")) ->  | AE19: =IF(ISNUMBER(FIND("/",AE$15)),TEXT(VLOOKUP($C19,Compiled!$E$7:$CE$66,MATCH(AE$15,Compiled!$E$1:$CE$1,0),FALSE),"0.00%"),_xlfn.NUMBERVALUE(VLOOKUP($C19,Compiled!$E$7:$CE$66,MATCH(AE$15,Compiled!$E$1:$CE$1,0),FALSE),"#,##0")) -> 26 | AF19: =IF(ISNUMBER(FIND("/",AF$15)),TEXT(VLOOKUP($C19,Compiled!$E$7:$CE$66,MATCH(AF$15,Compiled!$E$1:$CE$1,0),FALSE),"0.00%"),_xlfn.NUMBERVALUE(VLOOKUP($C19,Compiled!$E$7:$CE$66,MATCH(AF$15,Compiled!$E$1:$CE$1,0),FALSE),"#,##0")) -> 3 | AG19: =IF(ISNUMBER(FIND("/",AG$15)),HLOOKUP(AG$15,Compiled!$F$1:$CC$65,MATCH($C19,Compiled!$E$1:$E$65,0),FALSE),HLOOKUP($C19,Compiled!$F$1:$CC$65,MATCH($C19,Compiled!$E$1:$E$65,0),FALSE)) -> 0.115 | AH19: =IF(AG19="0.00%","",IF(AG19<VLOOKUP(AF$16,'Dropdown control panel'!$B$76:$D$137,2,FALSE),AE19*VLOOKUP(AF$16,'Dropdown control panel'!$B$76:$D$137,2,FALSE)-AF19,"On Target")) -> 10 | AJ19: =IF(ISNUMBER(FIND("/",AJ$15)),TEXT(VLOOKUP($C19,Compiled!$E$7:$CE$66,MATCH(AJ$15,Compiled!$E$1:$CE$1,0),FALSE),"0.00%"),_xlfn.NUMBERVALUE(VLOOKUP($C19,Compiled!$E$7:$CE$66,MATCH(AJ$15,Compiled!$E$1:$CE$1,0),FALSE),"#,##0")) -> 4277 | AK19: =IF(ISNUMBER(FIND("/",AK$15)),TEXT(VLOOKUP($C19,Compiled!$E$7:$CE$66,MATCH(AK$15,Compiled!$E$1:$CE$1,0),FALSE),"0.00%"),_xlfn.NUMBERVALUE(VLOOKUP($C19,Compiled!$E$7:$CE$66,MATCH(AK$15,Compiled!$E$1:$CE$1,0),FALSE),"#,##0")) -> 268 | AL19: =IF(ISNUMBER(FIND("/",AL$15)),HLOOKUP(AL$15,Compiled!$F$1:$CC$65,MATCH($C19,Compiled!$E$1:$E$65,0),FALSE),HLOOKUP($C19,Compiled!$F$1:$CC$65,MATCH($C19,Compiled!$E$1:$E$65,0),FALSE)) -> 0.063 | AM19: =IF(AL19="0.00%","",IF(AL19<VLOOKUP(AK$16,'Dropdown control panel'!$B$76:$D$137,2,FALSE),AJ19*VLOOKUP(AK$16,'Dropdown control panel'!$B$76:$D$137,2,FALSE)-AK19,"On Target")) -> 1528.34 | AO19: =IF(ISNUMBER(FIND("/",AO$15)),TEXT(VLOOKUP($C19,Compiled!$E$7:$CE$66,MATCH(AO$15,Compiled!$E$1:$CE$1,0),FALSE),"0.00%"),_xlfn.NUMBERVALUE(VLOOKUP($C19,Compiled!$E$7:$CE$66,MATCH(AO$15,Compiled!$E$1:$CE$1,0),FALSE),"#,##0")) -> 51 | AP19: =IF(ISNUMBER(FIND("/",AP$15)),TEXT(VLOOKUP($C19,Compiled!$E$7:$CE$66,MATCH(AP$15,Compiled!$E$1:$CE$1,0),FALSE),"0.00%"),_xlfn.NUMBERVALUE(VLOOKUP($C19,Compiled!$E$7:$CE$66,MATCH(AP$15,Compiled!$E$1:$CE$1,0),FALSE),"#,##0")) -> 0 | AQ19: =IF(ISNUMBER(FIND("/",AQ$15)),HLOOKUP(AQ$15,Compiled!$F$1:$CC$65,MATCH($C19,Compiled!$E$1:$E$65,0),FALSE),HLOOKUP($C19,Compiled!$F$1:$CC$65,MATCH($C19,Compiled!$E$1:$E$65,0),FALSE)) -> 0 | AR19: =IF(AQ19="0.00%","",IF(AQ19<VLOOKUP(AP$16,'Dropdown control panel'!$B$76:$D$137,2,FALSE),AO19*VLOOKUP(AP$16,'Dropdown control panel'!$B$76:$D$137,2,FALSE)-AP19,"On Target")) -> 15.3 | AS19: =IF(ISNUMBER(FIND("/",AS$15)),TEXT(VLOOKUP($C19,Compiled!$E$7:$CE$66,MATCH(AS$15,Compiled!$E$1:$CE$1,0),FALSE),"0.00%"),_xlfn.NUMBERVALUE(VLOOKUP($C19,Compiled!$E$7:$CE$66,MATCH(AS$15,Compiled!$E$1:$CE$1,0),FALSE),"#,##0")) -> 0 | AT19: =IF(ISNUMBER(FIND("/",AT$15)),HLOOKUP(AT$15,Compiled!$F$1:$CC$65,MATCH($C19,Compiled!$E$1:$E$65,0),FALSE),HLOOKUP($C19,Compiled!$F$1:$CC$65,MATCH($C19,Compiled!$E$1:$E$65,0),FALSE)) -> 0.00% | AU19: =IF(AT19="0.00%","",IF(AT19<VLOOKUP(AS$16,'Dropdown control panel'!$B$76:$D$137,2,FALSE),AP19*VLOOKUP(AS$16,'Dropdown control panel'!$B$76:$D$137,2,FALSE)-AS19,"On Target")) ->  | AW19: =IF(ISNUMBER(FIND("/",AW$15)),TEXT(VLOOKUP($C19,Compiled!$E$7:$CE$66,MATCH(AW$15,Compiled!$E$1:$CE$1,0),FALSE),"0.00%"),_xlfn.NUMBERVALUE(VLOOKUP($C19,Compiled!$E$7:$CE$66,MATCH(AW$15,Compiled!$E$1:$CE$1,0),FALSE),"#,##0")) -> 848 | AX19: =IF(ISNUMBER(FIND("/",AX$15)),TEXT(VLOOKUP($C19,Compiled!$E$7:$CE$66,MATCH(AX$15,Compiled!$E$1:$CE$1,0),FALSE),"0.00%"),_xlfn.NUMBERVALUE(VLOOKUP($C19,Compiled!$E$7:$CE$66,MATCH(AX$15,Compiled!$E$1:$CE$1,0),FALSE),"#,##0")) -> 215 | AY19: =IF(ISNUMBER(FIND("/",AY$15)),HLOOKUP(AY$15,Compiled!$F$1:$CC$65,MATCH($C19,Compiled!$E$1:$E$65,0),FALSE),HLOOKUP($C19,Compiled!$F$1:$CC$65,MATCH($C19,Compiled!$E$1:$E$65,0),FALSE)) -> 0.254 | AZ19: =IF(AY19="0.00%","",IF(AY19<VLOOKUP(AX$16,'Dropdown control panel'!$B$76:$D$137,2,FALSE),AW19*VLOOKUP(AX$16,'Dropdown control panel'!$B$76:$D$137,2,FALSE)-AX19,"On Target")) -> 293.8 | BB19: =IF(ISNUMBER(FIND("/",BB$15)),TEXT(VLOOKUP($C19,Compiled!$E$7:$KA$66,MATCH(BB$15,Compiled!$E$1:$KA$1,0),FALSE),"0.00%"),_xlfn.NUMBERVALUE(VLOOKUP($C19,Compiled!$E$7:$KA$66,MATCH(BB$15,Compiled!$E$1:$KA$1,0),FALSE),"#,##0")) -> 313 | BC19: =IF(ISNUMBER(FIND("/",BC$15)),HLOOKUP(BC$15,Compiled!$F$1:$KA$65,MATCH($C19,Compiled!$E$1:$E$65,0),FALSE),HLOOKUP($C19,Compiled!$F$1:$KA$65,MATCH($C19,Compiled!$E$1:$E$65,0),FALSE)) -> 0.369 | BD19: =IF(BC19="0.00%","",IF(BC19<VLOOKUP(BB$16,'Dropdown control panel'!$B$76:$D$137,2,FALSE),AW19*VLOOKUP(BB$16,'Dropdown control panel'!$B$76:$D$137,2,FALSE)-BB19,"On Target")) -> 238.2 | BF19: =IF(ISNUMBER(FIND("/",BF$15)),TEXT(VLOOKUP($C19,Compiled!$E$7:$CE$66,MATCH(BF$15,Compiled!$E$1:$CE$1,0),FALSE),"0.00%"),_xlfn.NUMBERVALUE(VLOOKUP($C19,Compiled!$E$7:$CE$66,MATCH(BF$15,Compiled!$E$1:$CE$1,0),FALSE),"#,##0")) -> 2751 | BG19: =IF(ISNUMBER(FIND("/",BG$15)),TEXT(VLOOKUP($C19,Compiled!$E$7:$CE$66,MATCH(BG$15,Compiled!$E$1:$CE$1,0),FALSE),"0.00%"),_xlfn.NUMBERVALUE(VLOOKUP($C19,Compiled!$E$7:$CE$66,MATCH(BG$15,Compiled!$E$1:$CE$1,0),FALSE),"#,##0")) -> 913 | BH19: =IF(ISNUMBER(FIND("/",BH$15)),HLOOKUP(BH$15,Compiled!$F$1:$CC$65,MATCH($C19,Compiled!$E$1:$E$65,0),FALSE),HLOOKUP($C19,Compiled!$F$1:$CC$65,MATCH($C19,Compiled!$E$1:$E$65,0),FALSE)) -> 0.332 | BI19: =IF(BH19="0.00%","",IF(BH19<VLOOKUP(BG$16,'Dropdown control panel'!$B$76:$D$137,2,FALSE),BF19*VLOOKUP(BG$16,'Dropdown control panel'!$B$76:$D$137,2,FALSE)-BG19,"On Target")) -> 1012.7 | BK19: =IF(ISNUMBER(FIND("/",BK$15)),TEXT(VLOOKUP($C19,Compiled!$E$7:$KH$66,MATCH(BK$15,Compiled!$E$1:$KH$1,0),FALSE),"0.00%"),_xlfn.NUMBERVALUE(VLOOKUP($C19,Compiled!$E$7:$KH$66,MATCH(BK$15,Compiled!$E$1:$KH$1,0),FALSE),"#,##0")) -> 271 | BL19: =IF(ISNUMBER(FIND("/",BL$15)),TEXT(VLOOKUP($C19,Compiled!$E$7:$KH$66,MATCH(BL$15,Compiled!$E$1:$KH$1,0),FALSE),"0.00%"),_xlfn.NUMBERVALUE(VLOOKUP($C19,Compiled!$E$7:$KH$66,MATCH(BL$15,Compiled!$E$1:$KH$1,0),FALSE),"#,##0")) -> 23 | BM19: =IF(ISNUMBER(FIND("/",BM$15)),HLOOKUP(BM$15,Compiled!$F$1:$KH$65,MATCH($C19,Compiled!$E$1:$E$65,0),FALSE),HLOOKUP($C19,Compiled!$F$1:$KH$65,MATCH($C19,Compiled!$E$1:$E$65,0),FALSE)) -> 0.085 | BN19: =IF(BM19="0.00%","",IF(BM19<VLOOKUP(BL$16,'Dropdown control panel'!$B$76:$D$137,2,FALSE),BK19*VLOOKUP(BL$16,'Dropdown control panel'!$B$76:$D$137,2,FALSE)-BL19,"On Target")) -> 166.7 | BO19: =IF(ISNUMBER(FIND("/",BO$15)),TEXT(VLOOKUP($C19,Compiled!$E$7:$KH$66,MATCH(BO$15,Compiled!$E$1:$KH$1,0),FALSE),"0.00%"),_xlfn.NUMBERVALUE(VLOOKUP($C19,Compiled!$E$7:$KH$66,MATCH(BO$15,Compiled!$E$1:$KH$1,0),FALSE),"#,##0")) -> 1561 | BP19: =IF(ISNUMBER(FIND("/",BP$15)),HLOOKUP(BP$15,Compiled!$F$1:$KH$65,MATCH($C19,Compiled!$E$1:$E$65,0),FALSE),HLOOKUP($C19,Compiled!$F$1:$KH$65,MATCH($C19,Compiled!$E$1:$E$65,0),FALSE)) -> 0.567 | BQ19: =IF(BP19="0.00%","",IF(BP19<VLOOKUP(BO$16,'Dropdown control panel'!$B$76:$D$137,2,FALSE),BF19*VLOOKUP(BO$16,'Dropdown control panel'!$B$76:$D$137,2,FALSE)-BO19,"On Target")) -> 364.7 | BR19: =IF(ISNUMBER(FIND("/",BR$15)),TEXT(VLOOKUP($C19,Compiled!$E$7:$KH$66,MATCH(BR$15,Compiled!$E$1:$KH$1,0),FALSE),"0.00%"),_xlfn.NUMBERVALUE(VLOOKUP($C19,Compiled!$E$7:$KH$66,MATCH(BR$15,Compiled!$E$1:$KH$1,0),FALSE),"#,##0")) -> 1442 | BS19: =IF(ISNUMBER(FIND("/",BS$15)),HLOOKUP(BS$15,Compiled!$F$1:$KH$65,MATCH($C19,Compiled!$E$1:$E$65,0),FALSE),HLOOKUP($C19,Compiled!$F$1:$KH$65,MATCH($C19,Compiled!$E$1:$E$65,0),FALSE)) -> 0.524 | BT19: =IF(BS19="0.00%","",IF(BS19<VLOOKUP(BR$16,'Dropdown control panel'!$B$76:$D$137,2,FALSE),BF19*VLOOKUP(BR$16,'Dropdown control panel'!$B$76:$D$137,2,FALSE)-BR19,"On Target")) -> 483.7 | BV19: =IF(ISNUMBER(FIND("/",BV$15)),TEXT(VLOOKUP($C19,Compiled!$E$7:$CE$66,MATCH(BV$15,Compiled!$E$1:$CE$1,0),FALSE),"0.00%"),_xlfn.NUMBERVALUE(VLOOKUP($C19,Compiled!$E$7:$CE$66,MATCH(BV$15,Compiled!$E$1:$CE$1,0),FALSE),"#,##0")) -> 709 | BW19: =IF(ISNUMBER(FIND("/",BW$15)),TEXT(VLOOKUP($C19,Compiled!$E$7:$CE$66,MATCH(BW$15,Compiled!$E$1:$CE$1,0),FALSE),"0.00%"),_xlfn.NUMBERVALUE(VLOOKUP($C19,Compiled!$E$7:$CE$66,MATCH(BW$15,Compiled!$E$1:$CE$1,0),FALSE),"#,##0")) -> 115 | BX19: =IF(ISNUMBER(FIND("/",BX$15)),HLOOKUP(BX$15,Compiled!$F$1:$CC$65,MATCH($C19,Compiled!$E$1:$E$65,0),FALSE),HLOOKUP($C19,Compiled!$F$1:$CC$65,MATCH($C19,Compiled!$E$1:$E$65,0),FALSE)) -> 0.162 | BY19: =IF(BX19="0.00%","",IF(BX19<VLOOKUP(BW$16,'Dropdown control panel'!$B$76:$D$137,2,FALSE),BV19*VLOOKUP(BW$16,'Dropdown control panel'!$B$76:$D$137,2,FALSE)-BW19,"On Target")) -> 239.5 | CA19: =IF(ISNUMBER(FIND("/",CA$15)),TEXT(VLOOKUP($C19,Compiled!$E$7:$CE$66,MATCH(CA$15,Compiled!$E$1:$CE$1,0),FALSE),"0.00%"),_xlfn.NUMBERVALUE(VLOOKUP($C19,Compiled!$E$7:$CE$66,MATCH(CA$15,Compiled!$E$1:$CE$1,0),FALSE),"#,##0")) -> 951 | CB19: =IF(ISNUMBER(FIND("/",CB$15)),TEXT(VLOOKUP($C19,Compiled!$E$7:$CE$66,MATCH(CB$15,Compiled!$E$1:$CE$1,0),FALSE),"0.00%"),_xlfn.NUMBERVALUE(VLOOKUP($C19,Compiled!$E$7:$CE$66,MATCH(CB$15,Compiled!$E$1:$CE$1,0),FALSE),"#,##0")) -> 19 | CC19: =IF(ISNUMBER(FIND("/",CC$15)),HLOOKUP(CC$15,Compiled!$F$1:$CC$65,MATCH($C19,Compiled!$E$1:$E$65,0),FALSE),HLOOKUP($C19,Compiled!$F$1:$CC$65,MATCH($C19,Compiled!$E$1:$E$65,0),FALSE)) -> 0.02 | CD19: =IF(CC19="0.00%","",IF(CC19<VLOOKUP(CB$16,'Dropdown control panel'!$B$76:$D$137,2,FALSE),CA19*VLOOKUP(CB$16,'Dropdown control panel'!$B$76:$D$137,2,FALSE)-CB19,"On Target")) -> 408.95 | CF19: =IF(ISNUMBER(FIND("/",CF$15)),TEXT(VLOOKUP($C19,Compiled!$E$7:$CE$66,MATCH(CF$15,Compiled!$E$1:$CE$1,0),FALSE),"0.00%"),_xlfn.NUMBERVALUE(VLOOKUP($C19,Compiled!$E$7:$CE$66,MATCH(CF$15,Compiled!$E$1:$CE$1,0),FALSE),"#,##0")) -> 4 | CG19: =IF(ISNUMBER(FIND("/",CG$15)),TEXT(VLOOKUP($C19,Compiled!$E$7:$CE$66,MATCH(CG$15,Compiled!$E$1:$CE$1,0),FALSE),"0.00%"),_xlfn.NUMBERVALUE(VLOOKUP($C19,Compiled!$E$7:$CE$66,MATCH(CG$15,Compiled!$E$1:$CE$1,0),FALSE),"#,##0")) -> 3 | CH19: =IF(ISNUMBER(FIND("/",CH$15)),HLOOKUP(CH$15,Compiled!$F$1:$CC$65,MATCH($C19,Compiled!$E$1:$E$65,0),FALSE),HLOOKUP($C19,Compiled!$F$1:$CC$65,MATCH($C19,Compiled!$E$1:$E$65,0),FALSE)) -> 0.75 | CI19: =IF(CH19="0.00%","",IF(CH19<VLOOKUP(CG$16,'Dropdown control panel'!$B$76:$D$137,2,FALSE),CF19*VLOOKUP(CG$16,'Dropdown control panel'!$B$76:$D$137,2,FALSE)-CG19,"On Target")) -> On Target | CJ19: =IF(ISNUMBER(FIND("/",CJ$15)),TEXT(VLOOKUP($C19,Compiled!$E$7:$CE$66,MATCH(CJ$15,Compiled!$E$1:$CE$1,0),FALSE),"0.00%"),_xlfn.NUMBERVALUE(VLOOKUP($C19,Compiled!$E$7:$CE$66,MATCH(CJ$15,Compiled!$E$1:$CE$1,0),FALSE),"#,##0")) -> 0 | CK19: =IF(ISNUMBER(FIND("/",CK$15)),HLOOKUP(CK$15,Compiled!$F$1:$CC$65,MATCH($C19,Compiled!$E$1:$E$65,0),FALSE),HLOOKUP($C19,Compiled!$F$1:$CC$65,MATCH($C19,Compiled!$E$1:$E$65,0),FALSE)) -> 0 | CL19: =IF(CK19="0.00%","",IF(CK19<VLOOKUP(CJ$16,'Dropdown control panel'!$B$76:$D$137,2,FALSE),CF19*VLOOKUP(CJ$16,'Dropdown control panel'!$B$76:$D$137,2,FALSE)-CJ19,"On Target")) -> 1.2 | CT19: =IF(ISNUMBER(FIND("/",CT$15)),TEXT(VLOOKUP($C19,Compiled!$E$7:$KT$66,MATCH(CT$15,Compiled!$E$1:$KT$1,0),FALSE),"0.00%"),_xlfn.NUMBERVALUE(VLOOKUP($C19,Compiled!$E$7:$KT$66,MATCH(CT$15,Compiled!$E$1:$KT$1,0),FALSE),"#,##0")) -> 0 | CU19: =IF(ISNUMBER(FIND("/",CU$15)),TEXT(VLOOKUP($C19,Compiled!$E$7:$KT$66,MATCH(CU$15,Compiled!$E$1:$KT$1,0),FALSE),"0.00%"),_xlfn.NUMBERVALUE(VLOOKUP($C19,Compiled!$E$7:$KT$66,MATCH(CU$15,Compiled!$E$1:$KT$1,0),FALSE),"#,##0")) -> 0 | CV19: =IF(ISNUMBER(FIND("/",CV$15)),HLOOKUP(CV$15,Compiled!$F$1:$KT$65,MATCH($C19,Compiled!$E$1:$E$65,0),FALSE),HLOOKUP($C19,Compiled!$F$1:$KT$65,MATCH($C19,Compiled!$E$1:$E$65,0),FALSE)) -> 0.00% | CW19: =IF(CV19="0.00%","",IF(CV19<VLOOKUP(CU$16,'Dropdown control panel'!$B$76:$D$140,2,FALSE),CT19*VLOOKUP(CU$16,'Dropdown control panel'!$B$76:$D$140,2,FALSE)-CU19,"On Target")) -> 
B20: =Compiled!D8 -> Central 1 | C20: =Compiled!E8 -> PCN2 | D20: =IF(ISNUMBER(FIND("/",D$15)),TEXT(VLOOKUP($C20,Compiled!$E$7:$CE$66,MATCH($D$15,Compiled!$E$1:$CE$1,0),FALSE),"0.00%"),_xlfn.NUMBERVALUE(VLOOKUP($C20,Compiled!$E$7:$CE$66,MATCH($D$15,Compiled!$E$1:$CE$1,0),FALSE),"#,##0")) -> 1220 | E20: =IF(ISNUMBER(FIND("/",E$15)),TEXT(VLOOKUP($C20,Compiled!$E$7:$CE$66,MATCH($E$15,Compiled!$E$1:$CE$1,0),FALSE),"0.00%"),_xlfn.NUMBERVALUE(VLOOKUP($C20,Compiled!$E$7:$CE$66,MATCH($E$15,Compiled!$E$1:$CE$1,0),FALSE),"#,##0")) -> 558 | F20: =IF(ISNUMBER(FIND("/",$F$15)),HLOOKUP($F$15,Compiled!$F$1:$CC$65,MATCH($C20,Compiled!$E$1:$E$65,0),FALSE),HLOOKUP($C20,Compiled!$F$1:$CC$65,MATCH($C20,Compiled!$E$1:$E$65,0),FALSE)) -> 0.457 | G20: =IF($F20="0.00%","",IF($F20<VLOOKUP($E$16,'Dropdown control panel'!$B$76:$D$137,2,FALSE),$D20*VLOOKUP($E$16,'Dropdown control panel'!$B$76:$D$137,2,FALSE)-$E20,"On Target")) -> 113 | H20: =IF(ISNUMBER(FIND("/",H$15)),TEXT(VLOOKUP($C20,Compiled!$E$7:$CE$66,MATCH(H$15,Compiled!$E$1:$CE$1,0),FALSE),"0.00%"),_xlfn.NUMBERVALUE(VLOOKUP($C20,Compiled!$E$7:$CE$66,MATCH(H$15,Compiled!$E$1:$CE$1,0),FALSE),"#,##0")) -> 56 | I20: =IF(ISNUMBER(FIND("/",I$15)),TEXT(VLOOKUP($C20,Compiled!$E$7:$CE$66,MATCH(I$15,Compiled!$E$1:$CE$1,0),FALSE),"0.00%"),_xlfn.NUMBERVALUE(VLOOKUP($C20,Compiled!$E$7:$CE$66,MATCH(I$15,Compiled!$E$1:$CE$1,0),FALSE),"#,##0")) -> 11 | J20: =IF(ISNUMBER(FIND("/",J$15)),HLOOKUP(J$15,Compiled!$F$1:$CC$65,MATCH($C20,Compiled!$E$1:$E$65,0),FALSE),HLOOKUP($C20,Compiled!$F$1:$CC$65,MATCH($C20,Compiled!$E$1:$E$65,0),FALSE)) -> 0.196 | K20: =IF($J20="0.00%","",IF($J20<VLOOKUP($I$16,'Dropdown control panel'!$B$76:$D$137,2,FALSE),$H20*VLOOKUP($I$16,'Dropdown control panel'!$B$76:$D$137,2,FALSE)-$I20,"On Target")) -> 17 | L20: =IF(ISNUMBER(FIND("/",L$15)),TEXT(VLOOKUP($C20,Compiled!$E$7:$CE$66,MATCH(L$15,Compiled!$E$1:$CE$1,0),FALSE),"0.00%"),_xlfn.NUMBERVALUE(VLOOKUP($C20,Compiled!$E$7:$CE$66,MATCH(L$15,Compiled!$E$1:$CE$1,0),FALSE),"#,##0")) -> 9 | M20: =IF(ISNUMBER(FIND("/",M$15)),TEXT(VLOOKUP($C20,Compiled!$E$7:$CE$66,MATCH(M$15,Compiled!$E$1:$CE$1,0),FALSE),"0.00%"),_xlfn.NUMBERVALUE(VLOOKUP($C20,Compiled!$E$7:$CE$66,MATCH(M$15,Compiled!$E$1:$CE$1,0),FALSE),"#,##0")) -> 6 | N20: =IF(ISNUMBER(FIND("/",N$15)),HLOOKUP(N$15,Compiled!$F$1:$CC$65,MATCH($C20,Compiled!$E$1:$E$65,0),FALSE),HLOOKUP($C20,Compiled!$F$1:$CC$65,MATCH($C20,Compiled!$E$1:$E$65,0),FALSE)) -> 0.667 | O20: =IF(N20="0.00%","",IF(N20<VLOOKUP(M$16,'Dropdown control panel'!$B$76:$D$137,2,FALSE),L20*VLOOKUP(M$16,'Dropdown control panel'!$B$76:$D$137,2,FALSE)-M20,"On Target")) -> On Target | Q20: =IF(ISNUMBER(FIND("/",Q$15)),TEXT(VLOOKUP($C20,Compiled!$E$7:$KA$66,MATCH(Q$15,Compiled!$E$1:$KA$1,0),FALSE),"0.00%"),_xlfn.NUMBERVALUE(VLOOKUP($C20,Compiled!$E$7:$KA$66,MATCH(Q$15,Compiled!$E$1:$KA$1,0),FALSE),"#,##0")) -> 2 | R20: =IF(ISNUMBER(FIND("/",R$15)),TEXT(VLOOKUP($C20,Compiled!$E$7:$KA$66,MATCH(R$15,Compiled!$E$1:$KA$1,0),FALSE),"0.00%"),_xlfn.NUMBERVALUE(VLOOKUP($C20,Compiled!$E$7:$KA$66,MATCH(R$15,Compiled!$E$1:$KA$1,0),FALSE),"#,##0")) -> 0 | S20: =IF(ISNUMBER(FIND("/",S$15)),HLOOKUP(S$15,Compiled!$F$1:$CF$65,MATCH($C20,Compiled!$E$1:$E$65,0),FALSE),HLOOKUP($C20,Compiled!$F$1:$CF$65,MATCH($C20,Compiled!$E$1:$E$65,0),FALSE)) -> 0 | T20: =IF(S20="0.00%","",IF(S20<VLOOKUP(R$16,'Dropdown control panel'!$B$76:$D$143,2,FALSE),Q20*VLOOKUP(R$16,'Dropdown control panel'!$B$76:$E$143,2,FALSE)-R20,"On Target")) -> 1.6 | V20: =IF(ISNUMBER(FIND("/",V$15)),TEXT(VLOOKUP($C20,Compiled!$E$7:$CE$66,MATCH(V$15,Compiled!$E$1:$CE$1,0),FALSE),"0.00%"),_xlfn.NUMBERVALUE(VLOOKUP($C20,Compiled!$E$7:$CE$66,MATCH(V$15,Compiled!$E$1:$CE$1,0),FALSE),"#,##0")) -> 9 | W20: =IF(ISNUMBER(FIND("/",W$15)),TEXT(VLOOKUP($C20,Compiled!$E$7:$CE$66,MATCH(W$15,Compiled!$E$1:$CE$1,0),FALSE),"0.00%"),_xlfn.NUMBERVALUE(VLOOKUP($C20,Compiled!$E$7:$CE$66,MATCH(W$15,Compiled!$E$1:$CE$1,0),FALSE),"#,##0")) -> 4 | X20: =IF(ISNUMBER(FIND("/",X$15)),HLOOKUP(X$15,Compiled!$F$1:$CC$65,MATCH($C20,Compiled!$E$1:$E$65,0),FALSE),HLOOKUP($C20,Compiled!$F$1:$CC$65,MATCH($C20,Compiled!$E$1:$E$65,0),FALSE)) -> 0.444 | Y20: =IF(X20="0.00%","",IF(X20<VLOOKUP(W$16,'Dropdown control panel'!$B$76:$D$137,2,FALSE),V20*VLOOKUP(W$16,'Dropdown control panel'!$B$76:$D$137,2,FALSE)-W20,"On Target")) -> 2.75 | AA20: =IF(ISNUMBER(FIND("/",AA$15)),TEXT(VLOOKUP($C20,Compiled!$E$7:$CE$66,MATCH(AA$15,Compiled!$E$1:$CE$1,0),FALSE),"0.00%"),_xlfn.NUMBERVALUE(VLOOKUP($C20,Compiled!$E$7:$CE$66,MATCH(AA$15,Compiled!$E$1:$CE$1,0),FALSE),"#,##0")) -> 56 | AB20: =IF(ISNUMBER(FIND("/",AB$15)),TEXT(VLOOKUP($C20,Compiled!$E$7:$CE$66,MATCH(AB$15,Compiled!$E$1:$CE$1,0),FALSE),"0.00%"),_xlfn.NUMBERVALUE(VLOOKUP($C20,Compiled!$E$7:$CE$66,MATCH(AB$15,Compiled!$E$1:$CE$1,0),FALSE),"#,##0")) -> 4 | AC20: =IF(ISNUMBER(FIND("/",AC$15)),HLOOKUP(AC$15,Compiled!$F$1:$CC$65,MATCH($C20,Compiled!$E$1:$E$65,0),FALSE),HLOOKUP($C20,Compiled!$F$1:$CC$65,MATCH($C20,Compiled!$E$1:$E$65,0),FALSE)) -> 0.071 | AD20: =IF(AC20="0.00%","",IF(AC20<VLOOKUP(AB$16,'Dropdown control panel'!$B$76:$D$137,2,FALSE),AA20*VLOOKUP(AB$16,'Dropdown control panel'!$B$76:$D$137,2,FALSE)-AB20,"On Target")) ->  | AE20: =IF(ISNUMBER(FIND("/",AE$15)),TEXT(VLOOKUP($C20,Compiled!$E$7:$CE$66,MATCH(AE$15,Compiled!$E$1:$CE$1,0),FALSE),"0.00%"),_xlfn.NUMBERVALUE(VLOOKUP($C20,Compiled!$E$7:$CE$66,MATCH(AE$15,Compiled!$E$1:$CE$1,0),FALSE),"#,##0")) -> 27 | AF20: =IF(ISNUMBER(FIND("/",AF$15)),TEXT(VLOOKUP($C20,Compiled!$E$7:$CE$66,MATCH(AF$15,Compiled!$E$1:$CE$1,0),FALSE),"0.00%"),_xlfn.NUMBERVALUE(VLOOKUP($C20,Compiled!$E$7:$CE$66,MATCH(AF$15,Compiled!$E$1:$CE$1,0),FALSE),"#,##0")) -> 7 | AG20: =IF(ISNUMBER(FIND("/",AG$15)),HLOOKUP(AG$15,Compiled!$F$1:$CC$65,MATCH($C20,Compiled!$E$1:$E$65,0),FALSE),HLOOKUP($C20,Compiled!$F$1:$CC$65,MATCH($C20,Compiled!$E$1:$E$65,0),FALSE)) -> 0.259 | AH20: =IF(AG20="0.00%","",IF(AG20<VLOOKUP(AF$16,'Dropdown control panel'!$B$76:$D$137,2,FALSE),AE20*VLOOKUP(AF$16,'Dropdown control panel'!$B$76:$D$137,2,FALSE)-AF20,"On Target")) -> 6.5 | AJ20: =IF(ISNUMBER(FIND("/",AJ$15)),TEXT(VLOOKUP($C20,Compiled!$E$7:$CE$66,MATCH(AJ$15,Compiled!$E$1:$CE$1,0),FALSE),"0.00%"),_xlfn.NUMBERVALUE(VLOOKUP($C20,Compiled!$E$7:$CE$66,MATCH(AJ$15,Compiled!$E$1:$CE$1,0),FALSE),"#,##0")) -> 7363 | AK20: =IF(ISNUMBER(FIND("/",AK$15)),TEXT(VLOOKUP($C20,Compiled!$E$7:$CE$66,MATCH(AK$15,Compiled!$E$1:$CE$1,0),FALSE),"0.00%"),_xlfn.NUMBERVALUE(VLOOKUP($C20,Compiled!$E$7:$CE$66,MATCH(AK$15,Compiled!$E$1:$CE$1,0),FALSE),"#,##0")) -> 722 | AL20: =IF(ISNUMBER(FIND("/",AL$15)),HLOOKUP(AL$15,Compiled!$F$1:$CC$65,MATCH($C20,Compiled!$E$1:$E$65,0),FALSE),HLOOKUP($C20,Compiled!$F$1:$CC$65,MATCH($C20,Compiled!$E$1:$E$65,0),FALSE)) -> 0.098 | AM20: =IF(AL20="0.00%","",IF(AL20<VLOOKUP(AK$16,'Dropdown control panel'!$B$76:$D$137,2,FALSE),AJ20*VLOOKUP(AK$16,'Dropdown control panel'!$B$76:$D$137,2,FALSE)-AK20,"On Target")) -> 2370.46 | AO20: =IF(ISNUMBER(FIND("/",AO$15)),TEXT(VLOOKUP($C20,Compiled!$E$7:$CE$66,MATCH(AO$15,Compiled!$E$1:$CE$1,0),FALSE),"0.00%"),_xlfn.NUMBERVALUE(VLOOKUP($C20,Compiled!$E$7:$CE$66,MATCH(AO$15,Compiled!$E$1:$CE$1,0),FALSE),"#,##0")) -> 38 | AP20: =IF(ISNUMBER(FIND("/",AP$15)),TEXT(VLOOKUP($C20,Compiled!$E$7:$CE$66,MATCH(AP$15,Compiled!$E$1:$CE$1,0),FALSE),"0.00%"),_xlfn.NUMBERVALUE(VLOOKUP($C20,Compiled!$E$7:$CE$66,MATCH(AP$15,Compiled!$E$1:$CE$1,0),FALSE),"#,##0")) -> 0 | AQ20: =IF(ISNUMBER(FIND("/",AQ$15)),HLOOKUP(AQ$15,Compiled!$F$1:$CC$65,MATCH($C20,Compiled!$E$1:$E$65,0),FALSE),HLOOKUP($C20,Compiled!$F$1:$CC$65,MATCH($C20,Compiled!$E$1:$E$65,0),FALSE)) -> 0 | AR20: =IF(AQ20="0.00%","",IF(AQ20<VLOOKUP(AP$16,'Dropdown control panel'!$B$76:$D$137,2,FALSE),AO20*VLOOKUP(AP$16,'Dropdown control panel'!$B$76:$D$137,2,FALSE)-AP20,"On Target")) -> 11.4 | AS20: =IF(ISNUMBER(FIND("/",AS$15)),TEXT(VLOOKUP($C20,Compiled!$E$7:$CE$66,MATCH(AS$15,Compiled!$E$1:$CE$1,0),FALSE),"0.00%"),_xlfn.NUMBERVALUE(VLOOKUP($C20,Compiled!$E$7:$CE$66,MATCH(AS$15,Compiled!$E$1:$CE$1,0),FALSE),"#,##0")) -> 0 | AT20: =IF(ISNUMBER(FIND("/",AT$15)),HLOOKUP(AT$15,Compiled!$F$1:$CC$65,MATCH($C20,Compiled!$E$1:$E$65,0),FALSE),HLOOKUP($C20,Compiled!$F$1:$CC$65,MATCH($C20,Compiled!$E$1:$E$65,0),FALSE)) -> 0.00% | AU20: =IF(AT20="0.00%","",IF(AT20<VLOOKUP(AS$16,'Dropdown control panel'!$B$76:$D$137,2,FALSE),AP20*VLOOKUP(AS$16,'Dropdown control panel'!$B$76:$D$137,2,FALSE)-AS20,"On Target")) ->  | AW20: =IF(ISNUMBER(FIND("/",AW$15)),TEXT(VLOOKUP($C20,Compiled!$E$7:$CE$66,MATCH(AW$15,Compiled!$E$1:$CE$1,0),FALSE),"0.00%"),_xlfn.NUMBERVALUE(VLOOKUP($C20,Compiled!$E$7:$CE$66,MATCH(AW$15,Compiled!$E$1:$CE$1,0),FALSE),"#,##0")) -> 1086 | AX20: =IF(ISNUMBER(FIND("/",AX$15)),TEXT(VLOOKUP($C20,Compiled!$E$7:$CE$66,MATCH(AX$15,Compiled!$E$1:$CE$1,0),FALSE),"0.00%"),_xlfn.NUMBERVALUE(VLOOKUP($C20,Compiled!$E$7:$CE$66,MATCH(AX$15,Compiled!$E$1:$CE$1,0),FALSE),"#,##0")) -> 421 | AY20: =IF(ISNUMBER(FIND("/",AY$15)),HLOOKUP(AY$15,Compiled!$F$1:$CC$65,MATCH($C20,Compiled!$E$1:$E$65,0),FALSE),HLOOKUP($C20,Compiled!$F$1:$CC$65,MATCH($C20,Compiled!$E$1:$E$65,0),FALSE)) -> 0.388 | AZ20: =IF(AY20="0.00%","",IF(AY20<VLOOKUP(AX$16,'Dropdown control panel'!$B$76:$D$137,2,FALSE),AW20*VLOOKUP(AX$16,'Dropdown control panel'!$B$76:$D$137,2,FALSE)-AX20,"On Target")) -> 230.6 | BB20: =IF(ISNUMBER(FIND("/",BB$15)),TEXT(VLOOKUP($C20,Compiled!$E$7:$KA$66,MATCH(BB$15,Compiled!$E$1:$KA$1,0),FALSE),"0.00%"),_xlfn.NUMBERVALUE(VLOOKUP($C20,Compiled!$E$7:$KA$66,MATCH(BB$15,Compiled!$E$1:$KA$1,0),FALSE),"#,##0")) -> 540 | BC20: =IF(ISNUMBER(FIND("/",BC$15)),HLOOKUP(BC$15,Compiled!$F$1:$KA$65,MATCH($C20,Compiled!$E$1:$E$65,0),FALSE),HLOOKUP($C20,Compiled!$F$1:$KA$65,MATCH($C20,Compiled!$E$1:$E$65,0),FALSE)) -> 0.497 | BD20: =IF(BC20="0.00%","",IF(BC20<VLOOKUP(BB$16,'Dropdown control panel'!$B$76:$D$137,2,FALSE),AW20*VLOOKUP(BB$16,'Dropdown control panel'!$B$76:$D$137,2,FALSE)-BB20,"On Target")) -> 165.9 | BF20: =IF(ISNUMBER(FIND("/",BF$15)),TEXT(VLOOKUP($C20,Compiled!$E$7:$CE$66,MATCH(BF$15,Compiled!$E$1:$CE$1,0),FALSE),"0.00%"),_xlfn.NUMBERVALUE(VLOOKUP($C20,Compiled!$E$7:$CE$66,MATCH(BF$15,Compiled!$E$1:$CE$1,0),FALSE),"#,##0")) -> 5273 | BG20: =IF(ISNUMBER(FIND("/",BG$15)),TEXT(VLOOKUP($C20,Compiled!$E$7:$CE$66,MATCH(BG$15,Compiled!$E$1:$CE$1,0),FALSE),"0.00%"),_xlfn.NUMBERVALUE(VLOOKUP($C20,Compiled!$E$7:$CE$66,MATCH(BG$15,Compiled!$E$1:$CE$1,0),FALSE),"#,##0")) -> 2213 | BH20: =IF(ISNUMBER(FIND("/",BH$15)),HLOOKUP(BH$15,Compiled!$F$1:$CC$65,MATCH($C20,Compiled!$E$1:$E$65,0),FALSE),HLOOKUP($C20,Compiled!$F$1:$CC$65,MATCH($C20,Compiled!$E$1:$E$65,0),FALSE)) -> 0.42 | BI20: =IF(BH20="0.00%","",IF(BH20<VLOOKUP(BG$16,'Dropdown control panel'!$B$76:$D$137,2,FALSE),BF20*VLOOKUP(BG$16,'Dropdown control panel'!$B$76:$D$137,2,FALSE)-BG20,"On Target")) -> 1478.1 | BK20: =IF(ISNUMBER(FIND("/",BK$15)),TEXT(VLOOKUP($C20,Compiled!$E$7:$KH$66,MATCH(BK$15,Compiled!$E$1:$KH$1,0),FALSE),"0.00%"),_xlfn.NUMBERVALUE(VLOOKUP($C20,Compiled!$E$7:$KH$66,MATCH(BK$15,Compiled!$E$1:$KH$1,0),FALSE),"#,##0")) -> 467 | BL20: =IF(ISNUMBER(FIND("/",BL$15)),TEXT(VLOOKUP($C20,Compiled!$E$7:$KH$66,MATCH(BL$15,Compiled!$E$1:$KH$1,0),FALSE),"0.00%"),_xlfn.NUMBERVALUE(VLOOKUP($C20,Compiled!$E$7:$KH$66,MATCH(BL$15,Compiled!$E$1:$KH$1,0),FALSE),"#,##0")) -> 66 | BM20: =IF(ISNUMBER(FIND("/",BM$15)),HLOOKUP(BM$15,Compiled!$F$1:$KH$65,MATCH($C20,Compiled!$E$1:$E$65,0),FALSE),HLOOKUP($C20,Compiled!$F$1:$KH$65,MATCH($C20,Compiled!$E$1:$E$65,0),FALSE)) -> 0.141 | BN20: =IF(BM20="0.00%","",IF(BM20<VLOOKUP(BL$16,'Dropdown control panel'!$B$76:$D$137,2,FALSE),BK20*VLOOKUP(BL$16,'Dropdown control panel'!$B$76:$D$137,2,FALSE)-BL20,"On Target")) -> 260.9 | BO20: =IF(ISNUMBER(FIND("/",BO$15)),TEXT(VLOOKUP($C20,Compiled!$E$7:$KH$66,MATCH(BO$15,Compiled!$E$1:$KH$1,0),FALSE),"0.00%"),_xlfn.NUMBERVALUE(VLOOKUP($C20,Compiled!$E$7:$KH$66,MATCH(BO$15,Compiled!$E$1:$KH$1,0),FALSE),"#,##0")) -> 3287 | BP20: =IF(ISNUMBER(FIND("/",BP$15)),HLOOKUP(BP$15,Compiled!$F$1:$KH$65,MATCH($C20,Compiled!$E$1:$E$65,0),FALSE),HLOOKUP($C20,Compiled!$F$1:$KH$65,MATCH($C20,Compiled!$E$1:$E$65,0),FALSE)) -> 0.623 | BQ20: =IF(BP20="0.00%","",IF(BP20<VLOOKUP(BO$16,'Dropdown control panel'!$B$76:$D$137,2,FALSE),BF20*VLOOKUP(BO$16,'Dropdown control panel'!$B$76:$D$137,2,FALSE)-BO20,"On Target")) -> 404.1 | BR20: =IF(ISNUMBER(FIND("/",BR$15)),TEXT(VLOOKUP($C20,Compiled!$E$7:$KH$66,MATCH(BR$15,Compiled!$E$1:$KH$1,0),FALSE),"0.00%"),_xlfn.NUMBERVALUE(VLOOKUP($C20,Compiled!$E$7:$KH$66,MATCH(BR$15,Compiled!$E$1:$KH$1,0),FALSE),"#,##0")) -> 3694 | BS20: =IF(ISNUMBER(FIND("/",BS$15)),HLOOKUP(BS$15,Compiled!$F$1:$KH$65,MATCH($C20,Compiled!$E$1:$E$65,0),FALSE),HLOOKUP($C20,Compiled!$F$1:$KH$65,MATCH($C20,Compiled!$E$1:$E$65,0),FALSE)) -> 0.701 | BT20: =IF(BS20="0.00%","",IF(BS20<VLOOKUP(BR$16,'Dropdown control panel'!$B$76:$D$137,2,FALSE),BF20*VLOOKUP(BR$16,'Dropdown control panel'!$B$76:$D$137,2,FALSE)-BR20,"On Target")) -> On Target | BV20: =IF(ISNUMBER(FIND("/",BV$15)),TEXT(VLOOKUP($C20,Compiled!$E$7:$CE$66,MATCH(BV$15,Compiled!$E$1:$CE$1,0),FALSE),"0.00%"),_xlfn.NUMBERVALUE(VLOOKUP($C20,Compiled!$E$7:$CE$66,MATCH(BV$15,Compiled!$E$1:$CE$1,0),FALSE),"#,##0")) -> 1578 | BW20: =IF(ISNUMBER(FIND("/",BW$15)),TEXT(VLOOKUP($C20,Compiled!$E$7:$CE$66,MATCH(BW$15,Compiled!$E$1:$CE$1,0),FALSE),"0.00%"),_xlfn.NUMBERVALUE(VLOOKUP($C20,Compiled!$E$7:$CE$66,MATCH(BW$15,Compiled!$E$1:$CE$1,0),FALSE),"#,##0")) -> 1072 | BX20: =IF(ISNUMBER(FIND("/",BX$15)),HLOOKUP(BX$15,Compiled!$F$1:$CC$65,MATCH($C20,Compiled!$E$1:$E$65,0),FALSE),HLOOKUP($C20,Compiled!$F$1:$CC$65,MATCH($C20,Compiled!$E$1:$E$65,0),FALSE)) -> 0.679 | BY20: =IF(BX20="0.00%","",IF(BX20<VLOOKUP(BW$16,'Dropdown control panel'!$B$76:$D$137,2,FALSE),BV20*VLOOKUP(BW$16,'Dropdown control panel'!$B$76:$D$137,2,FALSE)-BW20,"On Target")) -> On Target | CA20: =IF(ISNUMBER(FIND("/",CA$15)),TEXT(VLOOKUP($C20,Compiled!$E$7:$CE$66,MATCH(CA$15,Compiled!$E$1:$CE$1,0),FALSE),"0.00%"),_xlfn.NUMBERVALUE(VLOOKUP($C20,Compiled!$E$7:$CE$66,MATCH(CA$15,Compiled!$E$1:$CE$1,0),FALSE),"#,##0")) -> 2900 | CB20: =IF(ISNUMBER(FIND("/",CB$15)),TEXT(VLOOKUP($C20,Compiled!$E$7:$CE$66,MATCH(CB$15,Compiled!$E$1:$CE$1,0),FALSE),"0.00%"),_xlfn.NUMBERVALUE(VLOOKUP($C20,Compiled!$E$7:$CE$66,MATCH(CB$15,Compiled!$E$1:$CE$1,0),FALSE),"#,##0")) -> 970 | CC20: =IF(ISNUMBER(FIND("/",CC$15)),HLOOKUP(CC$15,Compiled!$F$1:$CC$65,MATCH($C20,Compiled!$E$1:$E$65,0),FALSE),HLOOKUP($C20,Compiled!$F$1:$CC$65,MATCH($C20,Compiled!$E$1:$E$65,0),FALSE)) -> 0.334 | CD20: =IF(CC20="0.00%","",IF(CC20<VLOOKUP(CB$16,'Dropdown control panel'!$B$76:$D$137,2,FALSE),CA20*VLOOKUP(CB$16,'Dropdown control panel'!$B$76:$D$137,2,FALSE)-CB20,"On Target")) -> 335 | CF20: =IF(ISNUMBER(FIND("/",CF$15)),TEXT(VLOOKUP($C20,Compiled!$E$7:$CE$66,MATCH(CF$15,Compiled!$E$1:$CE$1,0),FALSE),"0.00%"),_xlfn.NUMBERVALUE(VLOOKUP($C20,Compiled!$E$7:$CE$66,MATCH(CF$15,Compiled!$E$1:$CE$1,0),FALSE),"#,##0")) -> 12 | CG20: =IF(ISNUMBER(FIND("/",CG$15)),TEXT(VLOOKUP($C20,Compiled!$E$7:$CE$66,MATCH(CG$15,Compiled!$E$1:$CE$1,0),FALSE),"0.00%"),_xlfn.NUMBERVALUE(VLOOKUP($C20,Compiled!$E$7:$CE$66,MATCH(CG$15,Compiled!$E$1:$CE$1,0),FALSE),"#,##0")) -> 6 | CH20: =IF(ISNUMBER(FIND("/",CH$15)),HLOOKUP(CH$15,Compiled!$F$1:$CC$65,MATCH($C20,Compiled!$E$1:$E$65,0),FALSE),HLOOKUP($C20,Compiled!$F$1:$CC$65,MATCH($C20,Compiled!$E$1:$E$65,0),FALSE)) -> 0.5 | CI20: =IF(CH20="0.00%","",IF(CH20<VLOOKUP(CG$16,'Dropdown control panel'!$B$76:$D$137,2,FALSE),CF20*VLOOKUP(CG$16,'Dropdown control panel'!$B$76:$D$137,2,FALSE)-CG20,"On Target")) -> 1.2 | CJ20: =IF(ISNUMBER(FIND("/",CJ$15)),TEXT(VLOOKUP($C20,Compiled!$E$7:$CE$66,MATCH(CJ$15,Compiled!$E$1:$CE$1,0),FALSE),"0.00%"),_xlfn.NUMBERVALUE(VLOOKUP($C20,Compiled!$E$7:$CE$66,MATCH(CJ$15,Compiled!$E$1:$CE$1,0),FALSE),"#,##0")) -> 1 | CK20: =IF(ISNUMBER(FIND("/",CK$15)),HLOOKUP(CK$15,Compiled!$F$1:$CC$65,MATCH($C20,Compiled!$E$1:$E$65,0),FALSE),HLOOKUP($C20,Compiled!$F$1:$CC$65,MATCH($C20,Compiled!$E$1:$E$65,0),FALSE)) -> 0.083 | CL20: =IF(CK20="0.00%","",IF(CK20<VLOOKUP(CJ$16,'Dropdown control panel'!$B$76:$D$137,2,FALSE),CF20*VLOOKUP(CJ$16,'Dropdown control panel'!$B$76:$D$137,2,FALSE)-CJ20,"On Target")) -> 2.6 | CT20: =IF(ISNUMBER(FIND("/",CT$15)),TEXT(VLOOKUP($C20,Compiled!$E$7:$KT$66,MATCH(CT$15,Compiled!$E$1:$KT$1,0),FALSE),"0.00%"),_xlfn.NUMBERVALUE(VLOOKUP($C20,Compiled!$E$7:$KT$66,MATCH(CT$15,Compiled!$E$1:$KT$1,0),FALSE),"#,##0")) -> 0 | CU20: =IF(ISNUMBER(FIND("/",CU$15)),TEXT(VLOOKUP($C20,Compiled!$E$7:$KT$66,MATCH(CU$15,Compiled!$E$1:$KT$1,0),FALSE),"0.00%"),_xlfn.NUMBERVALUE(VLOOKUP($C20,Compiled!$E$7:$KT$66,MATCH(CU$15,Compiled!$E$1:$KT$1,0),FALSE),"#,##0")) -> 0 | CV20: =IF(ISNUMBER(FIND("/",CV$15)),HLOOKUP(CV$15,Compiled!$F$1:$KT$65,MATCH($C20,Compiled!$E$1:$E$65,0),FALSE),HLOOKUP($C20,Compiled!$F$1:$KT$65,MATCH($C20,Compiled!$E$1:$E$65,0),FALSE)) -> 0.00% | CW20: =IF(CV20="0.00%","",IF(CV20<VLOOKUP(CU$16,'Dropdown control panel'!$B$76:$D$140,2,FALSE),CT20*VLOOKUP(CU$16,'Dropdown control panel'!$B$76:$D$140,2,FALSE)-CU20,"On Target")) -> 
B21: =Compiled!D9 -> Newham Central | C21: =Compiled!E9 -> PCN3 | D21: =IF(ISNUMBER(FIND("/",D$15)),TEXT(VLOOKUP($C21,Compiled!$E$7:$CE$66,MATCH($D$15,Compiled!$E$1:$CE$1,0),FALSE),"0.00%"),_xlfn.NUMBERVALUE(VLOOKUP($C21,Compiled!$E$7:$CE$66,MATCH($D$15,Compiled!$E$1:$CE$1,0),FALSE),"#,##0")) -> 698 | E21: =IF(ISNUMBER(FIND("/",E$15)),TEXT(VLOOKUP($C21,Compiled!$E$7:$CE$66,MATCH($E$15,Compiled!$E$1:$CE$1,0),FALSE),"0.00%"),_xlfn.NUMBERVALUE(VLOOKUP($C21,Compiled!$E$7:$CE$66,MATCH($E$15,Compiled!$E$1:$CE$1,0),FALSE),"#,##0")) -> 309 | F21: =IF(ISNUMBER(FIND("/",$F$15)),HLOOKUP($F$15,Compiled!$F$1:$CC$65,MATCH($C21,Compiled!$E$1:$E$65,0),FALSE),HLOOKUP($C21,Compiled!$F$1:$CC$65,MATCH($C21,Compiled!$E$1:$E$65,0),FALSE)) -> 0.443 | G21: =IF($F21="0.00%","",IF($F21<VLOOKUP($E$16,'Dropdown control panel'!$B$76:$D$137,2,FALSE),$D21*VLOOKUP($E$16,'Dropdown control panel'!$B$76:$D$137,2,FALSE)-$E21,"On Target")) -> 74.9 | H21: =IF(ISNUMBER(FIND("/",H$15)),TEXT(VLOOKUP($C21,Compiled!$E$7:$CE$66,MATCH(H$15,Compiled!$E$1:$CE$1,0),FALSE),"0.00%"),_xlfn.NUMBERVALUE(VLOOKUP($C21,Compiled!$E$7:$CE$66,MATCH(H$15,Compiled!$E$1:$CE$1,0),FALSE),"#,##0")) -> 30 | I21: =IF(ISNUMBER(FIND("/",I$15)),TEXT(VLOOKUP($C21,Compiled!$E$7:$CE$66,MATCH(I$15,Compiled!$E$1:$CE$1,0),FALSE),"0.00%"),_xlfn.NUMBERVALUE(VLOOKUP($C21,Compiled!$E$7:$CE$66,MATCH(I$15,Compiled!$E$1:$CE$1,0),FALSE),"#,##0")) -> 2 | J21: =IF(ISNUMBER(FIND("/",J$15)),HLOOKUP(J$15,Compiled!$F$1:$CC$65,MATCH($C21,Compiled!$E$1:$E$65,0),FALSE),HLOOKUP($C21,Compiled!$F$1:$CC$65,MATCH($C21,Compiled!$E$1:$E$65,0),FALSE)) -> 0.067 | K21: =IF($J21="0.00%","",IF($J21<VLOOKUP($I$16,'Dropdown control panel'!$B$76:$D$137,2,FALSE),$H21*VLOOKUP($I$16,'Dropdown control panel'!$B$76:$D$137,2,FALSE)-$I21,"On Target")) -> 13 | L21: =IF(ISNUMBER(FIND("/",L$15)),TEXT(VLOOKUP($C21,Compiled!$E$7:$CE$66,MATCH(L$15,Compiled!$E$1:$CE$1,0),FALSE),"0.00%"),_xlfn.NUMBERVALUE(VLOOKUP($C21,Compiled!$E$7:$CE$66,MATCH(L$15,Compiled!$E$1:$CE$1,0),FALSE),"#,##0")) -> 3 | M21: =IF(ISNUMBER(FIND("/",M$15)),TEXT(VLOOKUP($C21,Compiled!$E$7:$CE$66,MATCH(M$15,Compiled!$E$1:$CE$1,0),FALSE),"0.00%"),_xlfn.NUMBERVALUE(VLOOKUP($C21,Compiled!$E$7:$CE$66,MATCH(M$15,Compiled!$E$1:$CE$1,0),FALSE),"#,##0")) -> 1 | N21: =IF(ISNUMBER(FIND("/",N$15)),HLOOKUP(N$15,Compiled!$F$1:$CC$65,MATCH($C21,Compiled!$E$1:$E$65,0),FALSE),HLOOKUP($C21,Compiled!$F$1:$CC$65,MATCH($C21,Compiled!$E$1:$E$65,0),FALSE)) -> 0.333 | O21: =IF(N21="0.00%","",IF(N21<VLOOKUP(M$16,'Dropdown control panel'!$B$76:$D$137,2,FALSE),L21*VLOOKUP(M$16,'Dropdown control panel'!$B$76:$D$137,2,FALSE)-M21,"On Target")) -> 0.95 | Q21: =IF(ISNUMBER(FIND("/",Q$15)),TEXT(VLOOKUP($C21,Compiled!$E$7:$KA$66,MATCH(Q$15,Compiled!$E$1:$KA$1,0),FALSE),"0.00%"),_xlfn.NUMBERVALUE(VLOOKUP($C21,Compiled!$E$7:$KA$66,MATCH(Q$15,Compiled!$E$1:$KA$1,0),FALSE),"#,##0")) -> 3 | R21: =IF(ISNUMBER(FIND("/",R$15)),TEXT(VLOOKUP($C21,Compiled!$E$7:$KA$66,MATCH(R$15,Compiled!$E$1:$KA$1,0),FALSE),"0.00%"),_xlfn.NUMBERVALUE(VLOOKUP($C21,Compiled!$E$7:$KA$66,MATCH(R$15,Compiled!$E$1:$KA$1,0),FALSE),"#,##0")) -> 0 | S21: =IF(ISNUMBER(FIND("/",S$15)),HLOOKUP(S$15,Compiled!$F$1:$CF$65,MATCH($C21,Compiled!$E$1:$E$65,0),FALSE),HLOOKUP($C21,Compiled!$F$1:$CF$65,MATCH($C21,Compiled!$E$1:$E$65,0),FALSE)) -> 0 | T21: =IF(S21="0.00%","",IF(S21<VLOOKUP(R$16,'Dropdown control panel'!$B$76:$D$143,2,FALSE),Q21*VLOOKUP(R$16,'Dropdown control panel'!$B$76:$E$143,2,FALSE)-R21,"On Target")) -> 2.4 | V21: =IF(ISNUMBER(FIND("/",V$15)),TEXT(VLOOKUP($C21,Compiled!$E$7:$CE$66,MATCH(V$15,Compiled!$E$1:$CE$1,0),FALSE),"0.00%"),_xlfn.NUMBERVALUE(VLOOKUP($C21,Compiled!$E$7:$CE$66,MATCH(V$15,Compiled!$E$1:$CE$1,0),FALSE),"#,##0")) -> 2 | W21: =IF(ISNUMBER(FIND("/",W$15)),TEXT(VLOOKUP($C21,Compiled!$E$7:$CE$66,MATCH(W$15,Compiled!$E$1:$CE$1,0),FALSE),"0.00%"),_xlfn.NUMBERVALUE(VLOOKUP($C21,Compiled!$E$7:$CE$66,MATCH(W$15,Compiled!$E$1:$CE$1,0),FALSE),"#,##0")) -> 1 | X21: =IF(ISNUMBER(FIND("/",X$15)),HLOOKUP(X$15,Compiled!$F$1:$CC$65,MATCH($C21,Compiled!$E$1:$E$65,0),FALSE),HLOOKUP($C21,Compiled!$F$1:$CC$65,MATCH($C21,Compiled!$E$1:$E$65,0),FALSE)) -> 0.5 | Y21: =IF(X21="0.00%","",IF(X21<VLOOKUP(W$16,'Dropdown control panel'!$B$76:$D$137,2,FALSE),V21*VLOOKUP(W$16,'Dropdown control panel'!$B$76:$D$137,2,FALSE)-W21,"On Target")) -> 0.5 | AA21: =IF(ISNUMBER(FIND("/",AA$15)),TEXT(VLOOKUP($C21,Compiled!$E$7:$CE$66,MATCH(AA$15,Compiled!$E$1:$CE$1,0),FALSE),"0.00%"),_xlfn.NUMBERVALUE(VLOOKUP($C21,Compiled!$E$7:$CE$66,MATCH(AA$15,Compiled!$E$1:$CE$1,0),FALSE),"#,##0")) -> 31 | AB21: =IF(ISNUMBER(FIND("/",AB$15)),TEXT(VLOOKUP($C21,Compiled!$E$7:$CE$66,MATCH(AB$15,Compiled!$E$1:$CE$1,0),FALSE),"0.00%"),_xlfn.NUMBERVALUE(VLOOKUP($C21,Compiled!$E$7:$CE$66,MATCH(AB$15,Compiled!$E$1:$CE$1,0),FALSE),"#,##0")) -> 4 | AC21: =IF(ISNUMBER(FIND("/",AC$15)),HLOOKUP(AC$15,Compiled!$F$1:$CC$65,MATCH($C21,Compiled!$E$1:$E$65,0),FALSE),HLOOKUP($C21,Compiled!$F$1:$CC$65,MATCH($C21,Compiled!$E$1:$E$65,0),FALSE)) -> 0.129 | AD21: =IF(AC21="0.00%","",IF(AC21<VLOOKUP(AB$16,'Dropdown control panel'!$B$76:$D$137,2,FALSE),AA21*VLOOKUP(AB$16,'Dropdown control panel'!$B$76:$D$137,2,FALSE)-AB21,"On Target")) ->  | AE21: =IF(ISNUMBER(FIND("/",AE$15)),TEXT(VLOOKUP($C21,Compiled!$E$7:$CE$66,MATCH(AE$15,Compiled!$E$1:$CE$1,0),FALSE),"0.00%"),_xlfn.NUMBERVALUE(VLOOKUP($C21,Compiled!$E$7:$CE$66,MATCH(AE$15,Compiled!$E$1:$CE$1,0),FALSE),"#,##0")) -> 21 | AF21: =IF(ISNUMBER(FIND("/",AF$15)),TEXT(VLOOKUP($C21,Compiled!$E$7:$CE$66,MATCH(AF$15,Compiled!$E$1:$CE$1,0),FALSE),"0.00%"),_xlfn.NUMBERVALUE(VLOOKUP($C21,Compiled!$E$7:$CE$66,MATCH(AF$15,Compiled!$E$1:$CE$1,0),FALSE),"#,##0")) -> 17 | AG21: =IF(ISNUMBER(FIND("/",AG$15)),HLOOKUP(AG$15,Compiled!$F$1:$CC$65,MATCH($C21,Compiled!$E$1:$E$65,0),FALSE),HLOOKUP($C21,Compiled!$F$1:$CC$65,MATCH($C21,Compiled!$E$1:$E$65,0),FALSE)) -> 0.81 | AH21: =IF(AG21="0.00%","",IF(AG21<VLOOKUP(AF$16,'Dropdown control panel'!$B$76:$D$137,2,FALSE),AE21*VLOOKUP(AF$16,'Dropdown control panel'!$B$76:$D$137,2,FALSE)-AF21,"On Target")) -> On Target | AJ21: =IF(ISNUMBER(FIND("/",AJ$15)),TEXT(VLOOKUP($C21,Compiled!$E$7:$CE$66,MATCH(AJ$15,Compiled!$E$1:$CE$1,0),FALSE),"0.00%"),_xlfn.NUMBERVALUE(VLOOKUP($C21,Compiled!$E$7:$CE$66,MATCH(AJ$15,Compiled!$E$1:$CE$1,0),FALSE),"#,##0")) -> 4229 | AK21: =IF(ISNUMBER(FIND("/",AK$15)),TEXT(VLOOKUP($C21,Compiled!$E$7:$CE$66,MATCH(AK$15,Compiled!$E$1:$CE$1,0),FALSE),"0.00%"),_xlfn.NUMBERVALUE(VLOOKUP($C21,Compiled!$E$7:$CE$66,MATCH(AK$15,Compiled!$E$1:$CE$1,0),FALSE),"#,##0")) -> 386 | AL21: =IF(ISNUMBER(FIND("/",AL$15)),HLOOKUP(AL$15,Compiled!$F$1:$CC$65,MATCH($C21,Compiled!$E$1:$E$65,0),FALSE),HLOOKUP($C21,Compiled!$F$1:$CC$65,MATCH($C21,Compiled!$E$1:$E$65,0),FALSE)) -> 0.091 | AM21: =IF(AL21="0.00%","",IF(AL21<VLOOKUP(AK$16,'Dropdown control panel'!$B$76:$D$137,2,FALSE),AJ21*VLOOKUP(AK$16,'Dropdown control panel'!$B$76:$D$137,2,FALSE)-AK21,"On Target")) -> 1390.18 | AO21: =IF(ISNUMBER(FIND("/",AO$15)),TEXT(VLOOKUP($C21,Compiled!$E$7:$CE$66,MATCH(AO$15,Compiled!$E$1:$CE$1,0),FALSE),"0.00%"),_xlfn.NUMBERVALUE(VLOOKUP($C21,Compiled!$E$7:$CE$66,MATCH(AO$15,Compiled!$E$1:$CE$1,0),FALSE),"#,##0")) -> 36 | AP21: =IF(ISNUMBER(FIND("/",AP$15)),TEXT(VLOOKUP($C21,Compiled!$E$7:$CE$66,MATCH(AP$15,Compiled!$E$1:$CE$1,0),FALSE),"0.00%"),_xlfn.NUMBERVALUE(VLOOKUP($C21,Compiled!$E$7:$CE$66,MATCH(AP$15,Compiled!$E$1:$CE$1,0),FALSE),"#,##0")) -> 0 | AQ21: =IF(ISNUMBER(FIND("/",AQ$15)),HLOOKUP(AQ$15,Compiled!$F$1:$CC$65,MATCH($C21,Compiled!$E$1:$E$65,0),FALSE),HLOOKUP($C21,Compiled!$F$1:$CC$65,MATCH($C21,Compiled!$E$1:$E$65,0),FALSE)) -> 0 | AR21: =IF(AQ21="0.00%","",IF(AQ21<VLOOKUP(AP$16,'Dropdown control panel'!$B$76:$D$137,2,FALSE),AO21*VLOOKUP(AP$16,'Dropdown control panel'!$B$76:$D$137,2,FALSE)-AP21,"On Target")) -> 10.8 | AS21: =IF(ISNUMBER(FIND("/",AS$15)),TEXT(VLOOKUP($C21,Compiled!$E$7:$CE$66,MATCH(AS$15,Compiled!$E$1:$CE$1,0),FALSE),"0.00%"),_xlfn.NUMBERVALUE(VLOOKUP($C21,Compiled!$E$7:$CE$66,MATCH(AS$15,Compiled!$E$1:$CE$1,0),FALSE),"#,##0")) -> 0 | AT21: =IF(ISNUMBER(FIND("/",AT$15)),HLOOKUP(AT$15,Compiled!$F$1:$CC$65,MATCH($C21,Compiled!$E$1:$E$65,0),FALSE),HLOOKUP($C21,Compiled!$F$1:$CC$65,MATCH($C21,Compiled!$E$1:$E$65,0),FALSE)) -> 0.00% | AU21: =IF(AT21="0.00%","",IF(AT21<VLOOKUP(AS$16,'Dropdown control panel'!$B$76:$D$137,2,FALSE),AP21*VLOOKUP(AS$16,'Dropdown control panel'!$B$76:$D$137,2,FALSE)-AS21,"On Target")) ->  | AW21: =IF(ISNUMBER(FIND("/",AW$15)),TEXT(VLOOKUP($C21,Compiled!$E$7:$CE$66,MATCH(AW$15,Compiled!$E$1:$CE$1,0),FALSE),"0.00%"),_xlfn.NUMBERVALUE(VLOOKUP($C21,Compiled!$E$7:$CE$66,MATCH(AW$15,Compiled!$E$1:$CE$1,0),FALSE),"#,##0")) -> 648 | AX21: =IF(ISNUMBER(FIND("/",AX$15)),TEXT(VLOOKUP($C21,Compiled!$E$7:$CE$66,MATCH(AX$15,Compiled!$E$1:$CE$1,0),FALSE),"0.00%"),_xlfn.NUMBERVALUE(VLOOKUP($C21,Compiled!$E$7:$CE$66,MATCH(AX$15,Compiled!$E$1:$CE$1,0),FALSE),"#,##0")) -> 241 | AY21: =IF(ISNUMBER(FIND("/",AY$15)),HLOOKUP(AY$15,Compiled!$F$1:$CC$65,MATCH($C21,Compiled!$E$1:$E$65,0),FALSE),HLOOKUP($C21,Compiled!$F$1:$CC$65,MATCH($C21,Compiled!$E$1:$E$65,0),FALSE)) -> 0.372 | AZ21: =IF(AY21="0.00%","",IF(AY21<VLOOKUP(AX$16,'Dropdown control panel'!$B$76:$D$137,2,FALSE),AW21*VLOOKUP(AX$16,'Dropdown control panel'!$B$76:$D$137,2,FALSE)-AX21,"On Target")) -> 147.8 | BB21: =IF(ISNUMBER(FIND("/",BB$15)),TEXT(VLOOKUP($C21,Compiled!$E$7:$KA$66,MATCH(BB$15,Compiled!$E$1:$KA$1,0),FALSE),"0.00%"),_xlfn.NUMBERVALUE(VLOOKUP($C21,Compiled!$E$7:$KA$66,MATCH(BB$15,Compiled!$E$1:$KA$1,0),FALSE),"#,##0")) -> 325 | BC21: =IF(ISNUMBER(FIND("/",BC$15)),HLOOKUP(BC$15,Compiled!$F$1:$KA$65,MATCH($C21,Compiled!$E$1:$E$65,0),FALSE),HLOOKUP($C21,Compiled!$F$1:$KA$65,MATCH($C21,Compiled!$E$1:$E$65,0),FALSE)) -> 0.502 | BD21: =IF(BC21="0.00%","",IF(BC21<VLOOKUP(BB$16,'Dropdown control panel'!$B$76:$D$137,2,FALSE),AW21*VLOOKUP(BB$16,'Dropdown control panel'!$B$76:$D$137,2,FALSE)-BB21,"On Target")) -> 96.2 | BF21: =IF(ISNUMBER(FIND("/",BF$15)),TEXT(VLOOKUP($C21,Compiled!$E$7:$CE$66,MATCH(BF$15,Compiled!$E$1:$CE$1,0),FALSE),"0.00%"),_xlfn.NUMBERVALUE(VLOOKUP($C21,Compiled!$E$7:$CE$66,MATCH(BF$15,Compiled!$E$1:$CE$1,0),FALSE),"#,##0")) -> 2888 | BG21: =IF(ISNUMBER(FIND("/",BG$15)),TEXT(VLOOKUP($C21,Compiled!$E$7:$CE$66,MATCH(BG$15,Compiled!$E$1:$CE$1,0),FALSE),"0.00%"),_xlfn.NUMBERVALUE(VLOOKUP($C21,Compiled!$E$7:$CE$66,MATCH(BG$15,Compiled!$E$1:$CE$1,0),FALSE),"#,##0")) -> 1011 | BH21: =IF(ISNUMBER(FIND("/",BH$15)),HLOOKUP(BH$15,Compiled!$F$1:$CC$65,MATCH($C21,Compiled!$E$1:$E$65,0),FALSE),HLOOKUP($C21,Compiled!$F$1:$CC$65,MATCH($C21,Compiled!$E$1:$E$65,0),FALSE)) -> 0.35 | BI21: =IF(BH21="0.00%","",IF(BH21<VLOOKUP(BG$16,'Dropdown control panel'!$B$76:$D$137,2,FALSE),BF21*VLOOKUP(BG$16,'Dropdown control panel'!$B$76:$D$137,2,FALSE)-BG21,"On Target")) -> 1010.6 | BK21: =IF(ISNUMBER(FIND("/",BK$15)),TEXT(VLOOKUP($C21,Compiled!$E$7:$KH$66,MATCH(BK$15,Compiled!$E$1:$KH$1,0),FALSE),"0.00%"),_xlfn.NUMBERVALUE(VLOOKUP($C21,Compiled!$E$7:$KH$66,MATCH(BK$15,Compiled!$E$1:$KH$1,0),FALSE),"#,##0")) -> 370 | BL21: =IF(ISNUMBER(FIND("/",BL$15)),TEXT(VLOOKUP($C21,Compiled!$E$7:$KH$66,MATCH(BL$15,Compiled!$E$1:$KH$1,0),FALSE),"0.00%"),_xlfn.NUMBERVALUE(VLOOKUP($C21,Compiled!$E$7:$KH$66,MATCH(BL$15,Compiled!$E$1:$KH$1,0),FALSE),"#,##0")) -> 9 | BM21: =IF(ISNUMBER(FIND("/",BM$15)),HLOOKUP(BM$15,Compiled!$F$1:$KH$65,MATCH($C21,Compiled!$E$1:$E$65,0),FALSE),HLOOKUP($C21,Compiled!$F$1:$KH$65,MATCH($C21,Compiled!$E$1:$E$65,0),FALSE)) -> 0.024 | BN21: =IF(BM21="0.00%","",IF(BM21<VLOOKUP(BL$16,'Dropdown control panel'!$B$76:$D$137,2,FALSE),BK21*VLOOKUP(BL$16,'Dropdown control panel'!$B$76:$D$137,2,FALSE)-BL21,"On Target")) -> 250 | BO21: =IF(ISNUMBER(FIND("/",BO$15)),TEXT(VLOOKUP($C21,Compiled!$E$7:$KH$66,MATCH(BO$15,Compiled!$E$1:$KH$1,0),FALSE),"0.00%"),_xlfn.NUMBERVALUE(VLOOKUP($C21,Compiled!$E$7:$KH$66,MATCH(BO$15,Compiled!$E$1:$KH$1,0),FALSE),"#,##0")) -> 1654 | BP21: =IF(ISNUMBER(FIND("/",BP$15)),HLOOKUP(BP$15,Compiled!$F$1:$KH$65,MATCH($C21,Compiled!$E$1:$E$65,0),FALSE),HLOOKUP($C21,Compiled!$F$1:$KH$65,MATCH($C21,Compiled!$E$1:$E$65,0),FALSE)) -> 0.573 | BQ21: =IF(BP21="0.00%","",IF(BP21<VLOOKUP(BO$16,'Dropdown control panel'!$B$76:$D$137,2,FALSE),BF21*VLOOKUP(BO$16,'Dropdown control panel'!$B$76:$D$137,2,FALSE)-BO21,"On Target")) -> 367.6 | BR21: =IF(ISNUMBER(FIND("/",BR$15)),TEXT(VLOOKUP($C21,Compiled!$E$7:$KH$66,MATCH(BR$15,Compiled!$E$1:$KH$1,0),FALSE),"0.00%"),_xlfn.NUMBERVALUE(VLOOKUP($C21,Compiled!$E$7:$KH$66,MATCH(BR$15,Compiled!$E$1:$KH$1,0),FALSE),"#,##0")) -> 1459 | BS21: =IF(ISNUMBER(FIND("/",BS$15)),HLOOKUP(BS$15,Compiled!$F$1:$KH$65,MATCH($C21,Compiled!$E$1:$E$65,0),FALSE),HLOOKUP($C21,Compiled!$F$1:$KH$65,MATCH($C21,Compiled!$E$1:$E$65,0),FALSE)) -> 0.505 | BT21: =IF(BS21="0.00%","",IF(BS21<VLOOKUP(BR$16,'Dropdown control panel'!$B$76:$D$137,2,FALSE),BF21*VLOOKUP(BR$16,'Dropdown control panel'!$B$76:$D$137,2,FALSE)-BR21,"On Target")) -> 562.6 | BV21: =IF(ISNUMBER(FIND("/",BV$15)),TEXT(VLOOKUP($C21,Compiled!$E$7:$CE$66,MATCH(BV$15,Compiled!$E$1:$CE$1,0),FALSE),"0.00%"),_xlfn.NUMBERVALUE(VLOOKUP($C21,Compiled!$E$7:$CE$66,MATCH(BV$15,Compiled!$E$1:$CE$1,0),FALSE),"#,##0")) -> 1937 | BW21: =IF(ISNUMBER(FIND("/",BW$15)),TEXT(VLOOKUP($C21,Compiled!$E$7:$CE$66,MATCH(BW$15,Compiled!$E$1:$CE$1,0),FALSE),"0.00%"),_xlfn.NUMBERVALUE(VLOOKUP($C21,Compiled!$E$7:$CE$66,MATCH(BW$15,Compiled!$E$1:$CE$1,0),FALSE),"#,##0")) -> 130 | BX21: =IF(ISNUMBER(FIND("/",BX$15)),HLOOKUP(BX$15,Compiled!$F$1:$CC$65,MATCH($C21,Compiled!$E$1:$E$65,0),FALSE),HLOOKUP($C21,Compiled!$F$1:$CC$65,MATCH($C21,Compiled!$E$1:$E$65,0),FALSE)) -> 0.067 | BY21: =IF(BX21="0.00%","",IF(BX21<VLOOKUP(BW$16,'Dropdown control panel'!$B$76:$D$137,2,FALSE),BV21*VLOOKUP(BW$16,'Dropdown control panel'!$B$76:$D$137,2,FALSE)-BW21,"On Target")) -> 838.5 | CA21: =IF(ISNUMBER(FIND("/",CA$15)),TEXT(VLOOKUP($C21,Compiled!$E$7:$CE$66,MATCH(CA$15,Compiled!$E$1:$CE$1,0),FALSE),"0.00%"),_xlfn.NUMBERVALUE(VLOOKUP($C21,Compiled!$E$7:$CE$66,MATCH(CA$15,Compiled!$E$1:$CE$1,0),FALSE),"#,##0")) -> 1981 | CB21: =IF(ISNUMBER(FIND("/",CB$15)),TEXT(VLOOKUP($C21,Compiled!$E$7:$CE$66,MATCH(CB$15,Compiled!$E$1:$CE$1,0),FALSE),"0.00%"),_xlfn.NUMBERVALUE(VLOOKUP($C21,Compiled!$E$7:$CE$66,MATCH(CB$15,Compiled!$E$1:$CE$1,0),FALSE),"#,##0")) -> 93 | CC21: =IF(ISNUMBER(FIND("/",CC$15)),HLOOKUP(CC$15,Compiled!$F$1:$CC$65,MATCH($C21,Compiled!$E$1:$E$65,0),FALSE),HLOOKUP($C21,Compiled!$F$1:$CC$65,MATCH($C21,Compiled!$E$1:$E$65,0),FALSE)) -> 0.047 | CD21: =IF(CC21="0.00%","",IF(CC21<VLOOKUP(CB$16,'Dropdown control panel'!$B$76:$D$137,2,FALSE),CA21*VLOOKUP(CB$16,'Dropdown control panel'!$B$76:$D$137,2,FALSE)-CB21,"On Target")) -> 798.45 | CF21: =IF(ISNUMBER(FIND("/",CF$15)),TEXT(VLOOKUP($C21,Compiled!$E$7:$CE$66,MATCH(CF$15,Compiled!$E$1:$CE$1,0),FALSE),"0.00%"),_xlfn.NUMBERVALUE(VLOOKUP($C21,Compiled!$E$7:$CE$66,MATCH(CF$15,Compiled!$E$1:$CE$1,0),FALSE),"#,##0")) -> 6 | CG21: =IF(ISNUMBER(FIND("/",CG$15)),TEXT(VLOOKUP($C21,Compiled!$E$7:$CE$66,MATCH(CG$15,Compiled!$E$1:$CE$1,0),FALSE),"0.00%"),_xlfn.NUMBERVALUE(VLOOKUP($C21,Compiled!$E$7:$CE$66,MATCH(CG$15,Compiled!$E$1:$CE$1,0),FALSE),"#,##0")) -> 5 | CH21: =IF(ISNUMBER(FIND("/",CH$15)),HLOOKUP(CH$15,Compiled!$F$1:$CC$65,MATCH($C21,Compiled!$E$1:$E$65,0),FALSE),HLOOKUP($C21,Compiled!$F$1:$CC$65,MATCH($C21,Compiled!$E$1:$E$65,0),FALSE)) -> 0.833 | CI21: =IF(CH21="0.00%","",IF(CH21<VLOOKUP(CG$16,'Dropdown control panel'!$B$76:$D$137,2,FALSE),CF21*VLOOKUP(CG$16,'Dropdown control panel'!$B$76:$D$137,2,FALSE)-CG21,"On Target")) -> On Target | CJ21: =IF(ISNUMBER(FIND("/",CJ$15)),TEXT(VLOOKUP($C21,Compiled!$E$7:$CE$66,MATCH(CJ$15,Compiled!$E$1:$CE$1,0),FALSE),"0.00%"),_xlfn.NUMBERVALUE(VLOOKUP($C21,Compiled!$E$7:$CE$66,MATCH(CJ$15,Compiled!$E$1:$CE$1,0),FALSE),"#,##0")) -> 0 | CK21: =IF(ISNUMBER(FIND("/",CK$15)),HLOOKUP(CK$15,Compiled!$F$1:$CC$65,MATCH($C21,Compiled!$E$1:$E$65,0),FALSE),HLOOKUP($C21,Compiled!$F$1:$CC$65,MATCH($C21,Compiled!$E$1:$E$65,0),FALSE)) -> 0 | CL21: =IF(CK21="0.00%","",IF(CK21<VLOOKUP(CJ$16,'Dropdown control panel'!$B$76:$D$137,2,FALSE),CF21*VLOOKUP(CJ$16,'Dropdown control panel'!$B$76:$D$137,2,FALSE)-CJ21,"On Target")) -> 1.8 | CT21: =IF(ISNUMBER(FIND("/",CT$15)),TEXT(VLOOKUP($C21,Compiled!$E$7:$KT$66,MATCH(CT$15,Compiled!$E$1:$KT$1,0),FALSE),"0.00%"),_xlfn.NUMBERVALUE(VLOOKUP($C21,Compiled!$E$7:$KT$66,MATCH(CT$15,Compiled!$E$1:$KT$1,0),FALSE),"#,##0")) -> 0 | CU21: =IF(ISNUMBER(FIND("/",CU$15)),TEXT(VLOOKUP($C21,Compiled!$E$7:$KT$66,MATCH(CU$15,Compiled!$E$1:$KT$1,0),FALSE),"0.00%"),_xlfn.NUMBERVALUE(VLOOKUP($C21,Compiled!$E$7:$KT$66,MATCH(CU$15,Compiled!$E$1:$KT$1,0),FALSE),"#,##0")) -> 0 | CV21: =IF(ISNUMBER(FIND("/",CV$15)),HLOOKUP(CV$15,Compiled!$F$1:$KT$65,MATCH($C21,Compiled!$E$1:$E$65,0),FALSE),HLOOKUP($C21,Compiled!$F$1:$KT$65,MATCH($C21,Compiled!$E$1:$E$65,0),FALSE)) -> 0.00% | CW21: =IF(CV21="0.00%","",IF(CV21<VLOOKUP(CU$16,'Dropdown control panel'!$B$76:$D$140,2,FALSE),CT21*VLOOKUP(CU$16,'Dropdown control panel'!$B$76:$D$140,2,FALSE)-CU21,"On Target")) -> 
B22: =Compiled!D10 -> North East 1 | C22: =Compiled!E10 -> PCN4 | D22: =IF(ISNUMBER(FIND("/",D$15)),TEXT(VLOOKUP($C22,Compiled!$E$7:$CE$66,MATCH($D$15,Compiled!$E$1:$CE$1,0),FALSE),"0.00%"),_xlfn.NUMBERVALUE(VLOOKUP($C22,Compiled!$E$7:$CE$66,MATCH($D$15,Compiled!$E$1:$CE$1,0),FALSE),"#,##0")) -> 511 | E22: =IF(ISNUMBER(FIND("/",E$15)),TEXT(VLOOKUP($C22,Compiled!$E$7:$CE$66,MATCH($E$15,Compiled!$E$1:$CE$1,0),FALSE),"0.00%"),_xlfn.NUMBERVALUE(VLOOKUP($C22,Compiled!$E$7:$CE$66,MATCH($E$15,Compiled!$E$1:$CE$1,0),FALSE),"#,##0")) -> 295 | F22: =IF(ISNUMBER(FIND("/",$F$15)),HLOOKUP($F$15,Compiled!$F$1:$CC$65,MATCH($C22,Compiled!$E$1:$E$65,0),FALSE),HLOOKUP($C22,Compiled!$F$1:$CC$65,MATCH($C22,Compiled!$E$1:$E$65,0),FALSE)) -> 0.577 | G22: =IF($F22="0.00%","",IF($F22<VLOOKUP($E$16,'Dropdown control panel'!$B$76:$D$137,2,FALSE),$D22*VLOOKUP($E$16,'Dropdown control panel'!$B$76:$D$137,2,FALSE)-$E22,"On Target")) -> On Target | H22: =IF(ISNUMBER(FIND("/",H$15)),TEXT(VLOOKUP($C22,Compiled!$E$7:$CE$66,MATCH(H$15,Compiled!$E$1:$CE$1,0),FALSE),"0.00%"),_xlfn.NUMBERVALUE(VLOOKUP($C22,Compiled!$E$7:$CE$66,MATCH(H$15,Compiled!$E$1:$CE$1,0),FALSE),"#,##0")) -> 23 | I22: =IF(ISNUMBER(FIND("/",I$15)),TEXT(VLOOKUP($C22,Compiled!$E$7:$CE$66,MATCH(I$15,Compiled!$E$1:$CE$1,0),FALSE),"0.00%"),_xlfn.NUMBERVALUE(VLOOKUP($C22,Compiled!$E$7:$CE$66,MATCH(I$15,Compiled!$E$1:$CE$1,0),FALSE),"#,##0")) -> 7 | J22: =IF(ISNUMBER(FIND("/",J$15)),HLOOKUP(J$15,Compiled!$F$1:$CC$65,MATCH($C22,Compiled!$E$1:$E$65,0),FALSE),HLOOKUP($C22,Compiled!$F$1:$CC$65,MATCH($C22,Compiled!$E$1:$E$65,0),FALSE)) -> 0.304 | K22: =IF($J22="0.00%","",IF($J22<VLOOKUP($I$16,'Dropdown control panel'!$B$76:$D$137,2,FALSE),$H22*VLOOKUP($I$16,'Dropdown control panel'!$B$76:$D$137,2,FALSE)-$I22,"On Target")) -> 4.5 | L22: =IF(ISNUMBER(FIND("/",L$15)),TEXT(VLOOKUP($C22,Compiled!$E$7:$CE$66,MATCH(L$15,Compiled!$E$1:$CE$1,0),FALSE),"0.00%"),_xlfn.NUMBERVALUE(VLOOKUP($C22,Compiled!$E$7:$CE$66,MATCH(L$15,Compiled!$E$1:$CE$1,0),FALSE),"#,##0")) -> 5 | M22: =IF(ISNUMBER(FIND("/",M$15)),TEXT(VLOOKUP($C22,Compiled!$E$7:$CE$66,MATCH(M$15,Compiled!$E$1:$CE$1,0),FALSE),"0.00%"),_xlfn.NUMBERVALUE(VLOOKUP($C22,Compiled!$E$7:$CE$66,MATCH(M$15,Compiled!$E$1:$CE$1,0),FALSE),"#,##0")) -> 3 | N22: =IF(ISNUMBER(FIND("/",N$15)),HLOOKUP(N$15,Compiled!$F$1:$CC$65,MATCH($C22,Compiled!$E$1:$E$65,0),FALSE),HLOOKUP($C22,Compiled!$F$1:$CC$65,MATCH($C22,Compiled!$E$1:$E$65,0),FALSE)) -> 0.6 | O22: =IF(N22="0.00%","",IF(N22<VLOOKUP(M$16,'Dropdown control panel'!$B$76:$D$137,2,FALSE),L22*VLOOKUP(M$16,'Dropdown control panel'!$B$76:$D$137,2,FALSE)-M22,"On Target")) -> 0.25 | Q22: =IF(ISNUMBER(FIND("/",Q$15)),TEXT(VLOOKUP($C22,Compiled!$E$7:$KA$66,MATCH(Q$15,Compiled!$E$1:$KA$1,0),FALSE),"0.00%"),_xlfn.NUMBERVALUE(VLOOKUP($C22,Compiled!$E$7:$KA$66,MATCH(Q$15,Compiled!$E$1:$KA$1,0),FALSE),"#,##0")) -> 3 | R22: =IF(ISNUMBER(FIND("/",R$15)),TEXT(VLOOKUP($C22,Compiled!$E$7:$KA$66,MATCH(R$15,Compiled!$E$1:$KA$1,0),FALSE),"0.00%"),_xlfn.NUMBERVALUE(VLOOKUP($C22,Compiled!$E$7:$KA$66,MATCH(R$15,Compiled!$E$1:$KA$1,0),FALSE),"#,##0")) -> 0 | S22: =IF(ISNUMBER(FIND("/",S$15)),HLOOKUP(S$15,Compiled!$F$1:$CF$65,MATCH($C22,Compiled!$E$1:$E$65,0),FALSE),HLOOKUP($C22,Compiled!$F$1:$CF$65,MATCH($C22,Compiled!$E$1:$E$65,0),FALSE)) -> 0 | T22: =IF(S22="0.00%","",IF(S22<VLOOKUP(R$16,'Dropdown control panel'!$B$76:$D$143,2,FALSE),Q22*VLOOKUP(R$16,'Dropdown control panel'!$B$76:$E$143,2,FALSE)-R22,"On Target")) -> 2.4 | V22: =IF(ISNUMBER(FIND("/",V$15)),TEXT(VLOOKUP($C22,Compiled!$E$7:$CE$66,MATCH(V$15,Compiled!$E$1:$CE$1,0),FALSE),"0.00%"),_xlfn.NUMBERVALUE(VLOOKUP($C22,Compiled!$E$7:$CE$66,MATCH(V$15,Compiled!$E$1:$CE$1,0),FALSE),"#,##0")) -> 35 | W22: =IF(ISNUMBER(FIND("/",W$15)),TEXT(VLOOKUP($C22,Compiled!$E$7:$CE$66,MATCH(W$15,Compiled!$E$1:$CE$1,0),FALSE),"0.00%"),_xlfn.NUMBERVALUE(VLOOKUP($C22,Compiled!$E$7:$CE$66,MATCH(W$15,Compiled!$E$1:$CE$1,0),FALSE),"#,##0")) -> 32 | X22: =IF(ISNUMBER(FIND("/",X$15)),HLOOKUP(X$15,Compiled!$F$1:$CC$65,MATCH($C22,Compiled!$E$1:$E$65,0),FALSE),HLOOKUP($C22,Compiled!$F$1:$CC$65,MATCH($C22,Compiled!$E$1:$E$65,0),FALSE)) -> 0.914 | Y22: =IF(X22="0.00%","",IF(X22<VLOOKUP(W$16,'Dropdown control panel'!$B$76:$D$137,2,FALSE),V22*VLOOKUP(W$16,'Dropdown control panel'!$B$76:$D$137,2,FALSE)-W22,"On Target")) -> On Target | AA22: =IF(ISNUMBER(FIND("/",AA$15)),TEXT(VLOOKUP($C22,Compiled!$E$7:$CE$66,MATCH(AA$15,Compiled!$E$1:$CE$1,0),FALSE),"0.00%"),_xlfn.NUMBERVALUE(VLOOKUP($C22,Compiled!$E$7:$CE$66,MATCH(AA$15,Compiled!$E$1:$CE$1,0),FALSE),"#,##0")) -> 23 | AB22: =IF(ISNUMBER(FIND("/",AB$15)),TEXT(VLOOKUP($C22,Compiled!$E$7:$CE$66,MATCH(AB$15,Compiled!$E$1:$CE$1,0),FALSE),"0.00%"),_xlfn.NUMBERVALUE(VLOOKUP($C22,Compiled!$E$7:$CE$66,MATCH(AB$15,Compiled!$E$1:$CE$1,0),FALSE),"#,##0")) -> 9 | AC22: =IF(ISNUMBER(FIND("/",AC$15)),HLOOKUP(AC$15,Compiled!$F$1:$CC$65,MATCH($C22,Compiled!$E$1:$E$65,0),FALSE),HLOOKUP($C22,Compiled!$F$1:$CC$65,MATCH($C22,Compiled!$E$1:$E$65,0),FALSE)) -> 0.391 | AD22: =IF(AC22="0.00%","",IF(AC22<VLOOKUP(AB$16,'Dropdown control panel'!$B$76:$D$137,2,FALSE),AA22*VLOOKUP(AB$16,'Dropdown control panel'!$B$76:$D$137,2,FALSE)-AB22,"On Target")) ->  | AE22: =IF(ISNUMBER(FIND("/",AE$15)),TEXT(VLOOKUP($C22,Compiled!$E$7:$CE$66,MATCH(AE$15,Compiled!$E$1:$CE$1,0),FALSE),"0.00%"),_xlfn.NUMBERVALUE(VLOOKUP($C22,Compiled!$E$7:$CE$66,MATCH(AE$15,Compiled!$E$1:$CE$1,0),FALSE),"#,##0")) -> 62 | AF22: =IF(ISNUMBER(FIND("/",AF$15)),TEXT(VLOOKUP($C22,Compiled!$E$7:$CE$66,MATCH(AF$15,Compiled!$E$1:$CE$1,0),FALSE),"0.00%"),_xlfn.NUMBERVALUE(VLOOKUP($C22,Compiled!$E$7:$CE$66,MATCH(AF$15,Compiled!$E$1:$CE$1,0),FALSE),"#,##0")) -> 58 | AG22: =IF(ISNUMBER(FIND("/",AG$15)),HLOOKUP(AG$15,Compiled!$F$1:$CC$65,MATCH($C22,Compiled!$E$1:$E$65,0),FALSE),HLOOKUP($C22,Compiled!$F$1:$CC$65,MATCH($C22,Compiled!$E$1:$E$65,0),FALSE)) -> 0.935 | AH22: =IF(AG22="0.00%","",IF(AG22<VLOOKUP(AF$16,'Dropdown control panel'!$B$76:$D$137,2,FALSE),AE22*VLOOKUP(AF$16,'Dropdown control panel'!$B$76:$D$137,2,FALSE)-AF22,"On Target")) -> On Target | AJ22: =IF(ISNUMBER(FIND("/",AJ$15)),TEXT(VLOOKUP($C22,Compiled!$E$7:$CE$66,MATCH(AJ$15,Compiled!$E$1:$CE$1,0),FALSE),"0.00%"),_xlfn.NUMBERVALUE(VLOOKUP($C22,Compiled!$E$7:$CE$66,MATCH(AJ$15,Compiled!$E$1:$CE$1,0),FALSE),"#,##0")) -> 4259 | AK22: =IF(ISNUMBER(FIND("/",AK$15)),TEXT(VLOOKUP($C22,Compiled!$E$7:$CE$66,MATCH(AK$15,Compiled!$E$1:$CE$1,0),FALSE),"0.00%"),_xlfn.NUMBERVALUE(VLOOKUP($C22,Compiled!$E$7:$CE$66,MATCH(AK$15,Compiled!$E$1:$CE$1,0),FALSE),"#,##0")) -> 983 | AL22: =IF(ISNUMBER(FIND("/",AL$15)),HLOOKUP(AL$15,Compiled!$F$1:$CC$65,MATCH($C22,Compiled!$E$1:$E$65,0),FALSE),HLOOKUP($C22,Compiled!$F$1:$CC$65,MATCH($C22,Compiled!$E$1:$E$65,0),FALSE)) -> 0.231 | AM22: =IF(AL22="0.00%","",IF(AL22<VLOOKUP(AK$16,'Dropdown control panel'!$B$76:$D$137,2,FALSE),AJ22*VLOOKUP(AK$16,'Dropdown control panel'!$B$76:$D$137,2,FALSE)-AK22,"On Target")) -> 805.78 | AO22: =IF(ISNUMBER(FIND("/",AO$15)),TEXT(VLOOKUP($C22,Compiled!$E$7:$CE$66,MATCH(AO$15,Compiled!$E$1:$CE$1,0),FALSE),"0.00%"),_xlfn.NUMBERVALUE(VLOOKUP($C22,Compiled!$E$7:$CE$66,MATCH(AO$15,Compiled!$E$1:$CE$1,0),FALSE),"#,##0")) -> 22 | AP22: =IF(ISNUMBER(FIND("/",AP$15)),TEXT(VLOOKUP($C22,Compiled!$E$7:$CE$66,MATCH(AP$15,Compiled!$E$1:$CE$1,0),FALSE),"0.00%"),_xlfn.NUMBERVALUE(VLOOKUP($C22,Compiled!$E$7:$CE$66,MATCH(AP$15,Compiled!$E$1:$CE$1,0),FALSE),"#,##0")) -> 0 | AQ22: =IF(ISNUMBER(FIND("/",AQ$15)),HLOOKUP(AQ$15,Compiled!$F$1:$CC$65,MATCH($C22,Compiled!$E$1:$E$65,0),FALSE),HLOOKUP($C22,Compiled!$F$1:$CC$65,MATCH($C22,Compiled!$E$1:$E$65,0),FALSE)) -> 0 | AR22: =IF(AQ22="0.00%","",IF(AQ22<VLOOKUP(AP$16,'Dropdown control panel'!$B$76:$D$137,2,FALSE),AO22*VLOOKUP(AP$16,'Dropdown control panel'!$B$76:$D$137,2,FALSE)-AP22,"On Target")) -> 6.6 | AS22: =IF(ISNUMBER(FIND("/",AS$15)),TEXT(VLOOKUP($C22,Compiled!$E$7:$CE$66,MATCH(AS$15,Compiled!$E$1:$CE$1,0),FALSE),"0.00%"),_xlfn.NUMBERVALUE(VLOOKUP($C22,Compiled!$E$7:$CE$66,MATCH(AS$15,Compiled!$E$1:$CE$1,0),FALSE),"#,##0")) -> 0 | AT22: =IF(ISNUMBER(FIND("/",AT$15)),HLOOKUP(AT$15,Compiled!$F$1:$CC$65,MATCH($C22,Compiled!$E$1:$E$65,0),FALSE),HLOOKUP($C22,Compiled!$F$1:$CC$65,MATCH($C22,Compiled!$E$1:$E$65,0),FALSE)) -> 0.00% | AU22: =IF(AT22="0.00%","",IF(AT22<VLOOKUP(AS$16,'Dropdown control panel'!$B$76:$D$137,2,FALSE),AP22*VLOOKUP(AS$16,'Dropdown control panel'!$B$76:$D$137,2,FALSE)-AS22,"On Target")) ->  | AW22: =IF(ISNUMBER(FIND("/",AW$15)),TEXT(VLOOKUP($C22,Compiled!$E$7:$CE$66,MATCH(AW$15,Compiled!$E$1:$CE$1,0),FALSE),"0.00%"),_xlfn.NUMBERVALUE(VLOOKUP($C22,Compiled!$E$7:$CE$66,MATCH(AW$15,Compiled!$E$1:$CE$1,0),FALSE),"#,##0")) -> 496 | AX22: =IF(ISNUMBER(FIND("/",AX$15)),TEXT(VLOOKUP($C22,Compiled!$E$7:$CE$66,MATCH(AX$15,Compiled!$E$1:$CE$1,0),FALSE),"0.00%"),_xlfn.NUMBERVALUE(VLOOKUP($C22,Compiled!$E$7:$CE$66,MATCH(AX$15,Compiled!$E$1:$CE$1,0),FALSE),"#,##0")) -> 252 | AY22: =IF(ISNUMBER(FIND("/",AY$15)),HLOOKUP(AY$15,Compiled!$F$1:$CC$65,MATCH($C22,Compiled!$E$1:$E$65,0),FALSE),HLOOKUP($C22,Compiled!$F$1:$CC$65,MATCH($C22,Compiled!$E$1:$E$65,0),FALSE)) -> 0.508 | AZ22: =IF(AY22="0.00%","",IF(AY22<VLOOKUP(AX$16,'Dropdown control panel'!$B$76:$D$137,2,FALSE),AW22*VLOOKUP(AX$16,'Dropdown control panel'!$B$76:$D$137,2,FALSE)-AX22,"On Target")) -> 45.6 | BB22: =IF(ISNUMBER(FIND("/",BB$15)),TEXT(VLOOKUP($C22,Compiled!$E$7:$KA$66,MATCH(BB$15,Compiled!$E$1:$KA$1,0),FALSE),"0.00%"),_xlfn.NUMBERVALUE(VLOOKUP($C22,Compiled!$E$7:$KA$66,MATCH(BB$15,Compiled!$E$1:$KA$1,0),FALSE),"#,##0")) -> 302 | BC22: =IF(ISNUMBER(FIND("/",BC$15)),HLOOKUP(BC$15,Compiled!$F$1:$KA$65,MATCH($C22,Compiled!$E$1:$E$65,0),FALSE),HLOOKUP($C22,Compiled!$F$1:$KA$65,MATCH($C22,Compiled!$E$1:$E$65,0),FALSE)) -> 0.609 | BD22: =IF(BC22="0.00%","",IF(BC22<VLOOKUP(BB$16,'Dropdown control panel'!$B$76:$D$137,2,FALSE),AW22*VLOOKUP(BB$16,'Dropdown control panel'!$B$76:$D$137,2,FALSE)-BB22,"On Target")) -> 20.4 | BF22: =IF(ISNUMBER(FIND("/",BF$15)),TEXT(VLOOKUP($C22,Compiled!$E$7:$CE$66,MATCH(BF$15,Compiled!$E$1:$CE$1,0),FALSE),"0.00%"),_xlfn.NUMBERVALUE(VLOOKUP($C22,Compiled!$E$7:$CE$66,MATCH(BF$15,Compiled!$E$1:$CE$1,0),FALSE),"#,##0")) -> 3242 | BG22: =IF(ISNUMBER(FIND("/",BG$15)),TEXT(VLOOKUP($C22,Compiled!$E$7:$CE$66,MATCH(BG$15,Compiled!$E$1:$CE$1,0),FALSE),"0.00%"),_xlfn.NUMBERVALUE(VLOOKUP($C22,Compiled!$E$7:$CE$66,MATCH(BG$15,Compiled!$E$1:$CE$1,0),FALSE),"#,##0")) -> 1536 | BH22: =IF(ISNUMBER(FIND("/",BH$15)),HLOOKUP(BH$15,Compiled!$F$1:$CC$65,MATCH($C22,Compiled!$E$1:$E$65,0),FALSE),HLOOKUP($C22,Compiled!$F$1:$CC$65,MATCH($C22,Compiled!$E$1:$E$65,0),FALSE)) -> 0.474 | BI22: =IF(BH22="0.00%","",IF(BH22<VLOOKUP(BG$16,'Dropdown control panel'!$B$76:$D$137,2,FALSE),BF22*VLOOKUP(BG$16,'Dropdown control panel'!$B$76:$D$137,2,FALSE)-BG22,"On Target")) -> 733.4 | BK22: =IF(ISNUMBER(FIND("/",BK$15)),TEXT(VLOOKUP($C22,Compiled!$E$7:$KH$66,MATCH(BK$15,Compiled!$E$1:$KH$1,0),FALSE),"0.00%"),_xlfn.NUMBERVALUE(VLOOKUP($C22,Compiled!$E$7:$KH$66,MATCH(BK$15,Compiled!$E$1:$KH$1,0),FALSE),"#,##0")) -> 404 | BL22: =IF(ISNUMBER(FIND("/",BL$15)),TEXT(VLOOKUP($C22,Compiled!$E$7:$KH$66,MATCH(BL$15,Compiled!$E$1:$KH$1,0),FALSE),"0.00%"),_xlfn.NUMBERVALUE(VLOOKUP($C22,Compiled!$E$7:$KH$66,MATCH(BL$15,Compiled!$E$1:$KH$1,0),FALSE),"#,##0")) -> 33 | BM22: =IF(ISNUMBER(FIND("/",BM$15)),HLOOKUP(BM$15,Compiled!$F$1:$KH$65,MATCH($C22,Compiled!$E$1:$E$65,0),FALSE),HLOOKUP($C22,Compiled!$F$1:$KH$65,MATCH($C22,Compiled!$E$1:$E$65,0),FALSE)) -> 0.082 | BN22: =IF(BM22="0.00%","",IF(BM22<VLOOKUP(BL$16,'Dropdown control panel'!$B$76:$D$137,2,FALSE),BK22*VLOOKUP(BL$16,'Dropdown control panel'!$B$76:$D$137,2,FALSE)-BL22,"On Target")) -> 249.8 | BO22: =IF(ISNUMBER(FIND("/",BO$15)),TEXT(VLOOKUP($C22,Compiled!$E$7:$KH$66,MATCH(BO$15,Compiled!$E$1:$KH$1,0),FALSE),"0.00%"),_xlfn.NUMBERVALUE(VLOOKUP($C22,Compiled!$E$7:$KH$66,MATCH(BO$15,Compiled!$E$1:$KH$1,0),FALSE),"#,##0")) -> 2257 | BP22: =IF(ISNUMBER(FIND("/",BP$15)),HLOOKUP(BP$15,Compiled!$F$1:$KH$65,MATCH($C22,Compiled!$E$1:$E$65,0),FALSE),HLOOKUP($C22,Compiled!$F$1:$KH$65,MATCH($C22,Compiled!$E$1:$E$65,0),FALSE)) -> 0.696 | BQ22: =IF(BP22="0.00%","",IF(BP22<VLOOKUP(BO$16,'Dropdown control panel'!$B$76:$D$137,2,FALSE),BF22*VLOOKUP(BO$16,'Dropdown control panel'!$B$76:$D$137,2,FALSE)-BO22,"On Target")) -> 12.4 | BR22: =IF(ISNUMBER(FIND("/",BR$15)),TEXT(VLOOKUP($C22,Compiled!$E$7:$KH$66,MATCH(BR$15,Compiled!$E$1:$KH$1,0),FALSE),"0.00%"),_xlfn.NUMBERVALUE(VLOOKUP($C22,Compiled!$E$7:$KH$66,MATCH(BR$15,Compiled!$E$1:$KH$1,0),FALSE),"#,##0")) -> 1895 | BS22: =IF(ISNUMBER(FIND("/",BS$15)),HLOOKUP(BS$15,Compiled!$F$1:$KH$65,MATCH($C22,Compiled!$E$1:$E$65,0),FALSE),HLOOKUP($C22,Compiled!$F$1:$KH$65,MATCH($C22,Compiled!$E$1:$E$65,0),FALSE)) -> 0.585 | BT22: =IF(BS22="0.00%","",IF(BS22<VLOOKUP(BR$16,'Dropdown control panel'!$B$76:$D$137,2,FALSE),BF22*VLOOKUP(BR$16,'Dropdown control panel'!$B$76:$D$137,2,FALSE)-BR22,"On Target")) -> 374.4 | BV22: =IF(ISNUMBER(FIND("/",BV$15)),TEXT(VLOOKUP($C22,Compiled!$E$7:$CE$66,MATCH(BV$15,Compiled!$E$1:$CE$1,0),FALSE),"0.00%"),_xlfn.NUMBERVALUE(VLOOKUP($C22,Compiled!$E$7:$CE$66,MATCH(BV$15,Compiled!$E$1:$CE$1,0),FALSE),"#,##0")) -> 1148 | BW22: =IF(ISNUMBER(FIND("/",BW$15)),TEXT(VLOOKUP($C22,Compiled!$E$7:$CE$66,MATCH(BW$15,Compiled!$E$1:$CE$1,0),FALSE),"0.00%"),_xlfn.NUMBERVALUE(VLOOKUP($C22,Compiled!$E$7:$CE$66,MATCH(BW$15,Compiled!$E$1:$CE$1,0),FALSE),"#,##0")) -> 1030 | BX22: =IF(ISNUMBER(FIND("/",BX$15)),HLOOKUP(BX$15,Compiled!$F$1:$CC$65,MATCH($C22,Compiled!$E$1:$E$65,0),FALSE),HLOOKUP($C22,Compiled!$F$1:$CC$65,MATCH($C22,Compiled!$E$1:$E$65,0),FALSE)) -> 0.897 | BY22: =IF(BX22="0.00%","",IF(BX22<VLOOKUP(BW$16,'Dropdown control panel'!$B$76:$D$137,2,FALSE),BV22*VLOOKUP(BW$16,'Dropdown control panel'!$B$76:$D$137,2,FALSE)-BW22,"On Target")) -> On Target | CA22: =IF(ISNUMBER(FIND("/",CA$15)),TEXT(VLOOKUP($C22,Compiled!$E$7:$CE$66,MATCH(CA$15,Compiled!$E$1:$CE$1,0),FALSE),"0.00%"),_xlfn.NUMBERVALUE(VLOOKUP($C22,Compiled!$E$7:$CE$66,MATCH(CA$15,Compiled!$E$1:$CE$1,0),FALSE),"#,##0")) -> 1431 | CB22: =IF(ISNUMBER(FIND("/",CB$15)),TEXT(VLOOKUP($C22,Compiled!$E$7:$CE$66,MATCH(CB$15,Compiled!$E$1:$CE$1,0),FALSE),"0.00%"),_xlfn.NUMBERVALUE(VLOOKUP($C22,Compiled!$E$7:$CE$66,MATCH(CB$15,Compiled!$E$1:$CE$1,0),FALSE),"#,##0")) -> 644 | CC22: =IF(ISNUMBER(FIND("/",CC$15)),HLOOKUP(CC$15,Compiled!$F$1:$CC$65,MATCH($C22,Compiled!$E$1:$E$65,0),FALSE),HLOOKUP($C22,Compiled!$F$1:$CC$65,MATCH($C22,Compiled!$E$1:$E$65,0),FALSE)) -> 0.45 | CD22: =IF(CC22="0.00%","",IF(CC22<VLOOKUP(CB$16,'Dropdown control panel'!$B$76:$D$137,2,FALSE),CA22*VLOOKUP(CB$16,'Dropdown control panel'!$B$76:$D$137,2,FALSE)-CB22,"On Target")) -> On Target | CF22: =IF(ISNUMBER(FIND("/",CF$15)),TEXT(VLOOKUP($C22,Compiled!$E$7:$CE$66,MATCH(CF$15,Compiled!$E$1:$CE$1,0),FALSE),"0.00%"),_xlfn.NUMBERVALUE(VLOOKUP($C22,Compiled!$E$7:$CE$66,MATCH(CF$15,Compiled!$E$1:$CE$1,0),FALSE),"#,##0")) -> 41 | CG22: =IF(ISNUMBER(FIND("/",CG$15)),TEXT(VLOOKUP($C22,Compiled!$E$7:$CE$66,MATCH(CG$15,Compiled!$E$1:$CE$1,0),FALSE),"0.00%"),_xlfn.NUMBERVALUE(VLOOKUP($C22,Compiled!$E$7:$CE$66,MATCH(CG$15,Compiled!$E$1:$CE$1,0),FALSE),"#,##0")) -> 27 | CH22: =IF(ISNUMBER(FIND("/",CH$15)),HLOOKUP(CH$15,Compiled!$F$1:$CC$65,MATCH($C22,Compiled!$E$1:$E$65,0),FALSE),HLOOKUP($C22,Compiled!$F$1:$CC$65,MATCH($C22,Compiled!$E$1:$E$65,0),FALSE)) -> 0.659 | CI22: =IF(CH22="0.00%","",IF(CH22<VLOOKUP(CG$16,'Dropdown control panel'!$B$76:$D$137,2,FALSE),CF22*VLOOKUP(CG$16,'Dropdown control panel'!$B$76:$D$137,2,FALSE)-CG22,"On Target")) -> On Target | CJ22: =IF(ISNUMBER(FIND("/",CJ$15)),TEXT(VLOOKUP($C22,Compiled!$E$7:$CE$66,MATCH(CJ$15,Compiled!$E$1:$CE$1,0),FALSE),"0.00%"),_xlfn.NUMBERVALUE(VLOOKUP($C22,Compiled!$E$7:$CE$66,MATCH(CJ$15,Compiled!$E$1:$CE$1,0),FALSE),"#,##0")) -> 17 | CK22: =IF(ISNUMBER(FIND("/",CK$15)),HLOOKUP(CK$15,Compiled!$F$1:$CC$65,MATCH($C22,Compiled!$E$1:$E$65,0),FALSE),HLOOKUP($C22,Compiled!$F$1:$CC$65,MATCH($C22,Compiled!$E$1:$E$65,0),FALSE)) -> 0.415 | CL22: =IF(CK22="0.00%","",IF(CK22<VLOOKUP(CJ$16,'Dropdown control panel'!$B$76:$D$137,2,FALSE),CF22*VLOOKUP(CJ$16,'Dropdown control panel'!$B$76:$D$137,2,FALSE)-CJ22,"On Target")) -> On Target | CT22: =IF(ISNUMBER(FIND("/",CT$15)),TEXT(VLOOKUP($C22,Compiled!$E$7:$KT$66,MATCH(CT$15,Compiled!$E$1:$KT$1,0),FALSE),"0.00%"),_xlfn.NUMBERVALUE(VLOOKUP($C22,Compiled!$E$7:$KT$66,MATCH(CT$15,Compiled!$E$1:$KT$1,0),FALSE),"#,##0")) -> 0 | CU22: =IF(ISNUMBER(FIND("/",CU$15)),TEXT(VLOOKUP($C22,Compiled!$E$7:$KT$66,MATCH(CU$15,Compiled!$E$1:$KT$1,0),FALSE),"0.00%"),_xlfn.NUMBERVALUE(VLOOKUP($C22,Compiled!$E$7:$KT$66,MATCH(CU$15,Compiled!$E$1:$KT$1,0),FALSE),"#,##0")) -> 0 | CV22: =IF(ISNUMBER(FIND("/",CV$15)),HLOOKUP(CV$15,Compiled!$F$1:$KT$65,MATCH($C22,Compiled!$E$1:$E$65,0),FALSE),HLOOKUP($C22,Compiled!$F$1:$KT$65,MATCH($C22,Compiled!$E$1:$E$65,0),FALSE)) -> 0.00% | CW22: =IF(CV22="0.00%","",IF(CV22<VLOOKUP(CU$16,'Dropdown control panel'!$B$76:$D$140,2,FALSE),CT22*VLOOKUP(CU$16,'Dropdown control panel'!$B$76:$D$140,2,FALSE)-CU22,"On Target")) -> 
B23: =Compiled!D11 -> North East 2 | C23: =Compiled!E11 -> PCN5 | D23: =IF(ISNUMBER(FIND("/",D$15)),TEXT(VLOOKUP($C23,Compiled!$E$7:$CE$66,MATCH($D$15,Compiled!$E$1:$CE$1,0),FALSE),"0.00%"),_xlfn.NUMBERVALUE(VLOOKUP($C23,Compiled!$E$7:$CE$66,MATCH($D$15,Compiled!$E$1:$CE$1,0),FALSE),"#,##0")) -> 800 | E23: =IF(ISNUMBER(FIND("/",E$15)),TEXT(VLOOKUP($C23,Compiled!$E$7:$CE$66,MATCH($E$15,Compiled!$E$1:$CE$1,0),FALSE),"0.00%"),_xlfn.NUMBERVALUE(VLOOKUP($C23,Compiled!$E$7:$CE$66,MATCH($E$15,Compiled!$E$1:$CE$1,0),FALSE),"#,##0")) -> 288 | F23: =IF(ISNUMBER(FIND("/",$F$15)),HLOOKUP($F$15,Compiled!$F$1:$CC$65,MATCH($C23,Compiled!$E$1:$E$65,0),FALSE),HLOOKUP($C23,Compiled!$F$1:$CC$65,MATCH($C23,Compiled!$E$1:$E$65,0),FALSE)) -> 0.36 | G23: =IF($F23="0.00%","",IF($F23<VLOOKUP($E$16,'Dropdown control panel'!$B$76:$D$137,2,FALSE),$D23*VLOOKUP($E$16,'Dropdown control panel'!$B$76:$D$137,2,FALSE)-$E23,"On Target")) -> 152 | H23: =IF(ISNUMBER(FIND("/",H$15)),TEXT(VLOOKUP($C23,Compiled!$E$7:$CE$66,MATCH(H$15,Compiled!$E$1:$CE$1,0),FALSE),"0.00%"),_xlfn.NUMBERVALUE(VLOOKUP($C23,Compiled!$E$7:$CE$66,MATCH(H$15,Compiled!$E$1:$CE$1,0),FALSE),"#,##0")) -> 32 | I23: =IF(ISNUMBER(FIND("/",I$15)),TEXT(VLOOKUP($C23,Compiled!$E$7:$CE$66,MATCH(I$15,Compiled!$E$1:$CE$1,0),FALSE),"0.00%"),_xlfn.NUMBERVALUE(VLOOKUP($C23,Compiled!$E$7:$CE$66,MATCH(I$15,Compiled!$E$1:$CE$1,0),FALSE),"#,##0")) -> 14 | J23: =IF(ISNUMBER(FIND("/",J$15)),HLOOKUP(J$15,Compiled!$F$1:$CC$65,MATCH($C23,Compiled!$E$1:$E$65,0),FALSE),HLOOKUP($C23,Compiled!$F$1:$CC$65,MATCH($C23,Compiled!$E$1:$E$65,0),FALSE)) -> 0.438 | K23: =IF($J23="0.00%","",IF($J23<VLOOKUP($I$16,'Dropdown control panel'!$B$76:$D$137,2,FALSE),$H23*VLOOKUP($I$16,'Dropdown control panel'!$B$76:$D$137,2,FALSE)-$I23,"On Target")) -> 2 | L23: =IF(ISNUMBER(FIND("/",L$15)),TEXT(VLOOKUP($C23,Compiled!$E$7:$CE$66,MATCH(L$15,Compiled!$E$1:$CE$1,0),FALSE),"0.00%"),_xlfn.NUMBERVALUE(VLOOKUP($C23,Compiled!$E$7:$CE$66,MATCH(L$15,Compiled!$E$1:$CE$1,0),FALSE),"#,##0")) -> 8 | M23: =IF(ISNUMBER(FIND("/",M$15)),TEXT(VLOOKUP($C23,Compiled!$E$7:$CE$66,MATCH(M$15,Compiled!$E$1:$CE$1,0),FALSE),"0.00%"),_xlfn.NUMBERVALUE(VLOOKUP($C23,Compiled!$E$7:$CE$66,MATCH(M$15,Compiled!$E$1:$CE$1,0),FALSE),"#,##0")) -> 4 | N23: =IF(ISNUMBER(FIND("/",N$15)),HLOOKUP(N$15,Compiled!$F$1:$CC$65,MATCH($C23,Compiled!$E$1:$E$65,0),FALSE),HLOOKUP($C23,Compiled!$F$1:$CC$65,MATCH($C23,Compiled!$E$1:$E$65,0),FALSE)) -> 0.5 | O23: =IF(N23="0.00%","",IF(N23<VLOOKUP(M$16,'Dropdown control panel'!$B$76:$D$137,2,FALSE),L23*VLOOKUP(M$16,'Dropdown control panel'!$B$76:$D$137,2,FALSE)-M23,"On Target")) -> 1.2 | Q23: =IF(ISNUMBER(FIND("/",Q$15)),TEXT(VLOOKUP($C23,Compiled!$E$7:$KA$66,MATCH(Q$15,Compiled!$E$1:$KA$1,0),FALSE),"0.00%"),_xlfn.NUMBERVALUE(VLOOKUP($C23,Compiled!$E$7:$KA$66,MATCH(Q$15,Compiled!$E$1:$KA$1,0),FALSE),"#,##0")) -> 0 | R23: =IF(ISNUMBER(FIND("/",R$15)),TEXT(VLOOKUP($C23,Compiled!$E$7:$KA$66,MATCH(R$15,Compiled!$E$1:$KA$1,0),FALSE),"0.00%"),_xlfn.NUMBERVALUE(VLOOKUP($C23,Compiled!$E$7:$KA$66,MATCH(R$15,Compiled!$E$1:$KA$1,0),FALSE),"#,##0")) -> 0 | S23: =IF(ISNUMBER(FIND("/",S$15)),HLOOKUP(S$15,Compiled!$F$1:$CF$65,MATCH($C23,Compiled!$E$1:$E$65,0),FALSE),HLOOKUP($C23,Compiled!$F$1:$CF$65,MATCH($C23,Compiled!$E$1:$E$65,0),FALSE)) -> 0.00% | T23: =IF(S23="0.00%","",IF(S23<VLOOKUP(R$16,'Dropdown control panel'!$B$76:$D$143,2,FALSE),Q23*VLOOKUP(R$16,'Dropdown control panel'!$B$76:$E$143,2,FALSE)-R23,"On Target")) ->  | V23: =IF(ISNUMBER(FIND("/",V$15)),TEXT(VLOOKUP($C23,Compiled!$E$7:$CE$66,MATCH(V$15,Compiled!$E$1:$CE$1,0),FALSE),"0.00%"),_xlfn.NUMBERVALUE(VLOOKUP($C23,Compiled!$E$7:$CE$66,MATCH(V$15,Compiled!$E$1:$CE$1,0),FALSE),"#,##0")) -> 17 | W23: =IF(ISNUMBER(FIND("/",W$15)),TEXT(VLOOKUP($C23,Compiled!$E$7:$CE$66,MATCH(W$15,Compiled!$E$1:$CE$1,0),FALSE),"0.00%"),_xlfn.NUMBERVALUE(VLOOKUP($C23,Compiled!$E$7:$CE$66,MATCH(W$15,Compiled!$E$1:$CE$1,0),FALSE),"#,##0")) -> 16 | X23: =IF(ISNUMBER(FIND("/",X$15)),HLOOKUP(X$15,Compiled!$F$1:$CC$65,MATCH($C23,Compiled!$E$1:$E$65,0),FALSE),HLOOKUP($C23,Compiled!$F$1:$CC$65,MATCH($C23,Compiled!$E$1:$E$65,0),FALSE)) -> 0.941 | Y23: =IF(X23="0.00%","",IF(X23<VLOOKUP(W$16,'Dropdown control panel'!$B$76:$D$137,2,FALSE),V23*VLOOKUP(W$16,'Dropdown control panel'!$B$76:$D$137,2,FALSE)-W23,"On Target")) -> On Target | AA23: =IF(ISNUMBER(FIND("/",AA$15)),TEXT(VLOOKUP($C23,Compiled!$E$7:$CE$66,MATCH(AA$15,Compiled!$E$1:$CE$1,0),FALSE),"0.00%"),_xlfn.NUMBERVALUE(VLOOKUP($C23,Compiled!$E$7:$CE$66,MATCH(AA$15,Compiled!$E$1:$CE$1,0),FALSE),"#,##0")) -> 36 | AB23: =IF(ISNUMBER(FIND("/",AB$15)),TEXT(VLOOKUP($C23,Compiled!$E$7:$CE$66,MATCH(AB$15,Compiled!$E$1:$CE$1,0),FALSE),"0.00%"),_xlfn.NUMBERVALUE(VLOOKUP($C23,Compiled!$E$7:$CE$66,MATCH(AB$15,Compiled!$E$1:$CE$1,0),FALSE),"#,##0")) -> 5 | AC23: =IF(ISNUMBER(FIND("/",AC$15)),HLOOKUP(AC$15,Compiled!$F$1:$CC$65,MATCH($C23,Compiled!$E$1:$E$65,0),FALSE),HLOOKUP($C23,Compiled!$F$1:$CC$65,MATCH($C23,Compiled!$E$1:$E$65,0),FALSE)) -> 0.139 | AD23: =IF(AC23="0.00%","",IF(AC23<VLOOKUP(AB$16,'Dropdown control panel'!$B$76:$D$137,2,FALSE),AA23*VLOOKUP(AB$16,'Dropdown control panel'!$B$76:$D$137,2,FALSE)-AB23,"On Target")) ->  | AE23: =IF(ISNUMBER(FIND("/",AE$15)),TEXT(VLOOKUP($C23,Compiled!$E$7:$CE$66,MATCH(AE$15,Compiled!$E$1:$CE$1,0),FALSE),"0.00%"),_xlfn.NUMBERVALUE(VLOOKUP($C23,Compiled!$E$7:$CE$66,MATCH(AE$15,Compiled!$E$1:$CE$1,0),FALSE),"#,##0")) -> 28 | AF23: =IF(ISNUMBER(FIND("/",AF$15)),TEXT(VLOOKUP($C23,Compiled!$E$7:$CE$66,MATCH(AF$15,Compiled!$E$1:$CE$1,0),FALSE),"0.00%"),_xlfn.NUMBERVALUE(VLOOKUP($C23,Compiled!$E$7:$CE$66,MATCH(AF$15,Compiled!$E$1:$CE$1,0),FALSE),"#,##0")) -> 26 | AG23: =IF(ISNUMBER(FIND("/",AG$15)),HLOOKUP(AG$15,Compiled!$F$1:$CC$65,MATCH($C23,Compiled!$E$1:$E$65,0),FALSE),HLOOKUP($C23,Compiled!$F$1:$CC$65,MATCH($C23,Compiled!$E$1:$E$65,0),FALSE)) -> 0.929 | AH23: =IF(AG23="0.00%","",IF(AG23<VLOOKUP(AF$16,'Dropdown control panel'!$B$76:$D$137,2,FALSE),AE23*VLOOKUP(AF$16,'Dropdown control panel'!$B$76:$D$137,2,FALSE)-AF23,"On Target")) -> On Target | AJ23: =IF(ISNUMBER(FIND("/",AJ$15)),TEXT(VLOOKUP($C23,Compiled!$E$7:$CE$66,MATCH(AJ$15,Compiled!$E$1:$CE$1,0),FALSE),"0.00%"),_xlfn.NUMBERVALUE(VLOOKUP($C23,Compiled!$E$7:$CE$66,MATCH(AJ$15,Compiled!$E$1:$CE$1,0),FALSE),"#,##0")) -> 5420 | AK23: =IF(ISNUMBER(FIND("/",AK$15)),TEXT(VLOOKUP($C23,Compiled!$E$7:$CE$66,MATCH(AK$15,Compiled!$E$1:$CE$1,0),FALSE),"0.00%"),_xlfn.NUMBERVALUE(VLOOKUP($C23,Compiled!$E$7:$CE$66,MATCH(AK$15,Compiled!$E$1:$CE$1,0),FALSE),"#,##0")) -> 659 | AL23: =IF(ISNUMBER(FIND("/",AL$15)),HLOOKUP(AL$15,Compiled!$F$1:$CC$65,MATCH($C23,Compiled!$E$1:$E$65,0),FALSE),HLOOKUP($C23,Compiled!$F$1:$CC$65,MATCH($C23,Compiled!$E$1:$E$65,0),FALSE)) -> 0.122 | AM23: =IF(AL23="0.00%","",IF(AL23<VLOOKUP(AK$16,'Dropdown control panel'!$B$76:$D$137,2,FALSE),AJ23*VLOOKUP(AK$16,'Dropdown control panel'!$B$76:$D$137,2,FALSE)-AK23,"On Target")) -> 1617.4 | AO23: =IF(ISNUMBER(FIND("/",AO$15)),TEXT(VLOOKUP($C23,Compiled!$E$7:$CE$66,MATCH(AO$15,Compiled!$E$1:$CE$1,0),FALSE),"0.00%"),_xlfn.NUMBERVALUE(VLOOKUP($C23,Compiled!$E$7:$CE$66,MATCH(AO$15,Compiled!$E$1:$CE$1,0),FALSE),"#,##0")) -> 22 | AP23: =IF(ISNUMBER(FIND("/",AP$15)),TEXT(VLOOKUP($C23,Compiled!$E$7:$CE$66,MATCH(AP$15,Compiled!$E$1:$CE$1,0),FALSE),"0.00%"),_xlfn.NUMBERVALUE(VLOOKUP($C23,Compiled!$E$7:$CE$66,MATCH(AP$15,Compiled!$E$1:$CE$1,0),FALSE),"#,##0")) -> 0 | AQ23: =IF(ISNUMBER(FIND("/",AQ$15)),HLOOKUP(AQ$15,Compiled!$F$1:$CC$65,MATCH($C23,Compiled!$E$1:$E$65,0),FALSE),HLOOKUP($C23,Compiled!$F$1:$CC$65,MATCH($C23,Compiled!$E$1:$E$65,0),FALSE)) -> 0 | AR23: =IF(AQ23="0.00%","",IF(AQ23<VLOOKUP(AP$16,'Dropdown control panel'!$B$76:$D$137,2,FALSE),AO23*VLOOKUP(AP$16,'Dropdown control panel'!$B$76:$D$137,2,FALSE)-AP23,"On Target")) -> 6.6 | AS23: =IF(ISNUMBER(FIND("/",AS$15)),TEXT(VLOOKUP($C23,Compiled!$E$7:$CE$66,MATCH(AS$15,Compiled!$E$1:$CE$1,0),FALSE),"0.00%"),_xlfn.NUMBERVALUE(VLOOKUP($C23,Compiled!$E$7:$CE$66,MATCH(AS$15,Compiled!$E$1:$CE$1,0),FALSE),"#,##0")) -> 0 | AT23: =IF(ISNUMBER(FIND("/",AT$15)),HLOOKUP(AT$15,Compiled!$F$1:$CC$65,MATCH($C23,Compiled!$E$1:$E$65,0),FALSE),HLOOKUP($C23,Compiled!$F$1:$CC$65,MATCH($C23,Compiled!$E$1:$E$65,0),FALSE)) -> 0.00% | AU23: =IF(AT23="0.00%","",IF(AT23<VLOOKUP(AS$16,'Dropdown control panel'!$B$76:$D$137,2,FALSE),AP23*VLOOKUP(AS$16,'Dropdown control panel'!$B$76:$D$137,2,FALSE)-AS23,"On Target")) ->  | AW23: =IF(ISNUMBER(FIND("/",AW$15)),TEXT(VLOOKUP($C23,Compiled!$E$7:$CE$66,MATCH(AW$15,Compiled!$E$1:$CE$1,0),FALSE),"0.00%"),_xlfn.NUMBERVALUE(VLOOKUP($C23,Compiled!$E$7:$CE$66,MATCH(AW$15,Compiled!$E$1:$CE$1,0),FALSE),"#,##0")) -> 726 | AX23: =IF(ISNUMBER(FIND("/",AX$15)),TEXT(VLOOKUP($C23,Compiled!$E$7:$CE$66,MATCH(AX$15,Compiled!$E$1:$CE$1,0),FALSE),"0.00%"),_xlfn.NUMBERVALUE(VLOOKUP($C23,Compiled!$E$7:$CE$66,MATCH(AX$15,Compiled!$E$1:$CE$1,0),FALSE),"#,##0")) -> 321 | AY23: =IF(ISNUMBER(FIND("/",AY$15)),HLOOKUP(AY$15,Compiled!$F$1:$CC$65,MATCH($C23,Compiled!$E$1:$E$65,0),FALSE),HLOOKUP($C23,Compiled!$F$1:$CC$65,MATCH($C23,Compiled!$E$1:$E$65,0),FALSE)) -> 0.442 | AZ23: =IF(AY23="0.00%","",IF(AY23<VLOOKUP(AX$16,'Dropdown control panel'!$B$76:$D$137,2,FALSE),AW23*VLOOKUP(AX$16,'Dropdown control panel'!$B$76:$D$137,2,FALSE)-AX23,"On Target")) -> 114.6 | BB23: =IF(ISNUMBER(FIND("/",BB$15)),TEXT(VLOOKUP($C23,Compiled!$E$7:$KA$66,MATCH(BB$15,Compiled!$E$1:$KA$1,0),FALSE),"0.00%"),_xlfn.NUMBERVALUE(VLOOKUP($C23,Compiled!$E$7:$KA$66,MATCH(BB$15,Compiled!$E$1:$KA$1,0),FALSE),"#,##0")) -> 379 | BC23: =IF(ISNUMBER(FIND("/",BC$15)),HLOOKUP(BC$15,Compiled!$F$1:$KA$65,MATCH($C23,Compiled!$E$1:$E$65,0),FALSE),HLOOKUP($C23,Compiled!$F$1:$KA$65,MATCH($C23,Compiled!$E$1:$E$65,0),FALSE)) -> 0.522 | BD23: =IF(BC23="0.00%","",IF(BC23<VLOOKUP(BB$16,'Dropdown control panel'!$B$76:$D$137,2,FALSE),AW23*VLOOKUP(BB$16,'Dropdown control panel'!$B$76:$D$137,2,FALSE)-BB23,"On Target")) -> 92.9 | BF23: =IF(ISNUMBER(FIND("/",BF$15)),TEXT(VLOOKUP($C23,Compiled!$E$7:$CE$66,MATCH(BF$15,Compiled!$E$1:$CE$1,0),FALSE),"0.00%"),_xlfn.NUMBERVALUE(VLOOKUP($C23,Compiled!$E$7:$CE$66,MATCH(BF$15,Compiled!$E$1:$CE$1,0),FALSE),"#,##0")) -> 4232 | BG23: =IF(ISNUMBER(FIND("/",BG$15)),TEXT(VLOOKUP($C23,Compiled!$E$7:$CE$66,MATCH(BG$15,Compiled!$E$1:$CE$1,0),FALSE),"0.00%"),_xlfn.NUMBERVALUE(VLOOKUP($C23,Compiled!$E$7:$CE$66,MATCH(BG$15,Compiled!$E$1:$CE$1,0),FALSE),"#,##0")) -> 2603 | BH23: =IF(ISNUMBER(FIND("/",BH$15)),HLOOKUP(BH$15,Compiled!$F$1:$CC$65,MATCH($C23,Compiled!$E$1:$E$65,0),FALSE),HLOOKUP($C23,Compiled!$F$1:$CC$65,MATCH($C23,Compiled!$E$1:$E$65,0),FALSE)) -> 0.615 | BI23: =IF(BH23="0.00%","",IF(BH23<VLOOKUP(BG$16,'Dropdown control panel'!$B$76:$D$137,2,FALSE),BF23*VLOOKUP(BG$16,'Dropdown control panel'!$B$76:$D$137,2,FALSE)-BG23,"On Target")) -> 359.4 | BK23: =IF(ISNUMBER(FIND("/",BK$15)),TEXT(VLOOKUP($C23,Compiled!$E$7:$KH$66,MATCH(BK$15,Compiled!$E$1:$KH$1,0),FALSE),"0.00%"),_xlfn.NUMBERVALUE(VLOOKUP($C23,Compiled!$E$7:$KH$66,MATCH(BK$15,Compiled!$E$1:$KH$1,0),FALSE),"#,##0")) -> 398 | BL23: =IF(ISNUMBER(FIND("/",BL$15)),TEXT(VLOOKUP($C23,Compiled!$E$7:$KH$66,MATCH(BL$15,Compiled!$E$1:$KH$1,0),FALSE),"0.00%"),_xlfn.NUMBERVALUE(VLOOKUP($C23,Compiled!$E$7:$KH$66,MATCH(BL$15,Compiled!$E$1:$KH$1,0),FALSE),"#,##0")) -> 86 | BM23: =IF(ISNUMBER(FIND("/",BM$15)),HLOOKUP(BM$15,Compiled!$F$1:$KH$65,MATCH($C23,Compiled!$E$1:$E$65,0),FALSE),HLOOKUP($C23,Compiled!$F$1:$KH$65,MATCH($C23,Compiled!$E$1:$E$65,0),FALSE)) -> 0.216 | BN23: =IF(BM23="0.00%","",IF(BM23<VLOOKUP(BL$16,'Dropdown control panel'!$B$76:$D$137,2,FALSE),BK23*VLOOKUP(BL$16,'Dropdown control panel'!$B$76:$D$137,2,FALSE)-BL23,"On Target")) -> 192.6 | BO23: =IF(ISNUMBER(FIND("/",BO$15)),TEXT(VLOOKUP($C23,Compiled!$E$7:$KH$66,MATCH(BO$15,Compiled!$E$1:$KH$1,0),FALSE),"0.00%"),_xlfn.NUMBERVALUE(VLOOKUP($C23,Compiled!$E$7:$KH$66,MATCH(BO$15,Compiled!$E$1:$KH$1,0),FALSE),"#,##0")) -> 2198 | BP23: =IF(ISNUMBER(FIND("/",BP$15)),HLOOKUP(BP$15,Compiled!$F$1:$KH$65,MATCH($C23,Compiled!$E$1:$E$65,0),FALSE),HLOOKUP($C23,Compiled!$F$1:$KH$65,MATCH($C23,Compiled!$E$1:$E$65,0),FALSE)) -> 0.519 | BQ23: =IF(BP23="0.00%","",IF(BP23<VLOOKUP(BO$16,'Dropdown control panel'!$B$76:$D$137,2,FALSE),BF23*VLOOKUP(BO$16,'Dropdown control panel'!$B$76:$D$137,2,FALSE)-BO23,"On Target")) -> 764.4 | BR23: =IF(ISNUMBER(FIND("/",BR$15)),TEXT(VLOOKUP($C23,Compiled!$E$7:$KH$66,MATCH(BR$15,Compiled!$E$1:$KH$1,0),FALSE),"0.00%"),_xlfn.NUMBERVALUE(VLOOKUP($C23,Compiled!$E$7:$KH$66,MATCH(BR$15,Compiled!$E$1:$KH$1,0),FALSE),"#,##0")) -> 3392 | BS23: =IF(ISNUMBER(FIND("/",BS$15)),HLOOKUP(BS$15,Compiled!$F$1:$KH$65,MATCH($C23,Compiled!$E$1:$E$65,0),FALSE),HLOOKUP($C23,Compiled!$F$1:$KH$65,MATCH($C23,Compiled!$E$1:$E$65,0),FALSE)) -> 0.802 | BT23: =IF(BS23="0.00%","",IF(BS23<VLOOKUP(BR$16,'Dropdown control panel'!$B$76:$D$137,2,FALSE),BF23*VLOOKUP(BR$16,'Dropdown control panel'!$B$76:$D$137,2,FALSE)-BR23,"On Target")) -> On Target | BV23: =IF(ISNUMBER(FIND("/",BV$15)),TEXT(VLOOKUP($C23,Compiled!$E$7:$CE$66,MATCH(BV$15,Compiled!$E$1:$CE$1,0),FALSE),"0.00%"),_xlfn.NUMBERVALUE(VLOOKUP($C23,Compiled!$E$7:$CE$66,MATCH(BV$15,Compiled!$E$1:$CE$1,0),FALSE),"#,##0")) -> 2010 | BW23: =IF(ISNUMBER(FIND("/",BW$15)),TEXT(VLOOKUP($C23,Compiled!$E$7:$CE$66,MATCH(BW$15,Compiled!$E$1:$CE$1,0),FALSE),"0.00%"),_xlfn.NUMBERVALUE(VLOOKUP($C23,Compiled!$E$7:$CE$66,MATCH(BW$15,Compiled!$E$1:$CE$1,0),FALSE),"#,##0")) -> 1064 | BX23: =IF(ISNUMBER(FIND("/",BX$15)),HLOOKUP(BX$15,Compiled!$F$1:$CC$65,MATCH($C23,Compiled!$E$1:$E$65,0),FALSE),HLOOKUP($C23,Compiled!$F$1:$CC$65,MATCH($C23,Compiled!$E$1:$E$65,0),FALSE)) -> 0.529 | BY23: =IF(BX23="0.00%","",IF(BX23<VLOOKUP(BW$16,'Dropdown control panel'!$B$76:$D$137,2,FALSE),BV23*VLOOKUP(BW$16,'Dropdown control panel'!$B$76:$D$137,2,FALSE)-BW23,"On Target")) -> On Target | CA23: =IF(ISNUMBER(FIND("/",CA$15)),TEXT(VLOOKUP($C23,Compiled!$E$7:$CE$66,MATCH(CA$15,Compiled!$E$1:$CE$1,0),FALSE),"0.00%"),_xlfn.NUMBERVALUE(VLOOKUP($C23,Compiled!$E$7:$CE$66,MATCH(CA$15,Compiled!$E$1:$CE$1,0),FALSE),"#,##0")) -> 3128 | CB23: =IF(ISNUMBER(FIND("/",CB$15)),TEXT(VLOOKUP($C23,Compiled!$E$7:$CE$66,MATCH(CB$15,Compiled!$E$1:$CE$1,0),FALSE),"0.00%"),_xlfn.NUMBERVALUE(VLOOKUP($C23,Compiled!$E$7:$CE$66,MATCH(CB$15,Compiled!$E$1:$CE$1,0),FALSE),"#,##0")) -> 186 | CC23: =IF(ISNUMBER(FIND("/",CC$15)),HLOOKUP(CC$15,Compiled!$F$1:$CC$65,MATCH($C23,Compiled!$E$1:$E$65,0),FALSE),HLOOKUP($C23,Compiled!$F$1:$CC$65,MATCH($C23,Compiled!$E$1:$E$65,0),FALSE)) -> 0.059 | CD23: =IF(CC23="0.00%","",IF(CC23<VLOOKUP(CB$16,'Dropdown control panel'!$B$76:$D$137,2,FALSE),CA23*VLOOKUP(CB$16,'Dropdown control panel'!$B$76:$D$137,2,FALSE)-CB23,"On Target")) -> 1221.6 | CF23: =IF(ISNUMBER(FIND("/",CF$15)),TEXT(VLOOKUP($C23,Compiled!$E$7:$CE$66,MATCH(CF$15,Compiled!$E$1:$CE$1,0),FALSE),"0.00%"),_xlfn.NUMBERVALUE(VLOOKUP($C23,Compiled!$E$7:$CE$66,MATCH(CF$15,Compiled!$E$1:$CE$1,0),FALSE),"#,##0")) -> 24 | CG23: =IF(ISNUMBER(FIND("/",CG$15)),TEXT(VLOOKUP($C23,Compiled!$E$7:$CE$66,MATCH(CG$15,Compiled!$E$1:$CE$1,0),FALSE),"0.00%"),_xlfn.NUMBERVALUE(VLOOKUP($C23,Compiled!$E$7:$CE$66,MATCH(CG$15,Compiled!$E$1:$CE$1,0),FALSE),"#,##0")) -> 16 | CH23: =IF(ISNUMBER(FIND("/",CH$15)),HLOOKUP(CH$15,Compiled!$F$1:$CC$65,MATCH($C23,Compiled!$E$1:$E$65,0),FALSE),HLOOKUP($C23,Compiled!$F$1:$CC$65,MATCH($C23,Compiled!$E$1:$E$65,0),FALSE)) -> 0.667 | CI23: =IF(CH23="0.00%","",IF(CH23<VLOOKUP(CG$16,'Dropdown control panel'!$B$76:$D$137,2,FALSE),CF23*VLOOKUP(CG$16,'Dropdown control panel'!$B$76:$D$137,2,FALSE)-CG23,"On Target")) -> On Target | CJ23: =IF(ISNUMBER(FIND("/",CJ$15)),TEXT(VLOOKUP($C23,Compiled!$E$7:$CE$66,MATCH(CJ$15,Compiled!$E$1:$CE$1,0),FALSE),"0.00%"),_xlfn.NUMBERVALUE(VLOOKUP($C23,Compiled!$E$7:$CE$66,MATCH(CJ$15,Compiled!$E$1:$CE$1,0),FALSE),"#,##0")) -> 1 | CK23: =IF(ISNUMBER(FIND("/",CK$15)),HLOOKUP(CK$15,Compiled!$F$1:$CC$65,MATCH($C23,Compiled!$E$1:$E$65,0),FALSE),HLOOKUP($C23,Compiled!$F$1:$CC$65,MATCH($C23,Compiled!$E$1:$E$65,0),FALSE)) -> 0.042 | CL23: =IF(CK23="0.00%","",IF(CK23<VLOOKUP(CJ$16,'Dropdown control panel'!$B$76:$D$137,2,FALSE),CF23*VLOOKUP(CJ$16,'Dropdown control panel'!$B$76:$D$137,2,FALSE)-CJ23,"On Target")) -> 6.2 | CT23: =IF(ISNUMBER(FIND("/",CT$15)),TEXT(VLOOKUP($C23,Compiled!$E$7:$KT$66,MATCH(CT$15,Compiled!$E$1:$KT$1,0),FALSE),"0.00%"),_xlfn.NUMBERVALUE(VLOOKUP($C23,Compiled!$E$7:$KT$66,MATCH(CT$15,Compiled!$E$1:$KT$1,0),FALSE),"#,##0")) -> 0 | CU23: =IF(ISNUMBER(FIND("/",CU$15)),TEXT(VLOOKUP($C23,Compiled!$E$7:$KT$66,MATCH(CU$15,Compiled!$E$1:$KT$1,0),FALSE),"0.00%"),_xlfn.NUMBERVALUE(VLOOKUP($C23,Compiled!$E$7:$KT$66,MATCH(CU$15,Compiled!$E$1:$KT$1,0),FALSE),"#,##0")) -> 0 | CV23: =IF(ISNUMBER(FIND("/",CV$15)),HLOOKUP(CV$15,Compiled!$F$1:$KT$65,MATCH($C23,Compiled!$E$1:$E$65,0),FALSE),HLOOKUP($C23,Compiled!$F$1:$KT$65,MATCH($C23,Compiled!$E$1:$E$65,0),FALSE)) -> 0.00% | CW23: =IF(CV23="0.00%","",IF(CV23<VLOOKUP(CU$16,'Dropdown control panel'!$B$76:$D$140,2,FALSE),CT23*VLOOKUP(CU$16,'Dropdown control panel'!$B$76:$D$140,2,FALSE)-CU23,"On Target")) -> 
B24: =Compiled!D12 -> North Newham | C24: =Compiled!E12 -> PCN6 | D24: =IF(ISNUMBER(FIND("/",D$15)),TEXT(VLOOKUP($C24,Compiled!$E$7:$CE$66,MATCH($D$15,Compiled!$E$1:$CE$1,0),FALSE),"0.00%"),_xlfn.NUMBERVALUE(VLOOKUP($C24,Compiled!$E$7:$CE$66,MATCH($D$15,Compiled!$E$1:$CE$1,0),FALSE),"#,##0")) -> 659 | E24: =IF(ISNUMBER(FIND("/",E$15)),TEXT(VLOOKUP($C24,Compiled!$E$7:$CE$66,MATCH($E$15,Compiled!$E$1:$CE$1,0),FALSE),"0.00%"),_xlfn.NUMBERVALUE(VLOOKUP($C24,Compiled!$E$7:$CE$66,MATCH($E$15,Compiled!$E$1:$CE$1,0),FALSE),"#,##0")) -> 263 | F24: =IF(ISNUMBER(FIND("/",$F$15)),HLOOKUP($F$15,Compiled!$F$1:$CC$65,MATCH($C24,Compiled!$E$1:$E$65,0),FALSE),HLOOKUP($C24,Compiled!$F$1:$CC$65,MATCH($C24,Compiled!$E$1:$E$65,0),FALSE)) -> 0.399 | G24: =IF($F24="0.00%","",IF($F24<VLOOKUP($E$16,'Dropdown control panel'!$B$76:$D$137,2,FALSE),$D24*VLOOKUP($E$16,'Dropdown control panel'!$B$76:$D$137,2,FALSE)-$E24,"On Target")) -> 99.45 | H24: =IF(ISNUMBER(FIND("/",H$15)),TEXT(VLOOKUP($C24,Compiled!$E$7:$CE$66,MATCH(H$15,Compiled!$E$1:$CE$1,0),FALSE),"0.00%"),_xlfn.NUMBERVALUE(VLOOKUP($C24,Compiled!$E$7:$CE$66,MATCH(H$15,Compiled!$E$1:$CE$1,0),FALSE),"#,##0")) -> 24 | I24: =IF(ISNUMBER(FIND("/",I$15)),TEXT(VLOOKUP($C24,Compiled!$E$7:$CE$66,MATCH(I$15,Compiled!$E$1:$CE$1,0),FALSE),"0.00%"),_xlfn.NUMBERVALUE(VLOOKUP($C24,Compiled!$E$7:$CE$66,MATCH(I$15,Compiled!$E$1:$CE$1,0),FALSE),"#,##0")) -> 2 | J24: =IF(ISNUMBER(FIND("/",J$15)),HLOOKUP(J$15,Compiled!$F$1:$CC$65,MATCH($C24,Compiled!$E$1:$E$65,0),FALSE),HLOOKUP($C24,Compiled!$F$1:$CC$65,MATCH($C24,Compiled!$E$1:$E$65,0),FALSE)) -> 0.083 | K24: =IF($J24="0.00%","",IF($J24<VLOOKUP($I$16,'Dropdown control panel'!$B$76:$D$137,2,FALSE),$H24*VLOOKUP($I$16,'Dropdown control panel'!$B$76:$D$137,2,FALSE)-$I24,"On Target")) -> 10 | L24: =IF(ISNUMBER(FIND("/",L$15)),TEXT(VLOOKUP($C24,Compiled!$E$7:$CE$66,MATCH(L$15,Compiled!$E$1:$CE$1,0),FALSE),"0.00%"),_xlfn.NUMBERVALUE(VLOOKUP($C24,Compiled!$E$7:$CE$66,MATCH(L$15,Compiled!$E$1:$CE$1,0),FALSE),"#,##0")) -> 2 | M24: =IF(ISNUMBER(FIND("/",M$15)),TEXT(VLOOKUP($C24,Compiled!$E$7:$CE$66,MATCH(M$15,Compiled!$E$1:$CE$1,0),FALSE),"0.00%"),_xlfn.NUMBERVALUE(VLOOKUP($C24,Compiled!$E$7:$CE$66,MATCH(M$15,Compiled!$E$1:$CE$1,0),FALSE),"#,##0")) -> 1 | N24: =IF(ISNUMBER(FIND("/",N$15)),HLOOKUP(N$15,Compiled!$F$1:$CC$65,MATCH($C24,Compiled!$E$1:$E$65,0),FALSE),HLOOKUP($C24,Compiled!$F$1:$CC$65,MATCH($C24,Compiled!$E$1:$E$65,0),FALSE)) -> 0.5 | O24: =IF(N24="0.00%","",IF(N24<VLOOKUP(M$16,'Dropdown control panel'!$B$76:$D$137,2,FALSE),L24*VLOOKUP(M$16,'Dropdown control panel'!$B$76:$D$137,2,FALSE)-M24,"On Target")) -> 0.3 | Q24: =IF(ISNUMBER(FIND("/",Q$15)),TEXT(VLOOKUP($C24,Compiled!$E$7:$KA$66,MATCH(Q$15,Compiled!$E$1:$KA$1,0),FALSE),"0.00%"),_xlfn.NUMBERVALUE(VLOOKUP($C24,Compiled!$E$7:$KA$66,MATCH(Q$15,Compiled!$E$1:$KA$1,0),FALSE),"#,##0")) -> 3 | R24: =IF(ISNUMBER(FIND("/",R$15)),TEXT(VLOOKUP($C24,Compiled!$E$7:$KA$66,MATCH(R$15,Compiled!$E$1:$KA$1,0),FALSE),"0.00%"),_xlfn.NUMBERVALUE(VLOOKUP($C24,Compiled!$E$7:$KA$66,MATCH(R$15,Compiled!$E$1:$KA$1,0),FALSE),"#,##0")) -> 0 | S24: =IF(ISNUMBER(FIND("/",S$15)),HLOOKUP(S$15,Compiled!$F$1:$CF$65,MATCH($C24,Compiled!$E$1:$E$65,0),FALSE),HLOOKUP($C24,Compiled!$F$1:$CF$65,MATCH($C24,Compiled!$E$1:$E$65,0),FALSE)) -> 0 | T24: =IF(S24="0.00%","",IF(S24<VLOOKUP(R$16,'Dropdown control panel'!$B$76:$D$143,2,FALSE),Q24*VLOOKUP(R$16,'Dropdown control panel'!$B$76:$E$143,2,FALSE)-R24,"On Target")) -> 2.4 | V24: =IF(ISNUMBER(FIND("/",V$15)),TEXT(VLOOKUP($C24,Compiled!$E$7:$CE$66,MATCH(V$15,Compiled!$E$1:$CE$1,0),FALSE),"0.00%"),_xlfn.NUMBERVALUE(VLOOKUP($C24,Compiled!$E$7:$CE$66,MATCH(V$15,Compiled!$E$1:$CE$1,0),FALSE),"#,##0")) -> 19 | W24: =IF(ISNUMBER(FIND("/",W$15)),TEXT(VLOOKUP($C24,Compiled!$E$7:$CE$66,MATCH(W$15,Compiled!$E$1:$CE$1,0),FALSE),"0.00%"),_xlfn.NUMBERVALUE(VLOOKUP($C24,Compiled!$E$7:$CE$66,MATCH(W$15,Compiled!$E$1:$CE$1,0),FALSE),"#,##0")) -> 19 | X24: =IF(ISNUMBER(FIND("/",X$15)),HLOOKUP(X$15,Compiled!$F$1:$CC$65,MATCH($C24,Compiled!$E$1:$E$65,0),FALSE),HLOOKUP($C24,Compiled!$F$1:$CC$65,MATCH($C24,Compiled!$E$1:$E$65,0),FALSE)) -> 1 | Y24: =IF(X24="0.00%","",IF(X24<VLOOKUP(W$16,'Dropdown control panel'!$B$76:$D$137,2,FALSE),V24*VLOOKUP(W$16,'Dropdown control panel'!$B$76:$D$137,2,FALSE)-W24,"On Target")) -> On Target | AA24: =IF(ISNUMBER(FIND("/",AA$15)),TEXT(VLOOKUP($C24,Compiled!$E$7:$CE$66,MATCH(AA$15,Compiled!$E$1:$CE$1,0),FALSE),"0.00%"),_xlfn.NUMBERVALUE(VLOOKUP($C24,Compiled!$E$7:$CE$66,MATCH(AA$15,Compiled!$E$1:$CE$1,0),FALSE),"#,##0")) -> 22 | AB24: =IF(ISNUMBER(FIND("/",AB$15)),TEXT(VLOOKUP($C24,Compiled!$E$7:$CE$66,MATCH(AB$15,Compiled!$E$1:$CE$1,0),FALSE),"0.00%"),_xlfn.NUMBERVALUE(VLOOKUP($C24,Compiled!$E$7:$CE$66,MATCH(AB$15,Compiled!$E$1:$CE$1,0),FALSE),"#,##0")) -> 0 | AC24: =IF(ISNUMBER(FIND("/",AC$15)),HLOOKUP(AC$15,Compiled!$F$1:$CC$65,MATCH($C24,Compiled!$E$1:$E$65,0),FALSE),HLOOKUP($C24,Compiled!$F$1:$CC$65,MATCH($C24,Compiled!$E$1:$E$65,0),FALSE)) -> 0 | AD24: =IF(AC24="0.00%","",IF(AC24<VLOOKUP(AB$16,'Dropdown control panel'!$B$76:$D$137,2,FALSE),AA24*VLOOKUP(AB$16,'Dropdown control panel'!$B$76:$D$137,2,FALSE)-AB24,"On Target")) ->  | AE24: =IF(ISNUMBER(FIND("/",AE$15)),TEXT(VLOOKUP($C24,Compiled!$E$7:$CE$66,MATCH(AE$15,Compiled!$E$1:$CE$1,0),FALSE),"0.00%"),_xlfn.NUMBERVALUE(VLOOKUP($C24,Compiled!$E$7:$CE$66,MATCH(AE$15,Compiled!$E$1:$CE$1,0),FALSE),"#,##0")) -> 11 | AF24: =IF(ISNUMBER(FIND("/",AF$15)),TEXT(VLOOKUP($C24,Compiled!$E$7:$CE$66,MATCH(AF$15,Compiled!$E$1:$CE$1,0),FALSE),"0.00%"),_xlfn.NUMBERVALUE(VLOOKUP($C24,Compiled!$E$7:$CE$66,MATCH(AF$15,Compiled!$E$1:$CE$1,0),FALSE),"#,##0")) -> 6 | AG24: =IF(ISNUMBER(FIND("/",AG$15)),HLOOKUP(AG$15,Compiled!$F$1:$CC$65,MATCH($C24,Compiled!$E$1:$E$65,0),FALSE),HLOOKUP($C24,Compiled!$F$1:$CC$65,MATCH($C24,Compiled!$E$1:$E$65,0),FALSE)) -> 0.545 | AH24: =IF(AG24="0.00%","",IF(AG24<VLOOKUP(AF$16,'Dropdown control panel'!$B$76:$D$137,2,FALSE),AE24*VLOOKUP(AF$16,'Dropdown control panel'!$B$76:$D$137,2,FALSE)-AF24,"On Target")) -> On Target | AJ24: =IF(ISNUMBER(FIND("/",AJ$15)),TEXT(VLOOKUP($C24,Compiled!$E$7:$CE$66,MATCH(AJ$15,Compiled!$E$1:$CE$1,0),FALSE),"0.00%"),_xlfn.NUMBERVALUE(VLOOKUP($C24,Compiled!$E$7:$CE$66,MATCH(AJ$15,Compiled!$E$1:$CE$1,0),FALSE),"#,##0")) -> 4028 | AK24: =IF(ISNUMBER(FIND("/",AK$15)),TEXT(VLOOKUP($C24,Compiled!$E$7:$CE$66,MATCH(AK$15,Compiled!$E$1:$CE$1,0),FALSE),"0.00%"),_xlfn.NUMBERVALUE(VLOOKUP($C24,Compiled!$E$7:$CE$66,MATCH(AK$15,Compiled!$E$1:$CE$1,0),FALSE),"#,##0")) -> 441 | AL24: =IF(ISNUMBER(FIND("/",AL$15)),HLOOKUP(AL$15,Compiled!$F$1:$CC$65,MATCH($C24,Compiled!$E$1:$E$65,0),FALSE),HLOOKUP($C24,Compiled!$F$1:$CC$65,MATCH($C24,Compiled!$E$1:$E$65,0),FALSE)) -> 0.109 | AM24: =IF(AL24="0.00%","",IF(AL24<VLOOKUP(AK$16,'Dropdown control panel'!$B$76:$D$137,2,FALSE),AJ24*VLOOKUP(AK$16,'Dropdown control panel'!$B$76:$D$137,2,FALSE)-AK24,"On Target")) -> 1250.76 | AO24: =IF(ISNUMBER(FIND("/",AO$15)),TEXT(VLOOKUP($C24,Compiled!$E$7:$CE$66,MATCH(AO$15,Compiled!$E$1:$CE$1,0),FALSE),"0.00%"),_xlfn.NUMBERVALUE(VLOOKUP($C24,Compiled!$E$7:$CE$66,MATCH(AO$15,Compiled!$E$1:$CE$1,0),FALSE),"#,##0")) -> 11 | AP24: =IF(ISNUMBER(FIND("/",AP$15)),TEXT(VLOOKUP($C24,Compiled!$E$7:$CE$66,MATCH(AP$15,Compiled!$E$1:$CE$1,0),FALSE),"0.00%"),_xlfn.NUMBERVALUE(VLOOKUP($C24,Compiled!$E$7:$CE$66,MATCH(AP$15,Compiled!$E$1:$CE$1,0),FALSE),"#,##0")) -> 0 | AQ24: =IF(ISNUMBER(FIND("/",AQ$15)),HLOOKUP(AQ$15,Compiled!$F$1:$CC$65,MATCH($C24,Compiled!$E$1:$E$65,0),FALSE),HLOOKUP($C24,Compiled!$F$1:$CC$65,MATCH($C24,Compiled!$E$1:$E$65,0),FALSE)) -> 0 | AR24: =IF(AQ24="0.00%","",IF(AQ24<VLOOKUP(AP$16,'Dropdown control panel'!$B$76:$D$137,2,FALSE),AO24*VLOOKUP(AP$16,'Dropdown control panel'!$B$76:$D$137,2,FALSE)-AP24,"On Target")) -> 3.3 | AS24: =IF(ISNUMBER(FIND("/",AS$15)),TEXT(VLOOKUP($C24,Compiled!$E$7:$CE$66,MATCH(AS$15,Compiled!$E$1:$CE$1,0),FALSE),"0.00%"),_xlfn.NUMBERVALUE(VLOOKUP($C24,Compiled!$E$7:$CE$66,MATCH(AS$15,Compiled!$E$1:$CE$1,0),FALSE),"#,##0")) -> 0 | AT24: =IF(ISNUMBER(FIND("/",AT$15)),HLOOKUP(AT$15,Compiled!$F$1:$CC$65,MATCH($C24,Compiled!$E$1:$E$65,0),FALSE),HLOOKUP($C24,Compiled!$F$1:$CC$65,MATCH($C24,Compiled!$E$1:$E$65,0),FALSE)) -> 0.00% | AU24: =IF(AT24="0.00%","",IF(AT24<VLOOKUP(AS$16,'Dropdown control panel'!$B$76:$D$137,2,FALSE),AP24*VLOOKUP(AS$16,'Dropdown control panel'!$B$76:$D$137,2,FALSE)-AS24,"On Target")) ->  | AW24: =IF(ISNUMBER(FIND("/",AW$15)),TEXT(VLOOKUP($C24,Compiled!$E$7:$CE$66,MATCH(AW$15,Compiled!$E$1:$CE$1,0),FALSE),"0.00%"),_xlfn.NUMBERVALUE(VLOOKUP($C24,Compiled!$E$7:$CE$66,MATCH(AW$15,Compiled!$E$1:$CE$1,0),FALSE),"#,##0")) -> 594 | AX24: =IF(ISNUMBER(FIND("/",AX$15)),TEXT(VLOOKUP($C24,Compiled!$E$7:$CE$66,MATCH(AX$15,Compiled!$E$1:$CE$1,0),FALSE),"0.00%"),_xlfn.NUMBERVALUE(VLOOKUP($C24,Compiled!$E$7:$CE$66,MATCH(AX$15,Compiled!$E$1:$CE$1,0),FALSE),"#,##0")) -> 178 | AY24: =IF(ISNUMBER(FIND("/",AY$15)),HLOOKUP(AY$15,Compiled!$F$1:$CC$65,MATCH($C24,Compiled!$E$1:$E$65,0),FALSE),HLOOKUP($C24,Compiled!$F$1:$CC$65,MATCH($C24,Compiled!$E$1:$E$65,0),FALSE)) -> 0.3 | AZ24: =IF(AY24="0.00%","",IF(AY24<VLOOKUP(AX$16,'Dropdown control panel'!$B$76:$D$137,2,FALSE),AW24*VLOOKUP(AX$16,'Dropdown control panel'!$B$76:$D$137,2,FALSE)-AX24,"On Target")) -> 178.4 | BB24: =IF(ISNUMBER(FIND("/",BB$15)),TEXT(VLOOKUP($C24,Compiled!$E$7:$KA$66,MATCH(BB$15,Compiled!$E$1:$KA$1,0),FALSE),"0.00%"),_xlfn.NUMBERVALUE(VLOOKUP($C24,Compiled!$E$7:$KA$66,MATCH(BB$15,Compiled!$E$1:$KA$1,0),FALSE),"#,##0")) -> 186 | BC24: =IF(ISNUMBER(FIND("/",BC$15)),HLOOKUP(BC$15,Compiled!$F$1:$KA$65,MATCH($C24,Compiled!$E$1:$E$65,0),FALSE),HLOOKUP($C24,Compiled!$F$1:$KA$65,MATCH($C24,Compiled!$E$1:$E$65,0),FALSE)) -> 0.313 | BD24: =IF(BC24="0.00%","",IF(BC24<VLOOKUP(BB$16,'Dropdown control panel'!$B$76:$D$137,2,FALSE),AW24*VLOOKUP(BB$16,'Dropdown control panel'!$B$76:$D$137,2,FALSE)-BB24,"On Target")) -> 200.1 | BF24: =IF(ISNUMBER(FIND("/",BF$15)),TEXT(VLOOKUP($C24,Compiled!$E$7:$CE$66,MATCH(BF$15,Compiled!$E$1:$CE$1,0),FALSE),"0.00%"),_xlfn.NUMBERVALUE(VLOOKUP($C24,Compiled!$E$7:$CE$66,MATCH(BF$15,Compiled!$E$1:$CE$1,0),FALSE),"#,##0")) -> 2264 | BG24: =IF(ISNUMBER(FIND("/",BG$15)),TEXT(VLOOKUP($C24,Compiled!$E$7:$CE$66,MATCH(BG$15,Compiled!$E$1:$CE$1,0),FALSE),"0.00%"),_xlfn.NUMBERVALUE(VLOOKUP($C24,Compiled!$E$7:$CE$66,MATCH(BG$15,Compiled!$E$1:$CE$1,0),FALSE),"#,##0")) -> 1007 | BH24: =IF(ISNUMBER(FIND("/",BH$15)),HLOOKUP(BH$15,Compiled!$F$1:$CC$65,MATCH($C24,Compiled!$E$1:$E$65,0),FALSE),HLOOKUP($C24,Compiled!$F$1:$CC$65,MATCH($C24,Compiled!$E$1:$E$65,0),FALSE)) -> 0.445 | BI24: =IF(BH24="0.00%","",IF(BH24<VLOOKUP(BG$16,'Dropdown control panel'!$B$76:$D$137,2,FALSE),BF24*VLOOKUP(BG$16,'Dropdown control panel'!$B$76:$D$137,2,FALSE)-BG24,"On Target")) -> 577.8 | BK24: =IF(ISNUMBER(FIND("/",BK$15)),TEXT(VLOOKUP($C24,Compiled!$E$7:$KH$66,MATCH(BK$15,Compiled!$E$1:$KH$1,0),FALSE),"0.00%"),_xlfn.NUMBERVALUE(VLOOKUP($C24,Compiled!$E$7:$KH$66,MATCH(BK$15,Compiled!$E$1:$KH$1,0),FALSE),"#,##0")) -> 235 | BL24: =IF(ISNUMBER(FIND("/",BL$15)),TEXT(VLOOKUP($C24,Compiled!$E$7:$KH$66,MATCH(BL$15,Compiled!$E$1:$KH$1,0),FALSE),"0.00%"),_xlfn.NUMBERVALUE(VLOOKUP($C24,Compiled!$E$7:$KH$66,MATCH(BL$15,Compiled!$E$1:$KH$1,0),FALSE),"#,##0")) -> 24 | BM24: =IF(ISNUMBER(FIND("/",BM$15)),HLOOKUP(BM$15,Compiled!$F$1:$KH$65,MATCH($C24,Compiled!$E$1:$E$65,0),FALSE),HLOOKUP($C24,Compiled!$F$1:$KH$65,MATCH($C24,Compiled!$E$1:$E$65,0),FALSE)) -> 0.102 | BN24: =IF(BM24="0.00%","",IF(BM24<VLOOKUP(BL$16,'Dropdown control panel'!$B$76:$D$137,2,FALSE),BK24*VLOOKUP(BL$16,'Dropdown control panel'!$B$76:$D$137,2,FALSE)-BL24,"On Target")) -> 140.5 | BO24: =IF(ISNUMBER(FIND("/",BO$15)),TEXT(VLOOKUP($C24,Compiled!$E$7:$KH$66,MATCH(BO$15,Compiled!$E$1:$KH$1,0),FALSE),"0.00%"),_xlfn.NUMBERVALUE(VLOOKUP($C24,Compiled!$E$7:$KH$66,MATCH(BO$15,Compiled!$E$1:$KH$1,0),FALSE),"#,##0")) -> 1478 | BP24: =IF(ISNUMBER(FIND("/",BP$15)),HLOOKUP(BP$15,Compiled!$F$1:$KH$65,MATCH($C24,Compiled!$E$1:$E$65,0),FALSE),HLOOKUP($C24,Compiled!$F$1:$KH$65,MATCH($C24,Compiled!$E$1:$E$65,0),FALSE)) -> 0.653 | BQ24: =IF(BP24="0.00%","",IF(BP24<VLOOKUP(BO$16,'Dropdown control panel'!$B$76:$D$137,2,FALSE),BF24*VLOOKUP(BO$16,'Dropdown control panel'!$B$76:$D$137,2,FALSE)-BO24,"On Target")) -> 106.8 | BR24: =IF(ISNUMBER(FIND("/",BR$15)),TEXT(VLOOKUP($C24,Compiled!$E$7:$KH$66,MATCH(BR$15,Compiled!$E$1:$KH$1,0),FALSE),"0.00%"),_xlfn.NUMBERVALUE(VLOOKUP($C24,Compiled!$E$7:$KH$66,MATCH(BR$15,Compiled!$E$1:$KH$1,0),FALSE),"#,##0")) -> 1402 | BS24: =IF(ISNUMBER(FIND("/",BS$15)),HLOOKUP(BS$15,Compiled!$F$1:$KH$65,MATCH($C24,Compiled!$E$1:$E$65,0),FALSE),HLOOKUP($C24,Compiled!$F$1:$KH$65,MATCH($C24,Compiled!$E$1:$E$65,0),FALSE)) -> 0.619 | BT24: =IF(BS24="0.00%","",IF(BS24<VLOOKUP(BR$16,'Dropdown control panel'!$B$76:$D$137,2,FALSE),BF24*VLOOKUP(BR$16,'Dropdown control panel'!$B$76:$D$137,2,FALSE)-BR24,"On Target")) -> 182.8 | BV24: =IF(ISNUMBER(FIND("/",BV$15)),TEXT(VLOOKUP($C24,Compiled!$E$7:$CE$66,MATCH(BV$15,Compiled!$E$1:$CE$1,0),FALSE),"0.00%"),_xlfn.NUMBERVALUE(VLOOKUP($C24,Compiled!$E$7:$CE$66,MATCH(BV$15,Compiled!$E$1:$CE$1,0),FALSE),"#,##0")) -> 602 | BW24: =IF(ISNUMBER(FIND("/",BW$15)),TEXT(VLOOKUP($C24,Compiled!$E$7:$CE$66,MATCH(BW$15,Compiled!$E$1:$CE$1,0),FALSE),"0.00%"),_xlfn.NUMBERVALUE(VLOOKUP($C24,Compiled!$E$7:$CE$66,MATCH(BW$15,Compiled!$E$1:$CE$1,0),FALSE),"#,##0")) -> 168 | BX24: =IF(ISNUMBER(FIND("/",BX$15)),HLOOKUP(BX$15,Compiled!$F$1:$CC$65,MATCH($C24,Compiled!$E$1:$E$65,0),FALSE),HLOOKUP($C24,Compiled!$F$1:$CC$65,MATCH($C24,Compiled!$E$1:$E$65,0),FALSE)) -> 0.279 | BY24: =IF(BX24="0.00%","",IF(BX24<VLOOKUP(BW$16,'Dropdown control panel'!$B$76:$D$137,2,FALSE),BV24*VLOOKUP(BW$16,'Dropdown control panel'!$B$76:$D$137,2,FALSE)-BW24,"On Target")) -> 133 | CA24: =IF(ISNUMBER(FIND("/",CA$15)),TEXT(VLOOKUP($C24,Compiled!$E$7:$CE$66,MATCH(CA$15,Compiled!$E$1:$CE$1,0),FALSE),"0.00%"),_xlfn.NUMBERVALUE(VLOOKUP($C24,Compiled!$E$7:$CE$66,MATCH(CA$15,Compiled!$E$1:$CE$1,0),FALSE),"#,##0")) -> 991 | CB24: =IF(ISNUMBER(FIND("/",CB$15)),TEXT(VLOOKUP($C24,Compiled!$E$7:$CE$66,MATCH(CB$15,Compiled!$E$1:$CE$1,0),FALSE),"0.00%"),_xlfn.NUMBERVALUE(VLOOKUP($C24,Compiled!$E$7:$CE$66,MATCH(CB$15,Compiled!$E$1:$CE$1,0),FALSE),"#,##0")) -> 340 | CC24: =IF(ISNUMBER(FIND("/",CC$15)),HLOOKUP(CC$15,Compiled!$F$1:$CC$65,MATCH($C24,Compiled!$E$1:$E$65,0),FALSE),HLOOKUP($C24,Compiled!$F$1:$CC$65,MATCH($C24,Compiled!$E$1:$E$65,0),FALSE)) -> 0.343 | CD24: =IF(CC24="0.00%","",IF(CC24<VLOOKUP(CB$16,'Dropdown control panel'!$B$76:$D$137,2,FALSE),CA24*VLOOKUP(CB$16,'Dropdown control panel'!$B$76:$D$137,2,FALSE)-CB24,"On Target")) -> 105.95 | CF24: =IF(ISNUMBER(FIND("/",CF$15)),TEXT(VLOOKUP($C24,Compiled!$E$7:$CE$66,MATCH(CF$15,Compiled!$E$1:$CE$1,0),FALSE),"0.00%"),_xlfn.NUMBERVALUE(VLOOKUP($C24,Compiled!$E$7:$CE$66,MATCH(CF$15,Compiled!$E$1:$CE$1,0),FALSE),"#,##0")) -> 1 | CG24: =IF(ISNUMBER(FIND("/",CG$15)),TEXT(VLOOKUP($C24,Compiled!$E$7:$CE$66,MATCH(CG$15,Compiled!$E$1:$CE$1,0),FALSE),"0.00%"),_xlfn.NUMBERVALUE(VLOOKUP($C24,Compiled!$E$7:$CE$66,MATCH(CG$15,Compiled!$E$1:$CE$1,0),FALSE),"#,##0")) -> 1 | CH24: =IF(ISNUMBER(FIND("/",CH$15)),HLOOKUP(CH$15,Compiled!$F$1:$CC$65,MATCH($C24,Compiled!$E$1:$E$65,0),FALSE),HLOOKUP($C24,Compiled!$F$1:$CC$65,MATCH($C24,Compiled!$E$1:$E$65,0),FALSE)) -> 1 | CI24: =IF(CH24="0.00%","",IF(CH24<VLOOKUP(CG$16,'Dropdown control panel'!$B$76:$D$137,2,FALSE),CF24*VLOOKUP(CG$16,'Dropdown control panel'!$B$76:$D$137,2,FALSE)-CG24,"On Target")) -> On Target | CJ24: =IF(ISNUMBER(FIND("/",CJ$15)),TEXT(VLOOKUP($C24,Compiled!$E$7:$CE$66,MATCH(CJ$15,Compiled!$E$1:$CE$1,0),FALSE),"0.00%"),_xlfn.NUMBERVALUE(VLOOKUP($C24,Compiled!$E$7:$CE$66,MATCH(CJ$15,Compiled!$E$1:$CE$1,0),FALSE),"#,##0")) -> 0 | CK24: =IF(ISNUMBER(FIND("/",CK$15)),HLOOKUP(CK$15,Compiled!$F$1:$CC$65,MATCH($C24,Compiled!$E$1:$E$65,0),FALSE),HLOOKUP($C24,Compiled!$F$1:$CC$65,MATCH($C24,Compiled!$E$1:$E$65,0),FALSE)) -> 0 | CL24: =IF(CK24="0.00%","",IF(CK24<VLOOKUP(CJ$16,'Dropdown control panel'!$B$76:$D$137,2,FALSE),CF24*VLOOKUP(CJ$16,'Dropdown control panel'!$B$76:$D$137,2,FALSE)-CJ24,"On Target")) -> 0.3 | CT24: =IF(ISNUMBER(FIND("/",CT$15)),TEXT(VLOOKUP($C24,Compiled!$E$7:$KT$66,MATCH(CT$15,Compiled!$E$1:$KT$1,0),FALSE),"0.00%"),_xlfn.NUMBERVALUE(VLOOKUP($C24,Compiled!$E$7:$KT$66,MATCH(CT$15,Compiled!$E$1:$KT$1,0),FALSE),"#,##0")) -> 0 | CU24: =IF(ISNUMBER(FIND("/",CU$15)),TEXT(VLOOKUP($C24,Compiled!$E$7:$KT$66,MATCH(CU$15,Compiled!$E$1:$KT$1,0),FALSE),"0.00%"),_xlfn.NUMBERVALUE(VLOOKUP($C24,Compiled!$E$7:$KT$66,MATCH(CU$15,Compiled!$E$1:$KT$1,0),FALSE),"#,##0")) -> 0 | CV24: =IF(ISNUMBER(FIND("/",CV$15)),HLOOKUP(CV$15,Compiled!$F$1:$KT$65,MATCH($C24,Compiled!$E$1:$E$65,0),FALSE),HLOOKUP($C24,Compiled!$F$1:$KT$65,MATCH($C24,Compiled!$E$1:$E$65,0),FALSE)) -> 0.00% | CW24: =IF(CV24="0.00%","",IF(CV24<VLOOKUP(CU$16,'Dropdown control panel'!$B$76:$D$140,2,FALSE),CT24*VLOOKUP(CU$16,'Dropdown control panel'!$B$76:$D$140,2,FALSE)-CU24,"On Target")) -> 
B25: =Compiled!D13 -> Leaside | C25: =Compiled!E13 -> PCN7 | D25: =IF(ISNUMBER(FIND("/",D$15)),TEXT(VLOOKUP($C25,Compiled!$E$7:$CE$66,MATCH($D$15,Compiled!$E$1:$CE$1,0),FALSE),"0.00%"),_xlfn.NUMBERVALUE(VLOOKUP($C25,Compiled!$E$7:$CE$66,MATCH($D$15,Compiled!$E$1:$CE$1,0),FALSE),"#,##0")) -> 0 | E25: =IF(ISNUMBER(FIND("/",E$15)),TEXT(VLOOKUP($C25,Compiled!$E$7:$CE$66,MATCH($E$15,Compiled!$E$1:$CE$1,0),FALSE),"0.00%"),_xlfn.NUMBERVALUE(VLOOKUP($C25,Compiled!$E$7:$CE$66,MATCH($E$15,Compiled!$E$1:$CE$1,0),FALSE),"#,##0")) -> 0 | F25: =IF(ISNUMBER(FIND("/",$F$15)),HLOOKUP($F$15,Compiled!$F$1:$CC$65,MATCH($C25,Compiled!$E$1:$E$65,0),FALSE),HLOOKUP($C25,Compiled!$F$1:$CC$65,MATCH($C25,Compiled!$E$1:$E$65,0),FALSE)) -> 0.00% | G25: =IF($F25="0.00%","",IF($F25<VLOOKUP($E$16,'Dropdown control panel'!$B$76:$D$137,2,FALSE),$D25*VLOOKUP($E$16,'Dropdown control panel'!$B$76:$D$137,2,FALSE)-$E25,"On Target")) ->  | H25: =IF(ISNUMBER(FIND("/",H$15)),TEXT(VLOOKUP($C25,Compiled!$E$7:$CE$66,MATCH(H$15,Compiled!$E$1:$CE$1,0),FALSE),"0.00%"),_xlfn.NUMBERVALUE(VLOOKUP($C25,Compiled!$E$7:$CE$66,MATCH(H$15,Compiled!$E$1:$CE$1,0),FALSE),"#,##0")) -> 0 | I25: =IF(ISNUMBER(FIND("/",I$15)),TEXT(VLOOKUP($C25,Compiled!$E$7:$CE$66,MATCH(I$15,Compiled!$E$1:$CE$1,0),FALSE),"0.00%"),_xlfn.NUMBERVALUE(VLOOKUP($C25,Compiled!$E$7:$CE$66,MATCH(I$15,Compiled!$E$1:$CE$1,0),FALSE),"#,##0")) -> 0 | J25: =IF(ISNUMBER(FIND("/",J$15)),HLOOKUP(J$15,Compiled!$F$1:$CC$65,MATCH($C25,Compiled!$E$1:$E$65,0),FALSE),HLOOKUP($C25,Compiled!$F$1:$CC$65,MATCH($C25,Compiled!$E$1:$E$65,0),FALSE)) -> 0.00% | K25: =IF($J25="0.00%","",IF($J25<VLOOKUP($I$16,'Dropdown control panel'!$B$76:$D$137,2,FALSE),$H25*VLOOKUP($I$16,'Dropdown control panel'!$B$76:$D$137,2,FALSE)-$I25,"On Target")) ->  | L25: =IF(ISNUMBER(FIND("/",L$15)),TEXT(VLOOKUP($C25,Compiled!$E$7:$CE$66,MATCH(L$15,Compiled!$E$1:$CE$1,0),FALSE),"0.00%"),_xlfn.NUMBERVALUE(VLOOKUP($C25,Compiled!$E$7:$CE$66,MATCH(L$15,Compiled!$E$1:$CE$1,0),FALSE),"#,##0")) -> 0 | M25: =IF(ISNUMBER(FIND("/",M$15)),TEXT(VLOOKUP($C25,Compiled!$E$7:$CE$66,MATCH(M$15,Compiled!$E$1:$CE$1,0),FALSE),"0.00%"),_xlfn.NUMBERVALUE(VLOOKUP($C25,Compiled!$E$7:$CE$66,MATCH(M$15,Compiled!$E$1:$CE$1,0),FALSE),"#,##0")) -> 0 | N25: =IF(ISNUMBER(FIND("/",N$15)),HLOOKUP(N$15,Compiled!$F$1:$CC$65,MATCH($C25,Compiled!$E$1:$E$65,0),FALSE),HLOOKUP($C25,Compiled!$F$1:$CC$65,MATCH($C25,Compiled!$E$1:$E$65,0),FALSE)) -> 0.00% | O25: =IF(N25="0.00%","",IF(N25<VLOOKUP(M$16,'Dropdown control panel'!$B$76:$D$137,2,FALSE),L25*VLOOKUP(M$16,'Dropdown control panel'!$B$76:$D$137,2,FALSE)-M25,"On Target")) ->  | Q25: =IF(ISNUMBER(FIND("/",Q$15)),TEXT(VLOOKUP($C25,Compiled!$E$7:$KA$66,MATCH(Q$15,Compiled!$E$1:$KA$1,0),FALSE),"0.00%"),_xlfn.NUMBERVALUE(VLOOKUP($C25,Compiled!$E$7:$KA$66,MATCH(Q$15,Compiled!$E$1:$KA$1,0),FALSE),"#,##0")) -> 0 | R25: =IF(ISNUMBER(FIND("/",R$15)),TEXT(VLOOKUP($C25,Compiled!$E$7:$KA$66,MATCH(R$15,Compiled!$E$1:$KA$1,0),FALSE),"0.00%"),_xlfn.NUMBERVALUE(VLOOKUP($C25,Compiled!$E$7:$KA$66,MATCH(R$15,Compiled!$E$1:$KA$1,0),FALSE),"#,##0")) -> 0 | S25: =IF(ISNUMBER(FIND("/",S$15)),HLOOKUP(S$15,Compiled!$F$1:$CF$65,MATCH($C25,Compiled!$E$1:$E$65,0),FALSE),HLOOKUP($C25,Compiled!$F$1:$CF$65,MATCH($C25,Compiled!$E$1:$E$65,0),FALSE)) -> 0.00% | T25: =IF(S25="0.00%","",IF(S25<VLOOKUP(R$16,'Dropdown control panel'!$B$76:$D$143,2,FALSE),Q25*VLOOKUP(R$16,'Dropdown control panel'!$B$76:$E$143,2,FALSE)-R25,"On Target")) ->  | V25: =IF(ISNUMBER(FIND("/",V$15)),TEXT(VLOOKUP($C25,Compiled!$E$7:$CE$66,MATCH(V$15,Compiled!$E$1:$CE$1,0),FALSE),"0.00%"),_xlfn.NUMBERVALUE(VLOOKUP($C25,Compiled!$E$7:$CE$66,MATCH(V$15,Compiled!$E$1:$CE$1,0),FALSE),"#,##0")) -> 0 | W25: =IF(ISNUMBER(FIND("/",W$15)),TEXT(VLOOKUP($C25,Compiled!$E$7:$CE$66,MATCH(W$15,Compiled!$E$1:$CE$1,0),FALSE),"0.00%"),_xlfn.NUMBERVALUE(VLOOKUP($C25,Compiled!$E$7:$CE$66,MATCH(W$15,Compiled!$E$1:$CE$1,0),FALSE),"#,##0")) -> 0 | X25: =IF(ISNUMBER(FIND("/",X$15)),HLOOKUP(X$15,Compiled!$F$1:$CC$65,MATCH($C25,Compiled!$E$1:$E$65,0),FALSE),HLOOKUP($C25,Compiled!$F$1:$CC$65,MATCH($C25,Compiled!$E$1:$E$65,0),FALSE)) -> 0.00% | Y25: =IF(X25="0.00%","",IF(X25<VLOOKUP(W$16,'Dropdown control panel'!$B$76:$D$137,2,FALSE),V25*VLOOKUP(W$16,'Dropdown control panel'!$B$76:$D$137,2,FALSE)-W25,"On Target")) ->  | AA25: =IF(ISNUMBER(FIND("/",AA$15)),TEXT(VLOOKUP($C25,Compiled!$E$7:$CE$66,MATCH(AA$15,Compiled!$E$1:$CE$1,0),FALSE),"0.00%"),_xlfn.NUMBERVALUE(VLOOKUP($C25,Compiled!$E$7:$CE$66,MATCH(AA$15,Compiled!$E$1:$CE$1,0),FALSE),"#,##0")) -> 0 | AB25: =IF(ISNUMBER(FIND("/",AB$15)),TEXT(VLOOKUP($C25,Compiled!$E$7:$CE$66,MATCH(AB$15,Compiled!$E$1:$CE$1,0),FALSE),"0.00%"),_xlfn.NUMBERVALUE(VLOOKUP($C25,Compiled!$E$7:$CE$66,MATCH(AB$15,Compiled!$E$1:$CE$1,0),FALSE),"#,##0")) -> 0 | AC25: =IF(ISNUMBER(FIND("/",AC$15)),HLOOKUP(AC$15,Compiled!$F$1:$CC$65,MATCH($C25,Compiled!$E$1:$E$65,0),FALSE),HLOOKUP($C25,Compiled!$F$1:$CC$65,MATCH($C25,Compiled!$E$1:$E$65,0),FALSE)) -> 0.00% | AD25: =IF(AC25="0.00%","",IF(AC25<VLOOKUP(AB$16,'Dropdown control panel'!$B$76:$D$137,2,FALSE),AA25*VLOOKUP(AB$16,'Dropdown control panel'!$B$76:$D$137,2,FALSE)-AB25,"On Target")) ->  | AE25: =IF(ISNUMBER(FIND("/",AE$15)),TEXT(VLOOKUP($C25,Compiled!$E$7:$CE$66,MATCH(AE$15,Compiled!$E$1:$CE$1,0),FALSE),"0.00%"),_xlfn.NUMBERVALUE(VLOOKUP($C25,Compiled!$E$7:$CE$66,MATCH(AE$15,Compiled!$E$1:$CE$1,0),FALSE),"#,##0")) -> 0 | AF25: =IF(ISNUMBER(FIND("/",AF$15)),TEXT(VLOOKUP($C25,Compiled!$E$7:$CE$66,MATCH(AF$15,Compiled!$E$1:$CE$1,0),FALSE),"0.00%"),_xlfn.NUMBERVALUE(VLOOKUP($C25,Compiled!$E$7:$CE$66,MATCH(AF$15,Compiled!$E$1:$CE$1,0),FALSE),"#,##0")) -> 0 | AG25: =IF(ISNUMBER(FIND("/",AG$15)),HLOOKUP(AG$15,Compiled!$F$1:$CC$65,MATCH($C25,Compiled!$E$1:$E$65,0),FALSE),HLOOKUP($C25,Compiled!$F$1:$CC$65,MATCH($C25,Compiled!$E$1:$E$65,0),FALSE)) -> 0.00% | AH25: =IF(AG25="0.00%","",IF(AG25<VLOOKUP(AF$16,'Dropdown control panel'!$B$76:$D$137,2,FALSE),AE25*VLOOKUP(AF$16,'Dropdown control panel'!$B$76:$D$137,2,FALSE)-AF25,"On Target")) ->  | AJ25: =IF(ISNUMBER(FIND("/",AJ$15)),TEXT(VLOOKUP($C25,Compiled!$E$7:$CE$66,MATCH(AJ$15,Compiled!$E$1:$CE$1,0),FALSE),"0.00%"),_xlfn.NUMBERVALUE(VLOOKUP($C25,Compiled!$E$7:$CE$66,MATCH(AJ$15,Compiled!$E$1:$CE$1,0),FALSE),"#,##0")) -> 0 | AK25: =IF(ISNUMBER(FIND("/",AK$15)),TEXT(VLOOKUP($C25,Compiled!$E$7:$CE$66,MATCH(AK$15,Compiled!$E$1:$CE$1,0),FALSE),"0.00%"),_xlfn.NUMBERVALUE(VLOOKUP($C25,Compiled!$E$7:$CE$66,MATCH(AK$15,Compiled!$E$1:$CE$1,0),FALSE),"#,##0")) -> 0 | AL25: =IF(ISNUMBER(FIND("/",AL$15)),HLOOKUP(AL$15,Compiled!$F$1:$CC$65,MATCH($C25,Compiled!$E$1:$E$65,0),FALSE),HLOOKUP($C25,Compiled!$F$1:$CC$65,MATCH($C25,Compiled!$E$1:$E$65,0),FALSE)) -> 0.00% | AM25: =IF(AL25="0.00%","",IF(AL25<VLOOKUP(AK$16,'Dropdown control panel'!$B$76:$D$137,2,FALSE),AJ25*VLOOKUP(AK$16,'Dropdown control panel'!$B$76:$D$137,2,FALSE)-AK25,"On Target")) ->  | AO25: =IF(ISNUMBER(FIND("/",AO$15)),TEXT(VLOOKUP($C25,Compiled!$E$7:$CE$66,MATCH(AO$15,Compiled!$E$1:$CE$1,0),FALSE),"0.00%"),_xlfn.NUMBERVALUE(VLOOKUP($C25,Compiled!$E$7:$CE$66,MATCH(AO$15,Compiled!$E$1:$CE$1,0),FALSE),"#,##0")) -> 0 | AP25: =IF(ISNUMBER(FIND("/",AP$15)),TEXT(VLOOKUP($C25,Compiled!$E$7:$CE$66,MATCH(AP$15,Compiled!$E$1:$CE$1,0),FALSE),"0.00%"),_xlfn.NUMBERVALUE(VLOOKUP($C25,Compiled!$E$7:$CE$66,MATCH(AP$15,Compiled!$E$1:$CE$1,0),FALSE),"#,##0")) -> 0 | AQ25: =IF(ISNUMBER(FIND("/",AQ$15)),HLOOKUP(AQ$15,Compiled!$F$1:$CC$65,MATCH($C25,Compiled!$E$1:$E$65,0),FALSE),HLOOKUP($C25,Compiled!$F$1:$CC$65,MATCH($C25,Compiled!$E$1:$E$65,0),FALSE)) -> 0.00% | AR25: =IF(AQ25="0.00%","",IF(AQ25<VLOOKUP(AP$16,'Dropdown control panel'!$B$76:$D$137,2,FALSE),AO25*VLOOKUP(AP$16,'Dropdown control panel'!$B$76:$D$137,2,FALSE)-AP25,"On Target")) ->  | AS25: =IF(ISNUMBER(FIND("/",AS$15)),TEXT(VLOOKUP($C25,Compiled!$E$7:$CE$66,MATCH(AS$15,Compiled!$E$1:$CE$1,0),FALSE),"0.00%"),_xlfn.NUMBERVALUE(VLOOKUP($C25,Compiled!$E$7:$CE$66,MATCH(AS$15,Compiled!$E$1:$CE$1,0),FALSE),"#,##0")) -> 0 | AT25: =IF(ISNUMBER(FIND("/",AT$15)),HLOOKUP(AT$15,Compiled!$F$1:$CC$65,MATCH($C25,Compiled!$E$1:$E$65,0),FALSE),HLOOKUP($C25,Compiled!$F$1:$CC$65,MATCH($C25,Compiled!$E$1:$E$65,0),FALSE)) -> 0.00% | AU25: =IF(AT25="0.00%","",IF(AT25<VLOOKUP(AS$16,'Dropdown control panel'!$B$76:$D$137,2,FALSE),AP25*VLOOKUP(AS$16,'Dropdown control panel'!$B$76:$D$137,2,FALSE)-AS25,"On Target")) ->  | AW25: =IF(ISNUMBER(FIND("/",AW$15)),TEXT(VLOOKUP($C25,Compiled!$E$7:$CE$66,MATCH(AW$15,Compiled!$E$1:$CE$1,0),FALSE),"0.00%"),_xlfn.NUMBERVALUE(VLOOKUP($C25,Compiled!$E$7:$CE$66,MATCH(AW$15,Compiled!$E$1:$CE$1,0),FALSE),"#,##0")) -> 0 | AX25: =IF(ISNUMBER(FIND("/",AX$15)),TEXT(VLOOKUP($C25,Compiled!$E$7:$CE$66,MATCH(AX$15,Compiled!$E$1:$CE$1,0),FALSE),"0.00%"),_xlfn.NUMBERVALUE(VLOOKUP($C25,Compiled!$E$7:$CE$66,MATCH(AX$15,Compiled!$E$1:$CE$1,0),FALSE),"#,##0")) -> 0 | AY25: =IF(ISNUMBER(FIND("/",AY$15)),HLOOKUP(AY$15,Compiled!$F$1:$CC$65,MATCH($C25,Compiled!$E$1:$E$65,0),FALSE),HLOOKUP($C25,Compiled!$F$1:$CC$65,MATCH($C25,Compiled!$E$1:$E$65,0),FALSE)) -> 0.00% | AZ25: =IF(AY25="0.00%","",IF(AY25<VLOOKUP(AX$16,'Dropdown control panel'!$B$76:$D$137,2,FALSE),AW25*VLOOKUP(AX$16,'Dropdown control panel'!$B$76:$D$137,2,FALSE)-AX25,"On Target")) ->  | BB25: =IF(ISNUMBER(FIND("/",BB$15)),TEXT(VLOOKUP($C25,Compiled!$E$7:$KA$66,MATCH(BB$15,Compiled!$E$1:$KA$1,0),FALSE),"0.00%"),_xlfn.NUMBERVALUE(VLOOKUP($C25,Compiled!$E$7:$KA$66,MATCH(BB$15,Compiled!$E$1:$KA$1,0),FALSE),"#,##0")) -> 0 | BC25: =IF(ISNUMBER(FIND("/",BC$15)),HLOOKUP(BC$15,Compiled!$F$1:$KA$65,MATCH($C25,Compiled!$E$1:$E$65,0),FALSE),HLOOKUP($C25,Compiled!$F$1:$KA$65,MATCH($C25,Compiled!$E$1:$E$65,0),FALSE)) -> 0.00% | BD25: =IF(BC25="0.00%","",IF(BC25<VLOOKUP(BB$16,'Dropdown control panel'!$B$76:$D$137,2,FALSE),AW25*VLOOKUP(BB$16,'Dropdown control panel'!$B$76:$D$137,2,FALSE)-BB25,"On Target")) ->  | BF25: =IF(ISNUMBER(FIND("/",BF$15)),TEXT(VLOOKUP($C25,Compiled!$E$7:$CE$66,MATCH(BF$15,Compiled!$E$1:$CE$1,0),FALSE),"0.00%"),_xlfn.NUMBERVALUE(VLOOKUP($C25,Compiled!$E$7:$CE$66,MATCH(BF$15,Compiled!$E$1:$CE$1,0),FALSE),"#,##0")) -> 0 | BG25: =IF(ISNUMBER(FIND("/",BG$15)),TEXT(VLOOKUP($C25,Compiled!$E$7:$CE$66,MATCH(BG$15,Compiled!$E$1:$CE$1,0),FALSE),"0.00%"),_xlfn.NUMBERVALUE(VLOOKUP($C25,Compiled!$E$7:$CE$66,MATCH(BG$15,Compiled!$E$1:$CE$1,0),FALSE),"#,##0")) -> 0 | BH25: =IF(ISNUMBER(FIND("/",BH$15)),HLOOKUP(BH$15,Compiled!$F$1:$CC$65,MATCH($C25,Compiled!$E$1:$E$65,0),FALSE),HLOOKUP($C25,Compiled!$F$1:$CC$65,MATCH($C25,Compiled!$E$1:$E$65,0),FALSE)) -> 0.00% | BI25: =IF(BH25="0.00%","",IF(BH25<VLOOKUP(BG$16,'Dropdown control panel'!$B$76:$D$137,2,FALSE),BF25*VLOOKUP(BG$16,'Dropdown control panel'!$B$76:$D$137,2,FALSE)-BG25,"On Target")) ->  | BK25: =IF(ISNUMBER(FIND("/",BK$15)),TEXT(VLOOKUP($C25,Compiled!$E$7:$KH$66,MATCH(BK$15,Compiled!$E$1:$KH$1,0),FALSE),"0.00%"),_xlfn.NUMBERVALUE(VLOOKUP($C25,Compiled!$E$7:$KH$66,MATCH(BK$15,Compiled!$E$1:$KH$1,0),FALSE),"#,##0")) -> 0 | BL25: =IF(ISNUMBER(FIND("/",BL$15)),TEXT(VLOOKUP($C25,Compiled!$E$7:$KH$66,MATCH(BL$15,Compiled!$E$1:$KH$1,0),FALSE),"0.00%"),_xlfn.NUMBERVALUE(VLOOKUP($C25,Compiled!$E$7:$KH$66,MATCH(BL$15,Compiled!$E$1:$KH$1,0),FALSE),"#,##0")) -> 0 | BM25: =IF(ISNUMBER(FIND("/",BM$15)),HLOOKUP(BM$15,Compiled!$F$1:$KH$65,MATCH($C25,Compiled!$E$1:$E$65,0),FALSE),HLOOKUP($C25,Compiled!$F$1:$KH$65,MATCH($C25,Compiled!$E$1:$E$65,0),FALSE)) -> 0.00% | BN25: =IF(BM25="0.00%","",IF(BM25<VLOOKUP(BL$16,'Dropdown control panel'!$B$76:$D$137,2,FALSE),BK25*VLOOKUP(BL$16,'Dropdown control panel'!$B$76:$D$137,2,FALSE)-BL25,"On Target")) ->  | BO25: =IF(ISNUMBER(FIND("/",BO$15)),TEXT(VLOOKUP($C25,Compiled!$E$7:$KH$66,MATCH(BO$15,Compiled!$E$1:$KH$1,0),FALSE),"0.00%"),_xlfn.NUMBERVALUE(VLOOKUP($C25,Compiled!$E$7:$KH$66,MATCH(BO$15,Compiled!$E$1:$KH$1,0),FALSE),"#,##0")) -> 0 | BP25: =IF(ISNUMBER(FIND("/",BP$15)),HLOOKUP(BP$15,Compiled!$F$1:$KH$65,MATCH($C25,Compiled!$E$1:$E$65,0),FALSE),HLOOKUP($C25,Compiled!$F$1:$KH$65,MATCH($C25,Compiled!$E$1:$E$65,0),FALSE)) -> 0.00% | BQ25: =IF(BP25="0.00%","",IF(BP25<VLOOKUP(BO$16,'Dropdown control panel'!$B$76:$D$137,2,FALSE),BF25*VLOOKUP(BO$16,'Dropdown control panel'!$B$76:$D$137,2,FALSE)-BO25,"On Target")) ->  | BR25: =IF(ISNUMBER(FIND("/",BR$15)),TEXT(VLOOKUP($C25,Compiled!$E$7:$KH$66,MATCH(BR$15,Compiled!$E$1:$KH$1,0),FALSE),"0.00%"),_xlfn.NUMBERVALUE(VLOOKUP($C25,Compiled!$E$7:$KH$66,MATCH(BR$15,Compiled!$E$1:$KH$1,0),FALSE),"#,##0")) -> 0 | BS25: =IF(ISNUMBER(FIND("/",BS$15)),HLOOKUP(BS$15,Compiled!$F$1:$KH$65,MATCH($C25,Compiled!$E$1:$E$65,0),FALSE),HLOOKUP($C25,Compiled!$F$1:$KH$65,MATCH($C25,Compiled!$E$1:$E$65,0),FALSE)) -> 0.00% | BT25: =IF(BS25="0.00%","",IF(BS25<VLOOKUP(BR$16,'Dropdown control panel'!$B$76:$D$137,2,FALSE),BF25*VLOOKUP(BR$16,'Dropdown control panel'!$B$76:$D$137,2,FALSE)-BR25,"On Target")) ->  | BV25: =IF(ISNUMBER(FIND("/",BV$15)),TEXT(VLOOKUP($C25,Compiled!$E$7:$CE$66,MATCH(BV$15,Compiled!$E$1:$CE$1,0),FALSE),"0.00%"),_xlfn.NUMBERVALUE(VLOOKUP($C25,Compiled!$E$7:$CE$66,MATCH(BV$15,Compiled!$E$1:$CE$1,0),FALSE),"#,##0")) -> 0 | BW25: =IF(ISNUMBER(FIND("/",BW$15)),TEXT(VLOOKUP($C25,Compiled!$E$7:$CE$66,MATCH(BW$15,Compiled!$E$1:$CE$1,0),FALSE),"0.00%"),_xlfn.NUMBERVALUE(VLOOKUP($C25,Compiled!$E$7:$CE$66,MATCH(BW$15,Compiled!$E$1:$CE$1,0),FALSE),"#,##0")) -> 0 | BX25: =IF(ISNUMBER(FIND("/",BX$15)),HLOOKUP(BX$15,Compiled!$F$1:$CC$65,MATCH($C25,Compiled!$E$1:$E$65,0),FALSE),HLOOKUP($C25,Compiled!$F$1:$CC$65,MATCH($C25,Compiled!$E$1:$E$65,0),FALSE)) -> 0.00% | BY25: =IF(BX25="0.00%","",IF(BX25<VLOOKUP(BW$16,'Dropdown control panel'!$B$76:$D$137,2,FALSE),BV25*VLOOKUP(BW$16,'Dropdown control panel'!$B$76:$D$137,2,FALSE)-BW25,"On Target")) ->  | CA25: =IF(ISNUMBER(FIND("/",CA$15)),TEXT(VLOOKUP($C25,Compiled!$E$7:$CE$66,MATCH(CA$15,Compiled!$E$1:$CE$1,0),FALSE),"0.00%"),_xlfn.NUMBERVALUE(VLOOKUP($C25,Compiled!$E$7:$CE$66,MATCH(CA$15,Compiled!$E$1:$CE$1,0),FALSE),"#,##0")) -> 0 | CB25: =IF(ISNUMBER(FIND("/",CB$15)),TEXT(VLOOKUP($C25,Compiled!$E$7:$CE$66,MATCH(CB$15,Compiled!$E$1:$CE$1,0),FALSE),"0.00%"),_xlfn.NUMBERVALUE(VLOOKUP($C25,Compiled!$E$7:$CE$66,MATCH(CB$15,Compiled!$E$1:$CE$1,0),FALSE),"#,##0")) -> 0 | CC25: =IF(ISNUMBER(FIND("/",CC$15)),HLOOKUP(CC$15,Compiled!$F$1:$CC$65,MATCH($C25,Compiled!$E$1:$E$65,0),FALSE),HLOOKUP($C25,Compiled!$F$1:$CC$65,MATCH($C25,Compiled!$E$1:$E$65,0),FALSE)) -> 0.00% | CD25: =IF(CC25="0.00%","",IF(CC25<VLOOKUP(CB$16,'Dropdown control panel'!$B$76:$D$137,2,FALSE),CA25*VLOOKUP(CB$16,'Dropdown control panel'!$B$76:$D$137,2,FALSE)-CB25,"On Target")) ->  | CF25: =IF(ISNUMBER(FIND("/",CF$15)),TEXT(VLOOKUP($C25,Compiled!$E$7:$CE$66,MATCH(CF$15,Compiled!$E$1:$CE$1,0),FALSE),"0.00%"),_xlfn.NUMBERVALUE(VLOOKUP($C25,Compiled!$E$7:$CE$66,MATCH(CF$15,Compiled!$E$1:$CE$1,0),FALSE),"#,##0")) -> 0 | CG25: =IF(ISNUMBER(FIND("/",CG$15)),TEXT(VLOOKUP($C25,Compiled!$E$7:$CE$66,MATCH(CG$15,Compiled!$E$1:$CE$1,0),FALSE),"0.00%"),_xlfn.NUMBERVALUE(VLOOKUP($C25,Compiled!$E$7:$CE$66,MATCH(CG$15,Compiled!$E$1:$CE$1,0),FALSE),"#,##0")) -> 0 | CH25: =IF(ISNUMBER(FIND("/",CH$15)),HLOOKUP(CH$15,Compiled!$F$1:$CC$65,MATCH($C25,Compiled!$E$1:$E$65,0),FALSE),HLOOKUP($C25,Compiled!$F$1:$CC$65,MATCH($C25,Compiled!$E$1:$E$65,0),FALSE)) -> 0.00% | CI25: =IF(CH25="0.00%","",IF(CH25<VLOOKUP(CG$16,'Dropdown control panel'!$B$76:$D$137,2,FALSE),CF25*VLOOKUP(CG$16,'Dropdown control panel'!$B$76:$D$137,2,FALSE)-CG25,"On Target")) ->  | CJ25: =IF(ISNUMBER(FIND("/",CJ$15)),TEXT(VLOOKUP($C25,Compiled!$E$7:$CE$66,MATCH(CJ$15,Compiled!$E$1:$CE$1,0),FALSE),"0.00%"),_xlfn.NUMBERVALUE(VLOOKUP($C25,Compiled!$E$7:$CE$66,MATCH(CJ$15,Compiled!$E$1:$CE$1,0),FALSE),"#,##0")) -> 0 | CK25: =IF(ISNUMBER(FIND("/",CK$15)),HLOOKUP(CK$15,Compiled!$F$1:$CC$65,MATCH($C25,Compiled!$E$1:$E$65,0),FALSE),HLOOKUP($C25,Compiled!$F$1:$CC$65,MATCH($C25,Compiled!$E$1:$E$65,0),FALSE)) -> 0.00% | CL25: =IF(CK25="0.00%","",IF(CK25<VLOOKUP(CJ$16,'Dropdown control panel'!$B$76:$D$137,2,FALSE),CF25*VLOOKUP(CJ$16,'Dropdown control panel'!$B$76:$D$137,2,FALSE)-CJ25,"On Target")) ->  | CT25: =IF(ISNUMBER(FIND("/",CT$15)),TEXT(VLOOKUP($C25,Compiled!$E$7:$KT$66,MATCH(CT$15,Compiled!$E$1:$KT$1,0),FALSE),"0.00%"),_xlfn.NUMBERVALUE(VLOOKUP($C25,Compiled!$E$7:$KT$66,MATCH(CT$15,Compiled!$E$1:$KT$1,0),FALSE),"#,##0")) -> 0 | CU25: =IF(ISNUMBER(FIND("/",CU$15)),TEXT(VLOOKUP($C25,Compiled!$E$7:$KT$66,MATCH(CU$15,Compiled!$E$1:$KT$1,0),FALSE),"0.00%"),_xlfn.NUMBERVALUE(VLOOKUP($C25,Compiled!$E$7:$KT$66,MATCH(CU$15,Compiled!$E$1:$KT$1,0),FALSE),"#,##0")) -> 0 | CV25: =IF(ISNUMBER(FIND("/",CV$15)),HLOOKUP(CV$15,Compiled!$F$1:$KT$65,MATCH($C25,Compiled!$E$1:$E$65,0),FALSE),HLOOKUP($C25,Compiled!$F$1:$KT$65,MATCH($C25,Compiled!$E$1:$E$65,0),FALSE)) -> 0.00% | CW25: =IF(CV25="0.00%","",IF(CV25<VLOOKUP(CU$16,'Dropdown control panel'!$B$76:$D$140,2,FALSE),CT25*VLOOKUP(CU$16,'Dropdown control panel'!$B$76:$D$140,2,FALSE)-CU25,"On Target")) -> 
B26: =Compiled!D14 -> Stratford | C26: =Compiled!E14 -> PCN8 | D26: =IF(ISNUMBER(FIND("/",D$15)),TEXT(VLOOKUP($C26,Compiled!$E$7:$CE$66,MATCH($D$15,Compiled!$E$1:$CE$1,0),FALSE),"0.00%"),_xlfn.NUMBERVALUE(VLOOKUP($C26,Compiled!$E$7:$CE$66,MATCH($D$15,Compiled!$E$1:$CE$1,0),FALSE),"#,##0")) -> 959 | E26: =IF(ISNUMBER(FIND("/",E$15)),TEXT(VLOOKUP($C26,Compiled!$E$7:$CE$66,MATCH($E$15,Compiled!$E$1:$CE$1,0),FALSE),"0.00%"),_xlfn.NUMBERVALUE(VLOOKUP($C26,Compiled!$E$7:$CE$66,MATCH($E$15,Compiled!$E$1:$CE$1,0),FALSE),"#,##0")) -> 324 | F26: =IF(ISNUMBER(FIND("/",$F$15)),HLOOKUP($F$15,Compiled!$F$1:$CC$65,MATCH($C26,Compiled!$E$1:$E$65,0),FALSE),HLOOKUP($C26,Compiled!$F$1:$CC$65,MATCH($C26,Compiled!$E$1:$E$65,0),FALSE)) -> 0.338 | G26: =IF($F26="0.00%","",IF($F26<VLOOKUP($E$16,'Dropdown control panel'!$B$76:$D$137,2,FALSE),$D26*VLOOKUP($E$16,'Dropdown control panel'!$B$76:$D$137,2,FALSE)-$E26,"On Target")) -> 203.45 | H26: =IF(ISNUMBER(FIND("/",H$15)),TEXT(VLOOKUP($C26,Compiled!$E$7:$CE$66,MATCH(H$15,Compiled!$E$1:$CE$1,0),FALSE),"0.00%"),_xlfn.NUMBERVALUE(VLOOKUP($C26,Compiled!$E$7:$CE$66,MATCH(H$15,Compiled!$E$1:$CE$1,0),FALSE),"#,##0")) -> 42 | I26: =IF(ISNUMBER(FIND("/",I$15)),TEXT(VLOOKUP($C26,Compiled!$E$7:$CE$66,MATCH(I$15,Compiled!$E$1:$CE$1,0),FALSE),"0.00%"),_xlfn.NUMBERVALUE(VLOOKUP($C26,Compiled!$E$7:$CE$66,MATCH(I$15,Compiled!$E$1:$CE$1,0),FALSE),"#,##0")) -> 5 | J26: =IF(ISNUMBER(FIND("/",J$15)),HLOOKUP(J$15,Compiled!$F$1:$CC$65,MATCH($C26,Compiled!$E$1:$E$65,0),FALSE),HLOOKUP($C26,Compiled!$F$1:$CC$65,MATCH($C26,Compiled!$E$1:$E$65,0),FALSE)) -> 0.119 | K26: =IF($J26="0.00%","",IF($J26<VLOOKUP($I$16,'Dropdown control panel'!$B$76:$D$137,2,FALSE),$H26*VLOOKUP($I$16,'Dropdown control panel'!$B$76:$D$137,2,FALSE)-$I26,"On Target")) -> 16 | L26: =IF(ISNUMBER(FIND("/",L$15)),TEXT(VLOOKUP($C26,Compiled!$E$7:$CE$66,MATCH(L$15,Compiled!$E$1:$CE$1,0),FALSE),"0.00%"),_xlfn.NUMBERVALUE(VLOOKUP($C26,Compiled!$E$7:$CE$66,MATCH(L$15,Compiled!$E$1:$CE$1,0),FALSE),"#,##0")) -> 3 | M26: =IF(ISNUMBER(FIND("/",M$15)),TEXT(VLOOKUP($C26,Compiled!$E$7:$CE$66,MATCH(M$15,Compiled!$E$1:$CE$1,0),FALSE),"0.00%"),_xlfn.NUMBERVALUE(VLOOKUP($C26,Compiled!$E$7:$CE$66,MATCH(M$15,Compiled!$E$1:$CE$1,0),FALSE),"#,##0")) -> 2 | N26: =IF(ISNUMBER(FIND("/",N$15)),HLOOKUP(N$15,Compiled!$F$1:$CC$65,MATCH($C26,Compiled!$E$1:$E$65,0),FALSE),HLOOKUP($C26,Compiled!$F$1:$CC$65,MATCH($C26,Compiled!$E$1:$E$65,0),FALSE)) -> 0.667 | O26: =IF(N26="0.00%","",IF(N26<VLOOKUP(M$16,'Dropdown control panel'!$B$76:$D$137,2,FALSE),L26*VLOOKUP(M$16,'Dropdown control panel'!$B$76:$D$137,2,FALSE)-M26,"On Target")) -> On Target | Q26: =IF(ISNUMBER(FIND("/",Q$15)),TEXT(VLOOKUP($C26,Compiled!$E$7:$KA$66,MATCH(Q$15,Compiled!$E$1:$KA$1,0),FALSE),"0.00%"),_xlfn.NUMBERVALUE(VLOOKUP($C26,Compiled!$E$7:$KA$66,MATCH(Q$15,Compiled!$E$1:$KA$1,0),FALSE),"#,##0")) -> 4 | R26: =IF(ISNUMBER(FIND("/",R$15)),TEXT(VLOOKUP($C26,Compiled!$E$7:$KA$66,MATCH(R$15,Compiled!$E$1:$KA$1,0),FALSE),"0.00%"),_xlfn.NUMBERVALUE(VLOOKUP($C26,Compiled!$E$7:$KA$66,MATCH(R$15,Compiled!$E$1:$KA$1,0),FALSE),"#,##0")) -> 0 | S26: =IF(ISNUMBER(FIND("/",S$15)),HLOOKUP(S$15,Compiled!$F$1:$CF$65,MATCH($C26,Compiled!$E$1:$E$65,0),FALSE),HLOOKUP($C26,Compiled!$F$1:$CF$65,MATCH($C26,Compiled!$E$1:$E$65,0),FALSE)) -> 0 | T26: =IF(S26="0.00%","",IF(S26<VLOOKUP(R$16,'Dropdown control panel'!$B$76:$D$143,2,FALSE),Q26*VLOOKUP(R$16,'Dropdown control panel'!$B$76:$E$143,2,FALSE)-R26,"On Target")) -> 3.2 | V26: =IF(ISNUMBER(FIND("/",V$15)),TEXT(VLOOKUP($C26,Compiled!$E$7:$CE$66,MATCH(V$15,Compiled!$E$1:$CE$1,0),FALSE),"0.00%"),_xlfn.NUMBERVALUE(VLOOKUP($C26,Compiled!$E$7:$CE$66,MATCH(V$15,Compiled!$E$1:$CE$1,0),FALSE),"#,##0")) -> 8 | W26: =IF(ISNUMBER(FIND("/",W$15)),TEXT(VLOOKUP($C26,Compiled!$E$7:$CE$66,MATCH(W$15,Compiled!$E$1:$CE$1,0),FALSE),"0.00%"),_xlfn.NUMBERVALUE(VLOOKUP($C26,Compiled!$E$7:$CE$66,MATCH(W$15,Compiled!$E$1:$CE$1,0),FALSE),"#,##0")) -> 4 | X26: =IF(ISNUMBER(FIND("/",X$15)),HLOOKUP(X$15,Compiled!$F$1:$CC$65,MATCH($C26,Compiled!$E$1:$E$65,0),FALSE),HLOOKUP($C26,Compiled!$F$1:$CC$65,MATCH($C26,Compiled!$E$1:$E$65,0),FALSE)) -> 0.5 | Y26: =IF(X26="0.00%","",IF(X26<VLOOKUP(W$16,'Dropdown control panel'!$B$76:$D$137,2,FALSE),V26*VLOOKUP(W$16,'Dropdown control panel'!$B$76:$D$137,2,FALSE)-W26,"On Target")) -> 2 | AA26: =IF(ISNUMBER(FIND("/",AA$15)),TEXT(VLOOKUP($C26,Compiled!$E$7:$CE$66,MATCH(AA$15,Compiled!$E$1:$CE$1,0),FALSE),"0.00%"),_xlfn.NUMBERVALUE(VLOOKUP($C26,Compiled!$E$7:$CE$66,MATCH(AA$15,Compiled!$E$1:$CE$1,0),FALSE),"#,##0")) -> 38 | AB26: =IF(ISNUMBER(FIND("/",AB$15)),TEXT(VLOOKUP($C26,Compiled!$E$7:$CE$66,MATCH(AB$15,Compiled!$E$1:$CE$1,0),FALSE),"0.00%"),_xlfn.NUMBERVALUE(VLOOKUP($C26,Compiled!$E$7:$CE$66,MATCH(AB$15,Compiled!$E$1:$CE$1,0),FALSE),"#,##0")) -> 3 | AC26: =IF(ISNUMBER(FIND("/",AC$15)),HLOOKUP(AC$15,Compiled!$F$1:$CC$65,MATCH($C26,Compiled!$E$1:$E$65,0),FALSE),HLOOKUP($C26,Compiled!$F$1:$CC$65,MATCH($C26,Compiled!$E$1:$E$65,0),FALSE)) -> 0.079 | AD26: =IF(AC26="0.00%","",IF(AC26<VLOOKUP(AB$16,'Dropdown control panel'!$B$76:$D$137,2,FALSE),AA26*VLOOKUP(AB$16,'Dropdown control panel'!$B$76:$D$137,2,FALSE)-AB26,"On Target")) ->  | AE26: =IF(ISNUMBER(FIND("/",AE$15)),TEXT(VLOOKUP($C26,Compiled!$E$7:$CE$66,MATCH(AE$15,Compiled!$E$1:$CE$1,0),FALSE),"0.00%"),_xlfn.NUMBERVALUE(VLOOKUP($C26,Compiled!$E$7:$CE$66,MATCH(AE$15,Compiled!$E$1:$CE$1,0),FALSE),"#,##0")) -> 22 | AF26: =IF(ISNUMBER(FIND("/",AF$15)),TEXT(VLOOKUP($C26,Compiled!$E$7:$CE$66,MATCH(AF$15,Compiled!$E$1:$CE$1,0),FALSE),"0.00%"),_xlfn.NUMBERVALUE(VLOOKUP($C26,Compiled!$E$7:$CE$66,MATCH(AF$15,Compiled!$E$1:$CE$1,0),FALSE),"#,##0")) -> 0 | AG26: =IF(ISNUMBER(FIND("/",AG$15)),HLOOKUP(AG$15,Compiled!$F$1:$CC$65,MATCH($C26,Compiled!$E$1:$E$65,0),FALSE),HLOOKUP($C26,Compiled!$F$1:$CC$65,MATCH($C26,Compiled!$E$1:$E$65,0),FALSE)) -> 0 | AH26: =IF(AG26="0.00%","",IF(AG26<VLOOKUP(AF$16,'Dropdown control panel'!$B$76:$D$137,2,FALSE),AE26*VLOOKUP(AF$16,'Dropdown control panel'!$B$76:$D$137,2,FALSE)-AF26,"On Target")) -> 11 | AJ26: =IF(ISNUMBER(FIND("/",AJ$15)),TEXT(VLOOKUP($C26,Compiled!$E$7:$CE$66,MATCH(AJ$15,Compiled!$E$1:$CE$1,0),FALSE),"0.00%"),_xlfn.NUMBERVALUE(VLOOKUP($C26,Compiled!$E$7:$CE$66,MATCH(AJ$15,Compiled!$E$1:$CE$1,0),FALSE),"#,##0")) -> 6959 | AK26: =IF(ISNUMBER(FIND("/",AK$15)),TEXT(VLOOKUP($C26,Compiled!$E$7:$CE$66,MATCH(AK$15,Compiled!$E$1:$CE$1,0),FALSE),"0.00%"),_xlfn.NUMBERVALUE(VLOOKUP($C26,Compiled!$E$7:$CE$66,MATCH(AK$15,Compiled!$E$1:$CE$1,0),FALSE),"#,##0")) -> 562 | AL26: =IF(ISNUMBER(FIND("/",AL$15)),HLOOKUP(AL$15,Compiled!$F$1:$CC$65,MATCH($C26,Compiled!$E$1:$E$65,0),FALSE),HLOOKUP($C26,Compiled!$F$1:$CC$65,MATCH($C26,Compiled!$E$1:$E$65,0),FALSE)) -> 0.081 | AM26: =IF(AL26="0.00%","",IF(AL26<VLOOKUP(AK$16,'Dropdown control panel'!$B$76:$D$137,2,FALSE),AJ26*VLOOKUP(AK$16,'Dropdown control panel'!$B$76:$D$137,2,FALSE)-AK26,"On Target")) -> 2360.78 | AO26: =IF(ISNUMBER(FIND("/",AO$15)),TEXT(VLOOKUP($C26,Compiled!$E$7:$CE$66,MATCH(AO$15,Compiled!$E$1:$CE$1,0),FALSE),"0.00%"),_xlfn.NUMBERVALUE(VLOOKUP($C26,Compiled!$E$7:$CE$66,MATCH(AO$15,Compiled!$E$1:$CE$1,0),FALSE),"#,##0")) -> 30 | AP26: =IF(ISNUMBER(FIND("/",AP$15)),TEXT(VLOOKUP($C26,Compiled!$E$7:$CE$66,MATCH(AP$15,Compiled!$E$1:$CE$1,0),FALSE),"0.00%"),_xlfn.NUMBERVALUE(VLOOKUP($C26,Compiled!$E$7:$CE$66,MATCH(AP$15,Compiled!$E$1:$CE$1,0),FALSE),"#,##0")) -> 0 | AQ26: =IF(ISNUMBER(FIND("/",AQ$15)),HLOOKUP(AQ$15,Compiled!$F$1:$CC$65,MATCH($C26,Compiled!$E$1:$E$65,0),FALSE),HLOOKUP($C26,Compiled!$F$1:$CC$65,MATCH($C26,Compiled!$E$1:$E$65,0),FALSE)) -> 0 | AR26: =IF(AQ26="0.00%","",IF(AQ26<VLOOKUP(AP$16,'Dropdown control panel'!$B$76:$D$137,2,FALSE),AO26*VLOOKUP(AP$16,'Dropdown control panel'!$B$76:$D$137,2,FALSE)-AP26,"On Target")) -> 9 | AS26: =IF(ISNUMBER(FIND("/",AS$15)),TEXT(VLOOKUP($C26,Compiled!$E$7:$CE$66,MATCH(AS$15,Compiled!$E$1:$CE$1,0),FALSE),"0.00%"),_xlfn.NUMBERVALUE(VLOOKUP($C26,Compiled!$E$7:$CE$66,MATCH(AS$15,Compiled!$E$1:$CE$1,0),FALSE),"#,##0")) -> 0 | AT26: =IF(ISNUMBER(FIND("/",AT$15)),HLOOKUP(AT$15,Compiled!$F$1:$CC$65,MATCH($C26,Compiled!$E$1:$E$65,0),FALSE),HLOOKUP($C26,Compiled!$F$1:$CC$65,MATCH($C26,Compiled!$E$1:$E$65,0),FALSE)) -> 0.00% | AU26: =IF(AT26="0.00%","",IF(AT26<VLOOKUP(AS$16,'Dropdown control panel'!$B$76:$D$137,2,FALSE),AP26*VLOOKUP(AS$16,'Dropdown control panel'!$B$76:$D$137,2,FALSE)-AS26,"On Target")) ->  | AW26: =IF(ISNUMBER(FIND("/",AW$15)),TEXT(VLOOKUP($C26,Compiled!$E$7:$CE$66,MATCH(AW$15,Compiled!$E$1:$CE$1,0),FALSE),"0.00%"),_xlfn.NUMBERVALUE(VLOOKUP($C26,Compiled!$E$7:$CE$66,MATCH(AW$15,Compiled!$E$1:$CE$1,0),FALSE),"#,##0")) -> 826 | AX26: =IF(ISNUMBER(FIND("/",AX$15)),TEXT(VLOOKUP($C26,Compiled!$E$7:$CE$66,MATCH(AX$15,Compiled!$E$1:$CE$1,0),FALSE),"0.00%"),_xlfn.NUMBERVALUE(VLOOKUP($C26,Compiled!$E$7:$CE$66,MATCH(AX$15,Compiled!$E$1:$CE$1,0),FALSE),"#,##0")) -> 290 | AY26: =IF(ISNUMBER(FIND("/",AY$15)),HLOOKUP(AY$15,Compiled!$F$1:$CC$65,MATCH($C26,Compiled!$E$1:$E$65,0),FALSE),HLOOKUP($C26,Compiled!$F$1:$CC$65,MATCH($C26,Compiled!$E$1:$E$65,0),FALSE)) -> 0.351 | AZ26: =IF(AY26="0.00%","",IF(AY26<VLOOKUP(AX$16,'Dropdown control panel'!$B$76:$D$137,2,FALSE),AW26*VLOOKUP(AX$16,'Dropdown control panel'!$B$76:$D$137,2,FALSE)-AX26,"On Target")) -> 205.6 | BB26: =IF(ISNUMBER(FIND("/",BB$15)),TEXT(VLOOKUP($C26,Compiled!$E$7:$KA$66,MATCH(BB$15,Compiled!$E$1:$KA$1,0),FALSE),"0.00%"),_xlfn.NUMBERVALUE(VLOOKUP($C26,Compiled!$E$7:$KA$66,MATCH(BB$15,Compiled!$E$1:$KA$1,0),FALSE),"#,##0")) -> 336 | BC26: =IF(ISNUMBER(FIND("/",BC$15)),HLOOKUP(BC$15,Compiled!$F$1:$KA$65,MATCH($C26,Compiled!$E$1:$E$65,0),FALSE),HLOOKUP($C26,Compiled!$F$1:$KA$65,MATCH($C26,Compiled!$E$1:$E$65,0),FALSE)) -> 0.407 | BD26: =IF(BC26="0.00%","",IF(BC26<VLOOKUP(BB$16,'Dropdown control panel'!$B$76:$D$137,2,FALSE),AW26*VLOOKUP(BB$16,'Dropdown control panel'!$B$76:$D$137,2,FALSE)-BB26,"On Target")) -> 200.9 | BF26: =IF(ISNUMBER(FIND("/",BF$15)),TEXT(VLOOKUP($C26,Compiled!$E$7:$CE$66,MATCH(BF$15,Compiled!$E$1:$CE$1,0),FALSE),"0.00%"),_xlfn.NUMBERVALUE(VLOOKUP($C26,Compiled!$E$7:$CE$66,MATCH(BF$15,Compiled!$E$1:$CE$1,0),FALSE),"#,##0")) -> 3540 | BG26: =IF(ISNUMBER(FIND("/",BG$15)),TEXT(VLOOKUP($C26,Compiled!$E$7:$CE$66,MATCH(BG$15,Compiled!$E$1:$CE$1,0),FALSE),"0.00%"),_xlfn.NUMBERVALUE(VLOOKUP($C26,Compiled!$E$7:$CE$66,MATCH(BG$15,Compiled!$E$1:$CE$1,0),FALSE),"#,##0")) -> 1208 | BH26: =IF(ISNUMBER(FIND("/",BH$15)),HLOOKUP(BH$15,Compiled!$F$1:$CC$65,MATCH($C26,Compiled!$E$1:$E$65,0),FALSE),HLOOKUP($C26,Compiled!$F$1:$CC$65,MATCH($C26,Compiled!$E$1:$E$65,0),FALSE)) -> 0.341 | BI26: =IF(BH26="0.00%","",IF(BH26<VLOOKUP(BG$16,'Dropdown control panel'!$B$76:$D$137,2,FALSE),BF26*VLOOKUP(BG$16,'Dropdown control panel'!$B$76:$D$137,2,FALSE)-BG26,"On Target")) -> 1270 | BK26: =IF(ISNUMBER(FIND("/",BK$15)),TEXT(VLOOKUP($C26,Compiled!$E$7:$KH$66,MATCH(BK$15,Compiled!$E$1:$KH$1,0),FALSE),"0.00%"),_xlfn.NUMBERVALUE(VLOOKUP($C26,Compiled!$E$7:$KH$66,MATCH(BK$15,Compiled!$E$1:$KH$1,0),FALSE),"#,##0")) -> 448 | BL26: =IF(ISNUMBER(FIND("/",BL$15)),TEXT(VLOOKUP($C26,Compiled!$E$7:$KH$66,MATCH(BL$15,Compiled!$E$1:$KH$1,0),FALSE),"0.00%"),_xlfn.NUMBERVALUE(VLOOKUP($C26,Compiled!$E$7:$KH$66,MATCH(BL$15,Compiled!$E$1:$KH$1,0),FALSE),"#,##0")) -> 46 | BM26: =IF(ISNUMBER(FIND("/",BM$15)),HLOOKUP(BM$15,Compiled!$F$1:$KH$65,MATCH($C26,Compiled!$E$1:$E$65,0),FALSE),HLOOKUP($C26,Compiled!$F$1:$KH$65,MATCH($C26,Compiled!$E$1:$E$65,0),FALSE)) -> 0.103 | BN26: =IF(BM26="0.00%","",IF(BM26<VLOOKUP(BL$16,'Dropdown control panel'!$B$76:$D$137,2,FALSE),BK26*VLOOKUP(BL$16,'Dropdown control panel'!$B$76:$D$137,2,FALSE)-BL26,"On Target")) -> 267.6 | BO26: =IF(ISNUMBER(FIND("/",BO$15)),TEXT(VLOOKUP($C26,Compiled!$E$7:$KH$66,MATCH(BO$15,Compiled!$E$1:$KH$1,0),FALSE),"0.00%"),_xlfn.NUMBERVALUE(VLOOKUP($C26,Compiled!$E$7:$KH$66,MATCH(BO$15,Compiled!$E$1:$KH$1,0),FALSE),"#,##0")) -> 2070 | BP26: =IF(ISNUMBER(FIND("/",BP$15)),HLOOKUP(BP$15,Compiled!$F$1:$KH$65,MATCH($C26,Compiled!$E$1:$E$65,0),FALSE),HLOOKUP($C26,Compiled!$F$1:$KH$65,MATCH($C26,Compiled!$E$1:$E$65,0),FALSE)) -> 0.585 | BQ26: =IF(BP26="0.00%","",IF(BP26<VLOOKUP(BO$16,'Dropdown control panel'!$B$76:$D$137,2,FALSE),BF26*VLOOKUP(BO$16,'Dropdown control panel'!$B$76:$D$137,2,FALSE)-BO26,"On Target")) -> 408 | BR26: =IF(ISNUMBER(FIND("/",BR$15)),TEXT(VLOOKUP($C26,Compiled!$E$7:$KH$66,MATCH(BR$15,Compiled!$E$1:$KH$1,0),FALSE),"0.00%"),_xlfn.NUMBERVALUE(VLOOKUP($C26,Compiled!$E$7:$KH$66,MATCH(BR$15,Compiled!$E$1:$KH$1,0),FALSE),"#,##0")) -> 1709 | BS26: =IF(ISNUMBER(FIND("/",BS$15)),HLOOKUP(BS$15,Compiled!$F$1:$KH$65,MATCH($C26,Compiled!$E$1:$E$65,0),FALSE),HLOOKUP($C26,Compiled!$F$1:$KH$65,MATCH($C26,Compiled!$E$1:$E$65,0),FALSE)) -> 0.483 | BT26: =IF(BS26="0.00%","",IF(BS26<VLOOKUP(BR$16,'Dropdown control panel'!$B$76:$D$137,2,FALSE),BF26*VLOOKUP(BR$16,'Dropdown control panel'!$B$76:$D$137,2,FALSE)-BR26,"On Target")) -> 769 | BV26: =IF(ISNUMBER(FIND("/",BV$15)),TEXT(VLOOKUP($C26,Compiled!$E$7:$CE$66,MATCH(BV$15,Compiled!$E$1:$CE$1,0),FALSE),"0.00%"),_xlfn.NUMBERVALUE(VLOOKUP($C26,Compiled!$E$7:$CE$66,MATCH(BV$15,Compiled!$E$1:$CE$1,0),FALSE),"#,##0")) -> 1339 | BW26: =IF(ISNUMBER(FIND("/",BW$15)),TEXT(VLOOKUP($C26,Compiled!$E$7:$CE$66,MATCH(BW$15,Compiled!$E$1:$CE$1,0),FALSE),"0.00%"),_xlfn.NUMBERVALUE(VLOOKUP($C26,Compiled!$E$7:$CE$66,MATCH(BW$15,Compiled!$E$1:$CE$1,0),FALSE),"#,##0")) -> 273 | BX26: =IF(ISNUMBER(FIND("/",BX$15)),HLOOKUP(BX$15,Compiled!$F$1:$CC$65,MATCH($C26,Compiled!$E$1:$E$65,0),FALSE),HLOOKUP($C26,Compiled!$F$1:$CC$65,MATCH($C26,Compiled!$E$1:$E$65,0),FALSE)) -> 0.204 | BY26: =IF(BX26="0.00%","",IF(BX26<VLOOKUP(BW$16,'Dropdown control panel'!$B$76:$D$137,2,FALSE),BV26*VLOOKUP(BW$16,'Dropdown control panel'!$B$76:$D$137,2,FALSE)-BW26,"On Target")) -> 396.5 | CA26: =IF(ISNUMBER(FIND("/",CA$15)),TEXT(VLOOKUP($C26,Compiled!$E$7:$CE$66,MATCH(CA$15,Compiled!$E$1:$CE$1,0),FALSE),"0.00%"),_xlfn.NUMBERVALUE(VLOOKUP($C26,Compiled!$E$7:$CE$66,MATCH(CA$15,Compiled!$E$1:$CE$1,0),FALSE),"#,##0")) -> 1561 | CB26: =IF(ISNUMBER(FIND("/",CB$15)),TEXT(VLOOKUP($C26,Compiled!$E$7:$CE$66,MATCH(CB$15,Compiled!$E$1:$CE$1,0),FALSE),"0.00%"),_xlfn.NUMBERVALUE(VLOOKUP($C26,Compiled!$E$7:$CE$66,MATCH(CB$15,Compiled!$E$1:$CE$1,0),FALSE),"#,##0")) -> 215 | CC26: =IF(ISNUMBER(FIND("/",CC$15)),HLOOKUP(CC$15,Compiled!$F$1:$CC$65,MATCH($C26,Compiled!$E$1:$E$65,0),FALSE),HLOOKUP($C26,Compiled!$F$1:$CC$65,MATCH($C26,Compiled!$E$1:$E$65,0),FALSE)) -> 0.138 | CD26: =IF(CC26="0.00%","",IF(CC26<VLOOKUP(CB$16,'Dropdown control panel'!$B$76:$D$137,2,FALSE),CA26*VLOOKUP(CB$16,'Dropdown control panel'!$B$76:$D$137,2,FALSE)-CB26,"On Target")) -> 487.45 | CF26: =IF(ISNUMBER(FIND("/",CF$15)),TEXT(VLOOKUP($C26,Compiled!$E$7:$CE$66,MATCH(CF$15,Compiled!$E$1:$CE$1,0),FALSE),"0.00%"),_xlfn.NUMBERVALUE(VLOOKUP($C26,Compiled!$E$7:$CE$66,MATCH(CF$15,Compiled!$E$1:$CE$1,0),FALSE),"#,##0")) -> 5 | CG26: =IF(ISNUMBER(FIND("/",CG$15)),TEXT(VLOOKUP($C26,Compiled!$E$7:$CE$66,MATCH(CG$15,Compiled!$E$1:$CE$1,0),FALSE),"0.00%"),_xlfn.NUMBERVALUE(VLOOKUP($C26,Compiled!$E$7:$CE$66,MATCH(CG$15,Compiled!$E$1:$CE$1,0),FALSE),"#,##0")) -> 2 | CH26: =IF(ISNUMBER(FIND("/",CH$15)),HLOOKUP(CH$15,Compiled!$F$1:$CC$65,MATCH($C26,Compiled!$E$1:$E$65,0),FALSE),HLOOKUP($C26,Compiled!$F$1:$CC$65,MATCH($C26,Compiled!$E$1:$E$65,0),FALSE)) -> 0.4 | CI26: =IF(CH26="0.00%","",IF(CH26<VLOOKUP(CG$16,'Dropdown control panel'!$B$76:$D$137,2,FALSE),CF26*VLOOKUP(CG$16,'Dropdown control panel'!$B$76:$D$137,2,FALSE)-CG26,"On Target")) -> 1 | CJ26: =IF(ISNUMBER(FIND("/",CJ$15)),TEXT(VLOOKUP($C26,Compiled!$E$7:$CE$66,MATCH(CJ$15,Compiled!$E$1:$CE$1,0),FALSE),"0.00%"),_xlfn.NUMBERVALUE(VLOOKUP($C26,Compiled!$E$7:$CE$66,MATCH(CJ$15,Compiled!$E$1:$CE$1,0),FALSE),"#,##0")) -> 0 | CK26: =IF(ISNUMBER(FIND("/",CK$15)),HLOOKUP(CK$15,Compiled!$F$1:$CC$65,MATCH($C26,Compiled!$E$1:$E$65,0),FALSE),HLOOKUP($C26,Compiled!$F$1:$CC$65,MATCH($C26,Compiled!$E$1:$E$65,0),FALSE)) -> 0 | CL26: =IF(CK26="0.00%","",IF(CK26<VLOOKUP(CJ$16,'Dropdown control panel'!$B$76:$D$137,2,FALSE),CF26*VLOOKUP(CJ$16,'Dropdown control panel'!$B$76:$D$137,2,FALSE)-CJ26,"On Target")) -> 1.5 | CT26: =IF(ISNUMBER(FIND("/",CT$15)),TEXT(VLOOKUP($C26,Compiled!$E$7:$KT$66,MATCH(CT$15,Compiled!$E$1:$KT$1,0),FALSE),"0.00%"),_xlfn.NUMBERVALUE(VLOOKUP($C26,Compiled!$E$7:$KT$66,MATCH(CT$15,Compiled!$E$1:$KT$1,0),FALSE),"#,##0")) -> 0 | CU26: =IF(ISNUMBER(FIND("/",CU$15)),TEXT(VLOOKUP($C26,Compiled!$E$7:$KT$66,MATCH(CU$15,Compiled!$E$1:$KT$1,0),FALSE),"0.00%"),_xlfn.NUMBERVALUE(VLOOKUP($C26,Compiled!$E$7:$KT$66,MATCH(CU$15,Compiled!$E$1:$KT$1,0),FALSE),"#,##0")) -> 0 | CV26: =IF(ISNUMBER(FIND("/",CV$15)),HLOOKUP(CV$15,Compiled!$F$1:$KT$65,MATCH($C26,Compiled!$E$1:$E$65,0),FALSE),HLOOKUP($C26,Compiled!$F$1:$KT$65,MATCH($C26,Compiled!$E$1:$E$65,0),FALSE)) -> 0.00% | CW26: =IF(CV26="0.00%","",IF(CV26<VLOOKUP(CU$16,'Dropdown control panel'!$B$76:$D$140,2,FALSE),CT26*VLOOKUP(CU$16,'Dropdown control panel'!$B$76:$D$140,2,FALSE)-CU26,"On Target")) -> 
B27: =Compiled!D15 -> North West 2 | C27: =Compiled!E15 -> PCN9 | D27: =IF(ISNUMBER(FIND("/",D$15)),TEXT(VLOOKUP($C27,Compiled!$E$7:$CE$66,MATCH($D$15,Compiled!$E$1:$CE$1,0),FALSE),"0.00%"),_xlfn.NUMBERVALUE(VLOOKUP($C27,Compiled!$E$7:$CE$66,MATCH($D$15,Compiled!$E$1:$CE$1,0),FALSE),"#,##0")) -> 840 | E27: =IF(ISNUMBER(FIND("/",E$15)),TEXT(VLOOKUP($C27,Compiled!$E$7:$CE$66,MATCH($E$15,Compiled!$E$1:$CE$1,0),FALSE),"0.00%"),_xlfn.NUMBERVALUE(VLOOKUP($C27,Compiled!$E$7:$CE$66,MATCH($E$15,Compiled!$E$1:$CE$1,0),FALSE),"#,##0")) -> 449 | F27: =IF(ISNUMBER(FIND("/",$F$15)),HLOOKUP($F$15,Compiled!$F$1:$CC$65,MATCH($C27,Compiled!$E$1:$E$65,0),FALSE),HLOOKUP($C27,Compiled!$F$1:$CC$65,MATCH($C27,Compiled!$E$1:$E$65,0),FALSE)) -> 0.535 | G27: =IF($F27="0.00%","",IF($F27<VLOOKUP($E$16,'Dropdown control panel'!$B$76:$D$137,2,FALSE),$D27*VLOOKUP($E$16,'Dropdown control panel'!$B$76:$D$137,2,FALSE)-$E27,"On Target")) -> 13 | H27: =IF(ISNUMBER(FIND("/",H$15)),TEXT(VLOOKUP($C27,Compiled!$E$7:$CE$66,MATCH(H$15,Compiled!$E$1:$CE$1,0),FALSE),"0.00%"),_xlfn.NUMBERVALUE(VLOOKUP($C27,Compiled!$E$7:$CE$66,MATCH(H$15,Compiled!$E$1:$CE$1,0),FALSE),"#,##0")) -> 36 | I27: =IF(ISNUMBER(FIND("/",I$15)),TEXT(VLOOKUP($C27,Compiled!$E$7:$CE$66,MATCH(I$15,Compiled!$E$1:$CE$1,0),FALSE),"0.00%"),_xlfn.NUMBERVALUE(VLOOKUP($C27,Compiled!$E$7:$CE$66,MATCH(I$15,Compiled!$E$1:$CE$1,0),FALSE),"#,##0")) -> 7 | J27: =IF(ISNUMBER(FIND("/",J$15)),HLOOKUP(J$15,Compiled!$F$1:$CC$65,MATCH($C27,Compiled!$E$1:$E$65,0),FALSE),HLOOKUP($C27,Compiled!$F$1:$CC$65,MATCH($C27,Compiled!$E$1:$E$65,0),FALSE)) -> 0.194 | K27: =IF($J27="0.00%","",IF($J27<VLOOKUP($I$16,'Dropdown control panel'!$B$76:$D$137,2,FALSE),$H27*VLOOKUP($I$16,'Dropdown control panel'!$B$76:$D$137,2,FALSE)-$I27,"On Target")) -> 11 | L27: =IF(ISNUMBER(FIND("/",L$15)),TEXT(VLOOKUP($C27,Compiled!$E$7:$CE$66,MATCH(L$15,Compiled!$E$1:$CE$1,0),FALSE),"0.00%"),_xlfn.NUMBERVALUE(VLOOKUP($C27,Compiled!$E$7:$CE$66,MATCH(L$15,Compiled!$E$1:$CE$1,0),FALSE),"#,##0")) -> 2 | M27: =IF(ISNUMBER(FIND("/",M$15)),TEXT(VLOOKUP($C27,Compiled!$E$7:$CE$66,MATCH(M$15,Compiled!$E$1:$CE$1,0),FALSE),"0.00%"),_xlfn.NUMBERVALUE(VLOOKUP($C27,Compiled!$E$7:$CE$66,MATCH(M$15,Compiled!$E$1:$CE$1,0),FALSE),"#,##0")) -> 1 | N27: =IF(ISNUMBER(FIND("/",N$15)),HLOOKUP(N$15,Compiled!$F$1:$CC$65,MATCH($C27,Compiled!$E$1:$E$65,0),FALSE),HLOOKUP($C27,Compiled!$F$1:$CC$65,MATCH($C27,Compiled!$E$1:$E$65,0),FALSE)) -> 0.5 | O27: =IF(N27="0.00%","",IF(N27<VLOOKUP(M$16,'Dropdown control panel'!$B$76:$D$137,2,FALSE),L27*VLOOKUP(M$16,'Dropdown control panel'!$B$76:$D$137,2,FALSE)-M27,"On Target")) -> 0.3 | Q27: =IF(ISNUMBER(FIND("/",Q$15)),TEXT(VLOOKUP($C27,Compiled!$E$7:$KA$66,MATCH(Q$15,Compiled!$E$1:$KA$1,0),FALSE),"0.00%"),_xlfn.NUMBERVALUE(VLOOKUP($C27,Compiled!$E$7:$KA$66,MATCH(Q$15,Compiled!$E$1:$KA$1,0),FALSE),"#,##0")) -> 2 | R27: =IF(ISNUMBER(FIND("/",R$15)),TEXT(VLOOKUP($C27,Compiled!$E$7:$KA$66,MATCH(R$15,Compiled!$E$1:$KA$1,0),FALSE),"0.00%"),_xlfn.NUMBERVALUE(VLOOKUP($C27,Compiled!$E$7:$KA$66,MATCH(R$15,Compiled!$E$1:$KA$1,0),FALSE),"#,##0")) -> 0 | S27: =IF(ISNUMBER(FIND("/",S$15)),HLOOKUP(S$15,Compiled!$F$1:$CF$65,MATCH($C27,Compiled!$E$1:$E$65,0),FALSE),HLOOKUP($C27,Compiled!$F$1:$CF$65,MATCH($C27,Compiled!$E$1:$E$65,0),FALSE)) -> 0 | T27: =IF(S27="0.00%","",IF(S27<VLOOKUP(R$16,'Dropdown control panel'!$B$76:$D$143,2,FALSE),Q27*VLOOKUP(R$16,'Dropdown control panel'!$B$76:$E$143,2,FALSE)-R27,"On Target")) -> 1.6 | V27: =IF(ISNUMBER(FIND("/",V$15)),TEXT(VLOOKUP($C27,Compiled!$E$7:$CE$66,MATCH(V$15,Compiled!$E$1:$CE$1,0),FALSE),"0.00%"),_xlfn.NUMBERVALUE(VLOOKUP($C27,Compiled!$E$7:$CE$66,MATCH(V$15,Compiled!$E$1:$CE$1,0),FALSE),"#,##0")) -> 18 | W27: =IF(ISNUMBER(FIND("/",W$15)),TEXT(VLOOKUP($C27,Compiled!$E$7:$CE$66,MATCH(W$15,Compiled!$E$1:$CE$1,0),FALSE),"0.00%"),_xlfn.NUMBERVALUE(VLOOKUP($C27,Compiled!$E$7:$CE$66,MATCH(W$15,Compiled!$E$1:$CE$1,0),FALSE),"#,##0")) -> 18 | X27: =IF(ISNUMBER(FIND("/",X$15)),HLOOKUP(X$15,Compiled!$F$1:$CC$65,MATCH($C27,Compiled!$E$1:$E$65,0),FALSE),HLOOKUP($C27,Compiled!$F$1:$CC$65,MATCH($C27,Compiled!$E$1:$E$65,0),FALSE)) -> 1 | Y27: =IF(X27="0.00%","",IF(X27<VLOOKUP(W$16,'Dropdown control panel'!$B$76:$D$137,2,FALSE),V27*VLOOKUP(W$16,'Dropdown control panel'!$B$76:$D$137,2,FALSE)-W27,"On Target")) -> On Target | AA27: =IF(ISNUMBER(FIND("/",AA$15)),TEXT(VLOOKUP($C27,Compiled!$E$7:$CE$66,MATCH(AA$15,Compiled!$E$1:$CE$1,0),FALSE),"0.00%"),_xlfn.NUMBERVALUE(VLOOKUP($C27,Compiled!$E$7:$CE$66,MATCH(AA$15,Compiled!$E$1:$CE$1,0),FALSE),"#,##0")) -> 27 | AB27: =IF(ISNUMBER(FIND("/",AB$15)),TEXT(VLOOKUP($C27,Compiled!$E$7:$CE$66,MATCH(AB$15,Compiled!$E$1:$CE$1,0),FALSE),"0.00%"),_xlfn.NUMBERVALUE(VLOOKUP($C27,Compiled!$E$7:$CE$66,MATCH(AB$15,Compiled!$E$1:$CE$1,0),FALSE),"#,##0")) -> 6 | AC27: =IF(ISNUMBER(FIND("/",AC$15)),HLOOKUP(AC$15,Compiled!$F$1:$CC$65,MATCH($C27,Compiled!$E$1:$E$65,0),FALSE),HLOOKUP($C27,Compiled!$F$1:$CC$65,MATCH($C27,Compiled!$E$1:$E$65,0),FALSE)) -> 0.222 | AD27: =IF(AC27="0.00%","",IF(AC27<VLOOKUP(AB$16,'Dropdown control panel'!$B$76:$D$137,2,FALSE),AA27*VLOOKUP(AB$16,'Dropdown control panel'!$B$76:$D$137,2,FALSE)-AB27,"On Target")) ->  | AE27: =IF(ISNUMBER(FIND("/",AE$15)),TEXT(VLOOKUP($C27,Compiled!$E$7:$CE$66,MATCH(AE$15,Compiled!$E$1:$CE$1,0),FALSE),"0.00%"),_xlfn.NUMBERVALUE(VLOOKUP($C27,Compiled!$E$7:$CE$66,MATCH(AE$15,Compiled!$E$1:$CE$1,0),FALSE),"#,##0")) -> 8 | AF27: =IF(ISNUMBER(FIND("/",AF$15)),TEXT(VLOOKUP($C27,Compiled!$E$7:$CE$66,MATCH(AF$15,Compiled!$E$1:$CE$1,0),FALSE),"0.00%"),_xlfn.NUMBERVALUE(VLOOKUP($C27,Compiled!$E$7:$CE$66,MATCH(AF$15,Compiled!$E$1:$CE$1,0),FALSE),"#,##0")) -> 7 | AG27: =IF(ISNUMBER(FIND("/",AG$15)),HLOOKUP(AG$15,Compiled!$F$1:$CC$65,MATCH($C27,Compiled!$E$1:$E$65,0),FALSE),HLOOKUP($C27,Compiled!$F$1:$CC$65,MATCH($C27,Compiled!$E$1:$E$65,0),FALSE)) -> 0.875 | AH27: =IF(AG27="0.00%","",IF(AG27<VLOOKUP(AF$16,'Dropdown control panel'!$B$76:$D$137,2,FALSE),AE27*VLOOKUP(AF$16,'Dropdown control panel'!$B$76:$D$137,2,FALSE)-AF27,"On Target")) -> On Target | AJ27: =IF(ISNUMBER(FIND("/",AJ$15)),TEXT(VLOOKUP($C27,Compiled!$E$7:$CE$66,MATCH(AJ$15,Compiled!$E$1:$CE$1,0),FALSE),"0.00%"),_xlfn.NUMBERVALUE(VLOOKUP($C27,Compiled!$E$7:$CE$66,MATCH(AJ$15,Compiled!$E$1:$CE$1,0),FALSE),"#,##0")) -> 4814 | AK27: =IF(ISNUMBER(FIND("/",AK$15)),TEXT(VLOOKUP($C27,Compiled!$E$7:$CE$66,MATCH(AK$15,Compiled!$E$1:$CE$1,0),FALSE),"0.00%"),_xlfn.NUMBERVALUE(VLOOKUP($C27,Compiled!$E$7:$CE$66,MATCH(AK$15,Compiled!$E$1:$CE$1,0),FALSE),"#,##0")) -> 1059 | AL27: =IF(ISNUMBER(FIND("/",AL$15)),HLOOKUP(AL$15,Compiled!$F$1:$CC$65,MATCH($C27,Compiled!$E$1:$E$65,0),FALSE),HLOOKUP($C27,Compiled!$F$1:$CC$65,MATCH($C27,Compiled!$E$1:$E$65,0),FALSE)) -> 0.22 | AM27: =IF(AL27="0.00%","",IF(AL27<VLOOKUP(AK$16,'Dropdown control panel'!$B$76:$D$137,2,FALSE),AJ27*VLOOKUP(AK$16,'Dropdown control panel'!$B$76:$D$137,2,FALSE)-AK27,"On Target")) -> 962.88 | AO27: =IF(ISNUMBER(FIND("/",AO$15)),TEXT(VLOOKUP($C27,Compiled!$E$7:$CE$66,MATCH(AO$15,Compiled!$E$1:$CE$1,0),FALSE),"0.00%"),_xlfn.NUMBERVALUE(VLOOKUP($C27,Compiled!$E$7:$CE$66,MATCH(AO$15,Compiled!$E$1:$CE$1,0),FALSE),"#,##0")) -> 31 | AP27: =IF(ISNUMBER(FIND("/",AP$15)),TEXT(VLOOKUP($C27,Compiled!$E$7:$CE$66,MATCH(AP$15,Compiled!$E$1:$CE$1,0),FALSE),"0.00%"),_xlfn.NUMBERVALUE(VLOOKUP($C27,Compiled!$E$7:$CE$66,MATCH(AP$15,Compiled!$E$1:$CE$1,0),FALSE),"#,##0")) -> 0 | AQ27: =IF(ISNUMBER(FIND("/",AQ$15)),HLOOKUP(AQ$15,Compiled!$F$1:$CC$65,MATCH($C27,Compiled!$E$1:$E$65,0),FALSE),HLOOKUP($C27,Compiled!$F$1:$CC$65,MATCH($C27,Compiled!$E$1:$E$65,0),FALSE)) -> 0 | AR27: =IF(AQ27="0.00%","",IF(AQ27<VLOOKUP(AP$16,'Dropdown control panel'!$B$76:$D$137,2,FALSE),AO27*VLOOKUP(AP$16,'Dropdown control panel'!$B$76:$D$137,2,FALSE)-AP27,"On Target")) -> 9.3 | AS27: =IF(ISNUMBER(FIND("/",AS$15)),TEXT(VLOOKUP($C27,Compiled!$E$7:$CE$66,MATCH(AS$15,Compiled!$E$1:$CE$1,0),FALSE),"0.00%"),_xlfn.NUMBERVALUE(VLOOKUP($C27,Compiled!$E$7:$CE$66,MATCH(AS$15,Compiled!$E$1:$CE$1,0),FALSE),"#,##0")) -> 0 | AT27: =IF(ISNUMBER(FIND("/",AT$15)),HLOOKUP(AT$15,Compiled!$F$1:$CC$65,MATCH($C27,Compiled!$E$1:$E$65,0),FALSE),HLOOKUP($C27,Compiled!$F$1:$CC$65,MATCH($C27,Compiled!$E$1:$E$65,0),FALSE)) -> 0.00% | AU27: =IF(AT27="0.00%","",IF(AT27<VLOOKUP(AS$16,'Dropdown control panel'!$B$76:$D$137,2,FALSE),AP27*VLOOKUP(AS$16,'Dropdown control panel'!$B$76:$D$137,2,FALSE)-AS27,"On Target")) ->  | AW27: =IF(ISNUMBER(FIND("/",AW$15)),TEXT(VLOOKUP($C27,Compiled!$E$7:$CE$66,MATCH(AW$15,Compiled!$E$1:$CE$1,0),FALSE),"0.00%"),_xlfn.NUMBERVALUE(VLOOKUP($C27,Compiled!$E$7:$CE$66,MATCH(AW$15,Compiled!$E$1:$CE$1,0),FALSE),"#,##0")) -> 814 | AX27: =IF(ISNUMBER(FIND("/",AX$15)),TEXT(VLOOKUP($C27,Compiled!$E$7:$CE$66,MATCH(AX$15,Compiled!$E$1:$CE$1,0),FALSE),"0.00%"),_xlfn.NUMBERVALUE(VLOOKUP($C27,Compiled!$E$7:$CE$66,MATCH(AX$15,Compiled!$E$1:$CE$1,0),FALSE),"#,##0")) -> 535 | AY27: =IF(ISNUMBER(FIND("/",AY$15)),HLOOKUP(AY$15,Compiled!$F$1:$CC$65,MATCH($C27,Compiled!$E$1:$E$65,0),FALSE),HLOOKUP($C27,Compiled!$F$1:$CC$65,MATCH($C27,Compiled!$E$1:$E$65,0),FALSE)) -> 0.657 | AZ27: =IF(AY27="0.00%","",IF(AY27<VLOOKUP(AX$16,'Dropdown control panel'!$B$76:$D$137,2,FALSE),AW27*VLOOKUP(AX$16,'Dropdown control panel'!$B$76:$D$137,2,FALSE)-AX27,"On Target")) -> On Target | BB27: =IF(ISNUMBER(FIND("/",BB$15)),TEXT(VLOOKUP($C27,Compiled!$E$7:$KA$66,MATCH(BB$15,Compiled!$E$1:$KA$1,0),FALSE),"0.00%"),_xlfn.NUMBERVALUE(VLOOKUP($C27,Compiled!$E$7:$KA$66,MATCH(BB$15,Compiled!$E$1:$KA$1,0),FALSE),"#,##0")) -> 604 | BC27: =IF(ISNUMBER(FIND("/",BC$15)),HLOOKUP(BC$15,Compiled!$F$1:$KA$65,MATCH($C27,Compiled!$E$1:$E$65,0),FALSE),HLOOKUP($C27,Compiled!$F$1:$KA$65,MATCH($C27,Compiled!$E$1:$E$65,0),FALSE)) -> 0.742 | BD27: =IF(BC27="0.00%","",IF(BC27<VLOOKUP(BB$16,'Dropdown control panel'!$B$76:$D$137,2,FALSE),AW27*VLOOKUP(BB$16,'Dropdown control panel'!$B$76:$D$137,2,FALSE)-BB27,"On Target")) -> On Target | BF27: =IF(ISNUMBER(FIND("/",BF$15)),TEXT(VLOOKUP($C27,Compiled!$E$7:$CE$66,MATCH(BF$15,Compiled!$E$1:$CE$1,0),FALSE),"0.00%"),_xlfn.NUMBERVALUE(VLOOKUP($C27,Compiled!$E$7:$CE$66,MATCH(BF$15,Compiled!$E$1:$CE$1,0),FALSE),"#,##0")) -> 2935 | BG27: =IF(ISNUMBER(FIND("/",BG$15)),TEXT(VLOOKUP($C27,Compiled!$E$7:$CE$66,MATCH(BG$15,Compiled!$E$1:$CE$1,0),FALSE),"0.00%"),_xlfn.NUMBERVALUE(VLOOKUP($C27,Compiled!$E$7:$CE$66,MATCH(BG$15,Compiled!$E$1:$CE$1,0),FALSE),"#,##0")) -> 1553 | BH27: =IF(ISNUMBER(FIND("/",BH$15)),HLOOKUP(BH$15,Compiled!$F$1:$CC$65,MATCH($C27,Compiled!$E$1:$E$65,0),FALSE),HLOOKUP($C27,Compiled!$F$1:$CC$65,MATCH($C27,Compiled!$E$1:$E$65,0),FALSE)) -> 0.529 | BI27: =IF(BH27="0.00%","",IF(BH27<VLOOKUP(BG$16,'Dropdown control panel'!$B$76:$D$137,2,FALSE),BF27*VLOOKUP(BG$16,'Dropdown control panel'!$B$76:$D$137,2,FALSE)-BG27,"On Target")) -> 501.5 | BK27: =IF(ISNUMBER(FIND("/",BK$15)),TEXT(VLOOKUP($C27,Compiled!$E$7:$KH$66,MATCH(BK$15,Compiled!$E$1:$KH$1,0),FALSE),"0.00%"),_xlfn.NUMBERVALUE(VLOOKUP($C27,Compiled!$E$7:$KH$66,MATCH(BK$15,Compiled!$E$1:$KH$1,0),FALSE),"#,##0")) -> 228 | BL27: =IF(ISNUMBER(FIND("/",BL$15)),TEXT(VLOOKUP($C27,Compiled!$E$7:$KH$66,MATCH(BL$15,Compiled!$E$1:$KH$1,0),FALSE),"0.00%"),_xlfn.NUMBERVALUE(VLOOKUP($C27,Compiled!$E$7:$KH$66,MATCH(BL$15,Compiled!$E$1:$KH$1,0),FALSE),"#,##0")) -> 8 | BM27: =IF(ISNUMBER(FIND("/",BM$15)),HLOOKUP(BM$15,Compiled!$F$1:$KH$65,MATCH($C27,Compiled!$E$1:$E$65,0),FALSE),HLOOKUP($C27,Compiled!$F$1:$KH$65,MATCH($C27,Compiled!$E$1:$E$65,0),FALSE)) -> 0.035 | BN27: =IF(BM27="0.00%","",IF(BM27<VLOOKUP(BL$16,'Dropdown control panel'!$B$76:$D$137,2,FALSE),BK27*VLOOKUP(BL$16,'Dropdown control panel'!$B$76:$D$137,2,FALSE)-BL27,"On Target")) -> 151.6 | BO27: =IF(ISNUMBER(FIND("/",BO$15)),TEXT(VLOOKUP($C27,Compiled!$E$7:$KH$66,MATCH(BO$15,Compiled!$E$1:$KH$1,0),FALSE),"0.00%"),_xlfn.NUMBERVALUE(VLOOKUP($C27,Compiled!$E$7:$KH$66,MATCH(BO$15,Compiled!$E$1:$KH$1,0),FALSE),"#,##0")) -> 2328 | BP27: =IF(ISNUMBER(FIND("/",BP$15)),HLOOKUP(BP$15,Compiled!$F$1:$KH$65,MATCH($C27,Compiled!$E$1:$E$65,0),FALSE),HLOOKUP($C27,Compiled!$F$1:$KH$65,MATCH($C27,Compiled!$E$1:$E$65,0),FALSE)) -> 0.793 | BQ27: =IF(BP27="0.00%","",IF(BP27<VLOOKUP(BO$16,'Dropdown control panel'!$B$76:$D$137,2,FALSE),BF27*VLOOKUP(BO$16,'Dropdown control panel'!$B$76:$D$137,2,FALSE)-BO27,"On Target")) -> On Target | BR27: =IF(ISNUMBER(FIND("/",BR$15)),TEXT(VLOOKUP($C27,Compiled!$E$7:$KH$66,MATCH(BR$15,Compiled!$E$1:$KH$1,0),FALSE),"0.00%"),_xlfn.NUMBERVALUE(VLOOKUP($C27,Compiled!$E$7:$KH$66,MATCH(BR$15,Compiled!$E$1:$KH$1,0),FALSE),"#,##0")) -> 2310 | BS27: =IF(ISNUMBER(FIND("/",BS$15)),HLOOKUP(BS$15,Compiled!$F$1:$KH$65,MATCH($C27,Compiled!$E$1:$E$65,0),FALSE),HLOOKUP($C27,Compiled!$F$1:$KH$65,MATCH($C27,Compiled!$E$1:$E$65,0),FALSE)) -> 0.787 | BT27: =IF(BS27="0.00%","",IF(BS27<VLOOKUP(BR$16,'Dropdown control panel'!$B$76:$D$137,2,FALSE),BF27*VLOOKUP(BR$16,'Dropdown control panel'!$B$76:$D$137,2,FALSE)-BR27,"On Target")) -> On Target | BV27: =IF(ISNUMBER(FIND("/",BV$15)),TEXT(VLOOKUP($C27,Compiled!$E$7:$CE$66,MATCH(BV$15,Compiled!$E$1:$CE$1,0),FALSE),"0.00%"),_xlfn.NUMBERVALUE(VLOOKUP($C27,Compiled!$E$7:$CE$66,MATCH(BV$15,Compiled!$E$1:$CE$1,0),FALSE),"#,##0")) -> 519 | BW27: =IF(ISNUMBER(FIND("/",BW$15)),TEXT(VLOOKUP($C27,Compiled!$E$7:$CE$66,MATCH(BW$15,Compiled!$E$1:$CE$1,0),FALSE),"0.00%"),_xlfn.NUMBERVALUE(VLOOKUP($C27,Compiled!$E$7:$CE$66,MATCH(BW$15,Compiled!$E$1:$CE$1,0),FALSE),"#,##0")) -> 286 | BX27: =IF(ISNUMBER(FIND("/",BX$15)),HLOOKUP(BX$15,Compiled!$F$1:$CC$65,MATCH($C27,Compiled!$E$1:$E$65,0),FALSE),HLOOKUP($C27,Compiled!$F$1:$CC$65,MATCH($C27,Compiled!$E$1:$E$65,0),FALSE)) -> 0.551 | BY27: =IF(BX27="0.00%","",IF(BX27<VLOOKUP(BW$16,'Dropdown control panel'!$B$76:$D$137,2,FALSE),BV27*VLOOKUP(BW$16,'Dropdown control panel'!$B$76:$D$137,2,FALSE)-BW27,"On Target")) -> On Target | CA27: =IF(ISNUMBER(FIND("/",CA$15)),TEXT(VLOOKUP($C27,Compiled!$E$7:$CE$66,MATCH(CA$15,Compiled!$E$1:$CE$1,0),FALSE),"0.00%"),_xlfn.NUMBERVALUE(VLOOKUP($C27,Compiled!$E$7:$CE$66,MATCH(CA$15,Compiled!$E$1:$CE$1,0),FALSE),"#,##0")) -> 1212 | CB27: =IF(ISNUMBER(FIND("/",CB$15)),TEXT(VLOOKUP($C27,Compiled!$E$7:$CE$66,MATCH(CB$15,Compiled!$E$1:$CE$1,0),FALSE),"0.00%"),_xlfn.NUMBERVALUE(VLOOKUP($C27,Compiled!$E$7:$CE$66,MATCH(CB$15,Compiled!$E$1:$CE$1,0),FALSE),"#,##0")) -> 221 | CC27: =IF(ISNUMBER(FIND("/",CC$15)),HLOOKUP(CC$15,Compiled!$F$1:$CC$65,MATCH($C27,Compiled!$E$1:$E$65,0),FALSE),HLOOKUP($C27,Compiled!$F$1:$CC$65,MATCH($C27,Compiled!$E$1:$E$65,0),FALSE)) -> 0.182 | CD27: =IF(CC27="0.00%","",IF(CC27<VLOOKUP(CB$16,'Dropdown control panel'!$B$76:$D$137,2,FALSE),CA27*VLOOKUP(CB$16,'Dropdown control panel'!$B$76:$D$137,2,FALSE)-CB27,"On Target")) -> 324.4 | CF27: =IF(ISNUMBER(FIND("/",CF$15)),TEXT(VLOOKUP($C27,Compiled!$E$7:$CE$66,MATCH(CF$15,Compiled!$E$1:$CE$1,0),FALSE),"0.00%"),_xlfn.NUMBERVALUE(VLOOKUP($C27,Compiled!$E$7:$CE$66,MATCH(CF$15,Compiled!$E$1:$CE$1,0),FALSE),"#,##0")) -> 3 | CG27: =IF(ISNUMBER(FIND("/",CG$15)),TEXT(VLOOKUP($C27,Compiled!$E$7:$CE$66,MATCH(CG$15,Compiled!$E$1:$CE$1,0),FALSE),"0.00%"),_xlfn.NUMBERVALUE(VLOOKUP($C27,Compiled!$E$7:$CE$66,MATCH(CG$15,Compiled!$E$1:$CE$1,0),FALSE),"#,##0")) -> 1 | CH27: =IF(ISNUMBER(FIND("/",CH$15)),HLOOKUP(CH$15,Compiled!$F$1:$CC$65,MATCH($C27,Compiled!$E$1:$E$65,0),FALSE),HLOOKUP($C27,Compiled!$F$1:$CC$65,MATCH($C27,Compiled!$E$1:$E$65,0),FALSE)) -> 0.333 | CI27: =IF(CH27="0.00%","",IF(CH27<VLOOKUP(CG$16,'Dropdown control panel'!$B$76:$D$137,2,FALSE),CF27*VLOOKUP(CG$16,'Dropdown control panel'!$B$76:$D$137,2,FALSE)-CG27,"On Target")) -> 0.8 | CJ27: =IF(ISNUMBER(FIND("/",CJ$15)),TEXT(VLOOKUP($C27,Compiled!$E$7:$CE$66,MATCH(CJ$15,Compiled!$E$1:$CE$1,0),FALSE),"0.00%"),_xlfn.NUMBERVALUE(VLOOKUP($C27,Compiled!$E$7:$CE$66,MATCH(CJ$15,Compiled!$E$1:$CE$1,0),FALSE),"#,##0")) -> 0 | CK27: =IF(ISNUMBER(FIND("/",CK$15)),HLOOKUP(CK$15,Compiled!$F$1:$CC$65,MATCH($C27,Compiled!$E$1:$E$65,0),FALSE),HLOOKUP($C27,Compiled!$F$1:$CC$65,MATCH($C27,Compiled!$E$1:$E$65,0),FALSE)) -> 0 | CL27: =IF(CK27="0.00%","",IF(CK27<VLOOKUP(CJ$16,'Dropdown control panel'!$B$76:$D$137,2,FALSE),CF27*VLOOKUP(CJ$16,'Dropdown control panel'!$B$76:$D$137,2,FALSE)-CJ27,"On Target")) -> 0.9 | CT27: =IF(ISNUMBER(FIND("/",CT$15)),TEXT(VLOOKUP($C27,Compiled!$E$7:$KT$66,MATCH(CT$15,Compiled!$E$1:$KT$1,0),FALSE),"0.00%"),_xlfn.NUMBERVALUE(VLOOKUP($C27,Compiled!$E$7:$KT$66,MATCH(CT$15,Compiled!$E$1:$KT$1,0),FALSE),"#,##0")) -> 0 | CU27: =IF(ISNUMBER(FIND("/",CU$15)),TEXT(VLOOKUP($C27,Compiled!$E$7:$KT$66,MATCH(CU$15,Compiled!$E$1:$KT$1,0),FALSE),"0.00%"),_xlfn.NUMBERVALUE(VLOOKUP($C27,Compiled!$E$7:$KT$66,MATCH(CU$15,Compiled!$E$1:$KT$1,0),FALSE),"#,##0")) -> 0 | CV27: =IF(ISNUMBER(FIND("/",CV$15)),HLOOKUP(CV$15,Compiled!$F$1:$KT$65,MATCH($C27,Compiled!$E$1:$E$65,0),FALSE),HLOOKUP($C27,Compiled!$F$1:$KT$65,MATCH($C27,Compiled!$E$1:$E$65,0),FALSE)) -> 0.00% | CW27: =IF(CV27="0.00%","",IF(CV27<VLOOKUP(CU$16,'Dropdown control panel'!$B$76:$D$140,2,FALSE),CT27*VLOOKUP(CU$16,'Dropdown control panel'!$B$76:$D$140,2,FALSE)-CU27,"On Target")) -> 
B28: =Compiled!D16 -> Docklands | C28: =Compiled!E16 -> PCN10 | D28: =IF(ISNUMBER(FIND("/",D$15)),TEXT(VLOOKUP($C28,Compiled!$E$7:$CE$66,MATCH($D$15,Compiled!$E$1:$CE$1,0),FALSE),"0.00%"),_xlfn.NUMBERVALUE(VLOOKUP($C28,Compiled!$E$7:$CE$66,MATCH($D$15,Compiled!$E$1:$CE$1,0),FALSE),"#,##0")) -> 709 | E28: =IF(ISNUMBER(FIND("/",E$15)),TEXT(VLOOKUP($C28,Compiled!$E$7:$CE$66,MATCH($E$15,Compiled!$E$1:$CE$1,0),FALSE),"0.00%"),_xlfn.NUMBERVALUE(VLOOKUP($C28,Compiled!$E$7:$CE$66,MATCH($E$15,Compiled!$E$1:$CE$1,0),FALSE),"#,##0")) -> 267 | F28: =IF(ISNUMBER(FIND("/",$F$15)),HLOOKUP($F$15,Compiled!$F$1:$CC$65,MATCH($C28,Compiled!$E$1:$E$65,0),FALSE),HLOOKUP($C28,Compiled!$F$1:$CC$65,MATCH($C28,Compiled!$E$1:$E$65,0),FALSE)) -> 0.377 | G28: =IF($F28="0.00%","",IF($F28<VLOOKUP($E$16,'Dropdown control panel'!$B$76:$D$137,2,FALSE),$D28*VLOOKUP($E$16,'Dropdown control panel'!$B$76:$D$137,2,FALSE)-$E28,"On Target")) -> 122.95 | H28: =IF(ISNUMBER(FIND("/",H$15)),TEXT(VLOOKUP($C28,Compiled!$E$7:$CE$66,MATCH(H$15,Compiled!$E$1:$CE$1,0),FALSE),"0.00%"),_xlfn.NUMBERVALUE(VLOOKUP($C28,Compiled!$E$7:$CE$66,MATCH(H$15,Compiled!$E$1:$CE$1,0),FALSE),"#,##0")) -> 30 | I28: =IF(ISNUMBER(FIND("/",I$15)),TEXT(VLOOKUP($C28,Compiled!$E$7:$CE$66,MATCH(I$15,Compiled!$E$1:$CE$1,0),FALSE),"0.00%"),_xlfn.NUMBERVALUE(VLOOKUP($C28,Compiled!$E$7:$CE$66,MATCH(I$15,Compiled!$E$1:$CE$1,0),FALSE),"#,##0")) -> 0 | J28: =IF(ISNUMBER(FIND("/",J$15)),HLOOKUP(J$15,Compiled!$F$1:$CC$65,MATCH($C28,Compiled!$E$1:$E$65,0),FALSE),HLOOKUP($C28,Compiled!$F$1:$CC$65,MATCH($C28,Compiled!$E$1:$E$65,0),FALSE)) -> 0 | K28: =IF($J28="0.00%","",IF($J28<VLOOKUP($I$16,'Dropdown control panel'!$B$76:$D$137,2,FALSE),$H28*VLOOKUP($I$16,'Dropdown control panel'!$B$76:$D$137,2,FALSE)-$I28,"On Target")) -> 15 | L28: =IF(ISNUMBER(FIND("/",L$15)),TEXT(VLOOKUP($C28,Compiled!$E$7:$CE$66,MATCH(L$15,Compiled!$E$1:$CE$1,0),FALSE),"0.00%"),_xlfn.NUMBERVALUE(VLOOKUP($C28,Compiled!$E$7:$CE$66,MATCH(L$15,Compiled!$E$1:$CE$1,0),FALSE),"#,##0")) -> 1 | M28: =IF(ISNUMBER(FIND("/",M$15)),TEXT(VLOOKUP($C28,Compiled!$E$7:$CE$66,MATCH(M$15,Compiled!$E$1:$CE$1,0),FALSE),"0.00%"),_xlfn.NUMBERVALUE(VLOOKUP($C28,Compiled!$E$7:$CE$66,MATCH(M$15,Compiled!$E$1:$CE$1,0),FALSE),"#,##0")) -> 0 | N28: =IF(ISNUMBER(FIND("/",N$15)),HLOOKUP(N$15,Compiled!$F$1:$CC$65,MATCH($C28,Compiled!$E$1:$E$65,0),FALSE),HLOOKUP($C28,Compiled!$F$1:$CC$65,MATCH($C28,Compiled!$E$1:$E$65,0),FALSE)) -> 0 | O28: =IF(N28="0.00%","",IF(N28<VLOOKUP(M$16,'Dropdown control panel'!$B$76:$D$137,2,FALSE),L28*VLOOKUP(M$16,'Dropdown control panel'!$B$76:$D$137,2,FALSE)-M28,"On Target")) -> 0.65 | Q28: =IF(ISNUMBER(FIND("/",Q$15)),TEXT(VLOOKUP($C28,Compiled!$E$7:$KA$66,MATCH(Q$15,Compiled!$E$1:$KA$1,0),FALSE),"0.00%"),_xlfn.NUMBERVALUE(VLOOKUP($C28,Compiled!$E$7:$KA$66,MATCH(Q$15,Compiled!$E$1:$KA$1,0),FALSE),"#,##0")) -> 0 | R28: =IF(ISNUMBER(FIND("/",R$15)),TEXT(VLOOKUP($C28,Compiled!$E$7:$KA$66,MATCH(R$15,Compiled!$E$1:$KA$1,0),FALSE),"0.00%"),_xlfn.NUMBERVALUE(VLOOKUP($C28,Compiled!$E$7:$KA$66,MATCH(R$15,Compiled!$E$1:$KA$1,0),FALSE),"#,##0")) -> 0 | S28: =IF(ISNUMBER(FIND("/",S$15)),HLOOKUP(S$15,Compiled!$F$1:$CF$65,MATCH($C28,Compiled!$E$1:$E$65,0),FALSE),HLOOKUP($C28,Compiled!$F$1:$CF$65,MATCH($C28,Compiled!$E$1:$E$65,0),FALSE)) -> 0.00% | T28: =IF(S28="0.00%","",IF(S28<VLOOKUP(R$16,'Dropdown control panel'!$B$76:$D$143,2,FALSE),Q28*VLOOKUP(R$16,'Dropdown control panel'!$B$76:$E$143,2,FALSE)-R28,"On Target")) ->  | V28: =IF(ISNUMBER(FIND("/",V$15)),TEXT(VLOOKUP($C28,Compiled!$E$7:$CE$66,MATCH(V$15,Compiled!$E$1:$CE$1,0),FALSE),"0.00%"),_xlfn.NUMBERVALUE(VLOOKUP($C28,Compiled!$E$7:$CE$66,MATCH(V$15,Compiled!$E$1:$CE$1,0),FALSE),"#,##0")) -> 2 | W28: =IF(ISNUMBER(FIND("/",W$15)),TEXT(VLOOKUP($C28,Compiled!$E$7:$CE$66,MATCH(W$15,Compiled!$E$1:$CE$1,0),FALSE),"0.00%"),_xlfn.NUMBERVALUE(VLOOKUP($C28,Compiled!$E$7:$CE$66,MATCH(W$15,Compiled!$E$1:$CE$1,0),FALSE),"#,##0")) -> 0 | X28: =IF(ISNUMBER(FIND("/",X$15)),HLOOKUP(X$15,Compiled!$F$1:$CC$65,MATCH($C28,Compiled!$E$1:$E$65,0),FALSE),HLOOKUP($C28,Compiled!$F$1:$CC$65,MATCH($C28,Compiled!$E$1:$E$65,0),FALSE)) -> 0 | Y28: =IF(X28="0.00%","",IF(X28<VLOOKUP(W$16,'Dropdown control panel'!$B$76:$D$137,2,FALSE),V28*VLOOKUP(W$16,'Dropdown control panel'!$B$76:$D$137,2,FALSE)-W28,"On Target")) -> 1.5 | AA28: =IF(ISNUMBER(FIND("/",AA$15)),TEXT(VLOOKUP($C28,Compiled!$E$7:$CE$66,MATCH(AA$15,Compiled!$E$1:$CE$1,0),FALSE),"0.00%"),_xlfn.NUMBERVALUE(VLOOKUP($C28,Compiled!$E$7:$CE$66,MATCH(AA$15,Compiled!$E$1:$CE$1,0),FALSE),"#,##0")) -> 69 | AB28: =IF(ISNUMBER(FIND("/",AB$15)),TEXT(VLOOKUP($C28,Compiled!$E$7:$CE$66,MATCH(AB$15,Compiled!$E$1:$CE$1,0),FALSE),"0.00%"),_xlfn.NUMBERVALUE(VLOOKUP($C28,Compiled!$E$7:$CE$66,MATCH(AB$15,Compiled!$E$1:$CE$1,0),FALSE),"#,##0")) -> 0 | AC28: =IF(ISNUMBER(FIND("/",AC$15)),HLOOKUP(AC$15,Compiled!$F$1:$CC$65,MATCH($C28,Compiled!$E$1:$E$65,0),FALSE),HLOOKUP($C28,Compiled!$F$1:$CC$65,MATCH($C28,Compiled!$E$1:$E$65,0),FALSE)) -> 0 | AD28: =IF(AC28="0.00%","",IF(AC28<VLOOKUP(AB$16,'Dropdown control panel'!$B$76:$D$137,2,FALSE),AA28*VLOOKUP(AB$16,'Dropdown control panel'!$B$76:$D$137,2,FALSE)-AB28,"On Target")) ->  | AE28: =IF(ISNUMBER(FIND("/",AE$15)),TEXT(VLOOKUP($C28,Compiled!$E$7:$CE$66,MATCH(AE$15,Compiled!$E$1:$CE$1,0),FALSE),"0.00%"),_xlfn.NUMBERVALUE(VLOOKUP($C28,Compiled!$E$7:$CE$66,MATCH(AE$15,Compiled!$E$1:$CE$1,0),FALSE),"#,##0")) -> 11 | AF28: =IF(ISNUMBER(FIND("/",AF$15)),TEXT(VLOOKUP($C28,Compiled!$E$7:$CE$66,MATCH(AF$15,Compiled!$E$1:$CE$1,0),FALSE),"0.00%"),_xlfn.NUMBERVALUE(VLOOKUP($C28,Compiled!$E$7:$CE$66,MATCH(AF$15,Compiled!$E$1:$CE$1,0),FALSE),"#,##0")) -> 0 | AG28: =IF(ISNUMBER(FIND("/",AG$15)),HLOOKUP(AG$15,Compiled!$F$1:$CC$65,MATCH($C28,Compiled!$E$1:$E$65,0),FALSE),HLOOKUP($C28,Compiled!$F$1:$CC$65,MATCH($C28,Compiled!$E$1:$E$65,0),FALSE)) -> 0 | AH28: =IF(AG28="0.00%","",IF(AG28<VLOOKUP(AF$16,'Dropdown control panel'!$B$76:$D$137,2,FALSE),AE28*VLOOKUP(AF$16,'Dropdown control panel'!$B$76:$D$137,2,FALSE)-AF28,"On Target")) -> 5.5 | AJ28: =IF(ISNUMBER(FIND("/",AJ$15)),TEXT(VLOOKUP($C28,Compiled!$E$7:$CE$66,MATCH(AJ$15,Compiled!$E$1:$CE$1,0),FALSE),"0.00%"),_xlfn.NUMBERVALUE(VLOOKUP($C28,Compiled!$E$7:$CE$66,MATCH(AJ$15,Compiled!$E$1:$CE$1,0),FALSE),"#,##0")) -> 3421 | AK28: =IF(ISNUMBER(FIND("/",AK$15)),TEXT(VLOOKUP($C28,Compiled!$E$7:$CE$66,MATCH(AK$15,Compiled!$E$1:$CE$1,0),FALSE),"0.00%"),_xlfn.NUMBERVALUE(VLOOKUP($C28,Compiled!$E$7:$CE$66,MATCH(AK$15,Compiled!$E$1:$CE$1,0),FALSE),"#,##0")) -> 437 | AL28: =IF(ISNUMBER(FIND("/",AL$15)),HLOOKUP(AL$15,Compiled!$F$1:$CC$65,MATCH($C28,Compiled!$E$1:$E$65,0),FALSE),HLOOKUP($C28,Compiled!$F$1:$CC$65,MATCH($C28,Compiled!$E$1:$E$65,0),FALSE)) -> 0.128 | AM28: =IF(AL28="0.00%","",IF(AL28<VLOOKUP(AK$16,'Dropdown control panel'!$B$76:$D$137,2,FALSE),AJ28*VLOOKUP(AK$16,'Dropdown control panel'!$B$76:$D$137,2,FALSE)-AK28,"On Target")) -> 999.82 | AO28: =IF(ISNUMBER(FIND("/",AO$15)),TEXT(VLOOKUP($C28,Compiled!$E$7:$CE$66,MATCH(AO$15,Compiled!$E$1:$CE$1,0),FALSE),"0.00%"),_xlfn.NUMBERVALUE(VLOOKUP($C28,Compiled!$E$7:$CE$66,MATCH(AO$15,Compiled!$E$1:$CE$1,0),FALSE),"#,##0")) -> 31 | AP28: =IF(ISNUMBER(FIND("/",AP$15)),TEXT(VLOOKUP($C28,Compiled!$E$7:$CE$66,MATCH(AP$15,Compiled!$E$1:$CE$1,0),FALSE),"0.00%"),_xlfn.NUMBERVALUE(VLOOKUP($C28,Compiled!$E$7:$CE$66,MATCH(AP$15,Compiled!$E$1:$CE$1,0),FALSE),"#,##0")) -> 0 | AQ28: =IF(ISNUMBER(FIND("/",AQ$15)),HLOOKUP(AQ$15,Compiled!$F$1:$CC$65,MATCH($C28,Compiled!$E$1:$E$65,0),FALSE),HLOOKUP($C28,Compiled!$F$1:$CC$65,MATCH($C28,Compiled!$E$1:$E$65,0),FALSE)) -> 0 | AR28: =IF(AQ28="0.00%","",IF(AQ28<VLOOKUP(AP$16,'Dropdown control panel'!$B$76:$D$137,2,FALSE),AO28*VLOOKUP(AP$16,'Dropdown control panel'!$B$76:$D$137,2,FALSE)-AP28,"On Target")) -> 9.3 | AS28: =IF(ISNUMBER(FIND("/",AS$15)),TEXT(VLOOKUP($C28,Compiled!$E$7:$CE$66,MATCH(AS$15,Compiled!$E$1:$CE$1,0),FALSE),"0.00%"),_xlfn.NUMBERVALUE(VLOOKUP($C28,Compiled!$E$7:$CE$66,MATCH(AS$15,Compiled!$E$1:$CE$1,0),FALSE),"#,##0")) -> 0 | AT28: =IF(ISNUMBER(FIND("/",AT$15)),HLOOKUP(AT$15,Compiled!$F$1:$CC$65,MATCH($C28,Compiled!$E$1:$E$65,0),FALSE),HLOOKUP($C28,Compiled!$F$1:$CC$65,MATCH($C28,Compiled!$E$1:$E$65,0),FALSE)) -> 0.00% | AU28: =IF(AT28="0.00%","",IF(AT28<VLOOKUP(AS$16,'Dropdown control panel'!$B$76:$D$137,2,FALSE),AP28*VLOOKUP(AS$16,'Dropdown control panel'!$B$76:$D$137,2,FALSE)-AS28,"On Target")) ->  | AW28: =IF(ISNUMBER(FIND("/",AW$15)),TEXT(VLOOKUP($C28,Compiled!$E$7:$CE$66,MATCH(AW$15,Compiled!$E$1:$CE$1,0),FALSE),"0.00%"),_xlfn.NUMBERVALUE(VLOOKUP($C28,Compiled!$E$7:$CE$66,MATCH(AW$15,Compiled!$E$1:$CE$1,0),FALSE),"#,##0")) -> 619 | AX28: =IF(ISNUMBER(FIND("/",AX$15)),TEXT(VLOOKUP($C28,Compiled!$E$7:$CE$66,MATCH(AX$15,Compiled!$E$1:$CE$1,0),FALSE),"0.00%"),_xlfn.NUMBERVALUE(VLOOKUP($C28,Compiled!$E$7:$CE$66,MATCH(AX$15,Compiled!$E$1:$CE$1,0),FALSE),"#,##0")) -> 209 | AY28: =IF(ISNUMBER(FIND("/",AY$15)),HLOOKUP(AY$15,Compiled!$F$1:$CC$65,MATCH($C28,Compiled!$E$1:$E$65,0),FALSE),HLOOKUP($C28,Compiled!$F$1:$CC$65,MATCH($C28,Compiled!$E$1:$E$65,0),FALSE)) -> 0.338 | AZ28: =IF(AY28="0.00%","",IF(AY28<VLOOKUP(AX$16,'Dropdown control panel'!$B$76:$D$137,2,FALSE),AW28*VLOOKUP(AX$16,'Dropdown control panel'!$B$76:$D$137,2,FALSE)-AX28,"On Target")) -> 162.4 | BB28: =IF(ISNUMBER(FIND("/",BB$15)),TEXT(VLOOKUP($C28,Compiled!$E$7:$KA$66,MATCH(BB$15,Compiled!$E$1:$KA$1,0),FALSE),"0.00%"),_xlfn.NUMBERVALUE(VLOOKUP($C28,Compiled!$E$7:$KA$66,MATCH(BB$15,Compiled!$E$1:$KA$1,0),FALSE),"#,##0")) -> 246 | BC28: =IF(ISNUMBER(FIND("/",BC$15)),HLOOKUP(BC$15,Compiled!$F$1:$KA$65,MATCH($C28,Compiled!$E$1:$E$65,0),FALSE),HLOOKUP($C28,Compiled!$F$1:$KA$65,MATCH($C28,Compiled!$E$1:$E$65,0),FALSE)) -> 0.397 | BD28: =IF(BC28="0.00%","",IF(BC28<VLOOKUP(BB$16,'Dropdown control panel'!$B$76:$D$137,2,FALSE),AW28*VLOOKUP(BB$16,'Dropdown control panel'!$B$76:$D$137,2,FALSE)-BB28,"On Target")) -> 156.35 | BF28: =IF(ISNUMBER(FIND("/",BF$15)),TEXT(VLOOKUP($C28,Compiled!$E$7:$CE$66,MATCH(BF$15,Compiled!$E$1:$CE$1,0),FALSE),"0.00%"),_xlfn.NUMBERVALUE(VLOOKUP($C28,Compiled!$E$7:$CE$66,MATCH(BF$15,Compiled!$E$1:$CE$1,0),FALSE),"#,##0")) -> 1857 | BG28: =IF(ISNUMBER(FIND("/",BG$15)),TEXT(VLOOKUP($C28,Compiled!$E$7:$CE$66,MATCH(BG$15,Compiled!$E$1:$CE$1,0),FALSE),"0.00%"),_xlfn.NUMBERVALUE(VLOOKUP($C28,Compiled!$E$7:$CE$66,MATCH(BG$15,Compiled!$E$1:$CE$1,0),FALSE),"#,##0")) -> 653 | BH28: =IF(ISNUMBER(FIND("/",BH$15)),HLOOKUP(BH$15,Compiled!$F$1:$CC$65,MATCH($C28,Compiled!$E$1:$E$65,0),FALSE),HLOOKUP($C28,Compiled!$F$1:$CC$65,MATCH($C28,Compiled!$E$1:$E$65,0),FALSE)) -> 0.352 | BI28: =IF(BH28="0.00%","",IF(BH28<VLOOKUP(BG$16,'Dropdown control panel'!$B$76:$D$137,2,FALSE),BF28*VLOOKUP(BG$16,'Dropdown control panel'!$B$76:$D$137,2,FALSE)-BG28,"On Target")) -> 646.9 | BK28: =IF(ISNUMBER(FIND("/",BK$15)),TEXT(VLOOKUP($C28,Compiled!$E$7:$KH$66,MATCH(BK$15,Compiled!$E$1:$KH$1,0),FALSE),"0.00%"),_xlfn.NUMBERVALUE(VLOOKUP($C28,Compiled!$E$7:$KH$66,MATCH(BK$15,Compiled!$E$1:$KH$1,0),FALSE),"#,##0")) -> 191 | BL28: =IF(ISNUMBER(FIND("/",BL$15)),TEXT(VLOOKUP($C28,Compiled!$E$7:$KH$66,MATCH(BL$15,Compiled!$E$1:$KH$1,0),FALSE),"0.00%"),_xlfn.NUMBERVALUE(VLOOKUP($C28,Compiled!$E$7:$KH$66,MATCH(BL$15,Compiled!$E$1:$KH$1,0),FALSE),"#,##0")) -> 17 | BM28: =IF(ISNUMBER(FIND("/",BM$15)),HLOOKUP(BM$15,Compiled!$F$1:$KH$65,MATCH($C28,Compiled!$E$1:$E$65,0),FALSE),HLOOKUP($C28,Compiled!$F$1:$KH$65,MATCH($C28,Compiled!$E$1:$E$65,0),FALSE)) -> 0.089 | BN28: =IF(BM28="0.00%","",IF(BM28<VLOOKUP(BL$16,'Dropdown control panel'!$B$76:$D$137,2,FALSE),BK28*VLOOKUP(BL$16,'Dropdown control panel'!$B$76:$D$137,2,FALSE)-BL28,"On Target")) -> 116.7 | BO28: =IF(ISNUMBER(FIND("/",BO$15)),TEXT(VLOOKUP($C28,Compiled!$E$7:$KH$66,MATCH(BO$15,Compiled!$E$1:$KH$1,0),FALSE),"0.00%"),_xlfn.NUMBERVALUE(VLOOKUP($C28,Compiled!$E$7:$KH$66,MATCH(BO$15,Compiled!$E$1:$KH$1,0),FALSE),"#,##0")) -> 906 | BP28: =IF(ISNUMBER(FIND("/",BP$15)),HLOOKUP(BP$15,Compiled!$F$1:$KH$65,MATCH($C28,Compiled!$E$1:$E$65,0),FALSE),HLOOKUP($C28,Compiled!$F$1:$KH$65,MATCH($C28,Compiled!$E$1:$E$65,0),FALSE)) -> 0.488 | BQ28: =IF(BP28="0.00%","",IF(BP28<VLOOKUP(BO$16,'Dropdown control panel'!$B$76:$D$137,2,FALSE),BF28*VLOOKUP(BO$16,'Dropdown control panel'!$B$76:$D$137,2,FALSE)-BO28,"On Target")) -> 393.9 | BR28: =IF(ISNUMBER(FIND("/",BR$15)),TEXT(VLOOKUP($C28,Compiled!$E$7:$KH$66,MATCH(BR$15,Compiled!$E$1:$KH$1,0),FALSE),"0.00%"),_xlfn.NUMBERVALUE(VLOOKUP($C28,Compiled!$E$7:$KH$66,MATCH(BR$15,Compiled!$E$1:$KH$1,0),FALSE),"#,##0")) -> 1016 | BS28: =IF(ISNUMBER(FIND("/",BS$15)),HLOOKUP(BS$15,Compiled!$F$1:$KH$65,MATCH($C28,Compiled!$E$1:$E$65,0),FALSE),HLOOKUP($C28,Compiled!$F$1:$KH$65,MATCH($C28,Compiled!$E$1:$E$65,0),FALSE)) -> 0.547 | BT28: =IF(BS28="0.00%","",IF(BS28<VLOOKUP(BR$16,'Dropdown control panel'!$B$76:$D$137,2,FALSE),BF28*VLOOKUP(BR$16,'Dropdown control panel'!$B$76:$D$137,2,FALSE)-BR28,"On Target")) -> 283.9 | BV28: =IF(ISNUMBER(FIND("/",BV$15)),TEXT(VLOOKUP($C28,Compiled!$E$7:$CE$66,MATCH(BV$15,Compiled!$E$1:$CE$1,0),FALSE),"0.00%"),_xlfn.NUMBERVALUE(VLOOKUP($C28,Compiled!$E$7:$CE$66,MATCH(BV$15,Compiled!$E$1:$CE$1,0),FALSE),"#,##0")) -> 775 | BW28: =IF(ISNUMBER(FIND("/",BW$15)),TEXT(VLOOKUP($C28,Compiled!$E$7:$CE$66,MATCH(BW$15,Compiled!$E$1:$CE$1,0),FALSE),"0.00%"),_xlfn.NUMBERVALUE(VLOOKUP($C28,Compiled!$E$7:$CE$66,MATCH(BW$15,Compiled!$E$1:$CE$1,0),FALSE),"#,##0")) -> 245 | BX28: =IF(ISNUMBER(FIND("/",BX$15)),HLOOKUP(BX$15,Compiled!$F$1:$CC$65,MATCH($C28,Compiled!$E$1:$E$65,0),FALSE),HLOOKUP($C28,Compiled!$F$1:$CC$65,MATCH($C28,Compiled!$E$1:$E$65,0),FALSE)) -> 0.316 | BY28: =IF(BX28="0.00%","",IF(BX28<VLOOKUP(BW$16,'Dropdown control panel'!$B$76:$D$137,2,FALSE),BV28*VLOOKUP(BW$16,'Dropdown control panel'!$B$76:$D$137,2,FALSE)-BW28,"On Target")) -> 142.5 | CA28: =IF(ISNUMBER(FIND("/",CA$15)),TEXT(VLOOKUP($C28,Compiled!$E$7:$CE$66,MATCH(CA$15,Compiled!$E$1:$CE$1,0),FALSE),"0.00%"),_xlfn.NUMBERVALUE(VLOOKUP($C28,Compiled!$E$7:$CE$66,MATCH(CA$15,Compiled!$E$1:$CE$1,0),FALSE),"#,##0")) -> 794 | CB28: =IF(ISNUMBER(FIND("/",CB$15)),TEXT(VLOOKUP($C28,Compiled!$E$7:$CE$66,MATCH(CB$15,Compiled!$E$1:$CE$1,0),FALSE),"0.00%"),_xlfn.NUMBERVALUE(VLOOKUP($C28,Compiled!$E$7:$CE$66,MATCH(CB$15,Compiled!$E$1:$CE$1,0),FALSE),"#,##0")) -> 101 | CC28: =IF(ISNUMBER(FIND("/",CC$15)),HLOOKUP(CC$15,Compiled!$F$1:$CC$65,MATCH($C28,Compiled!$E$1:$E$65,0),FALSE),HLOOKUP($C28,Compiled!$F$1:$CC$65,MATCH($C28,Compiled!$E$1:$E$65,0),FALSE)) -> 0.127 | CD28: =IF(CC28="0.00%","",IF(CC28<VLOOKUP(CB$16,'Dropdown control panel'!$B$76:$D$137,2,FALSE),CA28*VLOOKUP(CB$16,'Dropdown control panel'!$B$76:$D$137,2,FALSE)-CB28,"On Target")) -> 256.3 | CF28: =IF(ISNUMBER(FIND("/",CF$15)),TEXT(VLOOKUP($C28,Compiled!$E$7:$CE$66,MATCH(CF$15,Compiled!$E$1:$CE$1,0),FALSE),"0.00%"),_xlfn.NUMBERVALUE(VLOOKUP($C28,Compiled!$E$7:$CE$66,MATCH(CF$15,Compiled!$E$1:$CE$1,0),FALSE),"#,##0")) -> 10 | CG28: =IF(ISNUMBER(FIND("/",CG$15)),TEXT(VLOOKUP($C28,Compiled!$E$7:$CE$66,MATCH(CG$15,Compiled!$E$1:$CE$1,0),FALSE),"0.00%"),_xlfn.NUMBERVALUE(VLOOKUP($C28,Compiled!$E$7:$CE$66,MATCH(CG$15,Compiled!$E$1:$CE$1,0),FALSE),"#,##0")) -> 5 | CH28: =IF(ISNUMBER(FIND("/",CH$15)),HLOOKUP(CH$15,Compiled!$F$1:$CC$65,MATCH($C28,Compiled!$E$1:$E$65,0),FALSE),HLOOKUP($C28,Compiled!$F$1:$CC$65,MATCH($C28,Compiled!$E$1:$E$65,0),FALSE)) -> 0.5 | CI28: =IF(CH28="0.00%","",IF(CH28<VLOOKUP(CG$16,'Dropdown control panel'!$B$76:$D$137,2,FALSE),CF28*VLOOKUP(CG$16,'Dropdown control panel'!$B$76:$D$137,2,FALSE)-CG28,"On Target")) -> 1 | CJ28: =IF(ISNUMBER(FIND("/",CJ$15)),TEXT(VLOOKUP($C28,Compiled!$E$7:$CE$66,MATCH(CJ$15,Compiled!$E$1:$CE$1,0),FALSE),"0.00%"),_xlfn.NUMBERVALUE(VLOOKUP($C28,Compiled!$E$7:$CE$66,MATCH(CJ$15,Compiled!$E$1:$CE$1,0),FALSE),"#,##0")) -> 0 | CK28: =IF(ISNUMBER(FIND("/",CK$15)),HLOOKUP(CK$15,Compiled!$F$1:$CC$65,MATCH($C28,Compiled!$E$1:$E$65,0),FALSE),HLOOKUP($C28,Compiled!$F$1:$CC$65,MATCH($C28,Compiled!$E$1:$E$65,0),FALSE)) -> 0 | CL28: =IF(CK28="0.00%","",IF(CK28<VLOOKUP(CJ$16,'Dropdown control panel'!$B$76:$D$137,2,FALSE),CF28*VLOOKUP(CJ$16,'Dropdown control panel'!$B$76:$D$137,2,FALSE)-CJ28,"On Target")) -> 3 | CT28: =IF(ISNUMBER(FIND("/",CT$15)),TEXT(VLOOKUP($C28,Compiled!$E$7:$KT$66,MATCH(CT$15,Compiled!$E$1:$KT$1,0),FALSE),"0.00%"),_xlfn.NUMBERVALUE(VLOOKUP($C28,Compiled!$E$7:$KT$66,MATCH(CT$15,Compiled!$E$1:$KT$1,0),FALSE),"#,##0")) -> 0 | CU28: =IF(ISNUMBER(FIND("/",CU$15)),TEXT(VLOOKUP($C28,Compiled!$E$7:$KT$66,MATCH(CU$15,Compiled!$E$1:$KT$1,0),FALSE),"0.00%"),_xlfn.NUMBERVALUE(VLOOKUP($C28,Compiled!$E$7:$KT$66,MATCH(CU$15,Compiled!$E$1:$KT$1,0),FALSE),"#,##0")) -> 0 | CV28: =IF(ISNUMBER(FIND("/",CV$15)),HLOOKUP(CV$15,Compiled!$F$1:$KT$65,MATCH($C28,Compiled!$E$1:$E$65,0),FALSE),HLOOKUP($C28,Compiled!$F$1:$KT$65,MATCH($C28,Compiled!$E$1:$E$65,0),FALSE)) -> 0.00% | CW28: =IF(CV28="0.00%","",IF(CV28<VLOOKUP(CU$16,'Dropdown control panel'!$B$76:$D$140,2,FALSE),CT28*VLOOKUP(CU$16,'Dropdown control panel'!$B$76:$D$140,2,FALSE)-CU28,"On Target")) -> 
B29: =Compiled!D18 -> Newham Total | C29: =Compiled!E18 -> Total | D29: =IF(ISNUMBER(FIND("/",D$15)),TEXT(VLOOKUP($C29,Compiled!$E$7:$CE$66,MATCH($D$15,Compiled!$E$1:$CE$1,0),FALSE),"0.00%"),_xlfn.NUMBERVALUE(VLOOKUP($C29,Compiled!$E$7:$CE$66,MATCH($D$15,Compiled!$E$1:$CE$1,0),FALSE),"#,##0")) -> 7323 | E29: =IF(ISNUMBER(FIND("/",E$15)),TEXT(VLOOKUP($C29,Compiled!$E$7:$CE$66,MATCH($E$15,Compiled!$E$1:$CE$1,0),FALSE),"0.00%"),_xlfn.NUMBERVALUE(VLOOKUP($C29,Compiled!$E$7:$CE$66,MATCH($E$15,Compiled!$E$1:$CE$1,0),FALSE),"#,##0")) -> 3036 | F29: =IF(ISNUMBER(FIND("/",$F$15)),HLOOKUP($F$15,Compiled!$F$1:$CC$65,MATCH($C29,Compiled!$E$1:$E$65,0),FALSE),HLOOKUP($C29,Compiled!$F$1:$CC$65,MATCH($C29,Compiled!$E$1:$E$65,0),FALSE)) -> 0.415 | G29: =IF($F29="0.00%","",IF($F29<VLOOKUP($E$16,'Dropdown control panel'!$B$76:$D$137,2,FALSE),$D29*VLOOKUP($E$16,'Dropdown control panel'!$B$76:$D$137,2,FALSE)-$E29,"On Target")) -> 991.65 | H29: =IF(ISNUMBER(FIND("/",H$15)),TEXT(VLOOKUP($C29,Compiled!$E$7:$CE$66,MATCH(H$15,Compiled!$E$1:$CE$1,0),FALSE),"0.00%"),_xlfn.NUMBERVALUE(VLOOKUP($C29,Compiled!$E$7:$CE$66,MATCH(H$15,Compiled!$E$1:$CE$1,0),FALSE),"#,##0")) -> 310 | I29: =IF(ISNUMBER(FIND("/",I$15)),TEXT(VLOOKUP($C29,Compiled!$E$7:$CE$66,MATCH(I$15,Compiled!$E$1:$CE$1,0),FALSE),"0.00%"),_xlfn.NUMBERVALUE(VLOOKUP($C29,Compiled!$E$7:$CE$66,MATCH(I$15,Compiled!$E$1:$CE$1,0),FALSE),"#,##0")) -> 48 | J29: =IF(ISNUMBER(FIND("/",J$15)),HLOOKUP(J$15,Compiled!$F$1:$CC$65,MATCH($C29,Compiled!$E$1:$E$65,0),FALSE),HLOOKUP($C29,Compiled!$F$1:$CC$65,MATCH($C29,Compiled!$E$1:$E$65,0),FALSE)) -> 0.155 | K29: =IF($J29="0.00%","",IF($J29<VLOOKUP($I$16,'Dropdown control panel'!$B$76:$D$137,2,FALSE),$H29*VLOOKUP($I$16,'Dropdown control panel'!$B$76:$D$137,2,FALSE)-$I29,"On Target")) -> 107 | L29: =IF(ISNUMBER(FIND("/",L$15)),TEXT(VLOOKUP($C29,Compiled!$E$7:$CE$66,MATCH(L$15,Compiled!$E$1:$CE$1,0),FALSE),"0.00%"),_xlfn.NUMBERVALUE(VLOOKUP($C29,Compiled!$E$7:$CE$66,MATCH(L$15,Compiled!$E$1:$CE$1,0),FALSE),"#,##0")) -> 33 | M29: =IF(ISNUMBER(FIND("/",M$15)),TEXT(VLOOKUP($C29,Compiled!$E$7:$CE$66,MATCH(M$15,Compiled!$E$1:$CE$1,0),FALSE),"0.00%"),_xlfn.NUMBERVALUE(VLOOKUP($C29,Compiled!$E$7:$CE$66,MATCH(M$15,Compiled!$E$1:$CE$1,0),FALSE),"#,##0")) -> 18 | N29: =IF(ISNUMBER(FIND("/",N$15)),HLOOKUP(N$15,Compiled!$F$1:$CC$65,MATCH($C29,Compiled!$E$1:$E$65,0),FALSE),HLOOKUP($C29,Compiled!$F$1:$CC$65,MATCH($C29,Compiled!$E$1:$E$65,0),FALSE)) -> 0.545 | O29: =IF(N29="0.00%","",IF(N29<VLOOKUP(M$16,'Dropdown control panel'!$B$76:$D$137,2,FALSE),L29*VLOOKUP(M$16,'Dropdown control panel'!$B$76:$D$137,2,FALSE)-M29,"On Target")) -> 3.45 | Q29: =IF(ISNUMBER(FIND("/",Q$15)),TEXT(VLOOKUP($C29,Compiled!$E$7:$KA$66,MATCH(Q$15,Compiled!$E$1:$KA$1,0),FALSE),"0.00%"),_xlfn.NUMBERVALUE(VLOOKUP($C29,Compiled!$E$7:$KA$66,MATCH(Q$15,Compiled!$E$1:$KA$1,0),FALSE),"#,##0")) -> 19 | R29: =IF(ISNUMBER(FIND("/",R$15)),TEXT(VLOOKUP($C29,Compiled!$E$7:$KA$66,MATCH(R$15,Compiled!$E$1:$KA$1,0),FALSE),"0.00%"),_xlfn.NUMBERVALUE(VLOOKUP($C29,Compiled!$E$7:$KA$66,MATCH(R$15,Compiled!$E$1:$KA$1,0),FALSE),"#,##0")) -> 0 | S29: =IF(ISNUMBER(FIND("/",S$15)),HLOOKUP(S$15,Compiled!$F$1:$CF$65,MATCH($C29,Compiled!$E$1:$E$65,0),FALSE),HLOOKUP($C29,Compiled!$F$1:$CF$65,MATCH($C29,Compiled!$E$1:$E$65,0),FALSE)) -> 0 | T29: =IF(S29="0.00%","",IF(S29<VLOOKUP(R$16,'Dropdown control panel'!$B$76:$D$143,2,FALSE),Q29*VLOOKUP(R$16,'Dropdown control panel'!$B$76:$E$143,2,FALSE)-R29,"On Target")) -> 15.2 | V29: =IF(ISNUMBER(FIND("/",V$15)),TEXT(VLOOKUP($C29,Compiled!$E$7:$CE$66,MATCH(V$15,Compiled!$E$1:$CE$1,0),FALSE),"0.00%"),_xlfn.NUMBERVALUE(VLOOKUP($C29,Compiled!$E$7:$CE$66,MATCH(V$15,Compiled!$E$1:$CE$1,0),FALSE),"#,##0")) -> 117 | W29: =IF(ISNUMBER(FIND("/",W$15)),TEXT(VLOOKUP($C29,Compiled!$E$7:$CE$66,MATCH(W$15,Compiled!$E$1:$CE$1,0),FALSE),"0.00%"),_xlfn.NUMBERVALUE(VLOOKUP($C29,Compiled!$E$7:$CE$66,MATCH(W$15,Compiled!$E$1:$CE$1,0),FALSE),"#,##0")) -> 100 | X29: =IF(ISNUMBER(FIND("/",X$15)),HLOOKUP(X$15,Compiled!$F$1:$CC$65,MATCH($C29,Compiled!$E$1:$E$65,0),FALSE),HLOOKUP($C29,Compiled!$F$1:$CC$65,MATCH($C29,Compiled!$E$1:$E$65,0),FALSE)) -> 0.855 | Y29: =IF(X29="0.00%","",IF(X29<VLOOKUP(W$16,'Dropdown control panel'!$B$76:$D$137,2,FALSE),V29*VLOOKUP(W$16,'Dropdown control panel'!$B$76:$D$137,2,FALSE)-W29,"On Target")) -> On Target | AA29: =IF(ISNUMBER(FIND("/",AA$15)),TEXT(VLOOKUP($C29,Compiled!$E$7:$CE$66,MATCH(AA$15,Compiled!$E$1:$CE$1,0),FALSE),"0.00%"),_xlfn.NUMBERVALUE(VLOOKUP($C29,Compiled!$E$7:$CE$66,MATCH(AA$15,Compiled!$E$1:$CE$1,0),FALSE),"#,##0")) -> 353 | AB29: =IF(ISNUMBER(FIND("/",AB$15)),TEXT(VLOOKUP($C29,Compiled!$E$7:$CE$66,MATCH(AB$15,Compiled!$E$1:$CE$1,0),FALSE),"0.00%"),_xlfn.NUMBERVALUE(VLOOKUP($C29,Compiled!$E$7:$CE$66,MATCH(AB$15,Compiled!$E$1:$CE$1,0),FALSE),"#,##0")) -> 32 | AC29: =IF(ISNUMBER(FIND("/",AC$15)),HLOOKUP(AC$15,Compiled!$F$1:$CC$65,MATCH($C29,Compiled!$E$1:$E$65,0),FALSE),HLOOKUP($C29,Compiled!$F$1:$CC$65,MATCH($C29,Compiled!$E$1:$E$65,0),FALSE)) -> 0.091 | AD29: =IF(AC29="0.00%","",IF(AC29<VLOOKUP(AB$16,'Dropdown control panel'!$B$76:$D$137,2,FALSE),AA29*VLOOKUP(AB$16,'Dropdown control panel'!$B$76:$D$137,2,FALSE)-AB29,"On Target")) ->  | AE29: =IF(ISNUMBER(FIND("/",AE$15)),TEXT(VLOOKUP($C29,Compiled!$E$7:$CE$66,MATCH(AE$15,Compiled!$E$1:$CE$1,0),FALSE),"0.00%"),_xlfn.NUMBERVALUE(VLOOKUP($C29,Compiled!$E$7:$CE$66,MATCH(AE$15,Compiled!$E$1:$CE$1,0),FALSE),"#,##0")) -> 216 | AF29: =IF(ISNUMBER(FIND("/",AF$15)),TEXT(VLOOKUP($C29,Compiled!$E$7:$CE$66,MATCH(AF$15,Compiled!$E$1:$CE$1,0),FALSE),"0.00%"),_xlfn.NUMBERVALUE(VLOOKUP($C29,Compiled!$E$7:$CE$66,MATCH(AF$15,Compiled!$E$1:$CE$1,0),FALSE),"#,##0")) -> 124 | AG29: =IF(ISNUMBER(FIND("/",AG$15)),HLOOKUP(AG$15,Compiled!$F$1:$CC$65,MATCH($C29,Compiled!$E$1:$E$65,0),FALSE),HLOOKUP($C29,Compiled!$F$1:$CC$65,MATCH($C29,Compiled!$E$1:$E$65,0),FALSE)) -> 0.574 | AH29: =IF(AG29="0.00%","",IF(AG29<VLOOKUP(AF$16,'Dropdown control panel'!$B$76:$D$137,2,FALSE),AE29*VLOOKUP(AF$16,'Dropdown control panel'!$B$76:$D$137,2,FALSE)-AF29,"On Target")) -> On Target | AJ29: =IF(ISNUMBER(FIND("/",AJ$15)),TEXT(VLOOKUP($C29,Compiled!$E$7:$CE$66,MATCH(AJ$15,Compiled!$E$1:$CE$1,0),FALSE),"0.00%"),_xlfn.NUMBERVALUE(VLOOKUP($C29,Compiled!$E$7:$CE$66,MATCH(AJ$15,Compiled!$E$1:$CE$1,0),FALSE),"#,##0")) -> 44770 | AK29: =IF(ISNUMBER(FIND("/",AK$15)),TEXT(VLOOKUP($C29,Compiled!$E$7:$CE$66,MATCH(AK$15,Compiled!$E$1:$CE$1,0),FALSE),"0.00%"),_xlfn.NUMBERVALUE(VLOOKUP($C29,Compiled!$E$7:$CE$66,MATCH(AK$15,Compiled!$E$1:$CE$1,0),FALSE),"#,##0")) -> 5517 | AL29: =IF(ISNUMBER(FIND("/",AL$15)),HLOOKUP(AL$15,Compiled!$F$1:$CC$65,MATCH($C29,Compiled!$E$1:$E$65,0),FALSE),HLOOKUP($C29,Compiled!$F$1:$CC$65,MATCH($C29,Compiled!$E$1:$E$65,0),FALSE)) -> 0.123 | AM29: =IF(AL29="0.00%","",IF(AL29<VLOOKUP(AK$16,'Dropdown control panel'!$B$76:$D$137,2,FALSE),AJ29*VLOOKUP(AK$16,'Dropdown control panel'!$B$76:$D$137,2,FALSE)-AK29,"On Target")) -> 13286.4 | AO29: =IF(ISNUMBER(FIND("/",AO$15)),TEXT(VLOOKUP($C29,Compiled!$E$7:$CE$66,MATCH(AO$15,Compiled!$E$1:$CE$1,0),FALSE),"0.00%"),_xlfn.NUMBERVALUE(VLOOKUP($C29,Compiled!$E$7:$CE$66,MATCH(AO$15,Compiled!$E$1:$CE$1,0),FALSE),"#,##0")) -> 272 | AP29: =IF(ISNUMBER(FIND("/",AP$15)),TEXT(VLOOKUP($C29,Compiled!$E$7:$CE$66,MATCH(AP$15,Compiled!$E$1:$CE$1,0),FALSE),"0.00%"),_xlfn.NUMBERVALUE(VLOOKUP($C29,Compiled!$E$7:$CE$66,MATCH(AP$15,Compiled!$E$1:$CE$1,0),FALSE),"#,##0")) -> 0 | AQ29: =IF(ISNUMBER(FIND("/",AQ$15)),HLOOKUP(AQ$15,Compiled!$F$1:$CC$65,MATCH($C29,Compiled!$E$1:$E$65,0),FALSE),HLOOKUP($C29,Compiled!$F$1:$CC$65,MATCH($C29,Compiled!$E$1:$E$65,0),FALSE)) -> 0 | AR29: =IF(AQ29="0.00%","",IF(AQ29<VLOOKUP(AP$16,'Dropdown control panel'!$B$76:$D$137,2,FALSE),AO29*VLOOKUP(AP$16,'Dropdown control panel'!$B$76:$D$137,2,FALSE)-AP29,"On Target")) -> 81.6 | AS29: =IF(ISNUMBER(FIND("/",AS$15)),TEXT(VLOOKUP($C29,Compiled!$E$7:$CE$66,MATCH(AS$15,Compiled!$E$1:$CE$1,0),FALSE),"0.00%"),_xlfn.NUMBERVALUE(VLOOKUP($C29,Compiled!$E$7:$CE$66,MATCH(AS$15,Compiled!$E$1:$CE$1,0),FALSE),"#,##0")) -> 0 | AT29: =IF(ISNUMBER(FIND("/",AT$15)),HLOOKUP(AT$15,Compiled!$F$1:$CC$65,MATCH($C29,Compiled!$E$1:$E$65,0),FALSE),HLOOKUP($C29,Compiled!$F$1:$CC$65,MATCH($C29,Compiled!$E$1:$E$65,0),FALSE)) -> 0.00% | AU29: =IF(AT29="0.00%","",IF(AT29<VLOOKUP(AS$16,'Dropdown control panel'!$B$76:$D$137,2,FALSE),AP29*VLOOKUP(AS$16,'Dropdown control panel'!$B$76:$D$137,2,FALSE)-AS29,"On Target")) ->  | AW29: =IF(ISNUMBER(FIND("/",AW$15)),TEXT(VLOOKUP($C29,Compiled!$E$7:$CE$66,MATCH(AW$15,Compiled!$E$1:$CE$1,0),FALSE),"0.00%"),_xlfn.NUMBERVALUE(VLOOKUP($C29,Compiled!$E$7:$CE$66,MATCH(AW$15,Compiled!$E$1:$CE$1,0),FALSE),"#,##0")) -> 6657 | AX29: =IF(ISNUMBER(FIND("/",AX$15)),TEXT(VLOOKUP($C29,Compiled!$E$7:$CE$66,MATCH(AX$15,Compiled!$E$1:$CE$1,0),FALSE),"0.00%"),_xlfn.NUMBERVALUE(VLOOKUP($C29,Compiled!$E$7:$CE$66,MATCH(AX$15,Compiled!$E$1:$CE$1,0),FALSE),"#,##0")) -> 2662 | AY29: =IF(ISNUMBER(FIND("/",AY$15)),HLOOKUP(AY$15,Compiled!$F$1:$CC$65,MATCH($C29,Compiled!$E$1:$E$65,0),FALSE),HLOOKUP($C29,Compiled!$F$1:$CC$65,MATCH($C29,Compiled!$E$1:$E$65,0),FALSE)) -> 0.4 | AZ29: =IF(AY29="0.00%","",IF(AY29<VLOOKUP(AX$16,'Dropdown control panel'!$B$76:$D$137,2,FALSE),AW29*VLOOKUP(AX$16,'Dropdown control panel'!$B$76:$D$137,2,FALSE)-AX29,"On Target")) -> 1332.2 | BB29: =IF(ISNUMBER(FIND("/",BB$15)),TEXT(VLOOKUP($C29,Compiled!$E$7:$KA$66,MATCH(BB$15,Compiled!$E$1:$KA$1,0),FALSE),"0.00%"),_xlfn.NUMBERVALUE(VLOOKUP($C29,Compiled!$E$7:$KA$66,MATCH(BB$15,Compiled!$E$1:$KA$1,0),FALSE),"#,##0")) -> 3231 | BC29: =IF(ISNUMBER(FIND("/",BC$15)),HLOOKUP(BC$15,Compiled!$F$1:$KA$65,MATCH($C29,Compiled!$E$1:$E$65,0),FALSE),HLOOKUP($C29,Compiled!$F$1:$KA$65,MATCH($C29,Compiled!$E$1:$E$65,0),FALSE)) -> 0.485 | BD29: =IF(BC29="0.00%","",IF(BC29<VLOOKUP(BB$16,'Dropdown control panel'!$B$76:$D$137,2,FALSE),AW29*VLOOKUP(BB$16,'Dropdown control panel'!$B$76:$D$137,2,FALSE)-BB29,"On Target")) -> 1096.05 | BF29: =IF(ISNUMBER(FIND("/",BF$15)),TEXT(VLOOKUP($C29,Compiled!$E$7:$CE$66,MATCH(BF$15,Compiled!$E$1:$CE$1,0),FALSE),"0.00%"),_xlfn.NUMBERVALUE(VLOOKUP($C29,Compiled!$E$7:$CE$66,MATCH(BF$15,Compiled!$E$1:$CE$1,0),FALSE),"#,##0")) -> 28982 | BG29: =IF(ISNUMBER(FIND("/",BG$15)),TEXT(VLOOKUP($C29,Compiled!$E$7:$CE$66,MATCH(BG$15,Compiled!$E$1:$CE$1,0),FALSE),"0.00%"),_xlfn.NUMBERVALUE(VLOOKUP($C29,Compiled!$E$7:$CE$66,MATCH(BG$15,Compiled!$E$1:$CE$1,0),FALSE),"#,##0")) -> 12697 | BH29: =IF(ISNUMBER(FIND("/",BH$15)),HLOOKUP(BH$15,Compiled!$F$1:$CC$65,MATCH($C29,Compiled!$E$1:$E$65,0),FALSE),HLOOKUP($C29,Compiled!$F$1:$CC$65,MATCH($C29,Compiled!$E$1:$E$65,0),FALSE)) -> 0.438 | BI29: =IF(BH29="0.00%","",IF(BH29<VLOOKUP(BG$16,'Dropdown control panel'!$B$76:$D$137,2,FALSE),BF29*VLOOKUP(BG$16,'Dropdown control panel'!$B$76:$D$137,2,FALSE)-BG29,"On Target")) -> 7590.4 | BK29: =IF(ISNUMBER(FIND("/",BK$15)),TEXT(VLOOKUP($C29,Compiled!$E$7:$KH$66,MATCH(BK$15,Compiled!$E$1:$KH$1,0),FALSE),"0.00%"),_xlfn.NUMBERVALUE(VLOOKUP($C29,Compiled!$E$7:$KH$66,MATCH(BK$15,Compiled!$E$1:$KH$1,0),FALSE),"#,##0")) -> 3012 | BL29: =IF(ISNUMBER(FIND("/",BL$15)),TEXT(VLOOKUP($C29,Compiled!$E$7:$KH$66,MATCH(BL$15,Compiled!$E$1:$KH$1,0),FALSE),"0.00%"),_xlfn.NUMBERVALUE(VLOOKUP($C29,Compiled!$E$7:$KH$66,MATCH(BL$15,Compiled!$E$1:$KH$1,0),FALSE),"#,##0")) -> 312 | BM29: =IF(ISNUMBER(FIND("/",BM$15)),HLOOKUP(BM$15,Compiled!$F$1:$KH$65,MATCH($C29,Compiled!$E$1:$E$65,0),FALSE),HLOOKUP($C29,Compiled!$F$1:$KH$65,MATCH($C29,Compiled!$E$1:$E$65,0),FALSE)) -> 0.104 | BN29: =IF(BM29="0.00%","",IF(BM29<VLOOKUP(BL$16,'Dropdown control panel'!$B$76:$D$137,2,FALSE),BK29*VLOOKUP(BL$16,'Dropdown control panel'!$B$76:$D$137,2,FALSE)-BL29,"On Target")) -> 1796.4 | BO29: =IF(ISNUMBER(FIND("/",BO$15)),TEXT(VLOOKUP($C29,Compiled!$E$7:$KH$66,MATCH(BO$15,Compiled!$E$1:$KH$1,0),FALSE),"0.00%"),_xlfn.NUMBERVALUE(VLOOKUP($C29,Compiled!$E$7:$KH$66,MATCH(BO$15,Compiled!$E$1:$KH$1,0),FALSE),"#,##0")) -> 17739 | BP29: =IF(ISNUMBER(FIND("/",BP$15)),HLOOKUP(BP$15,Compiled!$F$1:$KH$65,MATCH($C29,Compiled!$E$1:$E$65,0),FALSE),HLOOKUP($C29,Compiled!$F$1:$KH$65,MATCH($C29,Compiled!$E$1:$E$65,0),FALSE)) -> 0.612 | BQ29: =IF(BP29="0.00%","",IF(BP29<VLOOKUP(BO$16,'Dropdown control panel'!$B$76:$D$137,2,FALSE),BF29*VLOOKUP(BO$16,'Dropdown control panel'!$B$76:$D$137,2,FALSE)-BO29,"On Target")) -> 2548.4 | BR29: =IF(ISNUMBER(FIND("/",BR$15)),TEXT(VLOOKUP($C29,Compiled!$E$7:$KH$66,MATCH(BR$15,Compiled!$E$1:$KH$1,0),FALSE),"0.00%"),_xlfn.NUMBERVALUE(VLOOKUP($C29,Compiled!$E$7:$KH$66,MATCH(BR$15,Compiled!$E$1:$KH$1,0),FALSE),"#,##0")) -> 18319 | BS29: =IF(ISNUMBER(FIND("/",BS$15)),HLOOKUP(BS$15,Compiled!$F$1:$KH$65,MATCH($C29,Compiled!$E$1:$E$65,0),FALSE),HLOOKUP($C29,Compiled!$F$1:$KH$65,MATCH($C29,Compiled!$E$1:$E$65,0),FALSE)) -> 0.632 | BT29: =IF(BS29="0.00%","",IF(BS29<VLOOKUP(BR$16,'Dropdown control panel'!$B$76:$D$137,2,FALSE),BF29*VLOOKUP(BR$16,'Dropdown control panel'!$B$76:$D$137,2,FALSE)-BR29,"On Target")) -> 1968.4 | BV29: =IF(ISNUMBER(FIND("/",BV$15)),TEXT(VLOOKUP($C29,Compiled!$E$7:$CE$66,MATCH(BV$15,Compiled!$E$1:$CE$1,0),FALSE),"0.00%"),_xlfn.NUMBERVALUE(VLOOKUP($C29,Compiled!$E$7:$CE$66,MATCH(BV$15,Compiled!$E$1:$CE$1,0),FALSE),"#,##0")) -> 10617 | BW29: =IF(ISNUMBER(FIND("/",BW$15)),TEXT(VLOOKUP($C29,Compiled!$E$7:$CE$66,MATCH(BW$15,Compiled!$E$1:$CE$1,0),FALSE),"0.00%"),_xlfn.NUMBERVALUE(VLOOKUP($C29,Compiled!$E$7:$CE$66,MATCH(BW$15,Compiled!$E$1:$CE$1,0),FALSE),"#,##0")) -> 4383 | BX29: =IF(ISNUMBER(FIND("/",BX$15)),HLOOKUP(BX$15,Compiled!$F$1:$CC$65,MATCH($C29,Compiled!$E$1:$E$65,0),FALSE),HLOOKUP($C29,Compiled!$F$1:$CC$65,MATCH($C29,Compiled!$E$1:$E$65,0),FALSE)) -> 0.413 | BY29: =IF(BX29="0.00%","",IF(BX29<VLOOKUP(BW$16,'Dropdown control panel'!$B$76:$D$137,2,FALSE),BV29*VLOOKUP(BW$16,'Dropdown control panel'!$B$76:$D$137,2,FALSE)-BW29,"On Target")) -> 925.5 | CA29: =IF(ISNUMBER(FIND("/",CA$15)),TEXT(VLOOKUP($C29,Compiled!$E$7:$CE$66,MATCH(CA$15,Compiled!$E$1:$CE$1,0),FALSE),"0.00%"),_xlfn.NUMBERVALUE(VLOOKUP($C29,Compiled!$E$7:$CE$66,MATCH(CA$15,Compiled!$E$1:$CE$1,0),FALSE),"#,##0")) -> 14949 | CB29: =IF(ISNUMBER(FIND("/",CB$15)),TEXT(VLOOKUP($C29,Compiled!$E$7:$CE$66,MATCH(CB$15,Compiled!$E$1:$CE$1,0),FALSE),"0.00%"),_xlfn.NUMBERVALUE(VLOOKUP($C29,Compiled!$E$7:$CE$66,MATCH(CB$15,Compiled!$E$1:$CE$1,0),FALSE),"#,##0")) -> 2789 | CC29: =IF(ISNUMBER(FIND("/",CC$15)),HLOOKUP(CC$15,Compiled!$F$1:$CC$65,MATCH($C29,Compiled!$E$1:$E$65,0),FALSE),HLOOKUP($C29,Compiled!$F$1:$CC$65,MATCH($C29,Compiled!$E$1:$E$65,0),FALSE)) -> 0.187 | CD29: =IF(CC29="0.00%","",IF(CC29<VLOOKUP(CB$16,'Dropdown control panel'!$B$76:$D$137,2,FALSE),CA29*VLOOKUP(CB$16,'Dropdown control panel'!$B$76:$D$137,2,FALSE)-CB29,"On Target")) -> 3938.05 | CF29: =IF(ISNUMBER(FIND("/",CF$15)),TEXT(VLOOKUP($C29,Compiled!$E$7:$CE$66,MATCH(CF$15,Compiled!$E$1:$CE$1,0),FALSE),"0.00%"),_xlfn.NUMBERVALUE(VLOOKUP($C29,Compiled!$E$7:$CE$66,MATCH(CF$15,Compiled!$E$1:$CE$1,0),FALSE),"#,##0")) -> 106 | CG29: =IF(ISNUMBER(FIND("/",CG$15)),TEXT(VLOOKUP($C29,Compiled!$E$7:$CE$66,MATCH(CG$15,Compiled!$E$1:$CE$1,0),FALSE),"0.00%"),_xlfn.NUMBERVALUE(VLOOKUP($C29,Compiled!$E$7:$CE$66,MATCH(CG$15,Compiled!$E$1:$CE$1,0),FALSE),"#,##0")) -> 66 | CH29: =IF(ISNUMBER(FIND("/",CH$15)),HLOOKUP(CH$15,Compiled!$F$1:$CC$65,MATCH($C29,Compiled!$E$1:$E$65,0),FALSE),HLOOKUP($C29,Compiled!$F$1:$CC$65,MATCH($C29,Compiled!$E$1:$E$65,0),FALSE)) -> 0.623 | CI29: =IF(CH29="0.00%","",IF(CH29<VLOOKUP(CG$16,'Dropdown control panel'!$B$76:$D$137,2,FALSE),CF29*VLOOKUP(CG$16,'Dropdown control panel'!$B$76:$D$137,2,FALSE)-CG29,"On Target")) -> On Target | CJ29: =IF(ISNUMBER(FIND("/",CJ$15)),TEXT(VLOOKUP($C29,Compiled!$E$7:$CE$66,MATCH(CJ$15,Compiled!$E$1:$CE$1,0),FALSE),"0.00%"),_xlfn.NUMBERVALUE(VLOOKUP($C29,Compiled!$E$7:$CE$66,MATCH(CJ$15,Compiled!$E$1:$CE$1,0),FALSE),"#,##0")) -> 19 | CK29: =IF(ISNUMBER(FIND("/",CK$15)),HLOOKUP(CK$15,Compiled!$F$1:$CC$65,MATCH($C29,Compiled!$E$1:$E$65,0),FALSE),HLOOKUP($C29,Compiled!$F$1:$CC$65,MATCH($C29,Compiled!$E$1:$E$65,0),FALSE)) -> 0.179 | CL29: =IF(CK29="0.00%","",IF(CK29<VLOOKUP(CJ$16,'Dropdown control panel'!$B$76:$D$137,2,FALSE),CF29*VLOOKUP(CJ$16,'Dropdown control panel'!$B$76:$D$137,2,FALSE)-CJ29,"On Target")) -> 12.8 | CT29: =IF(ISNUMBER(FIND("/",CT$15)),TEXT(VLOOKUP($C29,Compiled!$E$7:$KT$66,MATCH(CT$15,Compiled!$E$1:$KT$1,0),FALSE),"0.00%"),_xlfn.NUMBERVALUE(VLOOKUP($C29,Compiled!$E$7:$KT$66,MATCH(CT$15,Compiled!$E$1:$KT$1,0),FALSE),"#,##0")) -> 0 | CU29: =IF(ISNUMBER(FIND("/",CU$15)),TEXT(VLOOKUP($C29,Compiled!$E$7:$KT$66,MATCH(CU$15,Compiled!$E$1:$KT$1,0),FALSE),"0.00%"),_xlfn.NUMBERVALUE(VLOOKUP($C29,Compiled!$E$7:$KT$66,MATCH(CU$15,Compiled!$E$1:$KT$1,0),FALSE),"#,##0")) -> 0 | CV29: =IF(ISNUMBER(FIND("/",CV$15)),HLOOKUP(CV$15,Compiled!$F$1:$KT$65,MATCH($C29,Compiled!$E$1:$E$65,0),FALSE),HLOOKUP($C29,Compiled!$F$1:$KT$65,MATCH($C29,Compiled!$E$1:$E$65,0),FALSE)) -> 0.00% | CW29: =IF(CV29="0.00%","",IF(CV29<VLOOKUP(CU$16,'Dropdown control panel'!$B$76:$D$140,2,FALSE),CT29*VLOOKUP(CU$16,'Dropdown control panel'!$B$76:$D$140,2,FALSE)-CU29,"On Target")) -> 
A31: =B19 -> South One Newham | B31: =Compiled!D20 -> Custom House Surgery | C31: =Compiled!E20 -> F84047 | D31: =IF(ISNUMBER(FIND("/",D$15)),TEXT(VLOOKUP($C31,Compiled!$E$7:$CE$66,MATCH($D$15,Compiled!$E$1:$CE$1,0),FALSE),"0.00%"),_xlfn.NUMBERVALUE(VLOOKUP($C31,Compiled!$E$7:$CE$66,MATCH($D$15,Compiled!$E$1:$CE$1,0),FALSE),"#,##0")) -> 194 | E31: =IF(ISNUMBER(FIND("/",E$15)),TEXT(VLOOKUP($C31,Compiled!$E$7:$CE$66,MATCH($E$15,Compiled!$E$1:$CE$1,0),FALSE),"0.00%"),_xlfn.NUMBERVALUE(VLOOKUP($C31,Compiled!$E$7:$CE$66,MATCH($E$15,Compiled!$E$1:$CE$1,0),FALSE),"#,##0")) -> 71 | F31: =IF(ISNUMBER(FIND("/",$F$15)),HLOOKUP($F$15,Compiled!$F$1:$CC$65,MATCH(C31,Compiled!$E$1:$E$65,0),FALSE),HLOOKUP($F$15,Compiled!$F$1:$CC$65,MATCH(C31,Compiled!$E$1:$E$65,0),FALSE)) -> 0.366 | G31: =IF($F31="0.00%","",IF($F31<VLOOKUP($E$16,'Dropdown control panel'!$B$76:$D$137,2,FALSE),$D31*VLOOKUP($E$16,'Dropdown control panel'!$B$76:$D$137,2,FALSE)-$E31,"On Target")) -> 35.7 | H31: =IF(ISNUMBER(FIND("/",H$15)),TEXT(VLOOKUP($C31,Compiled!$E$7:$CE$66,MATCH(H$15,Compiled!$E$1:$CE$1,0),FALSE),"0.00%"),_xlfn.NUMBERVALUE(VLOOKUP($C31,Compiled!$E$7:$CE$66,MATCH(H$15,Compiled!$E$1:$CE$1,0),FALSE),"#,##0")) -> 1 | I31: =IF(ISNUMBER(FIND("/",I$15)),TEXT(VLOOKUP($C31,Compiled!$E$7:$CE$66,MATCH(I$15,Compiled!$E$1:$CE$1,0),FALSE),"0.00%"),_xlfn.NUMBERVALUE(VLOOKUP($C31,Compiled!$E$7:$CE$66,MATCH(I$15,Compiled!$E$1:$CE$1,0),FALSE),"#,##0")) -> 0 | J31: =IF(ISNUMBER(FIND("/",J$15)),HLOOKUP(J$15,Compiled!$F$1:$CC$65,MATCH($C31,Compiled!$E$1:$E$65,0),FALSE),HLOOKUP($C31,Compiled!$F$1:$CC$65,MATCH($C31,Compiled!$E$1:$E$65,0),FALSE)) -> 0 | K31: =IF($J31="0.00%","",IF($J31<VLOOKUP($I$16,'Dropdown control panel'!$B$76:$D$137,2,FALSE),$H31*VLOOKUP($I$16,'Dropdown control panel'!$B$76:$D$137,2,FALSE)-$I31,"On Target")) -> 0.5 | L31: =IF(ISNUMBER(FIND("/",L$15)),TEXT(VLOOKUP($C31,Compiled!$E$7:$CE$66,MATCH(L$15,Compiled!$E$1:$CE$1,0),FALSE),"0.00%"),_xlfn.NUMBERVALUE(VLOOKUP($C31,Compiled!$E$7:$CE$66,MATCH(L$15,Compiled!$E$1:$CE$1,0),FALSE),"#,##0")) -> 0 | M31: =IF(ISNUMBER(FIND("/",M$15)),TEXT(VLOOKUP($C31,Compiled!$E$7:$CE$66,MATCH(M$15,Compiled!$E$1:$CE$1,0),FALSE),"0.00%"),_xlfn.NUMBERVALUE(VLOOKUP($C31,Compiled!$E$7:$CE$66,MATCH(M$15,Compiled!$E$1:$CE$1,0),FALSE),"#,##0")) -> 0 | N31: =IF(ISNUMBER(FIND("/",N$15)),HLOOKUP(N$15,Compiled!$F$1:$CC$65,MATCH($C31,Compiled!$E$1:$E$65,0),FALSE),HLOOKUP($C31,Compiled!$F$1:$CC$65,MATCH($C31,Compiled!$E$1:$E$65,0),FALSE)) -> 0.00% | O31: =IF(N31="0.00%","",IF(N31<VLOOKUP(M$16,'Dropdown control panel'!$B$76:$D$137,2,FALSE),L31*VLOOKUP(M$16,'Dropdown control panel'!$B$76:$D$137,2,FALSE)-M31,"On Target")) ->  | Q31: =IF(ISNUMBER(FIND("/",Q$15)),TEXT(VLOOKUP($C31,Compiled!$E$7:$KA$66,MATCH(Q$15,Compiled!$E$1:$KA$1,0),FALSE),"0.00%"),_xlfn.NUMBERVALUE(VLOOKUP($C31,Compiled!$E$7:$KA$66,MATCH(Q$15,Compiled!$E$1:$KA$1,0),FALSE),"#,##0")) -> 0 | R31: =IF(ISNUMBER(FIND("/",R$15)),TEXT(VLOOKUP($C31,Compiled!$E$7:$KA$66,MATCH(R$15,Compiled!$E$1:$KA$1,0),FALSE),"0.00%"),_xlfn.NUMBERVALUE(VLOOKUP($C31,Compiled!$E$7:$KA$66,MATCH(R$15,Compiled!$E$1:$KA$1,0),FALSE),"#,##0")) -> 0 | S31: =IF(ISNUMBER(FIND("/",S$15)),HLOOKUP(S$15,Compiled!$F$1:$CF$65,MATCH($C31,Compiled!$E$1:$E$65,0),FALSE),HLOOKUP($C31,Compiled!$F$1:$CF$65,MATCH($C31,Compiled!$E$1:$E$65,0),FALSE)) -> 0.00% | T31: =IF(S31="0.00%","",IF(S31<VLOOKUP(R$16,'Dropdown control panel'!$B$76:$D$143,2,FALSE),Q31*VLOOKUP(R$16,'Dropdown control panel'!$B$76:$E$143,2,FALSE)-R31,"On Target")) ->  | V31: =IF(ISNUMBER(FIND("/",V$15)),TEXT(VLOOKUP($C31,Compiled!$E$7:$CE$66,MATCH(V$15,Compiled!$E$1:$CE$1,0),FALSE),"0.00%"),_xlfn.NUMBERVALUE(VLOOKUP($C31,Compiled!$E$7:$CE$66,MATCH(V$15,Compiled!$E$1:$CE$1,0),FALSE),"#,##0")) -> 0 | W31: =IF(ISNUMBER(FIND("/",W$15)),TEXT(VLOOKUP($C31,Compiled!$E$7:$CE$66,MATCH(W$15,Compiled!$E$1:$CE$1,0),FALSE),"0.00%"),_xlfn.NUMBERVALUE(VLOOKUP($C31,Compiled!$E$7:$CE$66,MATCH(W$15,Compiled!$E$1:$CE$1,0),FALSE),"#,##0")) -> 0 | X31: =IF(ISNUMBER(FIND("/",X$15)),HLOOKUP(X$15,Compiled!$F$1:$CC$65,MATCH($C31,Compiled!$E$1:$E$65,0),FALSE),HLOOKUP($C31,Compiled!$F$1:$CC$65,MATCH($C31,Compiled!$E$1:$E$65,0),FALSE)) -> 0.00% | Y31: =IF(X31="0.00%","",IF(X31<VLOOKUP(W$16,'Dropdown control panel'!$B$76:$D$137,2,FALSE),V31*VLOOKUP(W$16,'Dropdown control panel'!$B$76:$D$137,2,FALSE)-W31,"On Target")) ->  | AA31: =IF(ISNUMBER(FIND("/",AA$15)),TEXT(VLOOKUP($C31,Compiled!$E$7:$CE$66,MATCH(AA$15,Compiled!$E$1:$CE$1,0),FALSE),"0.00%"),_xlfn.NUMBERVALUE(VLOOKUP($C31,Compiled!$E$7:$CE$66,MATCH(AA$15,Compiled!$E$1:$CE$1,0),FALSE),"#,##0")) -> 13 | AB31: =IF(ISNUMBER(FIND("/",AB$15)),TEXT(VLOOKUP($C31,Compiled!$E$7:$CE$66,MATCH(AB$15,Compiled!$E$1:$CE$1,0),FALSE),"0.00%"),_xlfn.NUMBERVALUE(VLOOKUP($C31,Compiled!$E$7:$CE$66,MATCH(AB$15,Compiled!$E$1:$CE$1,0),FALSE),"#,##0")) -> 1 | AC31: =IF(ISNUMBER(FIND("/",AC$15)),HLOOKUP(AC$15,Compiled!$F$1:$CC$65,MATCH($C31,Compiled!$E$1:$E$65,0),FALSE),HLOOKUP($C31,Compiled!$F$1:$CC$65,MATCH($C31,Compiled!$E$1:$E$65,0),FALSE)) -> 0.077 | AD31: =IF(AC31="0.00%","",IF(AC31<VLOOKUP(AB$16,'Dropdown control panel'!$B$76:$D$137,2,FALSE),AA31*VLOOKUP(AB$16,'Dropdown control panel'!$B$76:$D$137,2,FALSE)-AB31,"On Target")) ->  | AE31: =IF(ISNUMBER(FIND("/",AE$15)),TEXT(VLOOKUP($C31,Compiled!$E$7:$CE$66,MATCH(AE$15,Compiled!$E$1:$CE$1,0),FALSE),"0.00%"),_xlfn.NUMBERVALUE(VLOOKUP($C31,Compiled!$E$7:$CE$66,MATCH(AE$15,Compiled!$E$1:$CE$1,0),FALSE),"#,##0")) -> 3 | AF31: =IF(ISNUMBER(FIND("/",AF$15)),TEXT(VLOOKUP($C31,Compiled!$E$7:$CE$66,MATCH(AF$15,Compiled!$E$1:$CE$1,0),FALSE),"0.00%"),_xlfn.NUMBERVALUE(VLOOKUP($C31,Compiled!$E$7:$CE$66,MATCH(AF$15,Compiled!$E$1:$CE$1,0),FALSE),"#,##0")) -> 0 | AG31: =IF(ISNUMBER(FIND("/",AG$15)),HLOOKUP(AG$15,Compiled!$F$1:$CC$65,MATCH($C31,Compiled!$E$1:$E$65,0),FALSE),HLOOKUP($C31,Compiled!$F$1:$CC$65,MATCH($C31,Compiled!$E$1:$E$65,0),FALSE)) -> 0 | AH31: =IF(AG31="0.00%","",IF(AG31<VLOOKUP(AF$16,'Dropdown control panel'!$B$76:$D$137,2,FALSE),AE31*VLOOKUP(AF$16,'Dropdown control panel'!$B$76:$D$137,2,FALSE)-AF31,"On Target")) -> 1.5 | AJ31: =IF(ISNUMBER(FIND("/",AJ$15)),TEXT(VLOOKUP($C31,Compiled!$E$7:$CE$66,MATCH(AJ$15,Compiled!$E$1:$CE$1,0),FALSE),"0.00%"),_xlfn.NUMBERVALUE(VLOOKUP($C31,Compiled!$E$7:$CE$66,MATCH(AJ$15,Compiled!$E$1:$CE$1,0),FALSE),"#,##0")) -> 994 | AK31: =IF(ISNUMBER(FIND("/",AK$15)),TEXT(VLOOKUP($C31,Compiled!$E$7:$CE$66,MATCH(AK$15,Compiled!$E$1:$CE$1,0),FALSE),"0.00%"),_xlfn.NUMBERVALUE(VLOOKUP($C31,Compiled!$E$7:$CE$66,MATCH(AK$15,Compiled!$E$1:$CE$1,0),FALSE),"#,##0")) -> 23 | AL31: =IF(ISNUMBER(FIND("/",AL$15)),HLOOKUP(AL$15,Compiled!$F$1:$CC$65,MATCH($C31,Compiled!$E$1:$E$65,0),FALSE),HLOOKUP($C31,Compiled!$F$1:$CC$65,MATCH($C31,Compiled!$E$1:$E$65,0),FALSE)) -> 0.023 | AM31: =IF(AL31="0.00%","",IF(AL31<VLOOKUP(AK$16,'Dropdown control panel'!$B$76:$D$137,2,FALSE),AJ31*VLOOKUP(AK$16,'Dropdown control panel'!$B$76:$D$137,2,FALSE)-AK31,"On Target")) -> 394.48 | AO31: =IF(ISNUMBER(FIND("/",AO$15)),TEXT(VLOOKUP($C31,Compiled!$E$7:$CE$66,MATCH(AO$15,Compiled!$E$1:$CE$1,0),FALSE),"0.00%"),_xlfn.NUMBERVALUE(VLOOKUP($C31,Compiled!$E$7:$CE$66,MATCH(AO$15,Compiled!$E$1:$CE$1,0),FALSE),"#,##0")) -> 8 | AP31: =IF(ISNUMBER(FIND("/",AP$15)),TEXT(VLOOKUP($C31,Compiled!$E$7:$CE$66,MATCH(AP$15,Compiled!$E$1:$CE$1,0),FALSE),"0.00%"),_xlfn.NUMBERVALUE(VLOOKUP($C31,Compiled!$E$7:$CE$66,MATCH(AP$15,Compiled!$E$1:$CE$1,0),FALSE),"#,##0")) -> 0 | AQ31: =IF(ISNUMBER(FIND("/",AQ$15)),HLOOKUP(AQ$15,Compiled!$F$1:$CC$65,MATCH($C31,Compiled!$E$1:$E$65,0),FALSE),HLOOKUP($C31,Compiled!$F$1:$CC$65,MATCH($C31,Compiled!$E$1:$E$65,0),FALSE)) -> 0 | AR31: =IF(AQ31="0.00%","",IF(AQ31<VLOOKUP(AP$16,'Dropdown control panel'!$B$76:$D$137,2,FALSE),AO31*VLOOKUP(AP$16,'Dropdown control panel'!$B$76:$D$137,2,FALSE)-AP31,"On Target")) -> 2.4 | AS31: =IF(ISNUMBER(FIND("/",AS$15)),TEXT(VLOOKUP($C31,Compiled!$E$7:$CE$66,MATCH(AS$15,Compiled!$E$1:$CE$1,0),FALSE),"0.00%"),_xlfn.NUMBERVALUE(VLOOKUP($C31,Compiled!$E$7:$CE$66,MATCH(AS$15,Compiled!$E$1:$CE$1,0),FALSE),"#,##0")) -> 0 | AT31: =IF(ISNUMBER(FIND("/",AT$15)),HLOOKUP(AT$15,Compiled!$F$1:$CC$65,MATCH($C31,Compiled!$E$1:$E$65,0),FALSE),HLOOKUP($C31,Compiled!$F$1:$CC$65,MATCH($C31,Compiled!$E$1:$E$65,0),FALSE)) -> 0.00% | AU31: =IF(AT31="0.00%","",IF(AT31<VLOOKUP(AS$16,'Dropdown control panel'!$B$76:$D$137,2,FALSE),AP31*VLOOKUP(AS$16,'Dropdown control panel'!$B$76:$D$137,2,FALSE)-AS31,"On Target")) ->  | AW31: =IF(ISNUMBER(FIND("/",AW$15)),TEXT(VLOOKUP($C31,Compiled!$E$7:$CE$66,MATCH(AW$15,Compiled!$E$1:$CE$1,0),FALSE),"0.00%"),_xlfn.NUMBERVALUE(VLOOKUP($C31,Compiled!$E$7:$CE$66,MATCH(AW$15,Compiled!$E$1:$CE$1,0),FALSE),"#,##0")) -> 193 | AX31: =IF(ISNUMBER(FIND("/",AX$15)),TEXT(VLOOKUP($C31,Compiled!$E$7:$CE$66,MATCH(AX$15,Compiled!$E$1:$CE$1,0),FALSE),"0.00%"),_xlfn.NUMBERVALUE(VLOOKUP($C31,Compiled!$E$7:$CE$66,MATCH(AX$15,Compiled!$E$1:$CE$1,0),FALSE),"#,##0")) -> 68 | AY31: =IF(ISNUMBER(FIND("/",AY$15)),HLOOKUP(AY$15,Compiled!$F$1:$CC$65,MATCH($C31,Compiled!$E$1:$E$65,0),FALSE),HLOOKUP($C31,Compiled!$F$1:$CC$65,MATCH($C31,Compiled!$E$1:$E$65,0),FALSE)) -> 0.352 | AZ31: =IF(AY31="0.00%","",IF(AY31<VLOOKUP(AX$16,'Dropdown control panel'!$B$76:$D$137,2,FALSE),AW31*VLOOKUP(AX$16,'Dropdown control panel'!$B$76:$D$137,2,FALSE)-AX31,"On Target")) -> 47.8 | BB31: =IF(ISNUMBER(FIND("/",BB$15)),TEXT(VLOOKUP($C31,Compiled!$E$7:$KA$66,MATCH(BB$15,Compiled!$E$1:$KA$1,0),FALSE),"0.00%"),_xlfn.NUMBERVALUE(VLOOKUP($C31,Compiled!$E$7:$KA$66,MATCH(BB$15,Compiled!$E$1:$KA$1,0),FALSE),"#,##0")) -> 94 | BC31: =IF(ISNUMBER(FIND("/",BC$15)),HLOOKUP(BC$15,Compiled!$F$1:$KA$65,MATCH($C31,Compiled!$E$1:$E$65,0),FALSE),HLOOKUP($C31,Compiled!$F$1:$KA$65,MATCH($C31,Compiled!$E$1:$E$65,0),FALSE)) -> 0.487 | BD31: =IF(BC31="0.00%","",IF(BC31<VLOOKUP(BB$16,'Dropdown control panel'!$B$76:$D$137,2,FALSE),AW31*VLOOKUP(BB$16,'Dropdown control panel'!$B$76:$D$137,2,FALSE)-BB31,"On Target")) -> 31.45 | BF31: =IF(ISNUMBER(FIND("/",BF$15)),TEXT(VLOOKUP($C31,Compiled!$E$7:$CE$66,MATCH(BF$15,Compiled!$E$1:$CE$1,0),FALSE),"0.00%"),_xlfn.NUMBERVALUE(VLOOKUP($C31,Compiled!$E$7:$CE$66,MATCH(BF$15,Compiled!$E$1:$CE$1,0),FALSE),"#,##0")) -> 573 | BG31: =IF(ISNUMBER(FIND("/",BG$15)),TEXT(VLOOKUP($C31,Compiled!$E$7:$CE$66,MATCH(BG$15,Compiled!$E$1:$CE$1,0),FALSE),"0.00%"),_xlfn.NUMBERVALUE(VLOOKUP($C31,Compiled!$E$7:$CE$66,MATCH(BG$15,Compiled!$E$1:$CE$1,0),FALSE),"#,##0")) -> 214 | BH31: =IF(ISNUMBER(FIND("/",BH$15)),HLOOKUP(BH$15,Compiled!$F$1:$CC$65,MATCH($C31,Compiled!$E$1:$E$65,0),FALSE),HLOOKUP($C31,Compiled!$F$1:$CC$65,MATCH($C31,Compiled!$E$1:$E$65,0),FALSE)) -> 0.373 | BI31: =IF(BH31="0.00%","",IF(BH31<VLOOKUP(BG$16,'Dropdown control panel'!$B$76:$D$137,2,FALSE),BF31*VLOOKUP(BG$16,'Dropdown control panel'!$B$76:$D$137,2,FALSE)-BG31,"On Target")) -> 187.1 | BK31: =IF(ISNUMBER(FIND("/",BK$15)),TEXT(VLOOKUP($C31,Compiled!$E$7:$KH$66,MATCH(BK$15,Compiled!$E$1:$KH$1,0),FALSE),"0.00%"),_xlfn.NUMBERVALUE(VLOOKUP($C31,Compiled!$E$7:$KH$66,MATCH(BK$15,Compiled!$E$1:$KH$1,0),FALSE),"#,##0")) -> 57 | BL31: =IF(ISNUMBER(FIND("/",BL$15)),TEXT(VLOOKUP($C31,Compiled!$E$7:$KH$66,MATCH(BL$15,Compiled!$E$1:$KH$1,0),FALSE),"0.00%"),_xlfn.NUMBERVALUE(VLOOKUP($C31,Compiled!$E$7:$KH$66,MATCH(BL$15,Compiled!$E$1:$KH$1,0),FALSE),"#,##0")) -> 7 | BM31: =IF(ISNUMBER(FIND("/",BM$15)),HLOOKUP(BM$15,Compiled!$F$1:$KH$65,MATCH($C31,Compiled!$E$1:$E$65,0),FALSE),HLOOKUP($C31,Compiled!$F$1:$KH$65,MATCH($C31,Compiled!$E$1:$E$65,0),FALSE)) -> 0.123 | BN31: =IF(BM31="0.00%","",IF(BM31<VLOOKUP(BL$16,'Dropdown control panel'!$B$76:$D$137,2,FALSE),BK31*VLOOKUP(BL$16,'Dropdown control panel'!$B$76:$D$137,2,FALSE)-BL31,"On Target")) -> 32.9 | BO31: =IF(ISNUMBER(FIND("/",BO$15)),TEXT(VLOOKUP($C31,Compiled!$E$7:$KH$66,MATCH(BO$15,Compiled!$E$1:$KH$1,0),FALSE),"0.00%"),_xlfn.NUMBERVALUE(VLOOKUP($C31,Compiled!$E$7:$KH$66,MATCH(BO$15,Compiled!$E$1:$KH$1,0),FALSE),"#,##0")) -> 394 | BP31: =IF(ISNUMBER(FIND("/",BP$15)),HLOOKUP(BP$15,Compiled!$F$1:$KH$65,MATCH($C31,Compiled!$E$1:$E$65,0),FALSE),HLOOKUP($C31,Compiled!$F$1:$KH$65,MATCH($C31,Compiled!$E$1:$E$65,0),FALSE)) -> 0.688 | BQ31: =IF(BP31="0.00%","",IF(BP31<VLOOKUP(BO$16,'Dropdown control panel'!$B$76:$D$137,2,FALSE),BF31*VLOOKUP(BO$16,'Dropdown control panel'!$B$76:$D$137,2,FALSE)-BO31,"On Target")) -> 7.1 | BR31: =IF(ISNUMBER(FIND("/",BR$15)),TEXT(VLOOKUP($C31,Compiled!$E$7:$KH$66,MATCH(BR$15,Compiled!$E$1:$KH$1,0),FALSE),"0.00%"),_xlfn.NUMBERVALUE(VLOOKUP($C31,Compiled!$E$7:$KH$66,MATCH(BR$15,Compiled!$E$1:$KH$1,0),FALSE),"#,##0")) -> 306 | BS31: =IF(ISNUMBER(FIND("/",BS$15)),HLOOKUP(BS$15,Compiled!$F$1:$KH$65,MATCH($C31,Compiled!$E$1:$E$65,0),FALSE),HLOOKUP($C31,Compiled!$F$1:$KH$65,MATCH($C31,Compiled!$E$1:$E$65,0),FALSE)) -> 0.534 | BT31: =IF(BS31="0.00%","",IF(BS31<VLOOKUP(BR$16,'Dropdown control panel'!$B$76:$D$137,2,FALSE),BF31*VLOOKUP(BR$16,'Dropdown control panel'!$B$76:$D$137,2,FALSE)-BR31,"On Target")) -> 95.1 | BV31: =IF(ISNUMBER(FIND("/",BV$15)),TEXT(VLOOKUP($C31,Compiled!$E$7:$CE$66,MATCH(BV$15,Compiled!$E$1:$CE$1,0),FALSE),"0.00%"),_xlfn.NUMBERVALUE(VLOOKUP($C31,Compiled!$E$7:$CE$66,MATCH(BV$15,Compiled!$E$1:$CE$1,0),FALSE),"#,##0")) -> 190 | BW31: =IF(ISNUMBER(FIND("/",BW$15)),TEXT(VLOOKUP($C31,Compiled!$E$7:$CE$66,MATCH(BW$15,Compiled!$E$1:$CE$1,0),FALSE),"0.00%"),_xlfn.NUMBERVALUE(VLOOKUP($C31,Compiled!$E$7:$CE$66,MATCH(BW$15,Compiled!$E$1:$CE$1,0),FALSE),"#,##0")) -> 82 | BX31: =IF(ISNUMBER(FIND("/",BX$15)),HLOOKUP(BX$15,Compiled!$F$1:$CC$65,MATCH($C31,Compiled!$E$1:$E$65,0),FALSE),HLOOKUP($C31,Compiled!$F$1:$CC$65,MATCH($C31,Compiled!$E$1:$E$65,0),FALSE)) -> 0.432 | BY31: =IF(BX31="0.00%","",IF(BX31<VLOOKUP(BW$16,'Dropdown control panel'!$B$76:$D$137,2,FALSE),BV31*VLOOKUP(BW$16,'Dropdown control panel'!$B$76:$D$137,2,FALSE)-BW31,"On Target")) -> 13 | CA31: =IF(ISNUMBER(FIND("/",CA$15)),TEXT(VLOOKUP($C31,Compiled!$E$7:$CE$66,MATCH(CA$15,Compiled!$E$1:$CE$1,0),FALSE),"0.00%"),_xlfn.NUMBERVALUE(VLOOKUP($C31,Compiled!$E$7:$CE$66,MATCH(CA$15,Compiled!$E$1:$CE$1,0),FALSE),"#,##0")) -> 158 | CB31: =IF(ISNUMBER(FIND("/",CB$15)),TEXT(VLOOKUP($C31,Compiled!$E$7:$CE$66,MATCH(CB$15,Compiled!$E$1:$CE$1,0),FALSE),"0.00%"),_xlfn.NUMBERVALUE(VLOOKUP($C31,Compiled!$E$7:$CE$66,MATCH(CB$15,Compiled!$E$1:$CE$1,0),FALSE),"#,##0")) -> 8 | CC31: =IF(ISNUMBER(FIND("/",CC$15)),HLOOKUP(CC$15,Compiled!$F$1:$CC$65,MATCH($C31,Compiled!$E$1:$E$65,0),FALSE),HLOOKUP($C31,Compiled!$F$1:$CC$65,MATCH($C31,Compiled!$E$1:$E$65,0),FALSE)) -> 0.051 | CD31: =IF(CC31="0.00%","",IF(CC31<VLOOKUP(CB$16,'Dropdown control panel'!$B$76:$D$137,2,FALSE),CA31*VLOOKUP(CB$16,'Dropdown control panel'!$B$76:$D$137,2,FALSE)-CB31,"On Target")) -> 63.1 | CF31: =IF(ISNUMBER(FIND("/",CF$15)),TEXT(VLOOKUP($C31,Compiled!$E$7:$CE$66,MATCH(CF$15,Compiled!$E$1:$CE$1,0),FALSE),"0.00%"),_xlfn.NUMBERVALUE(VLOOKUP($C31,Compiled!$E$7:$CE$66,MATCH(CF$15,Compiled!$E$1:$CE$1,0),FALSE),"#,##0")) -> 4 | CG31: =IF(ISNUMBER(FIND("/",CG$15)),TEXT(VLOOKUP($C31,Compiled!$E$7:$CE$66,MATCH(CG$15,Compiled!$E$1:$CE$1,0),FALSE),"0.00%"),_xlfn.NUMBERVALUE(VLOOKUP($C31,Compiled!$E$7:$CE$66,MATCH(CG$15,Compiled!$E$1:$CE$1,0),FALSE),"#,##0")) -> 3 | CH31: =IF(ISNUMBER(FIND("/",CH$15)),HLOOKUP(CH$15,Compiled!$F$1:$CC$65,MATCH($C31,Compiled!$E$1:$E$65,0),FALSE),HLOOKUP($C31,Compiled!$F$1:$CC$65,MATCH($C31,Compiled!$E$1:$E$65,0),FALSE)) -> 0.75 | CI31: =IF(CH31="0.00%","",IF(CH31<VLOOKUP(CG$16,'Dropdown control panel'!$B$76:$D$137,2,FALSE),CF31*VLOOKUP(CG$16,'Dropdown control panel'!$B$76:$D$137,2,FALSE)-CG31,"On Target")) -> On Target | CJ31: =IF(ISNUMBER(FIND("/",CJ$15)),TEXT(VLOOKUP($C31,Compiled!$E$7:$CE$66,MATCH(CJ$15,Compiled!$E$1:$CE$1,0),FALSE),"0.00%"),_xlfn.NUMBERVALUE(VLOOKUP($C31,Compiled!$E$7:$CE$66,MATCH(CJ$15,Compiled!$E$1:$CE$1,0),FALSE),"#,##0")) -> 0 | CK31: =IF(ISNUMBER(FIND("/",CK$15)),HLOOKUP(CK$15,Compiled!$F$1:$CC$65,MATCH($C31,Compiled!$E$1:$E$65,0),FALSE),HLOOKUP($C31,Compiled!$F$1:$CC$65,MATCH($C31,Compiled!$E$1:$E$65,0),FALSE)) -> 0 | CL31: =IF(CK31="0.00%","",IF(CK31<VLOOKUP(CJ$16,'Dropdown control panel'!$B$76:$D$137,2,FALSE),CF31*VLOOKUP(CJ$16,'Dropdown control panel'!$B$76:$D$137,2,FALSE)-CJ31,"On Target")) -> 1.2 | CM31: =IF(ISNUMBER(FIND("/",CM$15)),TEXT(VLOOKUP($C31,Compiled!$E$7:$KX$66,MATCH(CM$15,Compiled!$E$1:$KX$1,0),FALSE),"0.00%"),_xlfn.NUMBERVALUE(VLOOKUP($C31,Compiled!$E$7:$KX$66,MATCH(CM$15,Compiled!$E$1:$KX$1,0),FALSE),"#,##0")) -> 1 | CN31: =IF(ISNUMBER(FIND("/",CN$15)),HLOOKUP(CN$15,Compiled!$F$1:$KX$65,MATCH($C31,Compiled!$E$1:$E$65,0),FALSE),HLOOKUP($C31,Compiled!$F$1:$KX$65,MATCH($C31,Compiled!$E$1:$E$65,0),FALSE)) -> 0.25 | CO31: =IF(ISNUMBER(FIND("/",CO$15)),TEXT(VLOOKUP($C31,Compiled!$E$7:$KX$66,MATCH(CO$15,Compiled!$E$1:$KX$1,0),FALSE),"0.00%"),_xlfn.NUMBERVALUE(VLOOKUP($C31,Compiled!$E$7:$KX$66,MATCH(CO$15,Compiled!$E$1:$KX$1,0),FALSE),"#,##0")) -> 0 | CP31: =IF(ISNUMBER(FIND("/",CP$15)),HLOOKUP(CP$15,Compiled!$F$1:$KX$65,MATCH($C31,Compiled!$E$1:$E$65,0),FALSE),HLOOKUP($C31,Compiled!$F$1:$KX$65,MATCH($C31,Compiled!$E$1:$E$65,0),FALSE)) -> 0 | CQ31: =IF(CP31="0.00%","",IF(CP31<VLOOKUP(CO$16,'Dropdown control panel'!$B$76:$D$137,2,FALSE),CM31*VLOOKUP(CO$16,'Dropdown control panel'!$B$76:$D$137,2,FALSE)-CO31,"On Target")) -> 0.45 | CT31: =IF(ISNUMBER(FIND("/",CT$15)),TEXT(VLOOKUP($C31,Compiled!$E$7:$KT$66,MATCH(CT$15,Compiled!$E$1:$KT$1,0),FALSE),"0.00%"),_xlfn.NUMBERVALUE(VLOOKUP($C31,Compiled!$E$7:$KT$66,MATCH(CT$15,Compiled!$E$1:$KT$1,0),FALSE),"#,##0")) -> 0 | CU31: =IF(ISNUMBER(FIND("/",CU$15)),TEXT(VLOOKUP($C31,Compiled!$E$7:$KT$66,MATCH(CU$15,Compiled!$E$1:$KT$1,0),FALSE),"0.00%"),_xlfn.NUMBERVALUE(VLOOKUP($C31,Compiled!$E$7:$KT$66,MATCH(CU$15,Compiled!$E$1:$KT$1,0),FALSE),"#,##0")) -> 0 | CV31: =IF(ISNUMBER(FIND("/",CV$15)),HLOOKUP(CV$15,Compiled!$F$1:$KT$65,MATCH($C31,Compiled!$E$1:$E$65,0),FALSE),HLOOKUP($C31,Compiled!$F$1:$KT$65,MATCH($C31,Compiled!$E$1:$E$65,0),FALSE)) -> 0.00% | CW31: =IF(CV31="0.00%","",IF(CV31<VLOOKUP(CU$16,'Dropdown control panel'!$B$76:$D$140,2,FALSE),CT31*VLOOKUP(CU$16,'Dropdown control panel'!$B$76:$D$140,2,FALSE)-CU31,"On Target")) -> 
B32: =Compiled!D21 -> Dr Ruiz – St Lukes Medical Centre | C32: =Compiled!E21 -> F84666 | D32: =IF(ISNUMBER(FIND("/",D$15)),TEXT(VLOOKUP($C32,Compiled!$E$7:$CE$66,MATCH($D$15,Compiled!$E$1:$CE$1,0),FALSE),"0.00%"),_xlfn.NUMBERVALUE(VLOOKUP($C32,Compiled!$E$7:$CE$66,MATCH($D$15,Compiled!$E$1:$CE$1,0),FALSE),"#,##0")) -> 81 | E32: =IF(ISNUMBER(FIND("/",E$15)),TEXT(VLOOKUP($C32,Compiled!$E$7:$CE$66,MATCH($E$15,Compiled!$E$1:$CE$1,0),FALSE),"0.00%"),_xlfn.NUMBERVALUE(VLOOKUP($C32,Compiled!$E$7:$CE$66,MATCH($E$15,Compiled!$E$1:$CE$1,0),FALSE),"#,##0")) -> 20 | F32: =IF(ISNUMBER(FIND("/",$F$15)),HLOOKUP($F$15,Compiled!$F$1:$CC$65,MATCH(C32,Compiled!$E$1:$E$65,0),FALSE),HLOOKUP($F$15,Compiled!$F$1:$CC$65,MATCH(C32,Compiled!$E$1:$E$65,0),FALSE)) -> 0.247 | G32: =IF($F32="0.00%","",IF($F32<VLOOKUP($E$16,'Dropdown control panel'!$B$76:$D$137,2,FALSE),$D32*VLOOKUP($E$16,'Dropdown control panel'!$B$76:$D$137,2,FALSE)-$E32,"On Target")) -> 24.55 | H32: =IF(ISNUMBER(FIND("/",H$15)),TEXT(VLOOKUP($C32,Compiled!$E$7:$CE$66,MATCH(H$15,Compiled!$E$1:$CE$1,0),FALSE),"0.00%"),_xlfn.NUMBERVALUE(VLOOKUP($C32,Compiled!$E$7:$CE$66,MATCH(H$15,Compiled!$E$1:$CE$1,0),FALSE),"#,##0")) -> 4 | I32: =IF(ISNUMBER(FIND("/",I$15)),TEXT(VLOOKUP($C32,Compiled!$E$7:$CE$66,MATCH(I$15,Compiled!$E$1:$CE$1,0),FALSE),"0.00%"),_xlfn.NUMBERVALUE(VLOOKUP($C32,Compiled!$E$7:$CE$66,MATCH(I$15,Compiled!$E$1:$CE$1,0),FALSE),"#,##0")) -> 0 | J32: =IF(ISNUMBER(FIND("/",J$15)),HLOOKUP(J$15,Compiled!$F$1:$CC$65,MATCH($C32,Compiled!$E$1:$E$65,0),FALSE),HLOOKUP($C32,Compiled!$F$1:$CC$65,MATCH($C32,Compiled!$E$1:$E$65,0),FALSE)) -> 0 | K32: =IF($J32="0.00%","",IF($J32<VLOOKUP($I$16,'Dropdown control panel'!$B$76:$D$137,2,FALSE),$H32*VLOOKUP($I$16,'Dropdown control panel'!$B$76:$D$137,2,FALSE)-$I32,"On Target")) -> 2 | L32: =IF(ISNUMBER(FIND("/",L$15)),TEXT(VLOOKUP($C32,Compiled!$E$7:$CE$66,MATCH(L$15,Compiled!$E$1:$CE$1,0),FALSE),"0.00%"),_xlfn.NUMBERVALUE(VLOOKUP($C32,Compiled!$E$7:$CE$66,MATCH(L$15,Compiled!$E$1:$CE$1,0),FALSE),"#,##0")) -> 0 | M32: =IF(ISNUMBER(FIND("/",M$15)),TEXT(VLOOKUP($C32,Compiled!$E$7:$CE$66,MATCH(M$15,Compiled!$E$1:$CE$1,0),FALSE),"0.00%"),_xlfn.NUMBERVALUE(VLOOKUP($C32,Compiled!$E$7:$CE$66,MATCH(M$15,Compiled!$E$1:$CE$1,0),FALSE),"#,##0")) -> 0 | N32: =IF(ISNUMBER(FIND("/",N$15)),HLOOKUP(N$15,Compiled!$F$1:$CC$65,MATCH($C32,Compiled!$E$1:$E$65,0),FALSE),HLOOKUP($C32,Compiled!$F$1:$CC$65,MATCH($C32,Compiled!$E$1:$E$65,0),FALSE)) -> 0.00% | O32: =IF(N32="0.00%","",IF(N32<VLOOKUP(M$16,'Dropdown control panel'!$B$76:$D$137,2,FALSE),L32*VLOOKUP(M$16,'Dropdown control panel'!$B$76:$D$137,2,FALSE)-M32,"On Target")) ->  | Q32: =IF(ISNUMBER(FIND("/",Q$15)),TEXT(VLOOKUP($C32,Compiled!$E$7:$KA$66,MATCH(Q$15,Compiled!$E$1:$KA$1,0),FALSE),"0.00%"),_xlfn.NUMBERVALUE(VLOOKUP($C32,Compiled!$E$7:$KA$66,MATCH(Q$15,Compiled!$E$1:$KA$1,0),FALSE),"#,##0")) -> 0 | R32: =IF(ISNUMBER(FIND("/",R$15)),TEXT(VLOOKUP($C32,Compiled!$E$7:$KA$66,MATCH(R$15,Compiled!$E$1:$KA$1,0),FALSE),"0.00%"),_xlfn.NUMBERVALUE(VLOOKUP($C32,Compiled!$E$7:$KA$66,MATCH(R$15,Compiled!$E$1:$KA$1,0),FALSE),"#,##0")) -> 0 | S32: =IF(ISNUMBER(FIND("/",S$15)),HLOOKUP(S$15,Compiled!$F$1:$CF$65,MATCH($C32,Compiled!$E$1:$E$65,0),FALSE),HLOOKUP($C32,Compiled!$F$1:$CF$65,MATCH($C32,Compiled!$E$1:$E$65,0),FALSE)) -> 0.00% | T32: =IF(S32="0.00%","",IF(S32<VLOOKUP(R$16,'Dropdown control panel'!$B$76:$D$143,2,FALSE),Q32*VLOOKUP(R$16,'Dropdown control panel'!$B$76:$E$143,2,FALSE)-R32,"On Target")) ->  | V32: =IF(ISNUMBER(FIND("/",V$15)),TEXT(VLOOKUP($C32,Compiled!$E$7:$CE$66,MATCH(V$15,Compiled!$E$1:$CE$1,0),FALSE),"0.00%"),_xlfn.NUMBERVALUE(VLOOKUP($C32,Compiled!$E$7:$CE$66,MATCH(V$15,Compiled!$E$1:$CE$1,0),FALSE),"#,##0")) -> 5 | W32: =IF(ISNUMBER(FIND("/",W$15)),TEXT(VLOOKUP($C32,Compiled!$E$7:$CE$66,MATCH(W$15,Compiled!$E$1:$CE$1,0),FALSE),"0.00%"),_xlfn.NUMBERVALUE(VLOOKUP($C32,Compiled!$E$7:$CE$66,MATCH(W$15,Compiled!$E$1:$CE$1,0),FALSE),"#,##0")) -> 5 | X32: =IF(ISNUMBER(FIND("/",X$15)),HLOOKUP(X$15,Compiled!$F$1:$CC$65,MATCH($C32,Compiled!$E$1:$E$65,0),FALSE),HLOOKUP($C32,Compiled!$F$1:$CC$65,MATCH($C32,Compiled!$E$1:$E$65,0),FALSE)) -> 1 | Y32: =IF(X32="0.00%","",IF(X32<VLOOKUP(W$16,'Dropdown control panel'!$B$76:$D$137,2,FALSE),V32*VLOOKUP(W$16,'Dropdown control panel'!$B$76:$D$137,2,FALSE)-W32,"On Target")) -> On Target | AA32: =IF(ISNUMBER(FIND("/",AA$15)),TEXT(VLOOKUP($C32,Compiled!$E$7:$CE$66,MATCH(AA$15,Compiled!$E$1:$CE$1,0),FALSE),"0.00%"),_xlfn.NUMBERVALUE(VLOOKUP($C32,Compiled!$E$7:$CE$66,MATCH(AA$15,Compiled!$E$1:$CE$1,0),FALSE),"#,##0")) -> 3 | AB32: =IF(ISNUMBER(FIND("/",AB$15)),TEXT(VLOOKUP($C32,Compiled!$E$7:$CE$66,MATCH(AB$15,Compiled!$E$1:$CE$1,0),FALSE),"0.00%"),_xlfn.NUMBERVALUE(VLOOKUP($C32,Compiled!$E$7:$CE$66,MATCH(AB$15,Compiled!$E$1:$CE$1,0),FALSE),"#,##0")) -> 0 | AC32: =IF(ISNUMBER(FIND("/",AC$15)),HLOOKUP(AC$15,Compiled!$F$1:$CC$65,MATCH($C32,Compiled!$E$1:$E$65,0),FALSE),HLOOKUP($C32,Compiled!$F$1:$CC$65,MATCH($C32,Compiled!$E$1:$E$65,0),FALSE)) -> 0 | AD32: =IF(AC32="0.00%","",IF(AC32<VLOOKUP(AB$16,'Dropdown control panel'!$B$76:$D$137,2,FALSE),AA32*VLOOKUP(AB$16,'Dropdown control panel'!$B$76:$D$137,2,FALSE)-AB32,"On Target")) ->  | AE32: =IF(ISNUMBER(FIND("/",AE$15)),TEXT(VLOOKUP($C32,Compiled!$E$7:$CE$66,MATCH(AE$15,Compiled!$E$1:$CE$1,0),FALSE),"0.00%"),_xlfn.NUMBERVALUE(VLOOKUP($C32,Compiled!$E$7:$CE$66,MATCH(AE$15,Compiled!$E$1:$CE$1,0),FALSE),"#,##0")) -> 1 | AF32: =IF(ISNUMBER(FIND("/",AF$15)),TEXT(VLOOKUP($C32,Compiled!$E$7:$CE$66,MATCH(AF$15,Compiled!$E$1:$CE$1,0),FALSE),"0.00%"),_xlfn.NUMBERVALUE(VLOOKUP($C32,Compiled!$E$7:$CE$66,MATCH(AF$15,Compiled!$E$1:$CE$1,0),FALSE),"#,##0")) -> 0 | AG32: =IF(ISNUMBER(FIND("/",AG$15)),HLOOKUP(AG$15,Compiled!$F$1:$CC$65,MATCH($C32,Compiled!$E$1:$E$65,0),FALSE),HLOOKUP($C32,Compiled!$F$1:$CC$65,MATCH($C32,Compiled!$E$1:$E$65,0),FALSE)) -> 0 | AH32: =IF(AG32="0.00%","",IF(AG32<VLOOKUP(AF$16,'Dropdown control panel'!$B$76:$D$137,2,FALSE),AE32*VLOOKUP(AF$16,'Dropdown control panel'!$B$76:$D$137,2,FALSE)-AF32,"On Target")) -> 0.5 | AJ32: =IF(ISNUMBER(FIND("/",AJ$15)),TEXT(VLOOKUP($C32,Compiled!$E$7:$CE$66,MATCH(AJ$15,Compiled!$E$1:$CE$1,0),FALSE),"0.00%"),_xlfn.NUMBERVALUE(VLOOKUP($C32,Compiled!$E$7:$CE$66,MATCH(AJ$15,Compiled!$E$1:$CE$1,0),FALSE),"#,##0")) -> 369 | AK32: =IF(ISNUMBER(FIND("/",AK$15)),TEXT(VLOOKUP($C32,Compiled!$E$7:$CE$66,MATCH(AK$15,Compiled!$E$1:$CE$1,0),FALSE),"0.00%"),_xlfn.NUMBERVALUE(VLOOKUP($C32,Compiled!$E$7:$CE$66,MATCH(AK$15,Compiled!$E$1:$CE$1,0),FALSE),"#,##0")) -> 14 | AL32: =IF(ISNUMBER(FIND("/",AL$15)),HLOOKUP(AL$15,Compiled!$F$1:$CC$65,MATCH($C32,Compiled!$E$1:$E$65,0),FALSE),HLOOKUP($C32,Compiled!$F$1:$CC$65,MATCH($C32,Compiled!$E$1:$E$65,0),FALSE)) -> 0.038 | AM32: =IF(AL32="0.00%","",IF(AL32<VLOOKUP(AK$16,'Dropdown control panel'!$B$76:$D$137,2,FALSE),AJ32*VLOOKUP(AK$16,'Dropdown control panel'!$B$76:$D$137,2,FALSE)-AK32,"On Target")) -> 140.98 | AO32: =IF(ISNUMBER(FIND("/",AO$15)),TEXT(VLOOKUP($C32,Compiled!$E$7:$CE$66,MATCH(AO$15,Compiled!$E$1:$CE$1,0),FALSE),"0.00%"),_xlfn.NUMBERVALUE(VLOOKUP($C32,Compiled!$E$7:$CE$66,MATCH(AO$15,Compiled!$E$1:$CE$1,0),FALSE),"#,##0")) -> 4 | AP32: =IF(ISNUMBER(FIND("/",AP$15)),TEXT(VLOOKUP($C32,Compiled!$E$7:$CE$66,MATCH(AP$15,Compiled!$E$1:$CE$1,0),FALSE),"0.00%"),_xlfn.NUMBERVALUE(VLOOKUP($C32,Compiled!$E$7:$CE$66,MATCH(AP$15,Compiled!$E$1:$CE$1,0),FALSE),"#,##0")) -> 0 | AQ32: =IF(ISNUMBER(FIND("/",AQ$15)),HLOOKUP(AQ$15,Compiled!$F$1:$CC$65,MATCH($C32,Compiled!$E$1:$E$65,0),FALSE),HLOOKUP($C32,Compiled!$F$1:$CC$65,MATCH($C32,Compiled!$E$1:$E$65,0),FALSE)) -> 0 | AR32: =IF(AQ32="0.00%","",IF(AQ32<VLOOKUP(AP$16,'Dropdown control panel'!$B$76:$D$137,2,FALSE),AO32*VLOOKUP(AP$16,'Dropdown control panel'!$B$76:$D$137,2,FALSE)-AP32,"On Target")) -> 1.2 | AS32: =IF(ISNUMBER(FIND("/",AS$15)),TEXT(VLOOKUP($C32,Compiled!$E$7:$CE$66,MATCH(AS$15,Compiled!$E$1:$CE$1,0),FALSE),"0.00%"),_xlfn.NUMBERVALUE(VLOOKUP($C32,Compiled!$E$7:$CE$66,MATCH(AS$15,Compiled!$E$1:$CE$1,0),FALSE),"#,##0")) -> 0 | AT32: =IF(ISNUMBER(FIND("/",AT$15)),HLOOKUP(AT$15,Compiled!$F$1:$CC$65,MATCH($C32,Compiled!$E$1:$E$65,0),FALSE),HLOOKUP($C32,Compiled!$F$1:$CC$65,MATCH($C32,Compiled!$E$1:$E$65,0),FALSE)) -> 0.00% | AU32: =IF(AT32="0.00%","",IF(AT32<VLOOKUP(AS$16,'Dropdown control panel'!$B$76:$D$137,2,FALSE),AP32*VLOOKUP(AS$16,'Dropdown control panel'!$B$76:$D$137,2,FALSE)-AS32,"On Target")) ->  | AW32: =IF(ISNUMBER(FIND("/",AW$15)),TEXT(VLOOKUP($C32,Compiled!$E$7:$CE$66,MATCH(AW$15,Compiled!$E$1:$CE$1,0),FALSE),"0.00%"),_xlfn.NUMBERVALUE(VLOOKUP($C32,Compiled!$E$7:$CE$66,MATCH(AW$15,Compiled!$E$1:$CE$1,0),FALSE),"#,##0")) -> 102 | AX32: =IF(ISNUMBER(FIND("/",AX$15)),TEXT(VLOOKUP($C32,Compiled!$E$7:$CE$66,MATCH(AX$15,Compiled!$E$1:$CE$1,0),FALSE),"0.00%"),_xlfn.NUMBERVALUE(VLOOKUP($C32,Compiled!$E$7:$CE$66,MATCH(AX$15,Compiled!$E$1:$CE$1,0),FALSE),"#,##0")) -> 31 | AY32: =IF(ISNUMBER(FIND("/",AY$15)),HLOOKUP(AY$15,Compiled!$F$1:$CC$65,MATCH($C32,Compiled!$E$1:$E$65,0),FALSE),HLOOKUP($C32,Compiled!$F$1:$CC$65,MATCH($C32,Compiled!$E$1:$E$65,0),FALSE)) -> 0.304 | AZ32: =IF(AY32="0.00%","",IF(AY32<VLOOKUP(AX$16,'Dropdown control panel'!$B$76:$D$137,2,FALSE),AW32*VLOOKUP(AX$16,'Dropdown control panel'!$B$76:$D$137,2,FALSE)-AX32,"On Target")) -> 30.2 | BB32: =IF(ISNUMBER(FIND("/",BB$15)),TEXT(VLOOKUP($C32,Compiled!$E$7:$KA$66,MATCH(BB$15,Compiled!$E$1:$KA$1,0),FALSE),"0.00%"),_xlfn.NUMBERVALUE(VLOOKUP($C32,Compiled!$E$7:$KA$66,MATCH(BB$15,Compiled!$E$1:$KA$1,0),FALSE),"#,##0")) -> 35 | BC32: =IF(ISNUMBER(FIND("/",BC$15)),HLOOKUP(BC$15,Compiled!$F$1:$KA$65,MATCH($C32,Compiled!$E$1:$E$65,0),FALSE),HLOOKUP($C32,Compiled!$F$1:$KA$65,MATCH($C32,Compiled!$E$1:$E$65,0),FALSE)) -> 0.343 | BD32: =IF(BC32="0.00%","",IF(BC32<VLOOKUP(BB$16,'Dropdown control panel'!$B$76:$D$137,2,FALSE),AW32*VLOOKUP(BB$16,'Dropdown control panel'!$B$76:$D$137,2,FALSE)-BB32,"On Target")) -> 31.3 | BF32: =IF(ISNUMBER(FIND("/",BF$15)),TEXT(VLOOKUP($C32,Compiled!$E$7:$CE$66,MATCH(BF$15,Compiled!$E$1:$CE$1,0),FALSE),"0.00%"),_xlfn.NUMBERVALUE(VLOOKUP($C32,Compiled!$E$7:$CE$66,MATCH(BF$15,Compiled!$E$1:$CE$1,0),FALSE),"#,##0")) -> 284 | BG32: =IF(ISNUMBER(FIND("/",BG$15)),TEXT(VLOOKUP($C32,Compiled!$E$7:$CE$66,MATCH(BG$15,Compiled!$E$1:$CE$1,0),FALSE),"0.00%"),_xlfn.NUMBERVALUE(VLOOKUP($C32,Compiled!$E$7:$CE$66,MATCH(BG$15,Compiled!$E$1:$CE$1,0),FALSE),"#,##0")) -> 94 | BH32: =IF(ISNUMBER(FIND("/",BH$15)),HLOOKUP(BH$15,Compiled!$F$1:$CC$65,MATCH($C32,Compiled!$E$1:$E$65,0),FALSE),HLOOKUP($C32,Compiled!$F$1:$CC$65,MATCH($C32,Compiled!$E$1:$E$65,0),FALSE)) -> 0.331 | BI32: =IF(BH32="0.00%","",IF(BH32<VLOOKUP(BG$16,'Dropdown control panel'!$B$76:$D$137,2,FALSE),BF32*VLOOKUP(BG$16,'Dropdown control panel'!$B$76:$D$137,2,FALSE)-BG32,"On Target")) -> 104.8 | BK32: =IF(ISNUMBER(FIND("/",BK$15)),TEXT(VLOOKUP($C32,Compiled!$E$7:$KH$66,MATCH(BK$15,Compiled!$E$1:$KH$1,0),FALSE),"0.00%"),_xlfn.NUMBERVALUE(VLOOKUP($C32,Compiled!$E$7:$KH$66,MATCH(BK$15,Compiled!$E$1:$KH$1,0),FALSE),"#,##0")) -> 18 | BL32: =IF(ISNUMBER(FIND("/",BL$15)),TEXT(VLOOKUP($C32,Compiled!$E$7:$KH$66,MATCH(BL$15,Compiled!$E$1:$KH$1,0),FALSE),"0.00%"),_xlfn.NUMBERVALUE(VLOOKUP($C32,Compiled!$E$7:$KH$66,MATCH(BL$15,Compiled!$E$1:$KH$1,0),FALSE),"#,##0")) -> 5 | BM32: =IF(ISNUMBER(FIND("/",BM$15)),HLOOKUP(BM$15,Compiled!$F$1:$KH$65,MATCH($C32,Compiled!$E$1:$E$65,0),FALSE),HLOOKUP($C32,Compiled!$F$1:$KH$65,MATCH($C32,Compiled!$E$1:$E$65,0),FALSE)) -> 0.278 | BN32: =IF(BM32="0.00%","",IF(BM32<VLOOKUP(BL$16,'Dropdown control panel'!$B$76:$D$137,2,FALSE),BK32*VLOOKUP(BL$16,'Dropdown control panel'!$B$76:$D$137,2,FALSE)-BL32,"On Target")) -> 7.6 | BO32: =IF(ISNUMBER(FIND("/",BO$15)),TEXT(VLOOKUP($C32,Compiled!$E$7:$KH$66,MATCH(BO$15,Compiled!$E$1:$KH$1,0),FALSE),"0.00%"),_xlfn.NUMBERVALUE(VLOOKUP($C32,Compiled!$E$7:$KH$66,MATCH(BO$15,Compiled!$E$1:$KH$1,0),FALSE),"#,##0")) -> 132 | BP32: =IF(ISNUMBER(FIND("/",BP$15)),HLOOKUP(BP$15,Compiled!$F$1:$KH$65,MATCH($C32,Compiled!$E$1:$E$65,0),FALSE),HLOOKUP($C32,Compiled!$F$1:$KH$65,MATCH($C32,Compiled!$E$1:$E$65,0),FALSE)) -> 0.465 | BQ32: =IF(BP32="0.00%","",IF(BP32<VLOOKUP(BO$16,'Dropdown control panel'!$B$76:$D$137,2,FALSE),BF32*VLOOKUP(BO$16,'Dropdown control panel'!$B$76:$D$137,2,FALSE)-BO32,"On Target")) -> 66.8 | BR32: =IF(ISNUMBER(FIND("/",BR$15)),TEXT(VLOOKUP($C32,Compiled!$E$7:$KH$66,MATCH(BR$15,Compiled!$E$1:$KH$1,0),FALSE),"0.00%"),_xlfn.NUMBERVALUE(VLOOKUP($C32,Compiled!$E$7:$KH$66,MATCH(BR$15,Compiled!$E$1:$KH$1,0),FALSE),"#,##0")) -> 169 | BS32: =IF(ISNUMBER(FIND("/",BS$15)),HLOOKUP(BS$15,Compiled!$F$1:$KH$65,MATCH($C32,Compiled!$E$1:$E$65,0),FALSE),HLOOKUP($C32,Compiled!$F$1:$KH$65,MATCH($C32,Compiled!$E$1:$E$65,0),FALSE)) -> 0.595 | BT32: =IF(BS32="0.00%","",IF(BS32<VLOOKUP(BR$16,'Dropdown control panel'!$B$76:$D$137,2,FALSE),BF32*VLOOKUP(BR$16,'Dropdown control panel'!$B$76:$D$137,2,FALSE)-BR32,"On Target")) -> 29.8 | BV32: =IF(ISNUMBER(FIND("/",BV$15)),TEXT(VLOOKUP($C32,Compiled!$E$7:$CE$66,MATCH(BV$15,Compiled!$E$1:$CE$1,0),FALSE),"0.00%"),_xlfn.NUMBERVALUE(VLOOKUP($C32,Compiled!$E$7:$CE$66,MATCH(BV$15,Compiled!$E$1:$CE$1,0),FALSE),"#,##0")) -> 18 | BW32: =IF(ISNUMBER(FIND("/",BW$15)),TEXT(VLOOKUP($C32,Compiled!$E$7:$CE$66,MATCH(BW$15,Compiled!$E$1:$CE$1,0),FALSE),"0.00%"),_xlfn.NUMBERVALUE(VLOOKUP($C32,Compiled!$E$7:$CE$66,MATCH(BW$15,Compiled!$E$1:$CE$1,0),FALSE),"#,##0")) -> 0 | BX32: =IF(ISNUMBER(FIND("/",BX$15)),HLOOKUP(BX$15,Compiled!$F$1:$CC$65,MATCH($C32,Compiled!$E$1:$E$65,0),FALSE),HLOOKUP($C32,Compiled!$F$1:$CC$65,MATCH($C32,Compiled!$E$1:$E$65,0),FALSE)) -> 0 | BY32: =IF(BX32="0.00%","",IF(BX32<VLOOKUP(BW$16,'Dropdown control panel'!$B$76:$D$137,2,FALSE),BV32*VLOOKUP(BW$16,'Dropdown control panel'!$B$76:$D$137,2,FALSE)-BW32,"On Target")) -> 9 | CA32: =IF(ISNUMBER(FIND("/",CA$15)),TEXT(VLOOKUP($C32,Compiled!$E$7:$CE$66,MATCH(CA$15,Compiled!$E$1:$CE$1,0),FALSE),"0.00%"),_xlfn.NUMBERVALUE(VLOOKUP($C32,Compiled!$E$7:$CE$66,MATCH(CA$15,Compiled!$E$1:$CE$1,0),FALSE),"#,##0")) -> 144 | CB32: =IF(ISNUMBER(FIND("/",CB$15)),TEXT(VLOOKUP($C32,Compiled!$E$7:$CE$66,MATCH(CB$15,Compiled!$E$1:$CE$1,0),FALSE),"0.00%"),_xlfn.NUMBERVALUE(VLOOKUP($C32,Compiled!$E$7:$CE$66,MATCH(CB$15,Compiled!$E$1:$CE$1,0),FALSE),"#,##0")) -> 0 | CC32: =IF(ISNUMBER(FIND("/",CC$15)),HLOOKUP(CC$15,Compiled!$F$1:$CC$65,MATCH($C32,Compiled!$E$1:$E$65,0),FALSE),HLOOKUP($C32,Compiled!$F$1:$CC$65,MATCH($C32,Compiled!$E$1:$E$65,0),FALSE)) -> 0 | CD32: =IF(CC32="0.00%","",IF(CC32<VLOOKUP(CB$16,'Dropdown control panel'!$B$76:$D$137,2,FALSE),CA32*VLOOKUP(CB$16,'Dropdown control panel'!$B$76:$D$137,2,FALSE)-CB32,"On Target")) -> 64.8 | CF32: =IF(ISNUMBER(FIND("/",CF$15)),TEXT(VLOOKUP($C32,Compiled!$E$7:$CE$66,MATCH(CF$15,Compiled!$E$1:$CE$1,0),FALSE),"0.00%"),_xlfn.NUMBERVALUE(VLOOKUP($C32,Compiled!$E$7:$CE$66,MATCH(CF$15,Compiled!$E$1:$CE$1,0),FALSE),"#,##0")) -> 0 | CG32: =IF(ISNUMBER(FIND("/",CG$15)),TEXT(VLOOKUP($C32,Compiled!$E$7:$CE$66,MATCH(CG$15,Compiled!$E$1:$CE$1,0),FALSE),"0.00%"),_xlfn.NUMBERVALUE(VLOOKUP($C32,Compiled!$E$7:$CE$66,MATCH(CG$15,Compiled!$E$1:$CE$1,0),FALSE),"#,##0")) -> 0 | CH32: =IF(ISNUMBER(FIND("/",CH$15)),HLOOKUP(CH$15,Compiled!$F$1:$CC$65,MATCH($C32,Compiled!$E$1:$E$65,0),FALSE),HLOOKUP($C32,Compiled!$F$1:$CC$65,MATCH($C32,Compiled!$E$1:$E$65,0),FALSE)) -> 0.00% | CI32: =IF(CH32="0.00%","",IF(CH32<VLOOKUP(CG$16,'Dropdown control panel'!$B$76:$D$137,2,FALSE),CF32*VLOOKUP(CG$16,'Dropdown control panel'!$B$76:$D$137,2,FALSE)-CG32,"On Target")) ->  | CJ32: =IF(ISNUMBER(FIND("/",CJ$15)),TEXT(VLOOKUP($C32,Compiled!$E$7:$CE$66,MATCH(CJ$15,Compiled!$E$1:$CE$1,0),FALSE),"0.00%"),_xlfn.NUMBERVALUE(VLOOKUP($C32,Compiled!$E$7:$CE$66,MATCH(CJ$15,Compiled!$E$1:$CE$1,0),FALSE),"#,##0")) -> 0 | CK32: =IF(ISNUMBER(FIND("/",CK$15)),HLOOKUP(CK$15,Compiled!$F$1:$CC$65,MATCH($C32,Compiled!$E$1:$E$65,0),FALSE),HLOOKUP($C32,Compiled!$F$1:$CC$65,MATCH($C32,Compiled!$E$1:$E$65,0),FALSE)) -> 0.00% | CL32: =IF(CK32="0.00%","",IF(CK32<VLOOKUP(CJ$16,'Dropdown control panel'!$B$76:$D$137,2,FALSE),CF32*VLOOKUP(CJ$16,'Dropdown control panel'!$B$76:$D$137,2,FALSE)-CJ32,"On Target")) ->  | CM32: =IF(ISNUMBER(FIND("/",CM$15)),TEXT(VLOOKUP($C32,Compiled!$E$7:$KX$66,MATCH(CM$15,Compiled!$E$1:$KX$1,0),FALSE),"0.00%"),_xlfn.NUMBERVALUE(VLOOKUP($C32,Compiled!$E$7:$KX$66,MATCH(CM$15,Compiled!$E$1:$KX$1,0),FALSE),"#,##0")) -> 0 | CN32: =IF(ISNUMBER(FIND("/",CN$15)),HLOOKUP(CN$15,Compiled!$F$1:$KX$65,MATCH($C32,Compiled!$E$1:$E$65,0),FALSE),HLOOKUP($C32,Compiled!$F$1:$KX$65,MATCH($C32,Compiled!$E$1:$E$65,0),FALSE)) -> 0.00% | CO32: =IF(ISNUMBER(FIND("/",CO$15)),TEXT(VLOOKUP($C32,Compiled!$E$7:$KX$66,MATCH(CO$15,Compiled!$E$1:$KX$1,0),FALSE),"0.00%"),_xlfn.NUMBERVALUE(VLOOKUP($C32,Compiled!$E$7:$KX$66,MATCH(CO$15,Compiled!$E$1:$KX$1,0),FALSE),"#,##0")) -> 0 | CP32: =IF(ISNUMBER(FIND("/",CP$15)),HLOOKUP(CP$15,Compiled!$F$1:$KX$65,MATCH($C32,Compiled!$E$1:$E$65,0),FALSE),HLOOKUP($C32,Compiled!$F$1:$KX$65,MATCH($C32,Compiled!$E$1:$E$65,0),FALSE)) -> 0.00% | CQ32: =IF(CP32="0.00%","",IF(CP32<VLOOKUP(CO$16,'Dropdown control panel'!$B$76:$D$137,2,FALSE),CM32*VLOOKUP(CO$16,'Dropdown control panel'!$B$76:$D$137,2,FALSE)-CO32,"On Target")) ->  | CT32: =IF(ISNUMBER(FIND("/",CT$15)),TEXT(VLOOKUP($C32,Compiled!$E$7:$KT$66,MATCH(CT$15,Compiled!$E$1:$KT$1,0),FALSE),"0.00%"),_xlfn.NUMBERVALUE(VLOOKUP($C32,Compiled!$E$7:$KT$66,MATCH(CT$15,Compiled!$E$1:$KT$1,0),FALSE),"#,##0")) -> 0 | CU32: =IF(ISNUMBER(FIND("/",CU$15)),TEXT(VLOOKUP($C32,Compiled!$E$7:$KT$66,MATCH(CU$15,Compiled!$E$1:$KT$1,0),FALSE),"0.00%"),_xlfn.NUMBERVALUE(VLOOKUP($C32,Compiled!$E$7:$KT$66,MATCH(CU$15,Compiled!$E$1:$KT$1,0),FALSE),"#,##0")) -> 0 | CV32: =IF(ISNUMBER(FIND("/",CV$15)),HLOOKUP(CV$15,Compiled!$F$1:$KT$65,MATCH($C32,Compiled!$E$1:$E$65,0),FALSE),HLOOKUP($C32,Compiled!$F$1:$KT$65,MATCH($C32,Compiled!$E$1:$E$65,0),FALSE)) -> 0.00% | CW32: =IF(CV32="0.00%","",IF(CV32<VLOOKUP(CU$16,'Dropdown control panel'!$B$76:$D$140,2,FALSE),CT32*VLOOKUP(CU$16,'Dropdown control panel'!$B$76:$D$140,2,FALSE)-CU32,"On Target")) -> 
B33: =Compiled!D22 -> Cumberland Road Medical Practice | C33: =Compiled!E22 -> F84657 | D33: =IF(ISNUMBER(FIND("/",D$15)),TEXT(VLOOKUP($C33,Compiled!$E$7:$CE$66,MATCH($D$15,Compiled!$E$1:$CE$1,0),FALSE),"0.00%"),_xlfn.NUMBERVALUE(VLOOKUP($C33,Compiled!$E$7:$CE$66,MATCH($D$15,Compiled!$E$1:$CE$1,0),FALSE),"#,##0")) -> 111 | E33: =IF(ISNUMBER(FIND("/",E$15)),TEXT(VLOOKUP($C33,Compiled!$E$7:$CE$66,MATCH($E$15,Compiled!$E$1:$CE$1,0),FALSE),"0.00%"),_xlfn.NUMBERVALUE(VLOOKUP($C33,Compiled!$E$7:$CE$66,MATCH($E$15,Compiled!$E$1:$CE$1,0),FALSE),"#,##0")) -> 26 | F33: =IF(ISNUMBER(FIND("/",$F$15)),HLOOKUP($F$15,Compiled!$F$1:$CC$65,MATCH(C33,Compiled!$E$1:$E$65,0),FALSE),HLOOKUP($F$15,Compiled!$F$1:$CC$65,MATCH(C33,Compiled!$E$1:$E$65,0),FALSE)) -> 0.234 | G33: =IF($F33="0.00%","",IF($F33<VLOOKUP($E$16,'Dropdown control panel'!$B$76:$D$137,2,FALSE),$D33*VLOOKUP($E$16,'Dropdown control panel'!$B$76:$D$137,2,FALSE)-$E33,"On Target")) -> 35.05 | H33: =IF(ISNUMBER(FIND("/",H$15)),TEXT(VLOOKUP($C33,Compiled!$E$7:$CE$66,MATCH(H$15,Compiled!$E$1:$CE$1,0),FALSE),"0.00%"),_xlfn.NUMBERVALUE(VLOOKUP($C33,Compiled!$E$7:$CE$66,MATCH(H$15,Compiled!$E$1:$CE$1,0),FALSE),"#,##0")) -> 0 | I33: =IF(ISNUMBER(FIND("/",I$15)),TEXT(VLOOKUP($C33,Compiled!$E$7:$CE$66,MATCH(I$15,Compiled!$E$1:$CE$1,0),FALSE),"0.00%"),_xlfn.NUMBERVALUE(VLOOKUP($C33,Compiled!$E$7:$CE$66,MATCH(I$15,Compiled!$E$1:$CE$1,0),FALSE),"#,##0")) -> 0 | J33: =IF(ISNUMBER(FIND("/",J$15)),HLOOKUP(J$15,Compiled!$F$1:$CC$65,MATCH($C33,Compiled!$E$1:$E$65,0),FALSE),HLOOKUP($C33,Compiled!$F$1:$CC$65,MATCH($C33,Compiled!$E$1:$E$65,0),FALSE)) -> 0.00% | K33: =IF($J33="0.00%","",IF($J33<VLOOKUP($I$16,'Dropdown control panel'!$B$76:$D$137,2,FALSE),$H33*VLOOKUP($I$16,'Dropdown control panel'!$B$76:$D$137,2,FALSE)-$I33,"On Target")) ->  | L33: =IF(ISNUMBER(FIND("/",L$15)),TEXT(VLOOKUP($C33,Compiled!$E$7:$CE$66,MATCH(L$15,Compiled!$E$1:$CE$1,0),FALSE),"0.00%"),_xlfn.NUMBERVALUE(VLOOKUP($C33,Compiled!$E$7:$CE$66,MATCH(L$15,Compiled!$E$1:$CE$1,0),FALSE),"#,##0")) -> 0 | M33: =IF(ISNUMBER(FIND("/",M$15)),TEXT(VLOOKUP($C33,Compiled!$E$7:$CE$66,MATCH(M$15,Compiled!$E$1:$CE$1,0),FALSE),"0.00%"),_xlfn.NUMBERVALUE(VLOOKUP($C33,Compiled!$E$7:$CE$66,MATCH(M$15,Compiled!$E$1:$CE$1,0),FALSE),"#,##0")) -> 0 | N33: =IF(ISNUMBER(FIND("/",N$15)),HLOOKUP(N$15,Compiled!$F$1:$CC$65,MATCH($C33,Compiled!$E$1:$E$65,0),FALSE),HLOOKUP($C33,Compiled!$F$1:$CC$65,MATCH($C33,Compiled!$E$1:$E$65,0),FALSE)) -> 0.00% | O33: =IF(N33="0.00%","",IF(N33<VLOOKUP(M$16,'Dropdown control panel'!$B$76:$D$137,2,FALSE),L33*VLOOKUP(M$16,'Dropdown control panel'!$B$76:$D$137,2,FALSE)-M33,"On Target")) ->  | Q33: =IF(ISNUMBER(FIND("/",Q$15)),TEXT(VLOOKUP($C33,Compiled!$E$7:$KA$66,MATCH(Q$15,Compiled!$E$1:$KA$1,0),FALSE),"0.00%"),_xlfn.NUMBERVALUE(VLOOKUP($C33,Compiled!$E$7:$KA$66,MATCH(Q$15,Compiled!$E$1:$KA$1,0),FALSE),"#,##0")) -> 1 | R33: =IF(ISNUMBER(FIND("/",R$15)),TEXT(VLOOKUP($C33,Compiled!$E$7:$KA$66,MATCH(R$15,Compiled!$E$1:$KA$1,0),FALSE),"0.00%"),_xlfn.NUMBERVALUE(VLOOKUP($C33,Compiled!$E$7:$KA$66,MATCH(R$15,Compiled!$E$1:$KA$1,0),FALSE),"#,##0")) -> 0 | S33: =IF(ISNUMBER(FIND("/",S$15)),HLOOKUP(S$15,Compiled!$F$1:$CF$65,MATCH($C33,Compiled!$E$1:$E$65,0),FALSE),HLOOKUP($C33,Compiled!$F$1:$CF$65,MATCH($C33,Compiled!$E$1:$E$65,0),FALSE)) -> 0 | T33: =IF(S33="0.00%","",IF(S33<VLOOKUP(R$16,'Dropdown control panel'!$B$76:$D$143,2,FALSE),Q33*VLOOKUP(R$16,'Dropdown control panel'!$B$76:$E$143,2,FALSE)-R33,"On Target")) -> 0.8 | V33: =IF(ISNUMBER(FIND("/",V$15)),TEXT(VLOOKUP($C33,Compiled!$E$7:$CE$66,MATCH(V$15,Compiled!$E$1:$CE$1,0),FALSE),"0.00%"),_xlfn.NUMBERVALUE(VLOOKUP($C33,Compiled!$E$7:$CE$66,MATCH(V$15,Compiled!$E$1:$CE$1,0),FALSE),"#,##0")) -> 0 | W33: =IF(ISNUMBER(FIND("/",W$15)),TEXT(VLOOKUP($C33,Compiled!$E$7:$CE$66,MATCH(W$15,Compiled!$E$1:$CE$1,0),FALSE),"0.00%"),_xlfn.NUMBERVALUE(VLOOKUP($C33,Compiled!$E$7:$CE$66,MATCH(W$15,Compiled!$E$1:$CE$1,0),FALSE),"#,##0")) -> 0 | X33: =IF(ISNUMBER(FIND("/",X$15)),HLOOKUP(X$15,Compiled!$F$1:$CC$65,MATCH($C33,Compiled!$E$1:$E$65,0),FALSE),HLOOKUP($C33,Compiled!$F$1:$CC$65,MATCH($C33,Compiled!$E$1:$E$65,0),FALSE)) -> 0.00% | Y33: =IF(X33="0.00%","",IF(X33<VLOOKUP(W$16,'Dropdown control panel'!$B$76:$D$137,2,FALSE),V33*VLOOKUP(W$16,'Dropdown control panel'!$B$76:$D$137,2,FALSE)-W33,"On Target")) ->  | AA33: =IF(ISNUMBER(FIND("/",AA$15)),TEXT(VLOOKUP($C33,Compiled!$E$7:$CE$66,MATCH(AA$15,Compiled!$E$1:$CE$1,0),FALSE),"0.00%"),_xlfn.NUMBERVALUE(VLOOKUP($C33,Compiled!$E$7:$CE$66,MATCH(AA$15,Compiled!$E$1:$CE$1,0),FALSE),"#,##0")) -> 3 | AB33: =IF(ISNUMBER(FIND("/",AB$15)),TEXT(VLOOKUP($C33,Compiled!$E$7:$CE$66,MATCH(AB$15,Compiled!$E$1:$CE$1,0),FALSE),"0.00%"),_xlfn.NUMBERVALUE(VLOOKUP($C33,Compiled!$E$7:$CE$66,MATCH(AB$15,Compiled!$E$1:$CE$1,0),FALSE),"#,##0")) -> 0 | AC33: =IF(ISNUMBER(FIND("/",AC$15)),HLOOKUP(AC$15,Compiled!$F$1:$CC$65,MATCH($C33,Compiled!$E$1:$E$65,0),FALSE),HLOOKUP($C33,Compiled!$F$1:$CC$65,MATCH($C33,Compiled!$E$1:$E$65,0),FALSE)) -> 0 | AD33: =IF(AC33="0.00%","",IF(AC33<VLOOKUP(AB$16,'Dropdown control panel'!$B$76:$D$137,2,FALSE),AA33*VLOOKUP(AB$16,'Dropdown control panel'!$B$76:$D$137,2,FALSE)-AB33,"On Target")) ->  | AE33: =IF(ISNUMBER(FIND("/",AE$15)),TEXT(VLOOKUP($C33,Compiled!$E$7:$CE$66,MATCH(AE$15,Compiled!$E$1:$CE$1,0),FALSE),"0.00%"),_xlfn.NUMBERVALUE(VLOOKUP($C33,Compiled!$E$7:$CE$66,MATCH(AE$15,Compiled!$E$1:$CE$1,0),FALSE),"#,##0")) -> 1 | AF33: =IF(ISNUMBER(FIND("/",AF$15)),TEXT(VLOOKUP($C33,Compiled!$E$7:$CE$66,MATCH(AF$15,Compiled!$E$1:$CE$1,0),FALSE),"0.00%"),_xlfn.NUMBERVALUE(VLOOKUP($C33,Compiled!$E$7:$CE$66,MATCH(AF$15,Compiled!$E$1:$CE$1,0),FALSE),"#,##0")) -> 1 | AG33: =IF(ISNUMBER(FIND("/",AG$15)),HLOOKUP(AG$15,Compiled!$F$1:$CC$65,MATCH($C33,Compiled!$E$1:$E$65,0),FALSE),HLOOKUP($C33,Compiled!$F$1:$CC$65,MATCH($C33,Compiled!$E$1:$E$65,0),FALSE)) -> 1 | AH33: =IF(AG33="0.00%","",IF(AG33<VLOOKUP(AF$16,'Dropdown control panel'!$B$76:$D$137,2,FALSE),AE33*VLOOKUP(AF$16,'Dropdown control panel'!$B$76:$D$137,2,FALSE)-AF33,"On Target")) -> On Target | AJ33: =IF(ISNUMBER(FIND("/",AJ$15)),TEXT(VLOOKUP($C33,Compiled!$E$7:$CE$66,MATCH(AJ$15,Compiled!$E$1:$CE$1,0),FALSE),"0.00%"),_xlfn.NUMBERVALUE(VLOOKUP($C33,Compiled!$E$7:$CE$66,MATCH(AJ$15,Compiled!$E$1:$CE$1,0),FALSE),"#,##0")) -> 458 | AK33: =IF(ISNUMBER(FIND("/",AK$15)),TEXT(VLOOKUP($C33,Compiled!$E$7:$CE$66,MATCH(AK$15,Compiled!$E$1:$CE$1,0),FALSE),"0.00%"),_xlfn.NUMBERVALUE(VLOOKUP($C33,Compiled!$E$7:$CE$66,MATCH(AK$15,Compiled!$E$1:$CE$1,0),FALSE),"#,##0")) -> 5 | AL33: =IF(ISNUMBER(FIND("/",AL$15)),HLOOKUP(AL$15,Compiled!$F$1:$CC$65,MATCH($C33,Compiled!$E$1:$E$65,0),FALSE),HLOOKUP($C33,Compiled!$F$1:$CC$65,MATCH($C33,Compiled!$E$1:$E$65,0),FALSE)) -> 0.011 | AM33: =IF(AL33="0.00%","",IF(AL33<VLOOKUP(AK$16,'Dropdown control panel'!$B$76:$D$137,2,FALSE),AJ33*VLOOKUP(AK$16,'Dropdown control panel'!$B$76:$D$137,2,FALSE)-AK33,"On Target")) -> 187.36 | AO33: =IF(ISNUMBER(FIND("/",AO$15)),TEXT(VLOOKUP($C33,Compiled!$E$7:$CE$66,MATCH(AO$15,Compiled!$E$1:$CE$1,0),FALSE),"0.00%"),_xlfn.NUMBERVALUE(VLOOKUP($C33,Compiled!$E$7:$CE$66,MATCH(AO$15,Compiled!$E$1:$CE$1,0),FALSE),"#,##0")) -> 5 | AP33: =IF(ISNUMBER(FIND("/",AP$15)),TEXT(VLOOKUP($C33,Compiled!$E$7:$CE$66,MATCH(AP$15,Compiled!$E$1:$CE$1,0),FALSE),"0.00%"),_xlfn.NUMBERVALUE(VLOOKUP($C33,Compiled!$E$7:$CE$66,MATCH(AP$15,Compiled!$E$1:$CE$1,0),FALSE),"#,##0")) -> 0 | AQ33: =IF(ISNUMBER(FIND("/",AQ$15)),HLOOKUP(AQ$15,Compiled!$F$1:$CC$65,MATCH($C33,Compiled!$E$1:$E$65,0),FALSE),HLOOKUP($C33,Compiled!$F$1:$CC$65,MATCH($C33,Compiled!$E$1:$E$65,0),FALSE)) -> 0 | AR33: =IF(AQ33="0.00%","",IF(AQ33<VLOOKUP(AP$16,'Dropdown control panel'!$B$76:$D$137,2,FALSE),AO33*VLOOKUP(AP$16,'Dropdown control panel'!$B$76:$D$137,2,FALSE)-AP33,"On Target")) -> 1.5 | AS33: =IF(ISNUMBER(FIND("/",AS$15)),TEXT(VLOOKUP($C33,Compiled!$E$7:$CE$66,MATCH(AS$15,Compiled!$E$1:$CE$1,0),FALSE),"0.00%"),_xlfn.NUMBERVALUE(VLOOKUP($C33,Compiled!$E$7:$CE$66,MATCH(AS$15,Compiled!$E$1:$CE$1,0),FALSE),"#,##0")) -> 0 | AT33: =IF(ISNUMBER(FIND("/",AT$15)),HLOOKUP(AT$15,Compiled!$F$1:$CC$65,MATCH($C33,Compiled!$E$1:$E$65,0),FALSE),HLOOKUP($C33,Compiled!$F$1:$CC$65,MATCH($C33,Compiled!$E$1:$E$65,0),FALSE)) -> 0.00% | AU33: =IF(AT33="0.00%","",IF(AT33<VLOOKUP(AS$16,'Dropdown control panel'!$B$76:$D$137,2,FALSE),AP33*VLOOKUP(AS$16,'Dropdown control panel'!$B$76:$D$137,2,FALSE)-AS33,"On Target")) ->  | AW33: =IF(ISNUMBER(FIND("/",AW$15)),TEXT(VLOOKUP($C33,Compiled!$E$7:$CE$66,MATCH(AW$15,Compiled!$E$1:$CE$1,0),FALSE),"0.00%"),_xlfn.NUMBERVALUE(VLOOKUP($C33,Compiled!$E$7:$CE$66,MATCH(AW$15,Compiled!$E$1:$CE$1,0),FALSE),"#,##0")) -> 92 | AX33: =IF(ISNUMBER(FIND("/",AX$15)),TEXT(VLOOKUP($C33,Compiled!$E$7:$CE$66,MATCH(AX$15,Compiled!$E$1:$CE$1,0),FALSE),"0.00%"),_xlfn.NUMBERVALUE(VLOOKUP($C33,Compiled!$E$7:$CE$66,MATCH(AX$15,Compiled!$E$1:$CE$1,0),FALSE),"#,##0")) -> 23 | AY33: =IF(ISNUMBER(FIND("/",AY$15)),HLOOKUP(AY$15,Compiled!$F$1:$CC$65,MATCH($C33,Compiled!$E$1:$E$65,0),FALSE),HLOOKUP($C33,Compiled!$F$1:$CC$65,MATCH($C33,Compiled!$E$1:$E$65,0),FALSE)) -> 0.25 | AZ33: =IF(AY33="0.00%","",IF(AY33<VLOOKUP(AX$16,'Dropdown control panel'!$B$76:$D$137,2,FALSE),AW33*VLOOKUP(AX$16,'Dropdown control panel'!$B$76:$D$137,2,FALSE)-AX33,"On Target")) -> 32.2 | BB33: =IF(ISNUMBER(FIND("/",BB$15)),TEXT(VLOOKUP($C33,Compiled!$E$7:$KA$66,MATCH(BB$15,Compiled!$E$1:$KA$1,0),FALSE),"0.00%"),_xlfn.NUMBERVALUE(VLOOKUP($C33,Compiled!$E$7:$KA$66,MATCH(BB$15,Compiled!$E$1:$KA$1,0),FALSE),"#,##0")) -> 29 | BC33: =IF(ISNUMBER(FIND("/",BC$15)),HLOOKUP(BC$15,Compiled!$F$1:$KA$65,MATCH($C33,Compiled!$E$1:$E$65,0),FALSE),HLOOKUP($C33,Compiled!$F$1:$KA$65,MATCH($C33,Compiled!$E$1:$E$65,0),FALSE)) -> 0.315 | BD33: =IF(BC33="0.00%","",IF(BC33<VLOOKUP(BB$16,'Dropdown control panel'!$B$76:$D$137,2,FALSE),AW33*VLOOKUP(BB$16,'Dropdown control panel'!$B$76:$D$137,2,FALSE)-BB33,"On Target")) -> 30.8 | BF33: =IF(ISNUMBER(FIND("/",BF$15)),TEXT(VLOOKUP($C33,Compiled!$E$7:$CE$66,MATCH(BF$15,Compiled!$E$1:$CE$1,0),FALSE),"0.00%"),_xlfn.NUMBERVALUE(VLOOKUP($C33,Compiled!$E$7:$CE$66,MATCH(BF$15,Compiled!$E$1:$CE$1,0),FALSE),"#,##0")) -> 261 | BG33: =IF(ISNUMBER(FIND("/",BG$15)),TEXT(VLOOKUP($C33,Compiled!$E$7:$CE$66,MATCH(BG$15,Compiled!$E$1:$CE$1,0),FALSE),"0.00%"),_xlfn.NUMBERVALUE(VLOOKUP($C33,Compiled!$E$7:$CE$66,MATCH(BG$15,Compiled!$E$1:$CE$1,0),FALSE),"#,##0")) -> 48 | BH33: =IF(ISNUMBER(FIND("/",BH$15)),HLOOKUP(BH$15,Compiled!$F$1:$CC$65,MATCH($C33,Compiled!$E$1:$E$65,0),FALSE),HLOOKUP($C33,Compiled!$F$1:$CC$65,MATCH($C33,Compiled!$E$1:$E$65,0),FALSE)) -> 0.184 | BI33: =IF(BH33="0.00%","",IF(BH33<VLOOKUP(BG$16,'Dropdown control panel'!$B$76:$D$137,2,FALSE),BF33*VLOOKUP(BG$16,'Dropdown control panel'!$B$76:$D$137,2,FALSE)-BG33,"On Target")) -> 134.7 | BK33: =IF(ISNUMBER(FIND("/",BK$15)),TEXT(VLOOKUP($C33,Compiled!$E$7:$KH$66,MATCH(BK$15,Compiled!$E$1:$KH$1,0),FALSE),"0.00%"),_xlfn.NUMBERVALUE(VLOOKUP($C33,Compiled!$E$7:$KH$66,MATCH(BK$15,Compiled!$E$1:$KH$1,0),FALSE),"#,##0")) -> 20 | BL33: =IF(ISNUMBER(FIND("/",BL$15)),TEXT(VLOOKUP($C33,Compiled!$E$7:$KH$66,MATCH(BL$15,Compiled!$E$1:$KH$1,0),FALSE),"0.00%"),_xlfn.NUMBERVALUE(VLOOKUP($C33,Compiled!$E$7:$KH$66,MATCH(BL$15,Compiled!$E$1:$KH$1,0),FALSE),"#,##0")) -> 1 | BM33: =IF(ISNUMBER(FIND("/",BM$15)),HLOOKUP(BM$15,Compiled!$F$1:$KH$65,MATCH($C33,Compiled!$E$1:$E$65,0),FALSE),HLOOKUP($C33,Compiled!$F$1:$KH$65,MATCH($C33,Compiled!$E$1:$E$65,0),FALSE)) -> 0.05 | BN33: =IF(BM33="0.00%","",IF(BM33<VLOOKUP(BL$16,'Dropdown control panel'!$B$76:$D$137,2,FALSE),BK33*VLOOKUP(BL$16,'Dropdown control panel'!$B$76:$D$137,2,FALSE)-BL33,"On Target")) -> 13 | BO33: =IF(ISNUMBER(FIND("/",BO$15)),TEXT(VLOOKUP($C33,Compiled!$E$7:$KH$66,MATCH(BO$15,Compiled!$E$1:$KH$1,0),FALSE),"0.00%"),_xlfn.NUMBERVALUE(VLOOKUP($C33,Compiled!$E$7:$KH$66,MATCH(BO$15,Compiled!$E$1:$KH$1,0),FALSE),"#,##0")) -> 165 | BP33: =IF(ISNUMBER(FIND("/",BP$15)),HLOOKUP(BP$15,Compiled!$F$1:$KH$65,MATCH($C33,Compiled!$E$1:$E$65,0),FALSE),HLOOKUP($C33,Compiled!$F$1:$KH$65,MATCH($C33,Compiled!$E$1:$E$65,0),FALSE)) -> 0.632 | BQ33: =IF(BP33="0.00%","",IF(BP33<VLOOKUP(BO$16,'Dropdown control panel'!$B$76:$D$137,2,FALSE),BF33*VLOOKUP(BO$16,'Dropdown control panel'!$B$76:$D$137,2,FALSE)-BO33,"On Target")) -> 17.7 | BR33: =IF(ISNUMBER(FIND("/",BR$15)),TEXT(VLOOKUP($C33,Compiled!$E$7:$KH$66,MATCH(BR$15,Compiled!$E$1:$KH$1,0),FALSE),"0.00%"),_xlfn.NUMBERVALUE(VLOOKUP($C33,Compiled!$E$7:$KH$66,MATCH(BR$15,Compiled!$E$1:$KH$1,0),FALSE),"#,##0")) -> 149 | BS33: =IF(ISNUMBER(FIND("/",BS$15)),HLOOKUP(BS$15,Compiled!$F$1:$KH$65,MATCH($C33,Compiled!$E$1:$E$65,0),FALSE),HLOOKUP($C33,Compiled!$F$1:$KH$65,MATCH($C33,Compiled!$E$1:$E$65,0),FALSE)) -> 0.571 | BT33: =IF(BS33="0.00%","",IF(BS33<VLOOKUP(BR$16,'Dropdown control panel'!$B$76:$D$137,2,FALSE),BF33*VLOOKUP(BR$16,'Dropdown control panel'!$B$76:$D$137,2,FALSE)-BR33,"On Target")) -> 33.7 | BV33: =IF(ISNUMBER(FIND("/",BV$15)),TEXT(VLOOKUP($C33,Compiled!$E$7:$CE$66,MATCH(BV$15,Compiled!$E$1:$CE$1,0),FALSE),"0.00%"),_xlfn.NUMBERVALUE(VLOOKUP($C33,Compiled!$E$7:$CE$66,MATCH(BV$15,Compiled!$E$1:$CE$1,0),FALSE),"#,##0")) -> 93 | BW33: =IF(ISNUMBER(FIND("/",BW$15)),TEXT(VLOOKUP($C33,Compiled!$E$7:$CE$66,MATCH(BW$15,Compiled!$E$1:$CE$1,0),FALSE),"0.00%"),_xlfn.NUMBERVALUE(VLOOKUP($C33,Compiled!$E$7:$CE$66,MATCH(BW$15,Compiled!$E$1:$CE$1,0),FALSE),"#,##0")) -> 9 | BX33: =IF(ISNUMBER(FIND("/",BX$15)),HLOOKUP(BX$15,Compiled!$F$1:$CC$65,MATCH($C33,Compiled!$E$1:$E$65,0),FALSE),HLOOKUP($C33,Compiled!$F$1:$CC$65,MATCH($C33,Compiled!$E$1:$E$65,0),FALSE)) -> 0.097 | BY33: =IF(BX33="0.00%","",IF(BX33<VLOOKUP(BW$16,'Dropdown control panel'!$B$76:$D$137,2,FALSE),BV33*VLOOKUP(BW$16,'Dropdown control panel'!$B$76:$D$137,2,FALSE)-BW33,"On Target")) -> 37.5 | CA33: =IF(ISNUMBER(FIND("/",CA$15)),TEXT(VLOOKUP($C33,Compiled!$E$7:$CE$66,MATCH(CA$15,Compiled!$E$1:$CE$1,0),FALSE),"0.00%"),_xlfn.NUMBERVALUE(VLOOKUP($C33,Compiled!$E$7:$CE$66,MATCH(CA$15,Compiled!$E$1:$CE$1,0),FALSE),"#,##0")) -> 56 | CB33: =IF(ISNUMBER(FIND("/",CB$15)),TEXT(VLOOKUP($C33,Compiled!$E$7:$CE$66,MATCH(CB$15,Compiled!$E$1:$CE$1,0),FALSE),"0.00%"),_xlfn.NUMBERVALUE(VLOOKUP($C33,Compiled!$E$7:$CE$66,MATCH(CB$15,Compiled!$E$1:$CE$1,0),FALSE),"#,##0")) -> 5 | CC33: =IF(ISNUMBER(FIND("/",CC$15)),HLOOKUP(CC$15,Compiled!$F$1:$CC$65,MATCH($C33,Compiled!$E$1:$E$65,0),FALSE),HLOOKUP($C33,Compiled!$F$1:$CC$65,MATCH($C33,Compiled!$E$1:$E$65,0),FALSE)) -> 0.089 | CD33: =IF(CC33="0.00%","",IF(CC33<VLOOKUP(CB$16,'Dropdown control panel'!$B$76:$D$137,2,FALSE),CA33*VLOOKUP(CB$16,'Dropdown control panel'!$B$76:$D$137,2,FALSE)-CB33,"On Target")) -> 20.2 | CF33: =IF(ISNUMBER(FIND("/",CF$15)),TEXT(VLOOKUP($C33,Compiled!$E$7:$CE$66,MATCH(CF$15,Compiled!$E$1:$CE$1,0),FALSE),"0.00%"),_xlfn.NUMBERVALUE(VLOOKUP($C33,Compiled!$E$7:$CE$66,MATCH(CF$15,Compiled!$E$1:$CE$1,0),FALSE),"#,##0")) -> 0 | CG33: =IF(ISNUMBER(FIND("/",CG$15)),TEXT(VLOOKUP($C33,Compiled!$E$7:$CE$66,MATCH(CG$15,Compiled!$E$1:$CE$1,0),FALSE),"0.00%"),_xlfn.NUMBERVALUE(VLOOKUP($C33,Compiled!$E$7:$CE$66,MATCH(CG$15,Compiled!$E$1:$CE$1,0),FALSE),"#,##0")) -> 0 | CH33: =IF(ISNUMBER(FIND("/",CH$15)),HLOOKUP(CH$15,Compiled!$F$1:$CC$65,MATCH($C33,Compiled!$E$1:$E$65,0),FALSE),HLOOKUP($C33,Compiled!$F$1:$CC$65,MATCH($C33,Compiled!$E$1:$E$65,0),FALSE)) -> 0.00% | CI33: =IF(CH33="0.00%","",IF(CH33<VLOOKUP(CG$16,'Dropdown control panel'!$B$76:$D$137,2,FALSE),CF33*VLOOKUP(CG$16,'Dropdown control panel'!$B$76:$D$137,2,FALSE)-CG33,"On Target")) ->  | CJ33: =IF(ISNUMBER(FIND("/",CJ$15)),TEXT(VLOOKUP($C33,Compiled!$E$7:$CE$66,MATCH(CJ$15,Compiled!$E$1:$CE$1,0),FALSE),"0.00%"),_xlfn.NUMBERVALUE(VLOOKUP($C33,Compiled!$E$7:$CE$66,MATCH(CJ$15,Compiled!$E$1:$CE$1,0),FALSE),"#,##0")) -> 0 | CK33: =IF(ISNUMBER(FIND("/",CK$15)),HLOOKUP(CK$15,Compiled!$F$1:$CC$65,MATCH($C33,Compiled!$E$1:$E$65,0),FALSE),HLOOKUP($C33,Compiled!$F$1:$CC$65,MATCH($C33,Compiled!$E$1:$E$65,0),FALSE)) -> 0.00% | CL33: =IF(CK33="0.00%","",IF(CK33<VLOOKUP(CJ$16,'Dropdown control panel'!$B$76:$D$137,2,FALSE),CF33*VLOOKUP(CJ$16,'Dropdown control panel'!$B$76:$D$137,2,FALSE)-CJ33,"On Target")) ->  | CM33: =IF(ISNUMBER(FIND("/",CM$15)),TEXT(VLOOKUP($C33,Compiled!$E$7:$KX$66,MATCH(CM$15,Compiled!$E$1:$KX$1,0),FALSE),"0.00%"),_xlfn.NUMBERVALUE(VLOOKUP($C33,Compiled!$E$7:$KX$66,MATCH(CM$15,Compiled!$E$1:$KX$1,0),FALSE),"#,##0")) -> 0 | CN33: =IF(ISNUMBER(FIND("/",CN$15)),HLOOKUP(CN$15,Compiled!$F$1:$KX$65,MATCH($C33,Compiled!$E$1:$E$65,0),FALSE),HLOOKUP($C33,Compiled!$F$1:$KX$65,MATCH($C33,Compiled!$E$1:$E$65,0),FALSE)) -> 0.00% | CO33: =IF(ISNUMBER(FIND("/",CO$15)),TEXT(VLOOKUP($C33,Compiled!$E$7:$KX$66,MATCH(CO$15,Compiled!$E$1:$KX$1,0),FALSE),"0.00%"),_xlfn.NUMBERVALUE(VLOOKUP($C33,Compiled!$E$7:$KX$66,MATCH(CO$15,Compiled!$E$1:$KX$1,0),FALSE),"#,##0")) -> 0 | CP33: =IF(ISNUMBER(FIND("/",CP$15)),HLOOKUP(CP$15,Compiled!$F$1:$KX$65,MATCH($C33,Compiled!$E$1:$E$65,0),FALSE),HLOOKUP($C33,Compiled!$F$1:$KX$65,MATCH($C33,Compiled!$E$1:$E$65,0),FALSE)) -> 0.00% | CQ33: =IF(CP33="0.00%","",IF(CP33<VLOOKUP(CO$16,'Dropdown control panel'!$B$76:$D$137,2,FALSE),CM33*VLOOKUP(CO$16,'Dropdown control panel'!$B$76:$D$137,2,FALSE)-CO33,"On Target")) ->  | CT33: =IF(ISNUMBER(FIND("/",CT$15)),TEXT(VLOOKUP($C33,Compiled!$E$7:$KT$66,MATCH(CT$15,Compiled!$E$1:$KT$1,0),FALSE),"0.00%"),_xlfn.NUMBERVALUE(VLOOKUP($C33,Compiled!$E$7:$KT$66,MATCH(CT$15,Compiled!$E$1:$KT$1,0),FALSE),"#,##0")) -> 0 | CU33: =IF(ISNUMBER(FIND("/",CU$15)),TEXT(VLOOKUP($C33,Compiled!$E$7:$KT$66,MATCH(CU$15,Compiled!$E$1:$KT$1,0),FALSE),"0.00%"),_xlfn.NUMBERVALUE(VLOOKUP($C33,Compiled!$E$7:$KT$66,MATCH(CU$15,Compiled!$E$1:$KT$1,0),FALSE),"#,##0")) -> 0 | CV33: =IF(ISNUMBER(FIND("/",CV$15)),HLOOKUP(CV$15,Compiled!$F$1:$KT$65,MATCH($C33,Compiled!$E$1:$E$65,0),FALSE),HLOOKUP($C33,Compiled!$F$1:$KT$65,MATCH($C33,Compiled!$E$1:$E$65,0),FALSE)) -> 0.00% | CW33: =IF(CV33="0.00%","",IF(CV33<VLOOKUP(CU$16,'Dropdown control panel'!$B$76:$D$140,2,FALSE),CT33*VLOOKUP(CU$16,'Dropdown control panel'!$B$76:$D$140,2,FALSE)-CU33,"On Target")) -> 
